Workbook

Sheet NOTES
A2: The model has actual and test data to illustrate the workings of the model.
A4: Issue | B4: Location | C4: Item | D4: Comment
A6: 1 | B6: Model update'!D37:H41 | C6: Real Vanilla WACC (rvw) | D6: Values updated for 2019 cost of debt and inflation correction
A8: =A6+1 -> 2 | B8: Model update'!G54:G58 | C8: DuoS Xt for2019 | D8: Values updated for 2019 cost of debt and inflaction correction
A10: =A8+1 -> 3 | B10: Model update'!G66:G70 | C10: Metering Xt for2019 | D10: Values updated for 2019 cost of debt
A12: =A10+1 -> 4 | B12: Model update'!G94:G98 | C12: Ifactor (t) 2019 | D12: Values may require updating
A14: =A12+1 -> 5 | B14: Model update'!G105:G109 | C14: S factor (t) 2019 | D14: Values may require updating
A16: =A14+1 -> 6 | B16: Model update'!G116:G120 | C16: Pass through amounts (t) 2019 | D16: NIL for 2019
A18: =A16+1 -> 7 | B18: Model update'!G127:G131 | C18: Licence Fee (t-1) 2017-18 | D18: Values require updating
A20: =A18+1 -> 8 | B20: Metering!D32 | C20: B factor for year t | D20: Formula modified
A22: =A20+1 -> 9 | B22: Metering!E31:F31 and I27 | C22: T - factor | D22: Added Tt-1 and adjusted formula in I27 so that it is (Tt-Tt-1)/R
A24: =A22+1 -> 10 | B24: Metering!E32:F32 and I28 | C24: B - factor | D24: Added Bt-1 and adjusted formula in I28 so that it is (Bt-Bt-1)/R
A26: =A24+1 -> 11 | B26: 2019DistRevCapForm'!C28 | C26: B - factor | D26: Formula modified
A28: =A26+1 -> 12 | B28: 2019TransRevCont'!C15 | C28: DPPC revenue under/over recovery approved | D28: Formula modified
A30: =A28+1 -> 13 | B30: 2019JSRevCont'!B15 | C30: JSA revenue under/over recovery approved | D30: Formula modified
A32: =A30+1 -> 14 | B32: Indicative prices for 2020'!A1:O65 | C32: TSS indicative prices for 2020 | D32: DNSP required to populate with relevant data
A34: =A32+1 -> 15 | B34: The following is test data to illustrate the workings of the model. | D34: Input data required from DNSPs
B35: 2019 Unmetered supply'!G7:I7 | C35: Proposed 2019 Unmetered Supply Tariffs
B36: 2019 Unmetered supply'!K7:M7 | C36: Qt-2 (2017)
B38: Metering!D8:D12 | C38: Proposed Metering Tariffs P(t) for 2019
B39: Metering!F8:F12 | C39: Forecast Quantities (Qt) for 2019
B40: Metering!D80:D84 | C40: Estimated Quantities (Qt-1) for 2018
B42: Prop2019DistTar!D6:P52 | C42: Proposed Distribution Tariffs (Pt) for 2019
B43: Prop2019DistTar!AF6:AR52 | C43: Forecast Quantities (Qt) for 2019
B44: Est2018DistRev!R6:AD52 | C44: Estimated Distribution Quantities for 2018 (Qt-1)
B46: Prop2019TransTar!D6:P52 | C46: Proposed Transmission Tariffs (Pt) for 2019
B47: 2019TransRevCont'!C20:C23 | C47: Table 3 - Transmission charges for year t
B48: 2019TransRevCont'!D42:D45 | C48: Transmission charges for year t-1
B50: Prop2019JSTar!D6:P52 | C50: Proposed Jurisdictional scheme Tariffs (Pt) for 2019
B51: 2019JSRevCont'!C20:C21 | C51: Table 3 - PFIT & TFIT charges for year t
B52: 2019JSRevCont'!D40:D41 | C52: PFIT & TFIT charges for year t-1

Sheet Formulae
B2: DUoS
B3: Figure 14.1 Revenue cap formulae
B4: (1) | H4: i=1,..,n and j=1,..,m and t=1,..,5
B5: (2) | H5: t = 1,2,…,5
B6: (3) | H6: t = 1
B7: (4) | H7: t = 2,…,5
B9: where;
C10: is the total annual revenue in year t.
D11: is the price of component 'j' of tariff 'i' in year t.
D12: is the forecast quantity of component 'j' of tariff 'i' in year t.
C13: is the adjusted annual smoothed revenue requirement for year t.
D14: is the annual adjustment f–factor scheme amount in year t. This amount will be calculated as per the method set out in the relevant f–factor scheme.
D15: is the sum of:
B16: · the final carryover amount from the application of the DMIS from the 2011–15 regulatory control period. This amount will be calculated using the method set out in the DMIS and will be deducted from/added to allowed revenue in the 2017 pricing proposal.
D17: is the sum of:
B18: · the recovery of license fee charges by the Victorian Essential Services Commission indexed by one and a half years of interest, calculated using the following method:
B20: where:
C21: are the licence fees paid by DNSP to the Victorian Essential Services Commission in the financial year ending in June of regulatory year t–1,
C22: is the approved nominal weighted average cost of capital (WACC) for the relevant regulatory year using the following method:
B25: · any under or over recovery of actual revenue collected through DUoS charges in regulatory year t–2 as calculated using the method in appendix A,
B26: · the AER approved pass through amounts (positive or negative) with respect to regulatory year t.
C27: is the annual smoothed revenue requirement as stated in the Post Tax Revenue Model (PTRM) for year t (when year t is the first year of the 2016–20 regulatory control period).[43]
C28: is the s‑factor determined in accordance with the service target performance incentive scheme (STPIS) for regulatory year t.[44]
C29: is the annual percentage change in the ABS CPI All Groups, Weighted Average of Eight Capital Cities[45] from the June quarter in year t–2 to the June quarter in year t–1, calculated using the following method :
B30: The ABS CPI All Groups, Weighted Average of Eight Capital Cities for the June quarter in regulatory year t–1
B31: divided by
B32: The ABS CPI All Groups, Weighted Average of Eight Capital Cities for the June quarter in regulatory year t–2
B33: minus one.
B34: For example, for the 2017 regulatory year, t–2 is June quarter 2015 and t–1 is June quarter 2016 and for the 2018 regulatory year, t–2 is June quarter 2016 and t–1 is June quarter 2017 and so on.
C35: is the X factor for each year of the 2016–20 regulatory control period as determined in the PTRM, and annually revised for the return on debt update in accordance with the formula specified in attachment 3—rate of return—calculated for the relevant year.
B38: [43] | C38: Our final F&A stated that if necessary an adjustment for inflation may be required to the annual smoothed revenue requirement for year t. However, as the annual smoothed revenue requirement for year t as stated in our preliminary decision PTRM is in nominal dollars there is no need to adjust it for inflation. This approach is consistent with past regulatory practice.
B39: [44] | C39: For the first two regulatory years of the 2016–20 regulatory control period, the value of St is to be adjusted to account for the change in revenue requirements between the regulatory control periods, as explained in attachment 11. In the formulas in the STPIS, the AR(t+1) is equivalent to ARt in this formula. Calculations of the S factor adjustment are to be made accordingly.
B40: [45] | C40: If the ABS does not or ceases to publish the index, then CPI will mean an index which the AER considers is the best available alternative index
B44: Figure 14.2 Side constraints [46]
C50: where each tariff class has "n" tariffs, with each up to "m" components, and where:
D51: is the proposed price for component ‘j’ of tariff 'i' for year t.
C52: is the price charged for component ‘j’ of tariff 'i' in year t–1.
D53: is the forecast quantity of component ‘j’ of tariff 'i' in year t.
C54: is the annual percentage change in the ABS CPI All Groups, Weighted Average of Eight Capital Cities[4] from the June quarter in year t–2 to the June quarter in year t–1, calculated using the following method :
C55: The ABS CPI All Groups, Weighted Average of Eight Capital Cities[47] for the June quarter in regulatory year t–1
C56: divided by
C57: The ABS CPI All Groups, Weighted Average of Eight Capital Cities for the June quarter in regulatory year t–2
C58: minus one.
B59: For example, for the 2017 regulatory year, t–2 is June quarter 2015 and t–1 is June quarter 2016 and for the 2018 regulatory year, t–2 is June quarter 2016 and t–1 is June quarter 2017 and so on.
D60: is the X factor for each year of the 2016–20 regulatory control period as determined in the PTRM, and annually revised for the return on debt update in accordance with the formula specified in attachment 3—rate of return—calculated for the relevant year. If X>0, then X will be set equal to zero for the purposes of the side constraint formula.
C61: is the s‑factor determined in accordance with the STPIS for regulatory year t.[5]
D62: is the annual percentage change from the f–factor scheme amount in year t. This amount will be calculated as per the method set out in attachment 19—f–factor scheme.
D63: is the annual percentage change from the final carryover amount from the application of the DMIS from the 2011–15 regulatory control period. This amount will be calculated using the method set out in the DMIS and will be deducted from/added to allowed revenue in the 2017 pricing proposal.
D64: is annual percentage change from the sum of:
B65: · the recovery of license fee charges by the Victorian Essential Services Commission indexed by one and a half years of interest, calculated using the following method:
B67: where:
B68: are the licence fees paid byDNSP to the Victorian Essential Services Commission in the financial year ending in June of regulatory year t–1,
C69: is the approved nominal weighted average cost of capital (WACC) for the relevant regulatory year using the following method:
B72: where the
B73: is as set out in our final decision PTRM and updated annually
B74: · the AER approved pass through amounts (positive or negative) with respect to regulatory year t.
B75: With the exception of the CPI, X factor and S factor, the percentage for each of the other factors above can be calculated by dividing the incremental revenues (as used in the total annual revenue formula) for each factor by the expected revenues for regulatory year t–1 (based on the prices in year t–1 multiplied by the forecast quantities for year t).
B77: [46] | C77: All parameters are in nominal terms unless otherwise specified.
B78: [47] | C78: If the ABS does not or ceases to publish the index, then CPI will mean an index which the AER considers is the best available alternative index.
H83: Table 14.1 | I83: Example calculation of DUoS unders and overs account ($'000, nominal)
I84: Year t–2 | J84: Year t–1 | K84: Year t
I85: (actual) | J85: (estimate) | K85: (forecast)
H86: (A) Revenue from DUoS charges | I86: 46 779 | J86: 40 269 | K86: 39 510
H87: (B) Less TAR for regulatory year = | I87: 43 039 | J87: 41 427 | K87: 44 429
H88: + Adjusted annual smoothed revenues (AARt) | I88: 40 189 | J88: 41 393 | K88: 44 393
H89: + f–factor scheme amount (It) | I89: –12 | J89: 10 | K89: 14
H90: + DMIS carryover amount (Tt) | I90: 1013 | J90: 0 | K90: 0
H91: + Annual adjustments (Bt)a = | I91: 1849 | J91: 24 | K91: 22
H92: + License fee recovery | I92: 25 | J92: 24 | K92: 22
H93: + Approved pass through amounts | I93: 1824 | J93: 0 | K93: 0
H95: (A minus B) Under/over recovery of revenue for regulatory year | I95: 3740 | J95: –1158 | K95: –4919b
H97: DUoS unders and overs account
H98: Nominal WACC (per cent) | I98: 0.05 | J98: 0.055 | K98: 0.06
H99: Opening balance | I99: 1737 | J99: 5656c | K99: 4778
H100: Interest on opening balance | I100: 87 | J100: 311 | K100: 287
H101: Under/over recovery of revenue for regulatory year | I101: 3740 | J101: –1158 | K101: –4919b
H102: Interest on under/over recovery for regulatory year | I102: 92 | J102: –31 | K102: –145
H103: Closing balance | I103: 5656 | J103: 4778 | K103: 0d
G104: Notes: | H104: (a) Bt parameter calculations in the DUoS unders and overs account exclude approved DUoS revenue under/over recovery for regulatory year.
H105: (b) Approved DUoS revenue under/over recovery for regulatory year t.
H106: (c) Opening balance is the previous year's closing balance.
H107: (d) The DNSP is expected to achieve a closing balance as close to zero as practicable in its DUoS unders and overs account in each forecast year in its annual pricing proposals in the 2016–20 regulatory control period.
H113: Table 14.2 | I113: Example calculation of designated pricing proposal charges unders and overs account ($'000, nominal)
I114: Year t–2 | J114: Year t–1 | K114: Year t
I115: (actual) | J115: (estimate) | K115: (forecast)
H116: (A) Revenue from designated pricing proposal charges (DPPC) | I116: 40 077 | J116: 34 944 | K116: 36 609
H117: (B) Less DPPC related payments for regulatory year = | I117: 34 365 | J117: 38 734 | K117: 39 200
H118: + DPPC charges to be paid to TNSP | I118: 33 672 | J118: 37 933 | K118: 38 000
H119: + Avoided TUoS/DPPC payments | I119: 572 | J119: 734 | K119: 800
H120: + Inter–distributor payments | I120: 121 | J120: 67 | K120: 400
H122: (A minus B) Under/over recovery of revenue for regulatory year | I122: 5712 | J122: –3790 | K122: –2540a
H124: DPPC unders and overs account
H125: Nominal WACC (per cent) | I125: 0.05 | J125: 0.055 | K125: 0.06
H126: Opening balance | I126: 167 | J126: 6028b | K126: 2467
H127: Interest on opening balance | I127: 8 | J127: 332 | K127: 148
H128: Under/over recovery of revenue for regulatory year | I128: 5712 | J128: –3790 | K128: –2540a
H129: Interest on under/over recovery for regulatory year | I129: 141 | J129: –103 | K129: –75
H130: Closing balance | I130: 6028 | J130: 2467 | K130: 0c
G131: Notes: | H131: (a) Approved DPPC revenue under/over recovery for regulatory year t.
H132: (b) Opening balance is the previous year's closing balance.
H133: (c)The DNSP is expected to achieve a closing balance as close to zero as practicable in its DPPC unders and overs account in each forecast year in its annual pricing proposals in the 2016–20 regulatory control period.
H139: Table 14.3 Example calculation of jurisdictional scheme amounts unders and overs account ($'000, nominal)
I140: Year t–2 | J140: Year t–1 | K140: Year t
I141: (actual) | J141: (estimate) | K141: (forecast)
H142: (A) Revenue from jurisdictional schemes | I142: 19 777 | J142: 23 121 | K142: 26 965
H143: (B) Less jurisdictional scheme payments for regulatory year = | I143: 20 272 | J143: 20 959 | K143: 28 641
H144: + Jurisdictional scheme 1 payments | I144: 14 159 | J144: 13 954 | K144: 13 961
H145: + Jurisdictional scheme 2 payments | I145: 6113 | J145: 7005 | K145: 14 680
H147: (A minus B) Under/over recovery of revenue for regulatory year | I147: –495 | J147: 2162 | K147: –1676a
H149: Jurisdictional scheme amount unders and overs account
H150: Nominal WACC (per cent) | I150: 0.05 | J150: 0.055 | K150: 0.06
H151: Opening balance | I151: –52 | J151: –562b | K151: 1628
H152: Interest on opening balance | I152: –3 | J152: –31 | K152: 98
H153: Under/over recovery of revenue for regulatory year | I153: –495 | J153: 2162 | K153: –1676a
H154: Interest on under/over recovery for regulatory year | I154: –12 | J154: 59 | K154: –50
H155: Closing balance | I155: –562 | J155: 1628 | K155: 0c
G156: Notes: | H156: (a) Approved jurisdictional scheme amounts revenue under/over recovery for regulatory year t.
H157: (b) Opening balance is the previous year's closing balance.
H158: (c) The DNSP is expected to achieve a closing balance as close to zero as practicable in its jurisdictional scheme amount unders and overs account in each forecast year in its annual pricing proposals in the 2016–20 regulatory control period.
B166: Metering
B167: Figure 16.3 | C167: Annual metering charges revenue cap formula
A168: (1) | H168: i=1,..,n and j=1,..,m and t=1,..,5
A170: (2) | H170: t = 1,2,…,5
A172: (3) | H172: t = 1,2,…,5
B175: where;
C176: is the total annual revenue for annual metering charges in year t.
E177: is the price of component 'j' of metering service 'i' in year t.
E178: is the forecast quantity of component 'j' of metering service 'i' in year t.
D179: is the annual revenue requirement for year t. When year t is the first year of the 2016–20 regulatory control period,
D180: is the annual revenue requirement in the annual metering charges Post Tax Revenue Model (PTRM) for year t.
E181: is equal to zero for all years except 2017 and is a once off adjustment to 2017 charges for the unders and overs recoveries relating to Advanced Metering Infrastructure actual revenues and actual costs incurred in 2014 and 2015.
E182: is the sum of annual adjustment factors in year t as calculated in the unders and overs account in appendix C.
D184: is the annual revenue requirement for year t–1.
C185: is the annual percentage change in the ABS CPI All Groups, Weighted Average of Eight Capital Cities[39] from the June quarter in year t–2 to the June quarter in year t–1, calculated using the following method:
B186: The ABS CPI All Groups, Weighted Average of Eight Capital Cities for the June quarter in regulatory year t–1
B187: divided by
B188: The ABS CPI All Groups, Weighted Average of Eight Capital Cities for the June quarter in regulatory year t–2
B189: minus one.
B190: For example, for the 2017 regulatory year, t–2 is June quarter 2015 and t–1 is June quarter 2016 and for the 2018 regulatory year, t–2 is June quarter 2016 and t–1 is June quarter 2017 and so on.
D191: is the X factor for each year of the 2016–20 regulatory control period as determined in the annual metering charges PTRM.
B194: [39] | C194: If the ABS does not or ceases to publish the index, then CPI will mean an index which the AER considers is the best available alternative index
B199: Figure 16.4 Side constraints
B201: where:
E202: is the price of annual metering charges service 'i' in year t.
D203: is the price of annual metering charges service 'i' in year t–1.
C204: is the annual percentage change in the ABS CPI All Groups, Weighted Average of Eight Capital Cities from the June quarter in year t–2 to the June quarter in year t–1, calculated using the following method:
B205: The ABS CPI All Groups, Weighted Average of Eight Capital Cities[40] for the June quarter in regulatory year t–1
B206: divided by
B207: The ABS CPI All Groups, Weighted Average of Eight Capital Cities for the June quarter in regulatory year t–2
B208: minus one.
B209: For example, for the 2017 regulatory year, t–2 is June quarter 2015 and t–1 is June quarter 2016 and for the 2018 regulatory year, t–2 is June quarter 2016 and t–1 is June quarter 2017 and so on.
D210: is the X factor for each year of the 2016–20 regulatory control period as determined in the annual metering charges PTRM.
E211: is the annual percentage change for the unders and overs recoveries relating to Advanced Metering Infrastructure actual revenues and actual costs incurred in 2014 and 2015. It is equal to zero for all years except 2017 and is a once off adjustment to 2017 charges.
E212: is the annual percentage change from the sum of annual adjustment factors in year t as calculated in the unders and overs account in appendix C.
B213: With the exception of the CPI and the X factor, the percentage for each of the other factors above can be calculated by dividing the incremental revenues (as used in the total annual revenue formula) for each factor by the expected revenues for regulatory year t–1 (based on the prices in year t–1 multiplied by the forecast quantities for year t).
B215: [40] | C215: If the ABS does not or ceases to publish the index, then CPI will mean an index which the AER considers is the best available alternative index.
H220: Table 16.xx | I220: Example calculation of annual metering charges unders and overs account ($'000, nominal)
I221: Year t–2 | J221: Year t–1 | K221: Year t
I222: (actual) | J222: (estimate) | K222: (forecast)
H223: (A) Revenue from annual metering charges | I223: 8 449 | J223: 7 389 | K223: 6 460
H224: (B) Less TARM for regulatory year = | I224: 7 366 | J224: 7 422 | K224: 7 573
H225: + Annual revenue requirement (ARt) | I225: 7 349 | J225: 7 412 | K225: 7 559
H226: + T factor (Tt) – true‑ups relating to the AMI–Order in Council | I226: 17 | J226: 10 | K226: 14
H228: (A minus B) Under/over recovery of revenue for regulatory year | I228: 1 083 | J228: –33 | K228: –1 113a
H230: Annual metering charges unders and overs account
H231: Nominal WACC (per cent) | I231: 0.05 | J231: 0.055 | K231: 0.06
H232: Opening balance | I232: –50 | J232: 1 057b | K232: 1 081
H233: Interest on opening balance | I233: –3 | J233: 58 | K233: 65
H234: Under/over recovery of revenue for regulatory year | I234: 1 083 | J234: –33 | K234: –1 113b
H235: Interest on under/over recovery for regulatory year | I235: 27 | J235: –1 | K235: –33
H236: Closing balance | I236: 1 057 | J236: 1 081 | K236: 0c
G237: Notes: | H237: (a) Approved annual metering charges revenue under/over recovery for regulatory year t. This is the Bt parameter in the annual metering charges revenue cap formula.
H238: (b) Opening balance is the previous year's closing balance.
H239: (c) The DNSP is expected to achieve a closing balance as close to zero as practicable in its annual metering charges unders and overs account in each forecast year in its annual pricing proposals in the 2016–20 regulatory control period.

Sheet Model update
A3: Tariff Approval Template for | C3: =A57 -> AusNet Services
A5: calendar year commencing | C5: 2019
A7: t | B7: = | C7: =C5 -> 2019
A8: t-1 | B8: = | C8: =C7-1 -> 2018
A9: t-2 | B9: = | C9: 2017
A10: t-3 | B10: = | C10: 2016
A11: t-4 | B11: = | C11: 2015
A13: Please fill in yellow highlighted cells where appropriate
A15: CPI | B15: The ABS changed the index reference base in September 2012 from 1989-90 to 2011-12.
A16: CPI Index Sept 2011 | C16: 99.8
A17: CPI Index Sept 2012 | C17: 101.8 | E17: CPI 2013 | F17: =C17/C16-1 -> 0.02004008016
A18: CPI Index Sept 2013 | C18: 104 | E18: CPI 2014 | F18: =C18/C17-1 -> 0.02161100196
A19: CPI Index Sept 2014 | C19: 106.4 | E19: CPI 2015 | F19: =C19/C18-1 -> 0.02307692308
A20: CPI Index Sept 2015 | C20: 108 | E20: CPI 2016 | F20: =C20/C19-1 -> 0.01503759398
A21: CPI Index June 2015 | C21: 107.5
A22: CPI Index June 2016 | C22: 108.6 | E22: CPI 2017 | F22: =IF(OR(C21="",C22=""),0,C22/C21-1) -> 0.01023255814
A23: CPI Index June 2017 | C23: 110.7 | E23: CPI 2018 | F23: =IF(OR(C22="",C23=""),0,C23/C22-1) -> 0.01933701657
A24: CPI Index June 2018 | C24: 113 | E24: CPI 2019 | F24: 0.02077687444
A25: CPI Index June 2019 | E25: CPI 2020 | F25: 0
A28: ="CPI " &$C$9 -> CPI 2017 | C28: =VLOOKUP(A28,E$17:F$25,2,FALSE) -> 0.01023255814 | D28: (t-2)
A29: ="CPI " &$C$8 -> CPI 2018 | C29: =VLOOKUP(A29,E$17:F$25,2,FALSE) -> 0.01933701657 | D29: (t-1)
A30: ="CPI " &$C$5 -> CPI 2019 | C30: 0.02077687444 | D30: (t)
A35: Real Vanilla WACC (rvw)
A36: ="rvw for "&C$5 -> rvw for 2019 | D36: rvw for 2016 | E36: rvw for 2017 | F36: rvw for 2018 | G36: rvw for 2019 | H36: rvw for 2020
A37: =$A$54 -> Jemena | B37: =HLOOKUP($A$36,$D$36:$H$41,2,FALSE) -> 0.0384827082 | D37: 0.03959695909 | E37: 0.03899874743 | F37: 0.0384827082 | G37: 0.0384827082 | H37: 0.0384827082
A38: =$A$55 -> CitiPower | B38: =HLOOKUP($A$36,$D$36:$H$41,3,FALSE) -> 0.03589785446 | D38: 0.03696767584 | E38: 0.03639507276 | F38: 0.03589785446 | G38: 0.03589785446 | H38: 0.03589785446
A39: =$A$56 -> Powercor | B39: =HLOOKUP($A$36,$D$36:$H$41,4,FALSE) -> 0.03589785446 | D39: 0.03696767584 | E39: 0.03639507276 | F39: 0.03589785446 | G39: 0.03589785446 | H39: 0.03589785446
A40: =$A$57 -> AusNet Services | B40: =HLOOKUP($A$36,$D$36:$H$41,5,FALSE) -> 0.03744929841 | D40: 0.03871679489 | E40: 0.03826233619 | F40: 0.03801328469 | G40: 0.03744929841 | H40: 0.03744929841
A41: =$A$58 -> United Energy | B41: =HLOOKUP($A$36,$D$36:$H$41,6,FALSE) -> 0.03839184135 | D41: 0.03959852119 | E41: 0.03896319849 | F41: 0.03839184135 | G41: 0.03839184135 | H41: 0.03839184135
A43: ="rvw (t) "&C$5 -> rvw (t) 2019 | B43: =VLOOKUP(C$3,A37:B41,2,FALSE) -> 0.03744929841 | C43: (t) | D43: =VLOOKUP($C$3,$A$37:$H$41,4,FALSE) -> 0.03871679489 | E43: =VLOOKUP($C$3,$A37:$H$41,5,FALSE) -> 0.03826233619 | F43: =VLOOKUP($C$3,$A$37:$H$41,6,FALSE) -> 0.03801328469 | G43: =VLOOKUP($C$3,$A$37:$H$41,7,FALSE) -> 0.03744929841 | H43: =VLOOKUP($C$3,$A$37:$H$41,8,FALSE) -> 0.03744929841
A45: ="rvw for "&C$5-1 -> rvw for 2018 | B45: =IF(C$5=2016,F$184,HLOOKUP($A45,D$36:H$43,8,FALSE)) -> 0.03801328469 | C45: (t-1)
A47: ="rvw for "&C$5-2 -> rvw for 2017 | B47: =IF(OR(C$5=2016,C$5=2017),F$183,HLOOKUP($A47,D$36:H$43,8,FALSE)) -> 0.03826233619 | C47: (t-2)
A52: DuoS
A53: ="Xt for "&C$5 -> Xt for 2019 | D53: AR for 2016 | E53: Xt for 2017 | F53: Xt for 2018 | G53: Xt for 2019 | H53: Xt for 2020
A54: Jemena | B54: =IF(C$5=2016,"n/a",HLOOKUP($A$53,$E$53:$H$58,2,FALSE)) -> -0.0202 | D54: 238498758 | E54: -0.0325 | F54: 0.0027 | G54: -0.0202 | H54: -0.02
A55: CitiPower | B55: =IF(C$5=2016,"n/a",HLOOKUP($A$53,$E$53:$H$58,3,FALSE)) -> -0.012 | D55: 282881283 | E55: 0.004 | F55: -0.0005 | G55: -0.012 | H55: -0.024
A56: Powercor | B56: =IF(C$5=2016,"n/a",HLOOKUP($A$53,$E$53:$H$58,4,FALSE)) -> -0.018 | D56: 621773294 | E56: 0.0468 | F56: -0.0081 | G56: -0.018 | H56: -0.026
A57: AusNet Services | B57: =IF(C$5=2016,"n/a",HLOOKUP($A$53,$E$53:$H$58,5,FALSE)) -> -0.03013217637 | D57: 586045137 | E57: 0.003 | F57: -0.0184 | G57: -0.03013217637 | H57: -0.03013217637
A58: United Energy | B58: =IF(C$5=2016,"n/a",HLOOKUP($A$53,$E$53:$H$58,6,FALSE)) -> -0.035 | D58: 375069867 | E58: -0.0383 | F58: -0.0316 | G58: -0.035 | H58: 0
A60: ="Xt for"&C$5 -> Xt for2019 | B60: =VLOOKUP(C$3,A54:B58,2,FALSE) -> -0.03013217637 | D60: =VLOOKUP($C$3,$A$54:$H$58,4,FALSE) -> 586045137 | E60: =VLOOKUP($C$3,$A$54:$H$58,5,FALSE) -> 0.003 | F60: =VLOOKUP($C$3,$A$54:$H$58,6,FALSE) -> -0.0184 | G60: =VLOOKUP($C$3,$A$54:$H$58,7,FALSE) -> -0.03013217637 | H60: =VLOOKUP($C$3,$A$54:$H$58,8,FALSE) -> -0.03013217637
A64: Metering
A65: ="Xt for "&C$5 -> Xt for 2019 | D65: AR for 2016 | E65: Xt for 2017 | F65: Xt for 2018 | G65: Xt for 2019 | H65: Xt for 2020
A66: Jemena | B66: =IF(C$5=2016,"n/a",HLOOKUP($A$65,$E$65:$H$70,2,FALSE)) -> -0.015 | D66: 44212949.02 | E66: 0.3473 | F66: -0.0136 | G66: -0.015 | H66: -0.015
A67: CitiPower | B67: =IF(C$5=2016,"n/a",HLOOKUP($A$65,$E$65:$H$70,3,FALSE)) -> 0.075 | D67: 32973195.04 | E67: 0.1402 | F67: 0.0767 | G67: 0.075 | H67: 0.075
A68: Powercor | B68: =IF(C$5=2016,"n/a",HLOOKUP($A$65,$E$65:$H$70,4,FALSE)) -> 0.08 | D68: 79145313.2 | E68: 0.1096 | F68: 0.0819 | G68: 0.08 | H68: 0.08
A69: AusNet Services | B69: =IF(C$5=2016,"n/a",HLOOKUP($A$65,$E$65:$H$70,5,FALSE)) -> 0.1693485927 | D69: 92754610.44 | E69: 0.0231 | F69: 0.1658 | G69: 0.1693485927 | H69: 0.165
A70: United Energy | B70: =IF(C$5=2016,"n/a",HLOOKUP($A$65,$E$65:$H$70,6,FALSE)) -> 0.055 | D70: 62733316.95 | E70: 0.3081 | F70: 0.057 | G70: 0.055 | H70: 0.055
A72: ="Xt for"&C$5 -> Xt for2019 | B72: =VLOOKUP(C$3,A66:B70,2,FALSE) -> 0.1693485927 | D72: =VLOOKUP($C$3,$A$66:$H$70,4,FALSE) -> 92754610.44 | E72: =VLOOKUP($C$3,$A$66:$H$70,5,FALSE) -> 0.0231 | F72: =VLOOKUP($C$3,$A$66:$H$70,6,FALSE) -> 0.1658 | G72: =VLOOKUP($C$3,$A$66:$H$70,7,FALSE) -> 0.1693485927 | H72: =VLOOKUP($C$3,$A$66:$H$70,8,FALSE) -> 0.165
A76: DuoS
A77: Real Pre-tax WACC (rptw)
A78: ="rptw for "&C$5 -> rptw for 2019 | D78: rptw for 2016 | E78: rptw for 2017 | F78: rptw for 2018 | G78: rptw for 2019 | H78: rptw for 2020
A79: =$A$54 -> Jemena | B79: =HLOOKUP($A$78,$D$78:$H$83,2,FALSE) -> 0 | D79: 0.04723374708 | E79: 0.04663553542 | F79: 0.04611949618
A80: =$A$55 -> CitiPower | B80: =HLOOKUP($A$78,$D$78:$H$83,3,FALSE) -> 0 | D80: 0.04446856678 | E80: 0.0438959637 | F80: 0.0433987454
A81: =$A$56 -> Powercor | B81: =HLOOKUP($A$78,$D$78:$H$83,4,FALSE) -> 0 | D81: 0.04347088828 | E81: 0.0428982852 | F81: 0.0424010669
A82: =$A$57 -> AusNet Services | B82: =HLOOKUP($A$78,$D$78:$H$83,5,FALSE) -> 0.04377949723 | D82: 0.04533877046 | E82: 0.04488419444 | F82: 0.04463507863 | G82: 0.04377949723 | J82: WACC for 2018, 2017, 2016 is different to latest PTRM because of correction to inflation - future x factors take this into account
A83: =$A$58 -> United Energy | B83: =HLOOKUP($A$78,$D$78:$H$83,6,FALSE) -> 0 | D83: 0.04819181771 | E83: 0.04755649502 | F83: 0.04698513788
A85: ="rptw (t) "&C$5 -> rptw (t) 2019 | B85: =VLOOKUP(C$3,A79:B83,2,FALSE) -> 0.04377949723 | C85: (t) | D85: =VLOOKUP($C$3,$A$79:$H$83,4,FALSE) -> 0.04533877046 | E85: =VLOOKUP($C$3,$A79:$H$83,5,FALSE) -> 0.04488419444 | F85: =VLOOKUP($C$3,$A$79:$H$83,6,FALSE) -> 0.04463507863 | G85: =VLOOKUP($C$3,$A$79:$H$83,7,FALSE) -> 0.04377949723 | H85: =VLOOKUP($C$3,$A$79:$H$83,8,FALSE) -> 0
A87: ="rptw for "&C$5-1 -> rptw for 2018 | B87: =IF(C$5=2016,B$184,HLOOKUP($A87,D$78:H$85,8,FALSE)) -> 0.04463507863 | C87: (t-1)
A89: ="rptw for "&C$5-2 -> rptw for 2017 | B89: =IF(OR(C$5=2016,C$5=2017),B$183,HLOOKUP($A89,D$78:H$85,8,FALSE)) -> 0.04488419444 | C89: (t-2)
A93: F factor Scheme | B93: =$C$5 -> 2019 | D93: 2016 | E93: =+D93+1 -> 2017 | F93: =+E93+1 -> 2018 | G93: 2019 | H93: 2020
A94: =$A$54 -> Jemena | B94: =HLOOKUP($B$93,$D$93:$H$98,2,FALSE) -> 117300 | D94: -680000 | E94: 70000 | F94: 655000 | G94: 117300
A95: =$A$55 -> CitiPower | B95: =HLOOKUP($B$93,$D$93:$H$98,3,FALSE) -> 43200 | D95: -15000 | E95: 410000 | F95: 140000 | G95: 43200
A96: =$A$56 -> Powercor | B96: =HLOOKUP($B$93,$D$93:$H$98,4,FALSE) -> 4639200 | D96: -1530000 | E96: 1420000 | F96: 1755000 | G96: 4639200
A97: =$A$57 -> AusNet Services | B97: =HLOOKUP($B$93,$D$93:$H$98,5,FALSE) -> 1485000 | D97: 1870000 | E97: 3420000 | F97: 750000 | G97: 1485000
A98: =$A$58 -> United Energy | B98: =HLOOKUP($B$93,$D$93:$H$98,6,FALSE) -> 224400 | D98: -2245000 | E98: 555000 | F98: 1000000 | G98: 224400
A100: ="Ifactor (t) "&C$5 -> Ifactor (t) 2019 | B100: =VLOOKUP(C$3,A94:B98,2,FALSE) -> 1485000 | D100: =VLOOKUP($C$3,$A$94:$H$98,4,FALSE) -> 1870000 | E100: =VLOOKUP($C$3,$A$94:$H$98,5,FALSE) -> 3420000 | F100: =VLOOKUP($C$3,$A$94:$H$98,6,FALSE) -> 750000 | G100: =VLOOKUP($C$3,$A$94:$H$98,7,FALSE) -> 1485000 | H100: =VLOOKUP($C$3,$A$94:$H$98,8,FALSE) -> 0
A104: S factor Scheme | B104: =$C$5 -> 2019 | D104: 2016 | E104: =+D104+1 -> 2017 | F104: =+E104+1 -> 2018 | G104: 2019 | H104: 2020
A105: =$A$54 -> Jemena | B105: =HLOOKUP($B$104,$D$104:$H$109,2,FALSE) -> 0.006950679651 | D105: 0.03997406406 | E105: 0.01488310469 | F105: -0.03971153723 | G105: 0.006950679651
A106: =$A$55 -> CitiPower | B106: =HLOOKUP($B$104,$D$104:$H$109,3,FALSE) -> 0.003830022123 | D106: -0.01268789003 | E106: 0.004032145684 | F106: 0.01857052664 | G106: 0.003830022123
A107: =$A$56 -> Powercor | B107: =HLOOKUP($B$104,$D$104:$H$109,4,FALSE) -> 0.02521273932 | D107: -0.01184910821 | E107: 0.05100648542 | F107: -0.01384168227 | G107: 0.02521273932
A108: =$A$57 -> AusNet Services | B108: =HLOOKUP($B$104,$D$104:$H$109,5,FALSE) -> 0.01506128099 | D108: 0.03357397489 | E108: 0.03217876587 | F108: -0.06343364122 | G108: 0.01506128099
A109: =$A$58 -> United Energy | B109: =HLOOKUP($B$104,$D$104:$H$109,6,FALSE) -> 0.01682414399 | D109: -0.02947870448 | E109: 0.02836672327 | F109: 0.02276703882 | G109: 0.01682414399
A111: ="S factor (t) "&C$5 -> S factor (t) 2019 | B111: =VLOOKUP(C$3,A105:B109,2,FALSE) -> 0.01506128099 | D111: =VLOOKUP($C$3,$A$105:$H$109,4,FALSE) -> 0.03357397489 | E111: =VLOOKUP($C$3,$A$105:$H$109,5,FALSE) -> 0.03217876587 | F111: =VLOOKUP($C$3,$A$105:$H$109,6,FALSE) -> -0.06343364122 | G111: =VLOOKUP($C$3,$A$105:$H$109,7,FALSE) -> 0.01506128099 | H111: =VLOOKUP($C$3,$A$105:$H$109,8,FALSE) -> 0
A115: Pass through Amounts | B115: =$C$5 -> 2019 | D115: 2016 | E115: =+D115+1 -> 2017 | F115: =+E115+1 -> 2018 | G115: 2019 | H115: 2020
A116: =$A$54 -> Jemena | B116: =HLOOKUP($B$115,$D$115:$H$120,2,FALSE) -> 0 | D116: 0 | E116: 0 | F116: 0 | G116: 0
A117: =$A$55 -> CitiPower | B117: =HLOOKUP($B$115,$D$115:$H$120,3,FALSE) -> 0 | D117: 0 | E117: 0 | F117: 0 | G117: 0
A118: =$A$56 -> Powercor | B118: =HLOOKUP($B$115,$D$115:$H$120,4,FALSE) -> 0 | D118: 0 | E118: 0 | F118: 0 | G118: 0
A119: =$A$57 -> AusNet Services | B119: =HLOOKUP($B$115,$D$115:$H$120,5,FALSE) -> 0 | D119: =-(5723000*(1+0.0975)) -> -6280992.5 | E119: 0 | F119: 0 | G119: 0
A120: =$A$58 -> United Energy | B120: =HLOOKUP($B$115,$D$115:$H$120,6,FALSE) -> 0 | D120: 0 | E120: 0 | F120: 0 | G120: 0
A122: ="Pass through amounts (t) "&C$5 -> Pass through amounts (t) 2019 | B122: =VLOOKUP(C$3,A116:B120,2,FALSE) -> 0 | D122: =VLOOKUP($C$3,$A$116:$H$120,4,FALSE) -> -6280992.5 | E122: =VLOOKUP($C$3,$A$116:$H$120,5,FALSE) -> 0 | F122: =VLOOKUP($C$3,$A$116:$H$120,6,FALSE) -> 0 | G122: =VLOOKUP($C$3,$A$116:$H$120,7,FALSE) -> 0 | H122: =VLOOKUP($C$3,$A$116:$H$120,8,FALSE) -> 0
C125: Relevant financial year (t-1) | D125: =TEXT(D126-2,"####")&"-"&RIGHT(TEXT(D126-1,"##"),2) -> 2014-15 | E125: =TEXT(E126-2,"####")&"-"&RIGHT(TEXT(E126-1,"##"),2) -> 2015-16 | F125: 2016-17 | G125: 2017-18 | H125: 2018-19
A126: License Fees | B126: =$C$5 -> 2019 | D126: 2016 | E126: =+D126+1 -> 2017 | F126: =+E126+1 -> 2018 | G126: 2019 | H126: 2020
A127: =$A$54 -> Jemena | B127: =HLOOKUP($B$126,$D$126:$H$131,2,FALSE) -> 78000 | D127: 36033 | E127: 39516 | F127: 76545 | G127: 78000
A128: =$A$55 -> CitiPower | B128: =HLOOKUP($B$126,$D$126:$H$131,3,FALSE) -> 80000 | D128: 36475 | E128: 40445 | F128: 78091 | G128: 80000
A129: =$A$56 -> Powercor | B129: =HLOOKUP($B$126,$D$126:$H$131,4,FALSE) -> 190000 | D129: 85205 | E129: 94964 | F129: 185081 | G129: 190000
A130: =$A$57 -> AusNet Services | B130: =HLOOKUP($B$126,$D$126:$H$131,5,FALSE) -> 170003 | D130: 74811 | E130: 85031 | F130: 168235 | G130: 170003
A131: =$A$58 -> United Energy | B131: =HLOOKUP($B$126,$D$126:$H$131,6,FALSE) -> 160000 | D131: 74197 | E131: 81712 | F131: 158262 | G131: 160000
A133: ="Licence Fee (t-1) "&TEXT(C$5-2,"####")&"-"&RIGHT(TEXT(C$5-1,"##"),2) -> Licence Fee (t-1) 2017-18 | B133: =VLOOKUP(C$3,A127:B131,2,FALSE) -> 170003 | D133: =VLOOKUP($C$3,$A$127:$H$131,4,FALSE) -> 74811 | E133: =VLOOKUP($C$3,$A$127:$H$131,5,FALSE) -> 85031 | F133: =VLOOKUP($C$3,$A$127:$H$131,6,FALSE) -> 168235 | G133: =VLOOKUP($C$3,$A$127:$H$131,7,FALSE) -> 170003 | H133: =VLOOKUP($C$3,$A$127:$H$131,8,FALSE) -> 0
A137: DMIA Carryover adjustment | B137: =$C$5 -> 2019 | D137: 2016 | E137: =+D137+1 -> 2017 | F137: =+E137+1 -> 2018 | G137: 2019 | H137: 2020
A138: =$A$54 -> Jemena | B138: =HLOOKUP($B$137,$D$137:$H$142,2,FALSE) -> 0 | E138: =H154 -> -91286.96254
A139: =$A$55 -> CitiPower | B139: =HLOOKUP($B$137,$D$137:$H$142,3,FALSE) -> 0
A140: =$A$56 -> Powercor | B140: =HLOOKUP($B$137,$D$137:$H$142,4,FALSE) -> 0
A141: =$A$57 -> AusNet Services | B141: =HLOOKUP($B$137,$D$137:$H$142,5,FALSE) -> 0
A142: =$A$58 -> United Energy | B142: =HLOOKUP($B$137,$D$137:$H$142,6,FALSE) -> 0 | E142: =H163 -> -479908.4001
A144: ="T factor (t) "&C$5 -> T factor (t) 2019 | B144: =VLOOKUP(C$3,A138:B142,2,FALSE) -> 0 | D144: =VLOOKUP($C$3,$A$138:$H$142,4,FALSE) -> 0 | E144: =VLOOKUP($C$3,$A$138:$H$142,5,FALSE) -> 0 | F144: =VLOOKUP($C$3,$A$138:$H$142,6,FALSE) -> 0 | G144: =VLOOKUP($C$3,$A$138:$H$142,7,FALSE) -> 0 | H144: =VLOOKUP($C$3,$A$138:$H$142,8,FALSE) -> 0
A147: DMIA Carryover adjustment
A148: Jemena | C148: 2011-15 | D148: 2016 | E148: 2017
A149: CPI - PTRM | D149: 0.02323079821 | E149: 0.02323079821
A150: Nominal Vanilla WACC - PTRM | C150: 0.1033058648 | D150: =(1+D149)*(1+D37)-1 -> 0.06374762627 | E150: =(1+E149)*(1+E37)-1 -> 0.06313551768
C152: 2011 | D152: 2012 | E152: 2013 | F152: 2014 | G152: 2015 | H152: Total
A153: Ex-ante revenue minus ex post expenditure ($nominal) | C153: -263938 | D153: -16375.4 | E153: 163676.6714 | F153: 153066.6261 | G153: 125690.5855 | H153: =SUM(C153:G153) -> 162120.4829
A154: DMIA Carryover adjustment | C154: =0-(C153/(1+$C150))*(1+$C150)^5*(1+$D150)*(1+$E150) -> 442295.8453 | D154: =C154-(D153/(1+$C150))*(1+$C150)^4*(1+$D150)*(1+$E150) -> 467167.6289 | E154: =D154-(E153/(1+$C150))*(1+$C150)^3*(1+$D150)*(1+$E150) -> 241844.4502 | F154: =E154-(F153/(1+$C150))*(1+$C150)^2*(1+$D150)*(1+$E150) -> 50857.51142 | G154: =F154-(G153/(1+$C150))*(1+$C150)^1*(1+$D150)*(1+$E150) -> -91286.96254 | H154: =G154 -> -91286.96254
A157: UED | C157: 2011-15 | D157: 2016 | E157: 2017
A158: CPI - PTRM | D158: 0.02323079821 | E158: 0.02323079821
A159: Nominal Vanilla WACC - PTRM | C159: 0.09489772882 | D159: =(1+D158)*(1+D41)-1 -> 0.06374922465 | E159: =(1+E158)*(1+E41)-1 -> 0.0630991429
C161: 2011 | D161: 2012 | E161: 2013 | F161: 2014 | G161: 2015 | H161: Total
A162: Ex-ante revenue minus ex post expenditure ($nominal) | C162: 406960 | D162: 327739.2 | E162: 91075.34272 | F162: -227853.7479 | G162: -450364.8291 | H162: =SUM(C162:G162) -> 147555.9658
A163: DMIA Carryover adjustment | C163: =0-(C162/(1+$C159))*(1+$C159)^5*(1+$D159)*(1+$E159) -> -661392.0476 | D163: =C163-(D162/(1+$C159))*(1+$C159)^4*(1+$D159)*(1+$E159) -> -1147868.786 | E163: =D163-(E162/(1+$C159))*(1+$C159)^3*(1+$D159)*(1+$E159) -> -1271338.644 | F163: =E163-(F162/(1+$C159))*(1+$C159)^2*(1+$D159)*(1+$E159) -> -989212.8748 | G163: =F163-(G162/(1+$C159))*(1+$C159)^1*(1+$D159)*(1+$E159) -> -479908.4001 | H163: =G163 -> -479908.4001
A172: Regulatory Period 2011-15
A174: DuoS
A175: Real Pre-tax WACC for distribution tariffs | D175: Real Vanilla WACC for distribution tariffs
A177: =$A$54 -> Jemena | B177: 0.087 | D177: =$A$54 -> Jemena | F177: 0.0756
A178: =$A$55 -> CitiPower | B178: 0.0786 | D178: =$A$55 -> CitiPower | F178: 0.0674
A179: =$A$56 -> Powercor | B179: 0.0776 | D179: =$A$56 -> Powercor | F179: 0.0674
A180: =$A$57 -> AusNet Services | B180: 0.078 | D180: =$A$57 -> AusNet Services | F180: 0.0699
A181: =$A$58 -> United Energy | B181: 0.0791 | D181: =$A$58 -> United Energy | F181: 0.0674
A183: pretax WACCD | B183: =VLOOKUP($C$3,A177:B181,2,FALSE) -> 0.078 | D183: Real Vanilla WACCD | F183: =VLOOKUP($C$3,D177:F181,3,FALSE) -> 0.0699
A188: Pass Through Costs | E188: 2014 | F188: 2015
A190: =A204 -> F Factor pass through | E190: =B204 -> 1970000 | F190: =C204 -> 2020000
A191: VBRC | E191: =B215 -> 6039778.158 | F191: =C215 -> 8341755.212
A192: Powerline Replacement program | E192: =B226 -> 0 | F192: =C226 -> 5723419.31
A193: TOTAL PASS THROUGH AMOUNTS | E193: =SUM(E190:E192) -> 8009778.158 | F193: =SUM(F190:F192) -> 16085174.52
A197: F factor Scheme | B197: 2014 | C197: 2015
A198: =$A$54 -> Jemena | B198: 370000 | C198: -855000
A199: =$A$55 -> CitiPower | B199: 10000 | C199: -65000
A200: =$A$56 -> Powercor | B200: 2470000 | C200: -2405000
A201: =$A$57 -> AusNet Services | B201: 1970000 | C201: 2020000
A202: =$A$58 -> United Energy | B202: 980000 | C202: -70000
A204: F Factor pass through | B204: =VLOOKUP($C$3,$A$198:$C$202,2,FALSE) -> 1970000 | C204: =VLOOKUP($C$3,$A$198:$C$202,3,FALSE) -> 2020000
A208: VBRC | B208: 2014 | C208: 2015
A209: =$A$54 -> Jemena | B209: 0 | C209: 0
A210: =$A$55 -> CitiPower | B210: 0 | C210: 0
A211: =$A$56 -> Powercor | B211: =H245 -> 7193170.454 | C211: =I245 -> 8768550.378
A212: =$A$57 -> AusNet Services | B212: =H262 -> 6039778.158 | C212: =I262 -> 8341755.212
A213: =$A$58 -> United Energy | B213: 0 | C213: 0
A215: VBRC pass through | B215: =VLOOKUP($C$3,$A$209:$C$213,2,FALSE) -> 6039778.158 | C215: =VLOOKUP($C$3,$A$209:$C$213,3,FALSE) -> 8341755.212
A219: Powerline Replacement program | B219: 2014 | C219: 2015
A220: =$A$54 -> Jemena | B220: 0 | C220: 0
A221: =$A$55 -> CitiPower | B221: 0 | C221: 0
A222: =$A$56 -> Powercor | B222: =H249 -> 0 | C222: 8777690.455
A223: =$A$57 -> AusNet Services | B223: 0 | C223: 5723419.31
A224: =$A$58 -> United Energy | B224: 0 | C224: 0
A226: Powerline Replacement program | B226: =VLOOKUP($C$3,$A$219:$C$224,2,FALSE) -> 0 | C226: =VLOOKUP($C$3,$A$219:$C$224,3,FALSE) -> 5723419.31
A231: VBRC
A233: Powercor | E233: 2011 | F233: 2012 | G233: 2013 | H233: 2014 | I233: 2015
A234: Pass through amounts approved (Nominal $) - Forecast CPI | G234: 10270612 | H234: 7181525 | I234: 8777217
A235: (As per AER's Final Decision on Powercor's VBRC pass through, table 7.2, 7 March 2012)
A236: Forecast CPI in PTRM | E236: 0.0257487534 | F236: 0.0257487534 | G236: 0.0257487534 | H236: 0.0257487534 | I236: 0.0257487534
E237: =1+E236 -> 1.025748753 | F237: =E237*(1+F236) -> 1.052160505 | G237: =F237*(1+G236) -> 1.079252326 | H237: =G237*(1+H236) -> 1.107041729 | I237: =H237*(1+I236) -> 1.135546673
A239: Pass through amounts approved (Real $2010) | G239: =G234/G237 -> 9516414.047 | H239: =H234/H237 -> 6487131.257 | I239: =I234/I237 -> 7729507.918
A242: Actual CPI | E242: =173.3/168.6-1 -> 0.02787663108 | F242: =179.4/173.3-1 -> 0.03519907675 | G242: =C17/C16-1 -> 0.02004008016 | H242: =C18/C17-1 -> 0.02161100196 | I242: =C19/C18-1 -> 0.02307692308
E243: =1+E242 -> 1.027876631 | F243: =E243*(1+F242) -> 1.06405694 | G243: =F243*(1+G242) -> 1.085380726 | H243: =G243*(1+H242) -> 1.108836891 | I243: 1.134425434
A245: Pass through amounts approved (Nominal $) - Actual CPI | G245: =G239*G243 -> 10328932.39 | H245: =H239*H243 -> 7193170.454 | I245: =I239*I243 -> 8768550.378
A250: AusNet Services | E250: 2011 | F250: 2012 | G250: 2013 | H250: 2014 | I250: 2015
A251: Pass through amounts approved (Nominal $) - Forecast CPI | G251: 5790000 | H251: 6030000 | I251: 8350000
A252: As per AER's Final Decision on AusNet Services's VBRC pass through, table 1.3, 19 October 2012
A253: Forecast CPI in PTRM | E253: 0.0257487534 | F253: 0.0257487534 | G253: 0.0257487534 | H253: 0.0257487534 | I253: 0.0257487534
E254: =1+E253 -> 1.025748753 | F254: =E254*(1+F253) -> 1.052160505 | G254: =F254*(1+G253) -> 1.079252326 | H254: =G254*(1+H253) -> 1.107041729 | I254: =H254*(1+I253) -> 1.135546673
A256: Pass through amounts approved (Real $2010) | G256: =G251/G254 -> 5364825.127 | H256: =H251/H254 -> 5446949.148 | I256: =I251/I254 -> 7353286.482
A259: Actual CPI | E259: =173.3/168.6-1 -> 0.02787663108 | F259: =179.4/173.3-1 -> 0.03519907675 | G259: =C17/C16-1 -> 0.02004008016 | H259: =C18/C17-1 -> 0.02161100196 | I259: =C19/C18-1 -> 0.02307692308
E260: =1+E259 -> 1.027876631 | F260: =E260*(1+F259) -> 1.06405694 | G260: =F260*(1+G259) -> 1.085380726 | H260: =G260*(1+H259) -> 1.108836891 | I260: 1.134425434
A262: Pass through amounts approved (Nominal $) - Actual CPI | G262: =G256*G260 -> 5822877.791 | H262: =H256*H260 -> 6039778.158 | I262: =I256*I260 -> 8341755.212
A270: AMI Transitional Adjustment in 2018 prices ($)
A271: =C3 -> AusNet Services
C272: 2009 | D272: 2010 | E272: 2011 | F272: 2012 | G272: 2013 | H272: 2014 | I272: 2015 | J272: 2016 | K272: 2017 | L272: 2018 | M272: 2019 | N272: 2020
A273: CPI | C273: 0.04981084489 | D273: 0.01261261261 | E273: 0.02787663108 | F273: 0.03519907675 | G273: =$F17 -> 0.02004008016 | H273: =$F18 -> 0.02161100196 | I273: =$F19 -> 0.02307692308 | J273: =$F20 -> 0.01503759398 | K273: =$F22 -> 0.01023255814 | L273: =$F23 -> 0.01933701657 | M273: =$F24 -> 0.02077687444 | N273: =$F25 -> 0
A275: Vanilla' WACC (Real) | C275: 0.06771645866 | D275: =$C275 -> 0.06771645866 | E275: =$C275 -> 0.06771645866 | F275: 0.06771645866 | G275: 0.06771645866 | H275: 0.05023909437 | I275: =H275 -> 0.05023909437 | J275: =D43 -> 0.03871679489 | K275: =E43 -> 0.03826233619 | L275: =F43 -> 0.03801328469 | M275: =G43 -> 0.03744929841 | N275: =H43 -> 0.03744929841
A276: Vanilla' WACC (nominal) | C276: =(1+C275)*(1+C273)-1 -> 0.1209003176 | D276: 0.08118315273 | E276: 0.09748079647 | F276: 0.1052990922 | G276: 0.08911358208 | H276: 0.0729358135 | I276: 0.07447538116 | J276: 0.05433659631 | K276: 0.04888641591 | L276: 0.05808536478 | M276: 0.05900425222 | N276: 0.03744929841
A278: Future value index | C278: =(1+C276)^0.5 -> 1.058725799 | D278: =C278*(D276+1) -> 1.144676497 | E278: 1.256260474 | F278: 1.388543561 | G278: 1.512281652 | H278: 1.622581145 | I278: 1.743423494 | J278: 1.838155192 | K278: 1.928016012 | L278: 2.040005525 | M278: 2.160374526 | N278: 2.241279036
A280: AMI Transitional Adjustment - Revenue and Costs 2009-2015
A281: Over \ (under) recovery of revenue and costs (000's)
A282: NPV at 1 January 2009 | D282: 19079.76418
A284: AMI Transitional Adjustment in 2018 prices ($) | D284: =-D282*L278*10^3 -> -38922824.35
A286: AMI Transitional Adjustment - Revenue 2016-2020
A287: Increase \ (Reduction) in revenue 2016-2020 (000's)
A288: NPV at 1 January 2016 | D288: -11516.28071
A290: AMI Transitional Adjustment in 2018 prices ($) | D290: =D288*L278/I278*10^3 -> -13475369.79
L291: =L272 -> 2018 | M291: =M272 -> 2019 | N291: 2020
A292: Total AMI Transitional Adjustment in 2018 prices ($) | D292: =SUM(D284,D290) -> -52398194.14 | H292: AMI Transitional Adjustment in Nominal prices ($) | L292: =L297*L296 -> -27000000 | M292: =M297*M296 -> -16944068.04 | N292: =N297*N296 -> -10325450.22
K294: CPI | L294: =L273 -> 0.01933701657 | M294: =M273 -> 0.02077687444 | N294: 0
K295: Nominal WACC | L295: =(1+L275)*(1+L294)-1 -> 0.05808536478 | M295: =(1+M275)*(1+M294)-1 -> 0.05900425222 | N295: =(1+N275)*(1+N294)-1 -> 0.03744929841
K296: Index | L296: 1 | M296: =L296*(1+M295) -> 1.059004252 | N296: =M296*(1+N295) -> 1.098663218
K297: AMI Transitional Adjustment in 2018 prices ($) | L297: -27000000 | M297: -16000000 | N297: =D292-L297-M297 -> -9398194.14
N298: =SUM(L297:N297) -> -52398194.14
M299: check | N299: =N298-D292 -> 0

Sheet 2019 Unmetered supply
B1: ="Tariff Approval - " &'Model update'!C3 -> Tariff Approval - AusNet Services
B3: ="PROPOSED "&'Model update'!C5&" UNMETERED SUPPLY TARIFF" -> PROPOSED 2019 UNMETERED SUPPLY TARIFF
C4: ="P t-1 ("&'Model update'!$C$8&")" -> P t-1 (2018) | G4: ="Pt ("&'Model update'!$C$7&")" -> Pt (2019) | K4: ="Qt-2 ("&'Model update'!$C$9&")" -> Qt-2 (2017) | O4: P t-1 * Qt-2 | T4: Pt * Qt-2
C5: ($) per NMI | D5: ($) per meter | E5: ($) per light | G5: ($) per NMI | H5: ($) per meter | I5: ($) per light | K5: NMIs | L5: Meters | M5: Lights | O5: $ Comp1 | P5: $ Comp2 | Q5: $ Comp3 | R5: Total $ | T5: NMIs | U5: Meters | V5: Lights
B6: Proposed tariff | C6: ExistTarComp1 | D6: ExistTarComp2 | E6: ExistTarComp3 | G6: PropTarComp1 | H6: PropTarComp2 | I6: PropTarComp3 | K6: ActVolComp1 | L6: ActVolComp2 | M6: ActVolComp3 | O6: $Comp1 | P6: ExistRevComp2 | Q6: ExistRevComp3 | R6: Exist Rev Total | T6: $PropRevComp1 | U6: $PropRevComp2 | V6: $ PropRevComp3 | W6: Total $
B7: metering data services - unmetered supplies | C7: 317.16 | E7: 1.6578 | G7: =ROUNDDOWN(C7*(1+$C$14),1)-0.4 -> 323.3 | I7: =ROUNDDOWN(E7*(1+$C$14),4)+0.0003 -> 1.6925 | K7: 88 | L7: 0 | M7: 151200 | O7: =IF($B7="","",C7*K7) -> 27910.08 | P7: =IF($B7="","",D7*L7) -> 0 | Q7: =IF($B7="","",E7*M7) -> 250659.36 | R7: =SUM(O7:Q7) -> 278569.44 | T7: =IF($B7="","",G7*K7) -> 28450.4 | U7: =IF($B7="","",H7*L7) -> 0 | V7: =IF($B7="","",I7*M7) -> 255906 | W7: =SUM(T7:V7) -> 284356.4
B10: UNMETERED SUPPLY TARIFF CONTROL
B12: CPI
B14: ="CPI "&'Model update'!C5 -> CPI 2019 | C14: ='Model update'!C30 -> 0.02077687444
B19: =""&'Model update'!C5& " Unmetered Supplies price control" -> 2019 Unmetered Supplies price control
B21: Average price movement allowed | G21: =1+C14 -> 1.020776874
B23: Proposed metering tariff revenue (Pt*Qt-2) | G23: ='2019 Unmetered supply'!W7 -> 284356.4
B24: Existing metering tariff revenue (Pt-1*Qt-2) | G24: ='2019 Unmetered supply'!R7 -> 278569.44
B25: Average price movement | G25: =IF(G23>0,G23/G24,"") -> 1.020773851
B27: =IF(G25="","", IF(G25<=G21,"UNMETERED SUPPLIES PRICE CONTROL FORMULA COMPLIANT","UNMETERED SUPPLIES CONTROL FORMULA BREACHED")) -> UNMETERED SUPPLIES PRICE CONTROL FORMULA COMPLIANT

Sheet Metering
B1: ="Tariff Approval - "&'Model update'!C3 -> Tariff Approval - AusNet Services
B3: ="PROPOSED "&'Model update'!$C$5&" METERING TARIFFS AND REVENUE" -> PROPOSED 2019 METERING TARIFFS AND REVENUE
D5: ="Proposed Metering Tariffs P(t) for " &'Model update'!$C$5 -> Proposed Metering Tariffs P(t) for 2019 | E5: ="Current Metering Tariffs P(t-1) for" &'Model update'!$C$8 -> Current Metering Tariffs P(t-1) for2018 | F5: ="Forecast Quantities (Qt) for "&'Model update'!$C$5 -> Forecast Quantities (Qt) for 2019 | H5: ="Forecast Revenue (Pt "&'Model update'!$C$5&")*(Qt " &'Model update'!$C$5&")" -> Forecast Revenue (Pt 2019)*(Qt 2019) | I5: ="Revenue (Pt-1 "&'Model update'!$C$8&")*(Qt " &'Model update'!$C$5&")" -> Revenue (Pt-1 2018)*(Qt 2019) | K5: Movement | L5: Side Constraint
B6: Proposed tariff | C6: Existing tariff | D6: PropTar $/Cust/year | E6: ExistTar $/Cust/year | F6: FcastVol Cust # | H6: PropRev Fixed | I6: ExistRev Fixed
B8: Single phase single element | C8: Single phase single element | D8: 57.8 | E8: 60.8 | F8: 426623.1052 | H8: =D8*F8 -> 24658815.48 | I8: =E8*F8 -> 25938684.8 | K8: =IFERROR(H8/I8,"") -> 0.9506578947 | L8: =IF(B8="","",IF(K8<$I$30,"COMPLIANT","BREACHED")) -> COMPLIANT
B9: Single phase, two element with contactor | C9: Single phase, two element with contactor | D9: 67.9 | E9: 69.9 | F9: 192622.3494 | H9: 13079057.53 | I9: 13464302.23 | K9: =IFERROR(H9/I9,"") -> 0.9713876967 | L9: COMPLIANT
B10: Multiphase | C10: Multiphase | D10: 82.1 | E10: 84 | F10: 68970.19681 | H10: 5662453.158 | I10: 5793496.532 | K10: 0.9773809524 | L10: COMPLIANT
B11: Multiphase, direct connected with contactor | C11: Multiphase, direct connected with contactor | D11: 90.2 | E11: 93 | F11: 64284.23306 | H11: 5798437.822 | I11: 5978433.675 | K11: 0.9698924731 | L11: COMPLIANT
B12: Multiphase Current Transformer connected | C12: Multiphase Current Transformer connected | D12: 116.9 | E12: 120 | F12: 4185.152373 | H12: 489244.3125 | I12: 502218.2848 | K12: 0.9741666667 | L12: COMPLIANT
H13: 0 | I13: 0
H14: 0 | I14: 0
H15: 0 | I15: 0
H16: 0 | I16: 0
H17: =SUM(H7:H16) -> 49688008.3 | I17: =SUM(I7:I16) -> 51677135.52
B22: Year (t) | D22: ='Model update'!C5 -> 2019
B24: Table 1- Compliance with AER Final Determination Total Metering Annual Revenue | H24: Metering tariff rebalancing control
B25: Revenue from Metering charges for year t | D25: =H17 -> 49688008.3 | H25: ="CPI "&'Model update'!$C$5 -> CPI 2019 | I25: =D37 -> 0.02077687444
B26: Total Annual Metering Revenue for year t | D26: =D33 -> 49688253.45 | H26: ="X "& 'Model update'!$C$5 -> X 2019 | I26: =MIN(D38,0) -> 0
D27: =IF(D25="","",IF(D26>=D25,"METERING REVENUE CAP FORMULA COMPLIANT","METERING REVENUE CAP FORMULA BREACHED")) -> METERING REVENUE CAP FORMULA COMPLIANT | E27: =IF(C43=0,"",IF(C42>C43,"MAXIMUM TRANSMISSION REVENUE FORMULA COMPLIANT","MAXIMUM TRANSMISSION REVENUE FORMULA BREACHED")) ->  | H27: ="Tt "&'Model update'!$C$5 -> Tt 2019 | I27: =(D31-F31)/I$17 -> 0.1945915126 | K27: Change to formula
H28: ="Bt "&'Model update'!$C$5 -> Bt 2019 | I28: =(D32-F32)/I$17 -> 0.01045813114 | K28: Change to formula
B29: Table 2 - Total Annual Revenue for year t (TARMt)
B30: Adjusted Annual Smoothed Metering Revenue for year t | D30: =D39 -> 66000098.75 | E30: IM new | F30: =D22-1 -> 2018 | I30: =(1+I25)*(1-I26)*(1+0.02)+SUM(I27:I28) -> 1.246242056
B31: T factor for year t | D31: =INDEX('Model update'!$L$292:$N$292,1,MATCH($D$22,'Model update'!$L$291:$N$291,0)) -> -16944068.04 | E31: T for t-1 | F31: =INDEX('Model update'!$L$292:$N$292,1,MATCH($F$30,'Model update'!$L$291:$N$291,0)) -> -27000000
B32: B factor for year t | D32: =-F68*(1+F66)^0.5 -> 632222.7326 | E32: B for t-1 | F32: 91776.47272
B33: Total Annual Revenue for year t | D33: =SUM(D30:D32) -> 49688253.45
B35: Table 3 - Adjusted Annual Revenue for year t (ARt)
B36: Adjusted Annual Smoothed Revenue for year t-1 | D36: 77838589.49
B37: CPI for period t | D37: ='Model update'!C30 -> 0.02077687444
B38: X factor for period t | D38: ='Model update'!B72 -> 0.1693485927
B39: Adjusted Annual Smoothed Revenue for year t | D39: =IF(D22=2016,'Model update'!D72,(D36*(1+D37)*(1-D38))) -> 66000098.75
B44: Table 4 - Metering Services Recovery Arrangements
D45: Year t-2 | E45: Year t-1 | F45: Year t
D46: (actual) | E46: (estimate) | F46: (forecast)
D47: =E47-1 -> 2017 | E47: =F47-1 -> 2018 | F47: =D$22 -> 2019
B49: (A) Revenue from Metering proposal charges | D49: 89365701.38 | E49: =E89 -> 50774338.5 | F49: =D25 -> 49688008.3
B52: (B) Less TARM for regulatory year = | D52: =SUM(D53:D54) -> 91539171.29 | E52: =SUM(E53:E54) -> 50838589.49 | F52: =SUM(F53:F54) -> 49056030.71
B53: + Adjusted annual smoothed revenue | D53: 91539171.29 | E53: =D36 -> 77838589.49 | F53: =D30 -> 66000098.75
B54: + T factor | D54: 0 | E54: =F31 -> -27000000 | F54: =D31 -> -16944068.04
B57: (A minus B) Under/over recovery of revenue for regulatory year | D57: =D49-D52 -> -2173469.905 | E57: =E49-E52 -> -64250.99557 | F57: =F49-F52 -> 631977.5872
B61: Table 5 - Metering Services Unders and Overs Account
D62: Year t-2 | E62: Year t-1 | F62: Year t
D63: (actual) | E63: (estimate) | F63: (forecast)
B64: Calendar year | D64: =E64-1 -> 2017 | E64: =F64-1 -> 2018 | F64: =D$22 -> 2019
B66: Nominal WACC | D66: =(1+'Model update'!$B$47)*(1+'Model update'!$C$28)-1 -> 0.04888641591 | E66: =(1+'Model update'!$B$45)*(1+'Model update'!$C$29)-1 -> 0.05808536478 | F66: =(1+'Model update'!$B$43)*(1+'Model update'!$C$30)-1 -> 0.05900425222
B68: Opening balance | D68: 1628196.959 | E68: =D72 -> -518168.9191 | F68: =E72 -> -614357.629
B69: Interest on Opening balance | D69: =D68*D66 -> 79596.71373 | E69: =E68*E66 -> -30098.03068 | F69: =F68*F66 -> -36249.71249
B70: Under/over recovery of revenue for regulatory year | D70: =D57 -> -2173469.905 | E70: =E57 -> -64250.99557 | F70: =F57 -> 631977.5872
B71: Interest on under/over recovery for regulatory year | D71: =D70*((1+D66)^0.5-1) -> -52492.68677 | E71: =E70*((1+E66)^0.5-1) -> -1839.683643 | F71: =F70*((1+F66)^0.5-1) -> 18377.48014
B72: Closing balance of Metering Services overs/ (unders) account | D72: =SUM(D68:D71) -> -518168.9191 | E72: =SUM(E68:E71) -> -614357.629 | F72: =SUM(F68:F71) -> -252.2741004
B74: The DNSP is expected to achieve a closing balance as close to zero as practicable in its annual metering charges unders and overs account in each forecast year in its annual pricing proposals in the 2016–20 regulatory control period.
C77: ="Current Metering Tariffs P(t-1) for " &'Model update'!$C$8 -> Current Metering Tariffs P(t-1) for 2018 | D77: ="Estimated Quantities (Qt-1) for "&'Model update'!$C$5-1 -> Estimated Quantities (Qt-1) for 2018 | E77: ="Revenue (Pt-1 "&'Model update'!$C$8&")*(Qt-1 " &'Model update'!$C$5-1&")" -> Revenue (Pt-1 2018)*(Qt-1 2018)
B78: Existing tariff | C78: ExistTar $/Cust/year | D78: FcastVol Cust # | E78: ExistRev Fixed
B80: Single phase single element | C80: =E8 -> 60.8 | D80: 420842.4167 | E80: =C80*D80 -> 25587218.93
B81: Single phase, two element with contactor | C81: =E9 -> 69.9 | D81: 187627.5298 | E81: 13115164.33
B82: Multiphase | C82: 84 | D82: 69167.78333 | E82: 5810093.8
B83: Multiphase, direct connected with contactor | C83: 93 | D83: 62045.88333 | E83: 5770267.15
B84: Multiphase Current Transformer connected | C84: 120 | D84: 4096.619048 | E84: 491594.2857
E85: 0
E86: 0
E87: 0
E88: 0
E89: =SUM(E79:E88) -> 50774338.5

Sheet Prop2019DistTar
B1: ="Tariff Approval - "&'Model update'!$C$3 -> Tariff Approval - AusNet Services
B3: ="PROPOSED "&'Model update'!$C$5&" DISTRIBUTION TARIFFS" -> PROPOSED 2019 DISTRIBUTION TARIFFS
D4: ="Proposed Distribution Tariffs (Pt) for "&'Model update'!$C$5 -> Proposed Distribution Tariffs (Pt) for 2019 | R4: ="Current Distribution Tariffs (Pt-1) for "&'Model update'!$C$8 -> Current Distribution Tariffs (Pt-1) for 2018 | AF4: ="Forecast Quantities (Qt) for "&'Model update'!$C$5 -> Forecast Quantities (Qt) for 2019 | AT4: ="Forecast Revenue (Pt "&'Model update'!$C$5&")*(Qt " &'Model update'!$C$5&")" -> Forecast Revenue (Pt 2019)*(Qt 2019) | BI4: ="Revenue (Pt-1 "&'Model update'!$C$8&")*(Qt " &'Model update'!$C$5&")" -> Revenue (Pt-1 2018)*(Qt 2019)
B5: Proposed tariff | C5: Existing tariff | D5: PropTar Fixed | E5: PropTar PkBlk1 | F5: PropTar PkBlk2 | G5: PropTar PkBlk3 | H5: PropTar PkBlk4 | I5: PropTar OPkBlk1 | J5: PropTar OPkBlk2 | K5: PropTar OPkBlk3 | L5: PropTar OPkBlk4 | M5: PropTar DemBlk1 | N5: PropTar DemBlk2 | O5: PropTar DemBlk3 | P5: PropTar DemBlk4 | R5: ExistTar Fixed | S5: ExistTar PkBlk1 | T5: ExistTar PkBlk2 | U5: ExistTar PkBlk3 | V5: ExistTar PkBlk4 | W5: ExistTar OPkBlk1 | X5: ExistTar OPkBlk2 | Y5: ExistTar OPkBlk3 | Z5: ExistTar OPkBlk4 | AA5: ExistTar DemBlk1 | AB5: ExistTar DemBlk2 | AC5: ExistTar DemBlk3 | AD5: ExistTar DemBlk4 | AF5: FcastVol Fixed | AG5: FcastVol PkBlk1 | AH5: FcastVol PkBlk2 | AI5: FcastVol PkBlk3 | AJ5: FcastVol PkBlk4 | AK5: FcastVol OPkBlk1 | AL5: FcastVol OPkBlk2 | AM5: FcastVol OPkBlk3 | AN5: FcastVol OPkBlk4 | AO5: FcastVol DemBlk1 | AP5: FcastVol DemBlk2 | AQ5: FcastVol DemBlk3 | AR5: FcastVol DemBlk4 | AT5: PropRev Fixed | AU5: PropRev PkBlk1 | AV5: PropRev PkBlk2 | AW5: PropRev PkBlk3 | AX5: PropRev PkBlk4 | AY5: PropRev OPkBlk1 | AZ5: PropRev OPkBlk2 | BA5: PropRev OPkBlk3 | BB5: PropRev OPkBlk4 | BC5: PropRev DemBlk1 | BD5: PropRev DemBlk2 | BE5: PropRev DemBlk3 | BF5: PropRev DemBlk4 | BG5: PropRev Total | BI5: ExistRev Fixed | BJ5: ExistRev PkBlk1 | BK5: ExistRev PkBlk2 | BL5: ExistRev PkBlk3 | BM5: ExistRev PkBlk4 | BN5: ExistRev OPkBlk1 | BO5: ExistRev OPkBlk2 | BP5: ExistRev OPkBlk3 | BQ5: ExistRev OPkBlk4 | BR5: ExistRev DemBlk1 | BS5: ExistRev DemBlk2 | BT5: ExistRev DemBlk3 | BU5: ExistRev DemBlk4 | BV5: ExistRev Total
A6: NEE11 | B6: NEE11 Small Single Rate < 160MWh | C6: NEE11 Small Single Rate < 160MWh | D6: 115 | E6: 8.0543 | F6: 11.0549 | G6: 0 | H6: 0 | I6: 0 | J6: 0 | K6: 0 | L6: 0 | M6: 0 | N6: 0 | O6: 0 | P6: 0 | R6: 109 | S6: 7.711 | T6: 10.5837 | U6: 0 | V6: 0 | W6: 0 | X6: 0 | Y6: 0 | Z6: 0 | AA6: 0 | AB6: 0 | AC6: 0 | AD6: 0 | AF6: 491445.6539 | AG6: 1306238592 | AH6: 728544600.8 | AI6: 0 | AJ6: 0 | AK6: 0 | AL6: 0 | AM6: 0 | AN6: 0 | AO6: 0 | AP6: 0 | AQ6: 0 | AR6: 0 | AT6: =D6*AF6 -> 56516250.2 | AU6: =E6/100*AG6 -> 105208374.9 | AV6: =F6/100*AH6 -> 80539877.07 | AW6: 0 | AX6: 0 | AY6: 0 | AZ6: 0 | BA6: 0 | BB6: 0 | BC6: =M6*AO6 -> 0 | BD6: =N6*AP6 -> 0 | BE6: =O6*AQ6 -> 0 | BF6: =P6*AR6 -> 0 | BG6: =SUM(AT6:BF6) -> 242264502.2 | BI6: =R6*AF6 -> 53567576.28 | BJ6: =S6/100*AG6 -> 100724057.8 | BK6: =T6/100*AH6 -> 77106974.91 | BL6: =U6/100*AI6 -> 0 | BM6: =V6/100*AJ6 -> 0 | BN6: =W6/100*AK6 -> 0 | BO6: =X6/100*AL6 -> 0 | BP6: =Y6/100*AM6 -> 0 | BQ6: =Z6/100*AN6 -> 0 | BR6: =AA6*AO6 -> 0 | BS6: =AB6*AP6 -> 0 | BT6: =AC6*AQ6 -> 0 | BU6: =AD6*AR6 -> 0 | BV6: =SUM(BI6:BU6) -> 231398609
A7: NGT11 | B7: NGT11 Small Interval Single Rate < 160MWh | C7: NGT11 Small Interval Single Rate < 160MWh | D7: 115 | E7: 11.3713 | F7: 0 | G7: 0 | H7: 0 | I7: 0 | J7: 0 | K7: 0 | L7: 0 | M7: 0 | N7: 0 | O7: 0 | P7: 0 | R7: 109 | S7: 9.8434 | T7: 0 | U7: 0 | V7: 0 | W7: 0 | X7: 0 | Y7: 0 | Z7: 0 | AA7: 0 | AB7: 0 | AC7: 0 | AD7: 0 | AF7: 3 | AG7: 19756.14545 | AH7: 0 | AI7: 0 | AJ7: 0 | AK7: 0 | AL7: 0 | AM7: 0 | AN7: 0 | AO7: 0 | AP7: 0 | AQ7: 0 | AR7: 0 | AT7: =D7*AF7 -> 345 | AU7: =E7/100*AG7 -> 2246.530568 | AV7: =F7/100*AH7 -> 0 | AW7: =G7/100*AI7 -> 0 | AX7: =H7/100*AJ7 -> 0 | AY7: =I7/100*AK7 -> 0 | AZ7: =J7/100*AL7 -> 0 | BA7: =K7/100*AM7 -> 0 | BB7: =L7/100*AN7 -> 0 | BC7: =M7*AO7 -> 0 | BD7: =N7*AP7 -> 0 | BE7: =O7*AQ7 -> 0 | BF7: =P7*AR7 -> 0 | BG7: =SUM(AT7:BF7) -> 2591.530568 | BI7: =R7*AF7 -> 327 | BJ7: =S7/100*AG7 -> 1944.676422 | BK7: =T7/100*AH7 -> 0 | BL7: =U7/100*AI7 -> 0 | BM7: =V7/100*AJ7 -> 0 | BN7: =W7/100*AK7 -> 0 | BO7: =X7/100*AL7 -> 0 | BP7: =Y7/100*AM7 -> 0 | BQ7: =Z7/100*AN7 -> 0 | BR7: =AA7*AO7 -> 0 | BS7: =AB7*AP7 -> 0 | BT7: =AC7*AQ7 -> 0 | BU7: =AD7*AR7 -> 0 | BV7: =SUM(BI7:BU7) -> 2271.676422
A8: NSP11 | B8: NSP11 Small Single Rate < 160MWh | C8: NSP11 Small Single Rate < 160MWh | D8: 115 | E8: 38.044 | F8: 33.2899 | G8: 29.135 | H8: 0 | I8: 3.2448 | J8: 0 | K8: 0 | L8: 0 | M8: 0 | N8: 0 | O8: 0 | P8: 0 | R8: 109 | S8: 36.0531 | T8: 31.5478 | U8: 27.61029 | V8: 0 | W8: 2.1847 | X8: 0 | Y8: 0 | Z8: 0 | AA8: 0 | AB8: 0 | AC8: 0 | AD8: 0 | AF8: 0 | AG8: 0 | AH8: 0 | AI8: 0 | AJ8: 0 | AK8: 0 | AL8: 0 | AM8: 0 | AN8: 0 | AO8: 0 | AP8: 0 | AQ8: 0 | AR8: 0 | AT8: 0 | AU8: 0 | AV8: 0 | AW8: 0 | AX8: 0 | AY8: 0 | AZ8: 0 | BA8: 0 | BB8: 0 | BC8: 0 | BD8: 0 | BE8: 0 | BF8: 0 | BG8: 0 | BI8: 0 | BJ8: 0 | BK8: 0 | BL8: 0 | BM8: 0 | BN8: 0 | BO8: 0 | BP8: 0 | BQ8: 0 | BR8: 0 | BS8: 0 | BT8: 0 | BU8: 0 | BV8: 0
A9: NEN11 | B9: NEN11 Small Single Rate < 160MWh Embedded Network | C9: NEN11 Small Single Rate < 160MWh Embedded Network | D9: 115 | E9: 4.7882 | F9: 5.2343 | G9: 0 | H9: 0 | I9: 0 | J9: 0 | K9: 0 | L9: 0 | M9: 0 | N9: 0 | O9: 0 | P9: 0 | R9: 109 | S9: 4.5376 | T9: 4.9604 | U9: 0 | V9: 0 | W9: 0 | X9: 0 | Y9: 0 | Z9: 0 | AA9: 0 | AB9: 0 | AC9: 0 | AD9: 0 | AF9: 0 | AG9: 0 | AH9: 0 | AI9: 0 | AJ9: 0 | AK9: 0 | AL9: 0 | AM9: 0 | AN9: 0 | AO9: 0 | AP9: 0 | AQ9: 0 | AR9: 0 | AT9: 0 | AU9: 0 | AV9: 0 | AW9: 0 | AX9: 0 | AY9: 0 | AZ9: 0 | BA9: 0 | BB9: 0 | BC9: 0 | BD9: 0 | BE9: 0 | BF9: 0 | BG9: 0 | BI9: 0 | BJ9: 0 | BK9: 0 | BL9: 0 | BM9: 0 | BN9: 0 | BO9: 0 | BP9: 0 | BQ9: 0 | BR9: 0 | BS9: 0 | BT9: 0 | BU9: 0 | BV9: 0
A10: NEE12 | B10: NEE12 Small Business Single Rate - new in 2001 | C10: NEE12 Small Business Single Rate - new in 2001 | D10: 115 | E10: 12.0153 | F10: 15.8775 | G10: 0 | H10: 0 | I10: 0 | J10: 0 | K10: 0 | L10: 0 | M10: 0 | N10: 0 | O10: 0 | P10: 0 | R10: 109 | S10: 11.2892 | T10: 14.918 | U10: 0 | V10: 0 | W10: 0 | X10: 0 | Y10: 0 | Z10: 0 | AA10: 0 | AB10: 0 | AC10: 0 | AD10: 0 | AF10: 28657.76573 | AG10: 53819826.96 | AH10: 112036706.5 | AI10: 0 | AJ10: 0 | AK10: 0 | AL10: 0 | AM10: 0 | AN10: 0 | AO10: 0 | AP10: 0 | AQ10: 0 | AR10: 0 | AT10: 3295643.059 | AU10: 6466613.669 | AV10: 17788628.08 | AW10: 0 | AX10: 0 | AY10: 0 | AZ10: 0 | BA10: 0 | BB10: 0 | BC10: 0 | BD10: 0 | BE10: 0 | BF10: 0 | BG10: 27550884.81 | BI10: 3123696.465 | BJ10: 6075827.905 | BK10: 16713635.88 | BL10: 0 | BM10: 0 | BN10: 0 | BO10: 0 | BP10: 0 | BQ10: 0 | BR10: 0 | BS10: 0 | BT10: 0 | BU10: 0 | BV10: 25913160.25
A11: NSP12 | B11: NSP12 Small Business Single Rate - new in 2001 | C11: NSP12 Small Business Single Rate - new in 2001 | D11: 115 | E11: 38.044 | F11: 33.2899 | G11: 29.135 | H11: 0 | I11: 3.2448 | J11: 0 | K11: 0 | L11: 0 | M11: 0 | N11: 0 | O11: 0 | P11: 0 | R11: 109 | S11: 36.0531 | T11: 31.5478 | U11: 27.61029 | V11: 0 | W11: 2.1847 | X11: 0 | Y11: 0 | Z11: 0 | AA11: 0 | AB11: 0 | AC11: 0 | AD11: 0 | AF11: 0 | AG11: 0 | AH11: 0 | AI11: 0 | AJ11: 0 | AK11: 0 | AL11: 0 | AM11: 0 | AN11: 0 | AO11: 0 | AP11: 0 | AQ11: 0 | AR11: 0 | AT11: 0 | AU11: 0 | AV11: 0 | AW11: 0 | AX11: 0 | AY11: 0 | AZ11: 0 | BA11: 0 | BB11: 0 | BC11: 0 | BD11: 0 | BE11: 0 | BF11: 0 | BG11: 0 | BI11: 0 | BJ11: 0 | BK11: 0 | BL11: 0 | BM11: 0 | BN11: 0 | BO11: 0 | BP11: 0 | BQ11: 0 | BR11: 0 | BS11: 0 | BT11: 0 | BU11: 0 | BV11: 0
A12: NEN12 | B12: NEN12 Small Business Single Rate - Embedded Network | C12: NEN12 Small Business Single Rate - Embedded Network | D12: 115 | E12: 17.9904 | F12: 20.9425 | G12: 0 | H12: 0 | I12: 0 | J12: 0 | K12: 0 | L12: 0 | M12: 0 | N12: 0 | O12: 0 | P12: 0 | R12: 109 | S12: 17.0489 | T12: 19.8465 | U12: 0 | V12: 0 | W12: 0 | X12: 0 | Y12: 0 | Z12: 0 | AA12: 0 | AB12: 0 | AC12: 0 | AD12: 0 | AF12: 0 | AG12: 0 | AH12: 0 | AI12: 0 | AJ12: 0 | AK12: 0 | AL12: 0 | AM12: 0 | AN12: 0 | AO12: 0 | AP12: 0 | AQ12: 0 | AR12: 0 | AT12: 0 | AU12: 0 | AV12: 0 | AW12: 0 | AX12: 0 | AY12: 0 | AZ12: 0 | BA12: 0 | BB12: 0 | BC12: 0 | BD12: 0 | BE12: 0 | BF12: 0 | BG12: 0 | BI12: 0 | BJ12: 0 | BK12: 0 | BL12: 0 | BM12: 0 | BN12: 0 | BO12: 0 | BP12: 0 | BQ12: 0 | BR12: 0 | BS12: 0 | BT12: 0 | BU12: 0 | BV12: 0
A13: NEE20 | B13: NEE20 Small Two Rate | C13: NEE20 Small Two Rate | D13: 115 | E13: 16.3649 | F13: 0 | G13: 0 | H13: 0 | I13: 3.0098 | J13: 0 | K13: 0 | L13: 0 | M13: 0 | N13: 0 | O13: 0 | P13: 0 | R13: 109 | S13: 15.6314 | T13: 0 | U13: 0 | V13: 0 | W13: 2.8749 | X13: 0 | Y13: 0 | Z13: 0 | AA13: 0 | AB13: 0 | AC13: 0 | AD13: 0 | AF13: 53978.5 | AG13: 147773972.1 | AH13: 0 | AI13: 0 | AJ13: 0 | AK13: 200142110.8 | AL13: 0 | AM13: 0 | AN13: 0 | AO13: 0 | AP13: 0 | AQ13: 0 | AR13: 0 | AT13: 6207527.5 | AU13: 24183062.76 | AV13: 0 | AW13: 0 | AX13: 0 | AY13: 6023877.251 | AZ13: 0 | BA13: 0 | BB13: 0 | BC13: 0 | BD13: 0 | BE13: 0 | BF13: 0 | BG13: 36414467.51 | BI13: 5883656.5 | BJ13: 23099140.68 | BK13: 0 | BL13: 0 | BM13: 0 | BN13: 5753885.543 | BO13: 0 | BP13: 0 | BQ13: 0 | BR13: 0 | BS13: 0 | BT13: 0 | BU13: 0 | BV13: 34736682.72
A14: NSP20 | B14: NSP20 Small Two Rate | C14: NSP20 Small Two Rate | D14: 115 | E14: 38.044 | F14: 33.2899 | G14: 29.135 | H14: 0 | I14: 3.2448 | J14: 0 | K14: 0 | L14: 0 | M14: 0 | N14: 0 | O14: 0 | P14: 0 | R14: 109 | S14: 36.0531 | T14: 31.5478 | U14: 27.61029 | V14: 0 | W14: 2.1847 | X14: 0 | Y14: 0 | Z14: 0 | AA14: 0 | AB14: 0 | AC14: 0 | AD14: 0 | AF14: 8 | AG14: 4876.412115 | AH14: 5277.618428 | AI14: 3651.265938 | AJ14: 0 | AK14: 79729.67288 | AL14: 0 | AM14: 0 | AN14: 0 | AO14: 0 | AP14: 0 | AQ14: 0 | AR14: 0 | AT14: 920 | AU14: 1855.182225 | AV14: 1756.913897 | AW14: 1063.796331 | AX14: 0 | AY14: 2587.068426 | AZ14: 0 | BA14: 0 | BB14: 0 | BC14: 0 | BD14: 0 | BE14: 0 | BF14: 0 | BG14: 8182.960879 | BI14: 872 | BJ14: 1758.097736 | BK14: 1664.972506 | BL14: 1008.125114 | BM14: 0 | BN14: 1741.854163 | BO14: 0 | BP14: 0 | BQ14: 0 | BR14: 0 | BS14: 0 | BT14: 0 | BU14: 0 | BV14: 7045.04952
A15: NGT26 | B15: NGT26 Small Interval Multi Rate | C15: NGT26 Small Interval Multi Rate | D15: 115 | E15: 11.901 | F15: 11.901 | G15: 8.7364 | H15: 8.7364 | I15: 3.0187 | J15: 3.0187 | K15: 0 | L15: 0 | M15: 0 | N15: 0 | O15: 0 | P15: 0 | R15: 109 | S15: 11.2782 | T15: 11.2782 | U15: 8.2792 | V15: 8.2792 | W15: 2.3128 | X15: 2.3128 | Y15: 0 | Z15: 0 | AA15: 0 | AB15: 0 | AC15: 0 | AD15: 0 | AF15: 1576 | AG15: 1490394.785 | AH15: 0 | AI15: 3386074.403 | AJ15: 0 | AK15: 2683740.741 | AL15: 0 | AM15: 0 | AN15: 0 | AO15: 0 | AP15: 0 | AQ15: 0 | AR15: 0 | AT15: 181240 | AU15: 177371.8834 | AV15: 0 | AW15: 295821.0042 | AX15: 0 | AY15: 81014.08176 | AZ15: 0 | BA15: 0 | BB15: 0 | BC15: 0 | BD15: 0 | BE15: 0 | BF15: 0 | BG15: 735446.9693 | BI15: 171784 | BJ15: 168089.7046 | BK15: 0 | BL15: 280339.872 | BM15: 0 | BN15: 62069.55587 | BO15: 0 | BP15: 0 | BQ15: 0 | BR15: 0 | BS15: 0 | BT15: 0 | BU15: 0 | BV15: 682283.1325
A16: NEN20 | B16: NEN20 Small Two Rate - Embedded Network | C16: NEN20 Small Two Rate - Embedded Network | D16: 115 | E16: 8.9315 | F16: 0 | G16: 0 | H16: 0 | I16: 2.8196 | J16: 0 | K16: 0 | L16: 0 | M16: 0 | N16: 0 | O16: 0 | P16: 0 | R16: 109 | S16: 8.4641 | T16: 0 | U16: 0 | V16: 0 | W16: 2.2024 | X16: 0 | Y16: 0 | Z16: 0 | AA16: 0 | AB16: 0 | AC16: 0 | AD16: 0 | AF16: 0 | AG16: 0 | AH16: 0 | AI16: 0 | AJ16: 0 | AK16: 0 | AL16: 0 | AM16: 0 | AN16: 0 | AO16: 0 | AP16: 0 | AQ16: 0 | AR16: 0 | AT16: 0 | AU16: 0 | AV16: 0 | AW16: 0 | AX16: 0 | AY16: 0 | AZ16: 0 | BA16: 0 | BB16: 0 | BC16: 0 | BD16: 0 | BE16: 0 | BF16: 0 | BG16: 0 | BI16: 0 | BJ16: 0 | BK16: 0 | BL16: 0 | BM16: 0 | BN16: 0 | BO16: 0 | BP16: 0 | BQ16: 0 | BR16: 0 | BS16: 0 | BT16: 0 | BU16: 0 | BV16: 0
A17: NEE21 | B17: NEE21 Small Business Two Rate | C17: NEE21 Small Business Two Rate | D17: 115 | E17: 15.8308 | F17: 0 | G17: 0 | H17: 0 | I17: 3.2793 | J17: 0 | K17: 1.1949 | L17: 0 | M17: 0 | N17: 0 | O17: 0 | P17: 0 | R17: 109 | S17: 14.8727 | T17: 0 | U17: 0 | V17: 0 | W17: 3.0808 | X17: 0 | Y17: 2.3897 | Z17: 0 | AA17: 0 | AB17: 0 | AC17: 0 | AD17: 0 | AF17: 30298.98593 | AG17: 244202938.2 | AH17: 0 | AI17: 0 | AJ17: 0 | AK17: 173819160.2 | AL17: 0 | AM17: -1010221.146 | AN17: 0 | AO17: 0 | AP17: 0 | AQ17: 0 | AR17: 0 | AT17: 3484383.382 | AU17: 38659278.73 | AV17: 0 | AW17: 0 | AX17: 0 | AY17: 5700051.721 | AZ17: 0 | BA17: -12071.13248 | BB17: 0 | BC17: 0 | BD17: 0 | BE17: 0 | BF17: 0 | BG17: 47831642.7 | BI17: 3302589.466 | BJ17: 36319570.38 | BK17: 0 | BL17: 0 | BM17: 0 | BN17: 5355020.688 | BO17: 0 | BP17: -24141.25474 | BQ17: 0 | BR17: 0 | BS17: 0 | BT17: 0 | BU17: 0 | BV17: 44953039.28
A18: NSP21 | B18: NSP21 Small Business Two Rate | C18: NSP21 Small Business Two Rate | D18: 115 | E18: 38.044 | F18: 33.2899 | G18: 29.135 | H18: 0 | I18: 3.2448 | J18: 0 | K18: 1.1949 | L18: 0 | M18: 0 | N18: 0 | O18: 0 | P18: 0 | R18: 109 | S18: 36.0531 | T18: 31.5478 | U18: 27.61029 | V18: 0 | W18: 2.1847 | X18: 0 | Y18: 2.3897 | Z18: 0 | AA18: 0 | AB18: 0 | AC18: 0 | AD18: 0 | AF18: 4 | AG18: 4011.951541 | AH18: 4533.154029 | AI18: 4704.920467 | AJ18: 0 | AK18: 73980.60355 | AL18: 0 | AM18: -33.34174777 | AN18: 0 | AO18: 0 | AP18: 0 | AQ18: 0 | AR18: 0 | AT18: 460 | AU18: 1526.306844 | AV18: 1509.082443 | AW18: 1370.778578 | AX18: 0 | AY18: 2400.522624 | AZ18: 0 | BA18: -0.3984005441 | BB18: 0 | BC18: 0 | BD18: 0 | BE18: 0 | BF18: 0 | BG18: 7266.292089 | BI18: 436 | BJ18: 1446.432901 | BK18: 1430.110367 | BL18: 1299.042185 | BM18: 0 | BN18: 1616.254246 | BO18: 0 | BP18: -0.7967677464 | BQ18: 0 | BR18: 0 | BS18: 0 | BT18: 0 | BU18: 0 | BV18: 6227.042931
A19: NSP27 | B19: NSP27 Small Business Two Rate | C19: NSP27 Small Business Two Rate | D19: 115 | E19: 21.6035 | F19: 18.9377 | G19: 16.6093 | H19: 0 | I19: 5.9308 | J19: 0 | K19: 1.1949 | L19: 0 | M19: 0 | N19: 0 | O19: 0 | P19: 0 | R19: 109 | S19: 18.7332 | T19: 16.42152 | U19: 14.40252 | V19: 0 | W19: 5.9 | X19: 0 | Y19: 2.3897 | Z19: 0 | AA19: 0 | AB19: 0 | AC19: 0 | AD19: 0 | AF19: 42.25 | AG19: 71727.5672 | AH19: 60197.70629 | AI19: 29438.85715 | AJ19: 0 | AK19: 1195104.277 | AL19: 0 | AM19: 0 | AN19: 0 | AO19: 0 | AP19: 0 | AQ19: 0 | AR19: 0 | AT19: 4858.75 | AU19: 15495.66498 | AV19: 11400.06102 | AW19: 4889.5881 | AX19: 0 | AY19: 70879.24449 | AZ19: 0 | BA19: 0 | BB19: 0 | BC19: 0 | BD19: 0 | BE19: 0 | BF19: 0 | BG19: 107523.3086 | BI19: 4605.25 | BJ19: 13436.86862 | BK19: 9885.378377 | BL19: 4239.937288 | BM19: 0 | BN19: 70511.15237 | BO19: 0 | BP19: 0 | BQ19: 0 | BR19: 0 | BS19: 0 | BT19: 0 | BU19: 0 | BV19: 102678.5867
A20: NEN21 | B20: NEN21 Small Business Two Rate - Embedded Network | C20: NEN21 Small Business Two Rate - Embedded Network | D20: 115 | E20: 10.9825 | F20: 0 | G20: 0 | H20: 0 | I20: 5.0037 | J20: 0 | K20: 0 | L20: 0 | M20: 0 | N20: 0 | O20: 0 | P20: 0 | R20: 109 | S20: 10.4078 | T20: 0 | U20: 0 | V20: 0 | W20: 5.2383 | X20: 0 | Y20: 0 | Z20: 0 | AA20: 0 | AB20: 0 | AC20: 0 | AD20: 0 | AF20: 0 | AG20: 0 | AH20: 0 | AI20: 0 | AJ20: 0 | AK20: 0 | AL20: 0 | AM20: 0 | AN20: 0 | AO20: 0 | AP20: 0 | AQ20: 0 | AR20: 0 | AT20: 0 | AU20: 0 | AV20: 0 | AW20: 0 | AX20: 0 | AY20: 0 | AZ20: 0 | BA20: 0 | BB20: 0 | BC20: 0 | BD20: 0 | BE20: 0 | BF20: 0 | BG20: 0 | BI20: 0 | BJ20: 0 | BK20: 0 | BL20: 0 | BM20: 0 | BN20: 0 | BO20: 0 | BP20: 0 | BQ20: 0 | BR20: 0 | BS20: 0 | BT20: 0 | BU20: 0 | BV20: 0
A21: NEE23 | B21: NEE23 Photovoltaic | C21: NEE23 Photovoltaic | D21: 127 | E21: 16.3665 | F21: 0 | G21: 0 | H21: 0 | I21: 3.0102 | J21: 0 | K21: 1.1949 | L21: 0 | M21: 0 | N21: 0 | O21: 0 | P21: 0 | R21: 120 | S21: 15.6315 | T21: 0 | U21: 0 | V21: 0 | W21: 2.875 | X21: 0 | Y21: 2.3897 | Z21: 0 | AA21: 0 | AB21: 0 | AC21: 0 | AD21: 0 | AF21: 114944.3998 | AG21: 218602633.5 | AH21: 0 | AI21: 0 | AJ21: 0 | AK21: 269974610.7 | AL21: 0 | AM21: -171225823.1 | AN21: 0 | AO21: 0 | AP21: 0 | AQ21: 0 | AR21: 0 | AT21: 14597938.77 | AU21: 35777600.02 | AV21: 0 | AW21: 0 | AX21: 0 | AY21: 8126775.73 | AZ21: 0 | BA21: -2045977.36 | BB21: 0 | BC21: 0 | BD21: 0 | BE21: 0 | BF21: 0 | BG21: 56456337.16 | BI21: 13793327.97 | BJ21: 34170870.66 | BK21: 0 | BL21: 0 | BM21: 0 | BN21: 7761770.056 | BO21: 0 | BP21: -4091783.495 | BQ21: 0 | BR21: 0 | BS21: 0 | BT21: 0 | BU21: 0 | BV21: 51634185.2
A22: NSP23 | B22: NSP23 Photovoltaic | C22: NSP23 Photovoltaic | D22: 127 | E22: 38.044 | F22: 33.2899 | G22: 29.135 | H22: 0 | I22: 3.2448 | J22: 0 | K22: 1.1949 | L22: 0 | M22: 0 | N22: 0 | O22: 0 | P22: 0 | R22: 120 | S22: 36.0531 | T22: 31.5478 | U22: 27.61029 | V22: 0 | W22: 2.1847 | X22: 0 | Y22: 2.3897 | Z22: 0 | AA22: 0 | AB22: 0 | AC22: 0 | AD22: 0 | AF22: 107 | AG22: 6211.1656 | AH22: 6912.032779 | AI22: 38632.7258 | AJ22: 0 | AK22: 318210.954 | AL22: 0 | AM22: -159391.5241 | AN22: 0 | AO22: 0 | AP22: 0 | AQ22: 0 | AR22: 0 | AT22: 13589 | AU22: 2362.975841 | AV22: 2301.0088 | AW22: 11255.64466 | AX22: 0 | AY22: 10325.30903 | AZ22: 0 | BA22: -1904.569322 | BB22: 0 | BC22: 0 | BD22: 0 | BE22: 0 | BF22: 0 | BG22: 37929.36901 | BI22: 12840 | BJ22: 2239.317745 | BK22: 2180.594277 | BL22: 10666.60763 | BM22: 0 | BN22: 6951.954711 | BO22: 0 | BP22: -3808.979252 | BQ22: 0 | BR22: 0 | BS22: 0 | BT22: 0 | BU22: 0 | BV22: 31069.49511
A23: NEE24 | B23: NEE24 Small rate 5 day 8 to 8 | C23: NEE24 Small rate 5 day 8 to 8 | D23: 115 | E23: 6.4434 | F23: 0 | G23: 0 | H23: 0 | I23: 2.7781 | J23: 0 | K23: 0 | L23: 0 | M23: 0 | N23: 0 | O23: 0 | P23: 0 | R23: 109 | S23: 5.8832 | T23: 0 | U23: 0 | V23: 0 | W23: 1.1315 | X23: 0 | Y23: 0 | Z23: 0 | AA23: 0 | AB23: 0 | AC23: 0 | AD23: 0 | AF23: 2389.626691 | AG23: 2918299.584 | AH23: 0 | AI23: 0 | AJ23: 0 | AK23: 7129830.673 | AL23: 0 | AM23: 0 | AN23: 0 | AO23: 0 | AP23: 0 | AQ23: 0 | AR23: 0 | AT23: 274807.0695 | AU23: 188037.7154 | AV23: 0 | AW23: 0 | AX23: 0 | AY23: 198073.8259 | AZ23: 0 | BA23: 0 | BB23: 0 | BC23: 0 | BD23: 0 | BE23: 0 | BF23: 0 | BG23: 660918.6108 | BI23: 260469.3093 | BJ23: 171689.4011 | BK23: 0 | BL23: 0 | BM23: 0 | BN23: 80674.03406 | BO23: 0 | BP23: 0 | BQ23: 0 | BR23: 0 | BS23: 0 | BT23: 0 | BU23: 0 | BV23: 512832.7445
A24: NEE25 | B24: NEE25 Small business rate 5 day 8 to 8 | C24: NEE25 Small business rate 5 day 8 to 8 | D24: 115 | E24: 14.7552 | F24: 0 | G24: 0 | H24: 0 | I24: 3.076 | J24: 0 | K24: 0 | L24: 0 | M24: 0 | N24: 0 | O24: 0 | P24: 0 | R24: 109 | S24: 13.983 | T24: 0 | U24: 0 | V24: 0 | W24: 2.915 | X24: 0 | Y24: 0 | Z24: 0 | AA24: 0 | AB24: 0 | AC24: 0 | AD24: 0 | AF24: 4 | AG24: 99442.66781 | AH24: 0 | AI24: 0 | AJ24: 0 | AK24: 93117.22125 | AL24: 0 | AM24: 0 | AN24: 0 | AO24: 0 | AP24: 0 | AQ24: 0 | AR24: 0 | AT24: 460 | AU24: 14672.96452 | AV24: 0 | AW24: 0 | AX24: 0 | AY24: 2864.285725 | AZ24: 0 | BA24: 0 | BB24: 0 | BC24: 0 | BD24: 0 | BE24: 0 | BF24: 0 | BG24: 17997.25025 | BI24: 436 | BJ24: 13905.06824 | BK24: 0 | BL24: 0 | BM24: 0 | BN24: 2714.366999 | BO24: 0 | BP24: 0 | BQ24: 0 | BR24: 0 | BS24: 0 | BT24: 0 | BU24: 0 | BV24: 17055.43524
A25: NEE30 | B25: NEE30 Small Dedicated | C25: NEE30 Small Dedicated | D25: 0 | E25: 0 | F25: 0 | G25: 0 | H25: 0 | I25: 2.836 | J25: 0 | K25: 0 | L25: 0 | M25: 0 | N25: 0 | O25: 0 | P25: 0 | R25: 0 | S25: 0 | T25: 0 | U25: 0 | V25: 0 | W25: 2.14 | X25: 0 | Y25: 0 | Z25: 0 | AA25: 0 | AB25: 0 | AC25: 0 | AD25: 0 | AF25: 91299.7941 | AG25: 0 | AH25: 0 | AI25: 0 | AJ25: 0 | AK25: 123463212.2 | AL25: 0 | AM25: 0 | AN25: 0 | AO25: 0 | AP25: 0 | AQ25: 0 | AR25: 0 | AT25: 0 | AU25: 0 | AV25: 0 | AW25: 0 | AX25: 0 | AY25: 3501416.697 | AZ25: 0 | BA25: 0 | BB25: 0 | BC25: 0 | BD25: 0 | BE25: 0 | BF25: 0 | BG25: 3501416.697 | BI25: 0 | BJ25: 0 | BK25: 0 | BL25: 0 | BM25: 0 | BN25: 2642112.741 | BO25: 0 | BP25: 0 | BQ25: 0 | BR25: 0 | BS25: 0 | BT25: 0 | BU25: 0 | BV25: 2642112.741
A26: NSP30 | B26: NSP30 Small Dedicated | C26: NSP30 Small Dedicated | D26: 0 | E26: 0 | F26: 0 | G26: 0 | H26: 0 | I26: 2.836 | J26: 0 | K26: 0 | L26: 0 | M26: 0 | N26: 0 | O26: 0 | P26: 0 | R26: 0 | S26: 0 | T26: 0 | U26: 0 | V26: 0 | W26: 2.14 | X26: 0 | Y26: 0 | Z26: 0 | AA26: 0 | AB26: 0 | AC26: 0 | AD26: 0 | AF26: 0 | AG26: 0 | AH26: 0 | AI26: 0 | AJ26: 0 | AK26: 0 | AL26: 0 | AM26: 0 | AN26: 0 | AO26: 0 | AP26: 0 | AQ26: 0 | AR26: 0 | AT26: 0 | AU26: 0 | AV26: 0 | AW26: 0 | AX26: 0 | AY26: 0 | AZ26: 0 | BA26: 0 | BB26: 0 | BC26: 0 | BD26: 0 | BE26: 0 | BF26: 0 | BG26: 0 | BI26: 0 | BJ26: 0 | BK26: 0 | BL26: 0 | BM26: 0 | BN26: 0 | BO26: 0 | BP26: 0 | BQ26: 0 | BR26: 0 | BS26: 0 | BT26: 0 | BU26: 0 | BV26: 0
A27: NEE31 | B27: NEE31 Small Dedicated-afternoon boost | C27: NEE31 Small Dedicated-afternoon boost | D27: 0 | E27: 0 | F27: 0 | G27: 0 | H27: 0 | I27: 2.8289 | J27: 0 | K27: 0 | L27: 0 | M27: 0 | N27: 0 | O27: 0 | P27: 0 | R27: 0 | S27: 0 | T27: 0 | U27: 0 | V27: 0 | W27: 1.73 | X27: 0 | Y27: 0 | Z27: 0 | AA27: 0 | AB27: 0 | AC27: 0 | AD27: 0 | AF27: 13613.33664 | AG27: 0 | AH27: 0 | AI27: 0 | AJ27: 0 | AK27: 43792657.42 | AL27: 0 | AM27: 0 | AN27: 0 | AO27: 0 | AP27: 0 | AQ27: 0 | AR27: 0 | AT27: 0 | AU27: 0 | AV27: 0 | AW27: 0 | AX27: 0 | AY27: 1238850.486 | AZ27: 0 | BA27: 0 | BB27: 0 | BC27: 0 | BD27: 0 | BE27: 0 | BF27: 0 | BG27: 1238850.486 | BI27: 0 | BJ27: 0 | BK27: 0 | BL27: 0 | BM27: 0 | BN27: 757612.9733 | BO27: 0 | BP27: 0 | BQ27: 0 | BR27: 0 | BS27: 0 | BT27: 0 | BU27: 0 | BV27: 757612.9733
A28: NSP31 | B28: NSP31 Small Dedicated-afternoon boost | C28: NSP31 Small Dedicated-afternoon boost | D28: 0 | E28: 0 | F28: 0 | G28: 0 | H28: 0 | I28: 2.8289 | J28: 0 | K28: 0 | L28: 0 | M28: 0 | N28: 0 | O28: 0 | P28: 0 | R28: 0 | S28: 0 | T28: 0 | U28: 0 | V28: 0 | W28: 1.73 | X28: 0 | Y28: 0 | Z28: 0 | AA28: 0 | AB28: 0 | AC28: 0 | AD28: 0 | AF28: 0 | AG28: 0 | AH28: 0 | AI28: 0 | AJ28: 0 | AK28: 0 | AL28: 0 | AM28: 0 | AN28: 0 | AO28: 0 | AP28: 0 | AQ28: 0 | AR28: 0 | AT28: 0 | AU28: 0 | AV28: 0 | AW28: 0 | AX28: 0 | AY28: 0 | AZ28: 0 | BA28: 0 | BB28: 0 | BC28: 0 | BD28: 0 | BE28: 0 | BF28: 0 | BG28: 0 | BI28: 0 | BJ28: 0 | BK28: 0 | BL28: 0 | BM28: 0 | BN28: 0 | BO28: 0 | BP28: 0 | BQ28: 0 | BR28: 0 | BS28: 0 | BT28: 0 | BU28: 0 | BV28: 0
A29: NEE32 | B29: NEE32 Dedicated Circuit 8 to 8 | C29: NEE32 Dedicated Circuit 8 to 8 | D29: 0 | E29: 0 | F29: 0 | G29: 0 | H29: 0 | I29: 2.7781 | J29: 0 | K29: 0 | L29: 0 | M29: 0 | N29: 0 | O29: 0 | P29: 0 | R29: 0 | S29: 0 | T29: 0 | U29: 0 | V29: 0 | W29: 2.215 | X29: 0 | Y29: 0 | Z29: 0 | AA29: 0 | AB29: 0 | AC29: 0 | AD29: 0 | AF29: 3819.773799 | AG29: 0 | AH29: 0 | AI29: 0 | AJ29: 0 | AK29: 4946944.043 | AL29: 0 | AM29: 0 | AN29: 0 | AO29: 0 | AP29: 0 | AQ29: 0 | AR29: 0 | AT29: 0 | AU29: 0 | AV29: 0 | AW29: 0 | AX29: 0 | AY29: 137431.0524 | AZ29: 0 | BA29: 0 | BB29: 0 | BC29: 0 | BD29: 0 | BE29: 0 | BF29: 0 | BG29: 137431.0524 | BI29: 0 | BJ29: 0 | BK29: 0 | BL29: 0 | BM29: 0 | BN29: 109574.8105 | BO29: 0 | BP29: 0 | BQ29: 0 | BR29: 0 | BS29: 0 | BT29: 0 | BU29: 0 | BV29: 109574.8105
A30: NSP32 | B30: NSP32 Dedicated Circuit 8 to 8 | C30: NSP32 Dedicated Circuit 8 to 8 | D30: 0 | E30: 0 | F30: 0 | G30: 0 | H30: 0 | I30: 2.7781 | J30: 0 | K30: 0 | L30: 0 | M30: 0 | N30: 0 | O30: 0 | P30: 0 | R30: 0 | S30: 0 | T30: 0 | U30: 0 | V30: 0 | W30: 2.215 | X30: 0 | Y30: 0 | Z30: 0 | AA30: 0 | AB30: 0 | AC30: 0 | AD30: 0 | AF30: 0 | AG30: 0 | AH30: 0 | AI30: 0 | AJ30: 0 | AK30: 0 | AL30: 0 | AM30: 0 | AN30: 0 | AO30: 0 | AP30: 0 | AQ30: 0 | AR30: 0 | AT30: 0 | AU30: 0 | AV30: 0 | AW30: 0 | AX30: 0 | AY30: 0 | AZ30: 0 | BA30: 0 | BB30: 0 | BC30: 0 | BD30: 0 | BE30: 0 | BF30: 0 | BG30: 0 | BI30: 0 | BJ30: 0 | BK30: 0 | BL30: 0 | BM30: 0 | BN30: 0 | BO30: 0 | BP30: 0 | BQ30: 0 | BR30: 0 | BS30: 0 | BT30: 0 | BU30: 0 | BV30: 0
A31: NEE40 | B31: NEE40 Medium Single Rate - closed to new customers | C31: NEE40 Medium Single Rate - closed to new customers | D31: 115 | E31: 21.5609 | F31: 0 | G31: 0 | H31: 0 | I31: 0 | J31: 0 | K31: 0 | L31: 0 | M31: 0 | N31: 0 | O31: 0 | P31: 0 | R31: 109 | S31: 20.1934 | T31: 0 | U31: 0 | V31: 0 | W31: 0 | X31: 0 | Y31: 0 | Z31: 0 | AA31: 0 | AB31: 0 | AC31: 0 | AD31: 0 | AF31: 49.97616386 | AG31: 9262219.642 | AH31: 0 | AI31: 0 | AJ31: 0 | AK31: 0 | AL31: 0 | AM31: 0 | AN31: 0 | AO31: 0 | AP31: 0 | AQ31: 0 | AR31: 0 | AT31: 5747.258844 | AU31: 1997017.915 | AV31: 0 | AW31: 0 | AX31: 0 | AY31: 0 | AZ31: 0 | BA31: 0 | BB31: 0 | BC31: 0 | BD31: 0 | BE31: 0 | BF31: 0 | BG31: 2002765.174 | BI31: 5447.401861 | BJ31: 1870357.061 | BK31: 0 | BL31: 0 | BM31: 0 | BN31: 0 | BO31: 0 | BP31: 0 | BQ31: 0 | BR31: 0 | BS31: 0 | BT31: 0 | BU31: 0 | BV31: 1875804.463
A32: NEE51 | B32: NEE51 Medium Two Rate 5Day - closed to new customers - <160MWh to NEE21 | C32: NEE51 Medium Two Rate 5Day - closed to new customers - <160MWh to NEE21 | D32: 115 | E32: 18.6531 | F32: 0 | G32: 0 | H32: 0 | I32: 3.9506 | J32: 0 | K32: 0 | L32: 0 | M32: 0 | N32: 0 | O32: 0 | P32: 0 | R32: 109 | S32: 17.47 | T32: 0 | U32: 0 | V32: 0 | W32: 3.7 | X32: 0 | Y32: 0 | Z32: 0 | AA32: 0 | AB32: 0 | AC32: 0 | AD32: 0 | AF32: 360.5833333 | AG32: 30945924.42 | AH32: 0 | AI32: 0 | AJ32: 0 | AK32: 28538699.99 | AL32: 0 | AM32: 0 | AN32: 0 | AO32: 0 | AP32: 0 | AQ32: 0 | AR32: 0 | AT32: 41467.08333 | AU32: 5772374.228 | AV32: 0 | AW32: 0 | AX32: 0 | AY32: 1127449.882 | AZ32: 0 | BA32: 0 | BB32: 0 | BC32: 0 | BD32: 0 | BE32: 0 | BF32: 0 | BG32: 6941291.193 | BI32: 39303.58333 | BJ32: 5406252.996 | BK32: 0 | BL32: 0 | BM32: 0 | BN32: 1055931.9 | BO32: 0 | BP32: 0 | BQ32: 0 | BR32: 0 | BS32: 0 | BT32: 0 | BU32: 0 | BV32: 6501488.479
A33: NEE55 | B33: NEE55 Snowfields Tariff | C33: NEE55 Snowfields Tariff | D33: 115 | E33: 14.2443 | F33: 0 | G33: 0 | H33: 0 | I33: 3.9863 | J33: 0 | K33: 0 | L33: 0 | M33: 0 | N33: 0 | O33: 0 | P33: 0 | R33: 109 | S33: 13.3408 | T33: 0 | U33: 0 | V33: 0 | W33: 3.7335 | X33: 0 | Y33: 0 | Z33: 0 | AA33: 0 | AB33: 0 | AC33: 0 | AD33: 0 | AT33: 0 | AU33: 0 | AV33: 0 | AW33: 0 | AX33: 0 | AY33: 0 | AZ33: 0 | BA33: 0 | BB33: 0 | BC33: 0 | BD33: 0 | BE33: 0 | BF33: 0 | BG33: 0 | BI33: 0 | BJ33: 0 | BK33: 0 | BL33: 0 | BM33: 0 | BN33: 0 | BO33: 0 | BP33: 0 | BQ33: 0 | BR33: 0 | BS33: 0 | BT33: 0 | BU33: 0 | BV33: 0
A34: NSP55 | B34: NSP55 Snowfields Tariff | C34: NSP55 Snowfields Tariff | D34: 115 | E34: 38.044 | F34: 33.2899 | G34: 29.135 | H34: 0 | I34: 2.3053 | J34: 0 | K34: 0 | L34: 0 | M34: 0 | N34: 0 | O34: 0 | P34: 0 | R34: 109 | S34: 36.0531 | T34: 31.5478 | U34: 27.61029 | V34: 0 | W34: 2.1847 | X34: 0 | Y34: 0 | Z34: 0 | AA34: 0 | AB34: 0 | AC34: 0 | AD34: 0 | AF34: 0 | AG34: 0 | AH34: 0 | AI34: 0 | AJ34: 0 | AK34: 0 | AL34: 0 | AM34: 0 | AN34: 0 | AO34: 0 | AP34: 0 | AQ34: 0 | AR34: 0 | AT34: 0 | AU34: 0 | AV34: 0 | AW34: 0 | AX34: 0 | AY34: 0 | AZ34: 0 | BA34: 0 | BB34: 0 | BC34: 0 | BD34: 0 | BE34: 0 | BF34: 0 | BG34: 0 | BI34: 0 | BJ34: 0 | BK34: 0 | BL34: 0 | BM34: 0 | BN34: 0 | BO34: 0 | BP34: 0 | BQ34: 0 | BR34: 0 | BS34: 0 | BT34: 0 | BU34: 0 | BV34: 0
A35: NSP56 | B35: NSP56 Medium Demand Multi-rate | C35: NSP56 Medium Demand Multi-rate | D35: 2482 | E35: 10.8482 | F35: 7.8994 | G35: 0 | H35: 0 | I35: 3.7074 | J35: 0 | K35: 0 | L35: 0 | M35: 18.87 | N35: 31.45 | O35: 0 | P35: 0 | R35: 2352 | S35: 10.2805 | T35: 7.486 | U35: 0 | V35: 0 | W35: 3.5134 | X35: 0 | Y35: 0 | Z35: 0 | AA35: 17.8782 | AB35: 29.8033 | AC35: 0 | AD35: 0 | AF35: 1315.314697 | AG35: 107539102.4 | AH35: 86725869.01 | AI35: 0 | AJ35: 0 | AK35: 135663741.9 | AL35: 0 | AM35: 0 | AN35: 0 | AO35: 205494.1126 | AP35: 90680.21847 | AQ35: 0 | AR35: 0 | AT35: 3264611.079 | AU35: 11666056.91 | AV35: 6850823.297 | AW35: 0 | AX35: 0 | AY35: 5029597.568 | AZ35: 0 | BA35: 0 | BB35: 0 | BC35: 3877673.904 | BD35: 2851892.871 | BE35: 0 | BF35: 0 | BG35: 33540655.62 | BI35: 3093620.168 | BJ35: 11055557.42 | BK35: 6492298.554 | BL35: 0 | BM35: 0 | BN35: 4766409.908 | BO35: 0 | BP35: 0 | BQ35: 0 | BR35: 3673864.843 | BS35: 2702569.755 | BT35: 0 | BU35: 0 | BV35: 31784320.65
A36: NEN56 | B36: NEN56 Medium Demand Multi-rate - Embedded Network | C36: NEN56 Medium Demand Multi-rate - Embedded Network | D36: 2482 | E36: 8.3635 | F36: 5.8289 | G36: 0 | H36: 0 | I36: 3.7513 | J36: 0 | K36: 0 | L36: 0 | M36: 18.87 | N36: 31.45 | O36: 0 | P36: 0 | R36: 2352 | S36: 7.833 | T36: 5.4592 | U36: 0 | V36: 0 | W36: 3.5134 | X36: 0 | Y36: 0 | Z36: 0 | AA36: 17.8782 | AB36: 29.8033 | AC36: 0 | AD36: 0 | AF36: 3.253912568 | AG36: 218248.2857 | AH36: 240336.3296 | AI36: 0 | AJ36: 0 | AK36: 231425.7677 | AL36: 0 | AM36: 0 | AN36: 0 | AO36: 0 | AP36: 0 | AQ36: 0 | AR36: 0 | AT36: 8076.210993 | AU36: 18253.19537 | AV36: 14008.96431 | AW36: 0 | AX36: 0 | AY36: 8681.474823 | AZ36: 0 | BA36: 0 | BB36: 0 | BC36: 0 | BD36: 0 | BE36: 0 | BF36: 0 | BG36: 49019.8455 | BI36: 7653.202359 | BJ36: 17095.38822 | BK36: 13120.4409 | BL36: 0 | BM36: 0 | BN36: 8130.912922 | BO36: 0 | BP36: 0 | BQ36: 0 | BR36: 0 | BS36: 0 | BT36: 0 | BU36: 0 | BV36: 45999.9444
A37: NEE60 | B37: NEE60 Medium Two Rate 7Day - closed to new customers | C37: NEE60 Medium Two Rate 7Day - closed to new customers | D37: 115 | E37: 9.6095 | F37: 0 | G37: 0 | H37: 0 | I37: 3.737 | J37: 0 | K37: 0 | L37: 0 | M37: 0 | N37: 0 | O37: 0 | P37: 0 | R37: 109 | S37: 9 | T37: 0 | U37: 0 | V37: 0 | W37: 3.5 | X37: 0 | Y37: 0 | Z37: 0 | AA37: 0 | AB37: 0 | AC37: 0 | AD37: 0 | AF37: 359.3333333 | AG37: 16698393.61 | AH37: 0 | AI37: 0 | AJ37: 0 | AK37: 5020930.153 | AL37: 0 | AM37: 0 | AN37: 0 | AO37: 0 | AP37: 0 | AQ37: 0 | AR37: 0 | AT37: 41323.33333 | AU37: 1604632.134 | AV37: 0 | AW37: 0 | AX37: 0 | AY37: 187632.1598 | AZ37: 0 | BA37: 0 | BB37: 0 | BC37: 0 | BD37: 0 | BE37: 0 | BF37: 0 | BG37: 1833587.627 | BI37: 39167.33333 | BJ37: 1502855.425 | BK37: 0 | BL37: 0 | BM37: 0 | BN37: 175732.5553 | BO37: 0 | BP37: 0 | BQ37: 0 | BR37: 0 | BS37: 0 | BT37: 0 | BU37: 0 | BV37: 1717755.314
A38: NEE52 | B38: NEE52 Unmetered | C38: NEE52 Unmetered | D38: 0 | E38: 16.4429 | F38: 0 | G38: 0 | H38: 0 | I38: 8.3363 | J38: 0 | K38: 0 | L38: 0 | M38: 0 | N38: 0 | O38: 0 | P38: 0 | R38: 0 | S38: 15.4 | T38: 0 | U38: 0 | V38: 0 | W38: 7.9 | X38: 0 | Y38: 0 | Z38: 0 | AA38: 0 | AB38: 0 | AC38: 0 | AD38: 0 | AF38: 90.81118907 | AG38: 26450447.25 | AH38: 0 | AI38: 0 | AJ38: 0 | AK38: 56164947.39 | AL38: 0 | AM38: 0 | AN38: 0 | AO38: 0 | AP38: 0 | AQ38: 0 | AR38: 0 | AT38: 0 | AU38: 4349220.59 | AV38: 0 | AW38: 0 | AX38: 0 | AY38: 4682078.51 | AZ38: 0 | BA38: 0 | BB38: 0 | BC38: 0 | BD38: 0 | BE38: 0 | BF38: 0 | BG38: 9031299.1 | BI38: 0 | BJ38: 4073368.876 | BK38: 0 | BL38: 0 | BM38: 0 | BN38: 4437030.844 | BO38: 0 | BP38: 0 | BQ38: 0 | BR38: 0 | BS38: 0 | BT38: 0 | BU38: 0 | BV38: 8510399.72
A39: NEE74 | B39: NEE74 LV Large Two Rate 5Day | C39: NEE74 LV Large Two Rate 5Day | D39: 138 | E39: 23.352 | F39: 0 | G39: 0 | H39: 0 | I39: 6.6337 | J39: 0 | K39: 0 | L39: 0 | M39: 0 | N39: 0 | O39: 0 | P39: 0 | R39: 130 | S39: 21.9655 | T39: 0 | U39: 0 | V39: 0 | W39: 6.2398 | X39: 0 | Y39: 0 | Z39: 0 | AA39: 0 | AB39: 0 | AC39: 0 | AD39: 0 | AF39: 8 | AG39: 2471348.796 | AH39: 0 | AI39: 0 | AJ39: 0 | AK39: 2599593.326 | AL39: 0 | AM39: 0 | AN39: 0 | AO39: 0 | AP39: 0 | AQ39: 0 | AR39: 0 | AT39: 1104 | AU39: 577109.3709 | AV39: 0 | AW39: 0 | AX39: 0 | AY39: 172449.2225 | AZ39: 0 | BA39: 0 | BB39: 0 | BC39: 0 | BD39: 0 | BE39: 0 | BF39: 0 | BG39: 750662.5934 | BI39: 1040 | BJ39: 542844.1199 | BK39: 0 | BL39: 0 | BM39: 0 | BN39: 162209.4244 | BO39: 0 | BP39: 0 | BQ39: 0 | BR39: 0 | BS39: 0 | BT39: 0 | BU39: 0 | BV39: 706093.5442
A40: NSP75 | B40: NSP75 Large Multi-rate <750 kVA | C40: NSP75 Large Multi-rate <750 kVA | D40: 5548 | E40: 3.0875 | F40: 2.0921 | G40: 0 | H40: 0 | I40: 1.1933 | J40: 0 | K40: 0 | L40: 0 | M40: 45.85 | N40: 76.89 | O40: 0 | P40: 0 | R40: 5208 | S40: 2.908 | T40: 1.9705 | U40: 0 | V40: 0 | W40: 1.1239 | X40: 0 | Y40: 0 | Z40: 0 | AA40: 43.4478 | AB40: 72.8688 | AC40: 0 | AD40: 0 | AF40: 783.25 | AG40: 136278379.2 | AH40: 102506100.8 | AI40: 0 | AJ40: 0 | AK40: 182078290.2 | AL40: 0 | AM40: 0 | AN40: 0 | AO40: 198248.5309 | AP40: 93309.58132 | AQ40: 0 | AR40: 0 | AT40: 4345471 | AU40: 4207594.959 | AV40: 2144530.134 | AW40: 0 | AX40: 0 | AY40: 2172740.237 | AZ40: 0 | BA40: 0 | BB40: 0 | BC40: 9089695.142 | BD40: 7174573.708 | BE40: 0 | BF40: 0 | BG40: 29134605.18 | BI40: 4079166 | BJ40: 3962975.269 | BK40: 2019882.716 | BL40: 0 | BM40: 0 | BN40: 2046377.904 | BO40: 0 | BP40: 0 | BQ40: 0 | BR40: 8613462.521 | BS40: 6799357.22 | BT40: 0 | BU40: 0 | BV40: 27521221.63
A41: NSP76 | B41: NSP76 Large Multi-rate >750 kVA | C41: NSP76 Large Multi-rate >750 kVA | D41: 5548 | E41: 2.844 | F41: 1.8629 | G41: 0 | H41: 0 | I41: 1.0569 | J41: 0 | K41: 0 | L41: 0 | M41: 47.8 | N41: 80.84 | O41: 0 | P41: 0 | R41: 5208 | S41: 2.6716 | T41: 1.75 | U41: 0 | V41: 0 | W41: 0.9928 | X41: 0 | Y41: 0 | Z41: 0 | AA41: 45.2966 | AB41: 76.6057 | AC41: 0 | AD41: 0 | AF41: 516 | AG41: 192445947.1 | AH41: 142333558.7 | AI41: 0 | AJ41: 0 | AK41: 242213486.1 | AL41: 0 | AM41: 0 | AN41: 0 | AO41: 259623.8491 | AP41: 134912.2113 | AQ41: 0 | AR41: 0 | AT41: 2862768 | AU41: 5473162.735 | AV41: 2651531.866 | AW41: 0 | AX41: 0 | AY41: 2559954.335 | AZ41: 0 | BA41: 0 | BB41: 0 | BC41: 12410019.99 | BD41: 10906303.17 | BE41: 0 | BF41: 0 | BG41: 36863740.09 | BI41: 2687328 | BJ41: 5141385.922 | BK41: 2490837.278 | BL41: 0 | BM41: 0 | BN41: 2404695.49 | BO41: 0 | BP41: 0 | BQ41: 0 | BR41: 11760077.64 | BS41: 10335044.39 | BT41: 0 | BU41: 0 | BV41: 34819368.72
A42: NSP77 | B42: NSP77 Large Multi-rate >2 GWh | C42: NSP77 Large Multi-rate >2 GWh | D42: 5548 | E42: 2.794 | F42: 1.8421 | G42: 0 | H42: 0 | I42: 0.9978 | J42: 0 | K42: 0 | L42: 0 | M42: 52.41 | N42: 86.99 | O42: 0 | P42: 0 | R42: 5208 | S42: 2.6244 | T42: 1.7303 | U42: 0 | V42: 0 | W42: 0.9372 | X42: 0 | Y42: 0 | Z42: 0 | AA42: 49.6691 | AB42: 82.4398 | AC42: 0 | AD42: 0 | AF42: 116.75 | AG42: 91857245.83 | AH42: 72454339.2 | AI42: 0 | AJ42: 0 | AK42: 120135613 | AL42: 0 | AM42: 0 | AN42: 0 | AO42: 94342.66947 | AP42: 53057.76325 | AQ42: 0 | AR42: 0 | AT42: 647729 | AU42: 2566491.448 | AV42: 1334681.382 | AW42: 0 | AX42: 0 | AY42: 1198713.147 | AZ42: 0 | BA42: 0 | BB42: 0 | BC42: 4944499.307 | BD42: 4615494.825 | BE42: 0 | BF42: 0 | BG42: 15307609.11 | BI42: 608034 | BJ42: 2410701.56 | BK42: 1253677.431 | BL42: 0 | BM42: 0 | BN42: 1125910.965 | BO42: 0 | BP42: 0 | BQ42: 0 | BR42: 4685915.484 | BS42: 4374071.391 | BT42: 0 | BU42: 0 | BV42: 14458310.83
A43: NSP78 | B43: NSP78 Large Multi-rate >4 GWh | C43: NSP78 Large Multi-rate >4 GWh | D43: 5548 | E43: 2.4908 | F43: 1.643 | G43: 0 | H43: 0 | I43: 0.8598 | J43: 0 | K43: 0 | L43: 0 | M43: 57.65 | N43: 95.38 | O43: 0 | P43: 0 | R43: 5208 | S43: 2.3361 | T43: 1.541 | U43: 0 | V43: 0 | W43: 0.8064 | X43: 0 | Y43: 0 | Z43: 0 | AA43: 54.6332 | AB43: 90.39 | AC43: 0 | AD43: 0 | AF43: 41.15884153 | AG43: 62427911.79 | AH43: 43859922.62 | AI43: 0 | AJ43: 0 | AK43: 79220923.81 | AL43: 0 | AM43: 0 | AN43: 0 | AO43: 58171.74926 | AP43: 34674.51853 | AQ43: 0 | AR43: 0 | AT43: 228349.2528 | AU43: 1554954.427 | AV43: 720618.5287 | AW43: 0 | AX43: 0 | AY43: 681141.5029 | AZ43: 0 | BA43: 0 | BB43: 0 | BC43: 3353601.345 | BD43: 3307255.578 | BE43: 0 | BF43: 0 | BG43: 9845920.634 | BI43: 214355.2467 | BJ43: 1458378.447 | BK43: 675881.4076 | BL43: 0 | BM43: 0 | BN43: 638837.5296 | BO43: 0 | BP43: 0 | BQ43: 0 | BR43: 3178108.812 | BS43: 3134229.73 | BT43: 0 | BU43: 0 | BV43: 9299791.173
A44: NSP81 | B44: NSP81 HV Kva | C44: NSP81 HV Kva | D44: 5548 | E44: 0.5273 | F44: 0 | G44: 0 | H44: 0 | I44: 0.2133 | J44: 0 | K44: 0 | L44: 0 | M44: 37.73 | N44: 61.84 | O44: 0 | P44: 0 | R44: 5208 | S44: 0.489 | T44: 0 | U44: 0 | V44: 0 | W44: 0.1978 | X44: 0 | Y44: 0 | Z44: 0 | AA44: 35.7566 | AB44: 58.6082 | AC44: 0 | AD44: 0 | AF44: 52.65234754 | AG44: 279570848.7 | AH44: 0 | AI44: 0 | AJ44: 0 | AK44: 232759405.2 | AL44: 0 | AM44: 0 | AN44: 0 | AO44: 166608.8104 | AP44: 81595.59638 | AQ44: 0 | AR44: 0 | AT44: 292115.2242 | AU44: 1474177.085 | AV44: 0 | AW44: 0 | AX44: 0 | AY44: 496475.8112 | AZ44: 0 | BA44: 0 | BB44: 0 | BC44: 6286150.415 | BD44: 5045871.68 | BE44: 0 | BF44: 0 | BG44: 13594790.22 | BI44: 274213.426 | BJ44: 1367101.45 | BK44: 0 | BL44: 0 | BM44: 0 | BN44: 460398.1034 | BO44: 0 | BP44: 0 | BQ44: 0 | BR44: 5957364.588 | BS44: 4782171.032 | BT44: 0 | BU44: 0 | BV44: 12841248.6
A45: NSP82 | B45: NSP82 Traction | C45: NSP82 Traction | D45: 5548 | E45: 0.4667 | F45: 0.4667 | G45: 0 | H45: 0 | I45: 0.3977 | J45: 0 | K45: 0 | L45: 0 | M45: 34.59 | N45: 56.6 | O45: 0 | P45: 0 | R45: 5208 | S45: 0.432 | T45: 0.432 | U45: 0 | V45: 0 | W45: 0.3681 | X45: 0 | Y45: 0 | Z45: 0 | AA45: 32.78 | AB45: 53.6348 | AC45: 0 | AD45: 0 | AF45: 23 | AG45: 30815858.39 | AH45: 17770357.46 | AI45: 0 | AJ45: 0 | AK45: 36061455.7 | AL45: 0 | AM45: 0 | AN45: 0 | AO45: 38743.82192 | AP45: 20260.16448 | AQ45: 0 | AR45: 0 | AT45: 127604 | AU45: 143817.6111 | AV45: 82934.25829 | AW45: 0 | AX45: 0 | AY45: 143416.4093 | AZ45: 0 | BA45: 0 | BB45: 0 | BC45: 1340148.8 | BD45: 1146725.31 | BE45: 0 | BF45: 0 | BG45: 2984646.389 | BI45: 119784 | BJ45: 133124.5082 | BK45: 76767.94425 | BL45: 0 | BM45: 0 | BN45: 132742.2184 | BO45: 0 | BP45: 0 | BQ45: 0 | BR45: 1270022.482 | BS45: 1086649.87 | BT45: 0 | BU45: 0 | BV45: 2819091.023
A46: NSP83 | B46: NSP83 Small HV | C46: NSP83 Small HV | D46: 5548 | E46: 9.276 | F46: 3.2457 | G46: 0 | H46: 0 | I46: 1.0108 | J46: 0 | K46: 0 | L46: 0 | M46: 4.03 | N46: 6.66 | O46: 0 | P46: 0 | R46: 5208 | S46: 8.7673 | T46: 3.0677 | U46: 0 | V46: 0 | W46: 0.9554 | X46: 0 | Y46: 0 | Z46: 0 | AA46: 3.81795 | AB46: 6.3138 | AC46: 0 | AD46: 0 | AF46: 22 | AG46: 3631448.833 | AH46: 2475465.096 | AI46: 0 | AJ46: 0 | AK46: 5389338.112 | AL46: 0 | AM46: 0 | AN46: 0 | AO46: 24124.46352 | AP46: 6432.311252 | AQ46: 0 | AR46: 0 | AT46: 122056 | AU46: 336853.1937 | AV46: 80346.17062 | AW46: 0 | AX46: 0 | AY46: 54475.42964 | AZ46: 0 | BA46: 0 | BB46: 0 | BC46: 97221.58798 | BD46: 42839.19294 | BE46: 0 | BF46: 0 | BG46: 733791.5749 | BI46: 114576 | BJ46: 318380.0135 | BK46: 75939.84275 | BL46: 0 | BM46: 0 | BN46: 51489.73633 | BO46: 0 | BP46: 0 | BQ46: 0 | BR46: 92105.99549 | BS46: 40612.32679 | BT46: 0 | BU46: 0 | BV46: 693103.9149
A47: NSP91 | B47: NSP91 ST kVA | C47: NSP91 ST kVA | D47: 19711 | E47: 0.499 | F47: 0 | G47: 0 | H47: 0 | I47: 0.0469 | J47: 0 | K47: 0 | L47: 0 | M47: 2.52 | N47: 4.16 | O47: 0 | P47: 0 | R47: 18504 | S47: 0.4714 | T47: 0 | U47: 0 | V47: 0 | W47: 0.0444 | X47: 0 | Y47: 0 | Z47: 0 | AA47: 2.385 | AB47: 3.938 | AC47: 0 | AD47: 0 | AT47: 0 | AU47: 0 | AV47: 0 | AW47: 0 | AX47: 0 | AY47: 0 | AZ47: 0 | BA47: 0 | BB47: 0 | BC47: 0 | BD47: 0 | BE47: 0 | BF47: 0 | BG47: 0 | BI47: 0 | BJ47: 0 | BK47: 0 | BL47: 0 | BM47: 0 | BN47: 0 | BO47: 0 | BP47: 0 | BQ47: 0 | BR47: 0 | BS47: 0 | BT47: 0 | BU47: 0 | BV47: 0
A48: NEE93 | B48: NEE93 Latrobe Generators kVA (non published) | C48: NEE93 Latrobe Generators kVA (non published) | D48: 0 | E48: 0.9848 | F48: 0 | G48: 0 | H48: 0 | I48: 0.9847 | J48: 0 | K48: 0 | L48: 0 | M48: 0 | N48: 0 | O48: 0 | P48: 0 | R48: 0 | S48: 0.93015 | T48: 0 | U48: 0 | V48: 0 | W48: 0.9301 | X48: 0 | Y48: 0 | Z48: 0 | AA48: 0 | AB48: 0 | AC48: 0 | AD48: 0 | AT48: 0 | AU48: 0 | AV48: 0 | AW48: 0 | AX48: 0 | AY48: 0 | AZ48: 0 | BA48: 0 | BB48: 0 | BC48: 0 | BD48: 0 | BE48: 0 | BF48: 0 | BG48: 0 | BI48: 0 | BJ48: 0 | BK48: 0 | BL48: 0 | BM48: 0 | BN48: 0 | BO48: 0 | BP48: 0 | BQ48: 0 | BR48: 0 | BS48: 0 | BT48: 0 | BU48: 0 | BV48: 0
A49: NSP94 | B49: NSP94 - ST kVA >25MVA <20kM | C49: NSP94 - ST kVA >25MVA <20kM | D49: 19711 | E49: 0.465 | F49: 0 | G49: 0 | H49: 0 | I49: 0.0299 | J49: 0 | K49: 0 | L49: 0 | M49: 1.88 | N49: 3.12 | O49: 0 | P49: 0 | R49: 18504 | S49: 0.4388 | T49: 0 | U49: 0 | V49: 0 | W49: 0.0282 | X49: 0 | Y49: 0 | Z49: 0 | AA49: 1.7841 | AB49: 2.9582 | AC49: 0 | AD49: 0 | AT49: 0 | AU49: 0 | AV49: 0 | AW49: 0 | AX49: 0 | AY49: 0 | AZ49: 0 | BA49: 0 | BB49: 0 | BC49: 0 | BD49: 0 | BE49: 0 | BF49: 0 | BG49: 0 | BI49: 0 | BJ49: 0 | BK49: 0 | BL49: 0 | BM49: 0 | BN49: 0 | BO49: 0 | BP49: 0 | BQ49: 0 | BR49: 0 | BS49: 0 | BT49: 0 | BU49: 0 | BV49: 0
A50: NSP95 | B50: NSP95 - ST kVA <25MVA >20kM | C50: NSP95 - ST kVA <25MVA >20kM | D50: 19711 | E50: 0.5324 | F50: 0 | G50: 0 | H50: 0 | I50: 0.067 | J50: 0 | K50: 0 | L50: 0 | M50: 3.9 | N50: 6.48 | O50: 0 | P50: 0 | R50: 18504 | S50: 0.5012 | T50: 0 | U50: 0 | V50: 0 | W50: 0.0631 | X50: 0 | Y50: 0 | Z50: 0 | AA50: 3.6976 | AB50: 6.1381 | AC50: 0 | AD50: 0 | AT50: 0 | AU50: 0 | AV50: 0 | AW50: 0 | AX50: 0 | AY50: 0 | AZ50: 0 | BA50: 0 | BB50: 0 | BC50: 0 | BD50: 0 | BE50: 0 | BF50: 0 | BG50: 0 | BI50: 0 | BJ50: 0 | BK50: 0 | BL50: 0 | BM50: 0 | BN50: 0 | BO50: 0 | BP50: 0 | BQ50: 0 | BR50: 0 | BS50: 0 | BT50: 0 | BU50: 0 | BV50: 0
A51: NASN19 | B51: NASN19 - Business >40MWh Single Rate | C51: NASN19 - Business >40MWh Single Rate | D51: 115 | E51: 13.9167 | F51: 13.9167 | G51: 0 | H51: 0 | I51: 0 | J51: 0 | K51: 0 | L51: 0 | M51: 0.94 | N51: 3.76 | O51: 0 | P51: 0 | R51: 109 | S51: 13.6453 | T51: 13.6453 | U51: 0 | V51: 0 | W51: 0 | X51: 0 | Y51: 0 | Z51: 0 | AA51: 0.4485 | AB51: 1.7838 | AC51: 0 | AD51: 0 | AF51: 974.16 | AG51: 53627365.06 | AH51: 0 | AI51: 0 | AJ51: 0 | AK51: 0 | AL51: 0 | AM51: 0 | AN51: 0 | AO51: 165268.3861 | AP51: 89574.66694 | AQ51: 0 | AR51: 0 | AT51: 112028.4 | AU51: 7463159.514 | AV51: 0 | AW51: 0 | AX51: 0 | AY51: 0 | AZ51: 0 | BA51: 0 | BB51: 0 | BC51: 155352.2829 | BD51: 336800.7477 | BE51: 0 | BF51: 0 | BG51: =SUM(AT51:BF51) -> 8067340.944 | BI51: 106183.44 | BJ51: 7317614.845 | BK51: 0 | BL51: 0 | BM51: 0 | BN51: 0 | BO51: 0 | BP51: 0 | BQ51: 0 | BR51: 74122.87116 | BS51: 159783.2909 | BT51: 0 | BU51: 0 | BV51: 7657704.447
A52: NASN21 | B52: NASN21 - Business >40MWh Two Rate | C52: NASN21 - Business >40MWh Two Rate | D52: 115 | E52: 14.2962 | F52: 0 | G52: 0 | H52: 0 | I52: 3.0904 | J52: 0 | K52: 1.1949 | L52: 0 | M52: 0.94 | N52: 3.76 | O52: 0 | P52: 0 | R52: 109 | S52: 14.2516 | T52: 0 | U52: 0 | V52: 0 | W52: 3.0808 | X52: 0 | Y52: 2.3897 | Z52: 0 | AA52: 0.4485 | AB52: 1.7838 | AC52: 0 | AD52: 0 | AF52: 7750.71 | AG52: 296536561.4 | AH52: 0 | AI52: 0 | AJ52: 0 | AK52: 243621835 | AL52: 0 | AM52: 0 | AN52: 0 | AO52: 1656385.815 | AP52: 898351.1493 | AQ52: 0 | AR52: 0 | AT52: 891331.65 | AU52: 42393459.89 | AV52: 0 | AW52: 0 | AX52: 0 | AY52: 7528889.188 | AZ52: 0 | BA52: 0 | BB52: 0 | BC52: 1557002.667 | BD52: 3377800.321 | BE52: 0 | BF52: 0 | BG52: 55748483.71 | BI52: 844827.39 | BJ52: 42261204.58 | BK52: 0 | BL52: 0 | BM52: 0 | BN52: 7505501.492 | BO52: 0 | BP52: 0 | BQ52: 0 | BR52: 742889.0382 | BS52: 1602478.78 | BT52: 0 | BU52: 0 | BV52: 52956901.28
A53: NASN11 | B53: NASN11 - Residential Single Rate | C53: NASN11 - Residential Single Rate | D53: 115 | E53: 5.5441 | F53: 5.5441 | G53: 0 | H53: 0 | I53: 0 | J53: 0 | K53: 1.1949 | L53: 0 | M53: 2.35 | N53: 9.4 | O53: 0 | P53: 0 | R53: 109 | S53: 5.254 | T53: 5.254 | U53: 0 | V53: 0 | W53: 0 | X53: 0 | Y53: 2.3897 | Z53: 0 | AA53: 2.2278 | AB53: 8.9111 | AF53: 10 | AG53: 75000 | AH53: 0 | AI53: 0 | AJ53: 0 | AK53: 0 | AL53: 0 | AM53: 0 | AN53: 0 | AO53: 352 | AP53: 220 | AQ53: 0 | AR53: 0 | AT53: 1150 | AU53: 4158.075 | AV53: 0 | AW53: 0 | AX53: 0 | AY53: 0 | AZ53: 0 | BA53: 0 | BB53: 0 | BC53: 827.2 | BD53: 2068 | BE53: 0 | BF53: 0 | BG53: 8203.275 | BI53: 1090 | BJ53: 3940.5 | BK53: 0 | BL53: 0 | BM53: 0 | BN53: 0 | BO53: 0 | BP53: 0 | BQ53: 0 | BR53: 784.1856 | BS53: 1960.442 | BT53: 0 | BU53: 0 | BV53: 7775.1276
A54: NASN12 | B54: NASN12 - Business Single Rate | C54: NASN12 - Business Single Rate | D54: 115 | E54: 11.3969 | F54: 11.3969 | G54: 0 | H54: 0 | I54: 0 | J54: 0 | K54: 1.1949 | L54: 0 | M54: 2.35 | N54: 9.4 | O54: 0 | P54: 0 | R54: 109 | S54: 10.8005 | T54: 10.8005 | U54: 0 | V54: 0 | W54: 0 | X54: 0 | Y54: 2.3897 | Z54: 0 | AA54: 2.2278 | AB54: 8.9111 | AF54: 5 | AG54: 75000 | AH54: 0 | AI54: 0 | AJ54: 0 | AK54: 0 | AL54: 0 | AM54: 0 | AN54: 0 | AO54: 384 | AP54: 240 | AQ54: 0 | AR54: 0 | AT54: 575 | AU54: 8547.675 | AV54: 0 | AW54: 0 | AX54: 0 | AY54: 0 | AZ54: 0 | BA54: 0 | BB54: 0 | BC54: 902.4 | BD54: 2256 | BE54: 0 | BF54: 0 | BG54: 12281.075 | BI54: 545 | BJ54: 8100.375 | BK54: 0 | BL54: 0 | BM54: 0 | BN54: 0 | BO54: 0 | BP54: 0 | BQ54: 0 | BR54: 855.4752 | BS54: 2138.664 | BT54: 0 | BU54: 0 | BV54: 11639.5142
AT55: 0 | AU55: 0 | AV55: 0 | AW55: 0 | AX55: 0 | AY55: 0 | AZ55: 0 | BA55: 0 | BB55: 0 | BC55: 0 | BD55: 0 | BE55: 0 | BF55: 0 | BG55: 0 | BI55: 0 | BJ55: 0 | BK55: 0 | BL55: 0 | BM55: 0 | BN55: 0 | BO55: 0 | BP55: 0 | BQ55: 0 | BR55: 0 | BS55: 0 | BT55: 0 | BU55: 0 | BV55: 0
AT56: 0 | AU56: 0 | AV56: 0 | AW56: 0 | AX56: 0 | AY56: 0 | AZ56: 0 | BA56: 0 | BB56: 0 | BC56: 0 | BD56: 0 | BE56: 0 | BF56: 0 | BG56: 0 | BI56: 0 | BJ56: 0 | BK56: 0 | BL56: 0 | BM56: 0 | BN56: 0 | BO56: 0 | BP56: 0 | BQ56: 0 | BR56: 0 | BS56: 0 | BT56: 0 | BU56: 0 | BV56: 0
AT57: 0 | AU57: 0 | AV57: 0 | AW57: 0 | AX57: 0 | AY57: 0 | AZ57: 0 | BA57: 0 | BB57: 0 | BC57: 0 | BD57: 0 | BE57: 0 | BF57: 0 | BG57: 0 | BI57: 0 | BJ57: 0 | BK57: 0 | BL57: 0 | BM57: 0 | BN57: 0 | BO57: 0 | BP57: 0 | BQ57: 0 | BR57: 0 | BS57: 0 | BT57: 0 | BU57: 0 | BV57: 0
AT58: 0 | AU58: 0 | AV58: 0 | AW58: 0 | AX58: 0 | AY58: 0 | AZ58: 0 | BA58: 0 | BB58: 0 | BC58: 0 | BD58: 0 | BE58: 0 | BF58: 0 | BG58: 0 | BI58: 0 | BJ58: 0 | BK58: 0 | BL58: 0 | BM58: 0 | BN58: 0 | BO58: 0 | BP58: 0 | BQ58: 0 | BR58: 0 | BS58: 0 | BT58: 0 | BU58: 0 | BV58: 0
AT59: 0 | AU59: 0 | AV59: 0 | AW59: 0 | AX59: 0 | AY59: 0 | AZ59: 0 | BA59: 0 | BB59: 0 | BC59: 0 | BD59: 0 | BE59: 0 | BF59: 0 | BG59: 0 | BI59: 0 | BJ59: 0 | BK59: 0 | BL59: 0 | BM59: 0 | BN59: 0 | BO59: 0 | BP59: 0 | BQ59: 0 | BR59: 0 | BS59: 0 | BT59: 0 | BU59: 0 | BV59: 0
AT60: 0 | AU60: 0 | AV60: 0 | AW60: 0 | AX60: 0 | AY60: 0 | AZ60: 0 | BA60: 0 | BB60: 0 | BC60: 0 | BD60: 0 | BE60: 0 | BF60: 0 | BG60: 0 | BI60: 0 | BJ60: 0 | BK60: 0 | BL60: 0 | BM60: 0 | BN60: 0 | BO60: 0 | BP60: 0 | BQ60: 0 | BR60: 0 | BS60: 0 | BT60: 0 | BU60: 0 | BV60: 0
AT61: 0 | AU61: 0 | AV61: 0 | AW61: 0 | AX61: 0 | AY61: 0 | AZ61: 0 | BA61: 0 | BB61: 0 | BC61: 0 | BD61: 0 | BE61: 0 | BF61: 0 | BG61: 0 | BI61: 0 | BJ61: 0 | BK61: 0 | BL61: 0 | BM61: 0 | BN61: 0 | BO61: 0 | BP61: 0 | BQ61: 0 | BR61: 0 | BS61: 0 | BT61: 0 | BU61: 0 | BV61: 0
AT62: 0 | AU62: 0 | AV62: 0 | AW62: 0 | AX62: 0 | AY62: 0 | AZ62: 0 | BA62: 0 | BB62: 0 | BC62: 0 | BD62: 0 | BE62: 0 | BF62: 0 | BG62: 0 | BI62: 0 | BJ62: 0 | BK62: 0 | BL62: 0 | BM62: 0 | BN62: 0 | BO62: 0 | BP62: 0 | BQ62: 0 | BR62: 0 | BS62: 0 | BT62: 0 | BU62: 0 | BV62: 0
AT63: 0 | AU63: 0 | AV63: 0 | AW63: 0 | AX63: 0 | AY63: 0 | AZ63: 0 | BA63: 0 | BB63: 0 | BC63: 0 | BD63: 0 | BE63: 0 | BF63: 0 | BG63: 0 | BI63: 0 | BJ63: 0 | BK63: 0 | BL63: 0 | BM63: 0 | BN63: 0 | BO63: 0 | BP63: 0 | BQ63: 0 | BR63: 0 | BS63: 0 | BT63: 0 | BU63: 0 | BV63: 0
AT64: 0 | AU64: 0 | AV64: 0 | AW64: 0 | AX64: 0 | AY64: 0 | AZ64: 0 | BA64: 0 | BB64: 0 | BC64: 0 | BD64: 0 | BE64: 0 | BF64: 0 | BG64: 0 | BI64: 0 | BJ64: 0 | BK64: 0 | BL64: 0 | BM64: 0 | BN64: 0 | BO64: 0 | BP64: 0 | BQ64: 0 | BR64: 0 | BS64: 0 | BT64: 0 | BU64: 0 | BV64: 0
AT65: 0 | AU65: 0 | AV65: 0 | AW65: 0 | AX65: 0 | AY65: 0 | AZ65: 0 | BA65: 0 | BB65: 0 | BC65: 0 | BD65: 0 | BE65: 0 | BF65: 0 | BG65: 0 | BI65: 0 | BJ65: 0 | BK65: 0 | BL65: 0 | BM65: 0 | BN65: 0 | BO65: 0 | BP65: 0 | BQ65: 0 | BR65: 0 | BS65: 0 | BT65: 0 | BU65: 0 | BV65: 0
AF66: =SUM(AF6:AF65)-SUM(AF25:AF30) -> 735941.1359 | AG66: =SUM(AG6:AG65) -> 3316179934 | AH66: 1309024177 | AI66: 3462502.172 | AJ66: 0 | AK66: 2197412095 | AL66: 0 | AM66: -172395469.1 | AN66: 0 | AO66: 2867748.209 | AP66: 1503308.181 | AQ66: 0 | AR66: 0 | AT66: =SUM(AT6:AT65) -> 97571929.23 | AU66: 302309540.3 | AV66: 112224946.8 | AW66: 314400.8118 | AX66: 0 | AY66: 51140242.15 | AZ66: 0 | BA66: -2059953.46 | BB66: 0 | BC66: 43113095.04 | BD66: 38809881.4 | BE66: 0 | BF66: 0 | BG66: 643424082.3 | BI66: 92358950.43 | BJ66: 289615215.8 | BK66: 106934177.5 | BL66: 297553.5842 | BM66: 0 | BN66: 47577654.97 | BO66: 0 | BP66: -4119734.525 | BQ66: 0 | BR66: 40049573.94 | BS66: 35021066.89 | BT66: 0 | BU66: 0 | BV66: =SUM(BV6:BV65) -> 607734458.5
D120: =IFERROR(D59/R59-1,"") ->  | E120: =IFERROR(E59/S59-1,"") ->  | F120: =IFERROR(F59/T59-1,"") ->  | G120: =IFERROR(G59/U59-1,"") ->  | H120: =IFERROR(H59/V59-1,"") ->  | I120: =IFERROR(I59/W59-1,"") ->  | J120: =IFERROR(J59/X59-1,"") ->  | K120: =IFERROR(K59/Y59-1,"") ->  | L120: =IFERROR(L59/Z59-1,"") ->  | M120: =IFERROR(M59/AA59-1,"") ->  | N120: =IFERROR(N59/AB59-1,"") ->  | O120: =IFERROR(O59/AC59-1,"") ->  | P120: =IFERROR(P59/AD59-1,"") -> 
D132: =IFERROR(D71/R71-1,"") ->  | E132: =IFERROR(E71/S71-1,"") ->  | F132: =IFERROR(F71/T71-1,"") ->  | G132: =IFERROR(G71/U71-1,"") ->  | H132: =IFERROR(H71/V71-1,"") ->  | I132: =IFERROR(I71/W71-1,"") ->  | J132: =IFERROR(J71/X71-1,"") ->  | K132: =IFERROR(K71/Y71-1,"") ->  | L132: =IFERROR(L71/Z71-1,"") ->  | M132: =IFERROR(M71/AA71-1,"") ->  | N132: =IFERROR(N71/AB71-1,"") ->  | O132: =IFERROR(O71/AC71-1,"") ->  | P132: =IFERROR(P71/AD71-1,"") -> 

Sheet 2019DistRevCapForm
B2: ="Tariff Approval - "&'Model update'!$C$3 -> Tariff Approval - AusNet Services
B4: DUoS
B6: Year (t) | C6: ='Model update'!C5 -> 2019 | H6: =C6-1 -> 2018
B8: Table 1- Compliance with AER Final Determination Total Annual Revenue
B9: Revenue from DUoS charges for year t | C9: =Prop2019DistTar!BG66 -> 643424082.3
B10: Total Annual Revenue for year t | C10: =C18 -> 651424717
C11: =IF(C9="","",IF(C10>=C9,"DUoS REVENUE CAP FORMULA COMPLIANT","DUoS REVENUE CAP FORMULA BREACHED")) -> DUoS REVENUE CAP FORMULA COMPLIANT
B13: Table 2 - Total Annual Revenue for year t (TARt)
B14: Adjusted Annual Smoothed Revenue for year t | C14: =C25 -> 653483835.4 | H14: =H25 -> 612235928.1
B15: I factor for year t (F factor Scheme) | C15: ='Model update'!B$100 -> 1485000 | H15: =INDEX('Model update'!$D$100:$H$100,1,MATCH($H$6,'Model update'!$D$93:$H$93,0)) -> 750000
B16: T factor for year t (DMIS carry over amount) | C16: ='Model update'!B144 -> 0 | H16: =INDEX('Model update'!$D$144:$H$144,1,MATCH($H$6,'Model update'!$D$137:$H$137,0)) -> 0
B17: B factor for year t | C17: =C32 -> -3544118.357 | H17: =H32 -> 3788874.805
B18: Total Annual Revenue for year t | C18: =C14+C15+C16+C17 -> 651424717 | H18: =H14+H15+H16+H17 -> 616774802.9
B20: Table 3 - Adjusted Annual Revenue for year t (AARt)
B21: Adjusted Annual Smoothed Revenue for year t-1 | C21: =H25 -> 612235928.1 | H21: 629715048.2
B22: CPI for period t | C22: ='Model update'!C30 -> 0.02077687444 | H22: ='Model update'!C29 -> 0.01933701657
B23: X factor for period t | C23: ='Model update'!B60 -> -0.03013217637 | H23: =INDEX('Model update'!$E$60:$H$60,1,MATCH("Xt for "&$H$6,'Model update'!$E$53:$H$53,0)) -> -0.0184
B24: S factor for period t | C24: ='Model update'!B111 -> 0.01506128099 | H24: =INDEX('Model update'!$D$111:$H$111,1,MATCH($H$6,'Model update'!$D$104:$H$104,0)) -> -0.06343364122
B25: Adjusted Annual Smoothed Revenue for year t | C25: =IF(C6=2016,'Model update'!D60*(1+C24),(C21*(1+C22)*(1-C23)*(1+C24))) -> 653483835.4 | H25: =IF(H6=2016,'Model update'!D60*(1+H24),(H21*(1+H22)*(1-H23)*(1+H24))) -> 612235928.1
B27: Table 4- B factor for year t
B28: DUoS revenue under/over recovery approved | C28: =-E71*(1+E69)^0.5 -> -3729307.126 | H28: 3606568.667
B29: License Fee Recovery Amount for year t | C29: =C38 -> 185188.7682 | H29: =H38 -> 182306.1377
B30: Approved Pass through Amount for year t | C30: ='Model update'!B122 -> 0 | H30: =INDEX('Model update'!$D$122:$H$122,1,MATCH($H$6,'Model update'!$D$115:$H$115,0)) -> 0
B31: Pass Through revenue under/over recovery for years 2014 and 2015
B32: B factor for year t | C32: =SUM(C28:C31) -> -3544118.357 | H32: =SUM(H28:H31) -> 3788874.805
B34: Table 5 - License Fee Recovery Amount for year t
B35: Lt-1 | C35: ='Model update'!B133 -> 170003 | H35: =INDEX('Model update'!$D$133:$H$133,1,MATCH($H$6,'Model update'!$D$126:$H$126,0)) -> 168235
B36: Nominal WACC t | C36: =(1+'Model update'!$B$43)*(1+'Model update'!$C$30)-1 -> 0.05900425222 | H36: =(1+'Model update'!$B$45)*(1+'Model update'!$C$29)-1 -> 0.05808536478
B37: Nominal WACC t-1 | C37: =(1+'Model update'!$B$45)*(1+'Model update'!$C$29)-1 -> 0.05808536478 | H37: =(1+'Model update'!$B$47)*(1+'Model update'!$C$28)-1 -> 0.04888641591
B38: License Fee Recovery Amount for year t | C38: =C35*(1+C36)*(1+C37)^0.5 -> 185188.7682 | H38: =H35*(1+H36)*(1+H37)^0.5 -> 182306.1377
B42: Table 6 - DUoS Recovery Arrangements
C43: Year t-2 | D43: Year t-1 | E43: Year t
C44: (actual) | D44: (estimate) | E44: (forecast)
C45: =D45-1 -> 2017 | D45: =E45-1 -> 2018 | E45: =C$6 -> 2019
B47: (A) Revenue from DUoS Charges | C47: 648042240.6 | D47: =Est2018DistRev!AS66 -> 616783017.8 | E47: =C9 -> 643424082.3
B50: (B) Less TAR for regulatory year = | C50: =SUM(C51:C54) -> 634772977.5 | D50: =SUM(D51:D54) -> 613168234.3 | E50: =SUM(E51:E54) -> 655154024.2
B51: + Adjusted annual smoothed revenue | C51: =H21 -> 629715048.2 | D51: =C21 -> 612235928.1 | E51: =C14 -> 653483835.4
B52: +It | C52: =INDEX('Model update'!$D$100:$H$100,1,MATCH($C$45,'Model update'!$D$93:$H$93,0)) -> 3420000 | D52: =H15 -> 750000 | E52: =C15 -> 1485000
B53: +Tt | C53: =INDEX('Model update'!$D$144:$H$144,1,MATCH($C$45,'Model update'!$D$137:$H$137,0)) -> 0 | D53: =H16 -> 0 | E53: =C16 -> 0
B54: +Bt = | C54: =SUM(C55:C57) -> 1637929.374 | D54: =SUM(D55:D57) -> 182306.1377 | E54: =SUM(E55:E57) -> 185188.7682
B55: +Licence fee recovery | C55: 91614.3603 | D55: =H29 -> 182306.1377 | E55: =C29 -> 185188.7682
B56: +Approved pass throughs | C56: =INDEX('Model update'!$D$122:$H$122,1,MATCH($C$45,'Model update'!$D$115:$H$115,0)) -> 0 | D56: =H30 -> 0 | E56: =C30 -> 0
B57: +Pass Through revenue under/over recovery for years 2014 and 2015 | C57: 1546315.014 | D57: =H31 -> 0 | E57: =C31 -> 0
B60: (A minus B) Under/over recovery of revenue for regulatory year | C60: =C47-C50 -> 13269263.07 | D60: =D47-D50 -> 3614783.506 | E60: =E47-E50 -> -11729941.89
B64: Table 7 - DUoS Unders and Overs Account
C65: Year t-2 | D65: Year t-1 | E65: Year t
C66: (actual) | D66: (estimate) | E66: (forecast)
B67: Calendar year | C67: =D67-1 -> 2017 | D67: =E67-1 -> 2018 | E67: =C$6 -> 2019
B69: Nominal WACC | C69: =(1+'Model update'!$B$47)*(1+'Model update'!$C$28)-1 -> 0.04888641591 | D69: =(1+'Model update'!$B$45)*(1+'Model update'!$C$29)-1 -> 0.05808536478 | E69: =(1+'Model update'!$B$43)*(1+'Model update'!$C$30)-1 -> 0.05900425222
B71: Opening balance | C71: -13041369.59 | D71: =C75 -> -89178.94301 | E71: =D75 -> 3623925.818
B72: Interest on Opening balance | C72: =C71*C69 -> -637545.8178 | D72: =D71*D69 -> -5179.991435 | E72: =E71*E69 -> 213827.033
B73: Under/over recovery of revenue for regulatory year | C73: =C60 -> 13269263.07 | D73: =D60 -> 3614783.506 | E73: =E60 -> -11729941.89
B74: Interest on under/over recovery for regulatory year | C74: =C73*((1+C69)^0.5-1) -> 320473.3907 | D74: =D73*((1+D69)^0.5-1) -> 103501.2459 | E74: =E73*((1+E69)^0.5-1) -> -341098.7644
B75: Closing balance of DUoS overs/ (unders) account | C75: =SUM(C71:C74) -> -89178.94301 | D75: =SUM(D71:D74) -> 3623925.818 | E75: =SUM(E71:E74) -> -8233287.803
B77: The DNSP is expected to achieve a closing balance as close to zero as practicable in its DUoS unders and overs account in each forecast year in its annual pricing proposals in the 2016–20 regulatory control period.

Sheet 2019DistTarRebalCont
B1: ="Tariff Approval - "&'Model update'!C3 -> Tariff Approval - AusNet Services
B3: ='Model update'!C5&" DISTRIBUTION TARIFF REBALANCING CONTROL" -> 2019 DISTRIBUTION TARIFF REBALANCING CONTROL
B6: Distribution tariff rebalancing control
B8: ="CPI "&'Model update'!$C$5 -> CPI 2019 | C8: ='2019DistRevCapForm'!C22 -> 0.02077687444
B9: ="X "& 'Model update'!$C$5 -> X 2019 | C9: =MIN('2019DistRevCapForm'!C23,0) -> -0.03013217637
B10: ="St "&'Model update'!$C$5 -> St 2019 | C10: ='2019DistRevCapForm'!C24 -> 0.01506128099
B11: ="It "&'Model update'!$C$5 -> It 2019 | C11: =('2019DistRevCapForm'!C15-'2019DistRevCapForm'!H15)/Prop2019DistTar!$BV$66 -> 0.001209409784
B12: ="Tt "&'Model update'!$C$5 -> Tt 2019 | C12: =('2019DistRevCapForm'!C16-'2019DistRevCapForm'!H16)/Prop2019DistTar!$BV$66 -> 0
B13: ="Bt "&'Model update'!$C$5 -> Bt 2019 | C13: =('2019DistRevCapForm'!C17-'2019DistRevCapForm'!H17)/Prop2019DistTar!$BV$66 -> -0.01206611384
C16: =(1+C8)*(1-C9)*(1+0.02)*(1+C10)+SUM(C11:C13) -> 1.077863316
B20: Rebalancing control summary | C20: ="Pt-1*(Qt " &'Model update'!$C$5&")" -> Pt-1*(Qt 2019) | D20: ="Pt-1*(Qt " &'Model update'!$C$5&")" -> Pt-1*(Qt 2019)
B21: Tariff Class (Input Class Name) | C21: Existing ($) | D21: Proposed ($) | E21: Movement
B22: Small Residential | C22: =IF(B22="","",SUMIF($B$46:$B$105,$B22,$I$46:$I$105)) -> 322522054.7 | D22: =IF(B22="","",SUMIF($B$46:$B$105,$B22,$F$46:$F$105)) -> 341466277.8 | E22: =IF(B22="","",D22/C22) -> 1.05873776 | F22: =IF(B22="","",IF(E22<$C$16,"COMPLIANT","BREACHED")) -> COMPLIANT
B23: Small Industrial Commercial | C23: 131618405.8 | D23: 139343420.1 | E23: =IF(B23="","",D23/C23) -> 1.058692507 | F23: =IF(B23="","",IF(E23<$C$16,"COMPLIANT","BREACHED")) -> COMPLIANT
B24: Medium Industrial Commercial | C24: 50435768.57 | D24: 53398618.56 | E24: 1.058745015 | F24: COMPLIANT
B25: Large-1 Industrial Commercial | C25: 28227315.17 | D25: 29885267.77 | E25: 1.058735753 | F25: COMPLIANT
B26: Large-2 Industrial Commercial | C26: 34819368.72 | D26: 36863740.09 | E26: 1.058713625 | F26: COMPLIANT
B27: Large-3 Industrial Commercial | C27: 14458310.83 | D27: 15307609.11 | E27: 1.058741183 | F27: COMPLIANT
B28: Large-4 Industrial Commercial | C28: 9299791.173 | D28: 9845920.634 | E28: 1.058724917 | F28: COMPLIANT
B29: High Voltage-1 Industrial Commercial | C29: 12841248.6 | D29: 13594790.22 | E29: 1.058681335 | F29: COMPLIANT
B30: High Voltage-2 Industrial Commercial | C30: 2819091.023 | D30: 2984646.389 | E30: 1.058726506 | F30: COMPLIANT
B31: High Voltage-3 Industrial Commercial | C31: 693103.9149 | D31: 733791.5749 | E31: 1.05870355 | F31: COMPLIANT
B32: Extra High Voltage-1 Industrial Commercial | C32: 0 | D32: 0
B33: Extra High Voltage-2 Industrial Commercial | C33: 0 | D33: 0
B34: Extra High Voltage-3 Industrial Commercial | C34: 0 | D34: 0
B35: Extra High Voltage-4 Industrial Commercial | C35: 0 | D35: 0
C39: =IF(B39="","",SUMIF($B$46:$B$105,$B39,$I$46:$I$105)) ->  | D39: =IF(B39="","",SUMIF($B$46:$B$105,$B39,$F$46:$F$105)) ->  | F39: =IF(B39="","",IF(E39<$C$14,"COMPLIANT","BREACHED")) -> 
C40: =IF(B40="","",SUMIF($B$46:$B$105,$B40,$I$46:$I$105)) ->  | D40: =IF(B40="","",SUMIF($B$46:$B$105,$B40,$F$46:$F$105)) -> 
B41: Check Total | C41: =IF(ABS(SUM(C22:C40)-I106)<0.01,"Ok","Error") -> Ok | D41: =IF(ABS(SUM(D22:D40)-F106)<0.01,"Ok","Error") -> Ok
D42: =IF(ABS(SUM(D22:D40)-Prop2019DistTar!BG66)<0.01,"Ok","Error") -> Ok
F44: ="Forecast Revenue (Pt "&'Model update'!$C$5&")*(Qt " &'Model update'!$C$5&")" -> Forecast Revenue (Pt 2019)*(Qt 2019) | I44: ="Revenue (Pt-1 "&'Model update'!$C$8&")*(Qt " &'Model update'!$C$5&")" -> Revenue (Pt-1 2018)*(Qt 2019)
A45: New Tariff Test | B45: Destination tariff class | C45: Source tariff class | D45: Proposed tariff | E45: Existing tariff | F45: PropRev Total | I45: ExistRev Total
A46: =OR(EXACT(D46,Prop2019DistTar!C$6:C$65)) -> TRUE | B46: Small Residential | C46: Small Residential | D46: =IF(Prop2019DistTar!B6="","",Prop2019DistTar!B6) -> NEE11 Small Single Rate < 160MWh | E46: =IF(Prop2019DistTar!C6="","",Prop2019DistTar!C6) -> NEE11 Small Single Rate < 160MWh | F46: =Prop2019DistTar!BG6 -> 242264502.2 | I46: =Prop2019DistTar!BV6 -> 231398609
A47: =OR(EXACT(D47,Prop2019DistTar!C$6:C$65)) -> TRUE | B47: Small Residential | C47: Small Residential | D47: =IF(Prop2019DistTar!B7="","",Prop2019DistTar!B7) -> NGT11 Small Interval Single Rate < 160MWh | E47: =IF(Prop2019DistTar!C7="","",Prop2019DistTar!C7) -> NGT11 Small Interval Single Rate < 160MWh | F47: =Prop2019DistTar!BG7 -> 2591.530568 | I47: =Prop2019DistTar!BV7 -> 2271.676422
A48: =OR(EXACT(D48,Prop2019DistTar!C$6:C$65)) -> TRUE | B48: Small Residential | C48: Small Residential | D48: =IF(Prop2019DistTar!B8="","",Prop2019DistTar!B8) -> NSP11 Small Single Rate < 160MWh | E48: =IF(Prop2019DistTar!C8="","",Prop2019DistTar!C8) -> NSP11 Small Single Rate < 160MWh | F48: =Prop2019DistTar!BG8 -> 0 | I48: =Prop2019DistTar!BV8 -> 0
A49: =OR(EXACT(D49,Prop2019DistTar!C$6:C$65)) -> TRUE | B49: Small Residential | C49: Small Residential | D49: =IF(Prop2019DistTar!B9="","",Prop2019DistTar!B9) -> NEN11 Small Single Rate < 160MWh Embedded Network | E49: =IF(Prop2019DistTar!C9="","",Prop2019DistTar!C9) -> NEN11 Small Single Rate < 160MWh Embedded Network | F49: =Prop2019DistTar!BG9 -> 0 | I49: =Prop2019DistTar!BV9 -> 0
A50: =OR(EXACT(D50,Prop2019DistTar!C$6:C$65)) -> TRUE | B50: Small Industrial Commercial | C50: Small Industrial Commercial | D50: =IF(Prop2019DistTar!B10="","",Prop2019DistTar!B10) -> NEE12 Small Business Single Rate - new in 2001 | E50: =IF(Prop2019DistTar!C10="","",Prop2019DistTar!C10) -> NEE12 Small Business Single Rate - new in 2001 | F50: =Prop2019DistTar!BG10 -> 27550884.81 | I50: =Prop2019DistTar!BV10 -> 25913160.25
A51: =OR(EXACT(D51,Prop2019DistTar!C$6:C$65)) -> TRUE | B51: Small Industrial Commercial | C51: Small Industrial Commercial | D51: =IF(Prop2019DistTar!B11="","",Prop2019DistTar!B11) -> NSP12 Small Business Single Rate - new in 2001 | E51: =IF(Prop2019DistTar!C11="","",Prop2019DistTar!C11) -> NSP12 Small Business Single Rate - new in 2001 | F51: =Prop2019DistTar!BG11 -> 0 | I51: =Prop2019DistTar!BV11 -> 0
A52: =OR(EXACT(D52,Prop2019DistTar!C$6:C$65)) -> TRUE | B52: Small Industrial Commercial | C52: Small Industrial Commercial | D52: =IF(Prop2019DistTar!B12="","",Prop2019DistTar!B12) -> NEN12 Small Business Single Rate - Embedded Network | E52: =IF(Prop2019DistTar!C12="","",Prop2019DistTar!C12) -> NEN12 Small Business Single Rate - Embedded Network | F52: =Prop2019DistTar!BG12 -> 0 | I52: =Prop2019DistTar!BV12 -> 0
A53: =OR(EXACT(D53,Prop2019DistTar!C$6:C$65)) -> TRUE | B53: Small Residential | C53: Small Residential | D53: =IF(Prop2019DistTar!B13="","",Prop2019DistTar!B13) -> NEE20 Small Two Rate | E53: =IF(Prop2019DistTar!C13="","",Prop2019DistTar!C13) -> NEE20 Small Two Rate | F53: =Prop2019DistTar!BG13 -> 36414467.51 | I53: =Prop2019DistTar!BV13 -> 34736682.72
A54: =OR(EXACT(D54,Prop2019DistTar!C$6:C$65)) -> TRUE | B54: Small Residential | C54: Small Residential | D54: =IF(Prop2019DistTar!B14="","",Prop2019DistTar!B14) -> NSP20 Small Two Rate | E54: =IF(Prop2019DistTar!C14="","",Prop2019DistTar!C14) -> NSP20 Small Two Rate | F54: =Prop2019DistTar!BG14 -> 8182.960879 | I54: =Prop2019DistTar!BV14 -> 7045.04952
A55: =OR(EXACT(D55,Prop2019DistTar!C$6:C$65)) -> TRUE | B55: Small Residential | C55: Small Residential | D55: =IF(Prop2019DistTar!B15="","",Prop2019DistTar!B15) -> NGT26 Small Interval Multi Rate | E55: =IF(Prop2019DistTar!C15="","",Prop2019DistTar!C15) -> NGT26 Small Interval Multi Rate | F55: =Prop2019DistTar!BG15 -> 735446.9693 | I55: =Prop2019DistTar!BV15 -> 682283.1325
A56: =OR(EXACT(D56,Prop2019DistTar!C$6:C$65)) -> TRUE | B56: Small Residential | C56: Small Residential | D56: =IF(Prop2019DistTar!B16="","",Prop2019DistTar!B16) -> NEN20 Small Two Rate - Embedded Network | E56: =IF(Prop2019DistTar!C16="","",Prop2019DistTar!C16) -> NEN20 Small Two Rate - Embedded Network | F56: =Prop2019DistTar!BG16 -> 0 | I56: =Prop2019DistTar!BV16 -> 0
A57: =OR(EXACT(D57,Prop2019DistTar!C$6:C$65)) -> TRUE | B57: Small Industrial Commercial | C57: Small Industrial Commercial | D57: =IF(Prop2019DistTar!B17="","",Prop2019DistTar!B17) -> NEE21 Small Business Two Rate | E57: =IF(Prop2019DistTar!C17="","",Prop2019DistTar!C17) -> NEE21 Small Business Two Rate | F57: =Prop2019DistTar!BG17 -> 47831642.7 | I57: =Prop2019DistTar!BV17 -> 44953039.28
A58: =OR(EXACT(D58,Prop2019DistTar!C$6:C$65)) -> TRUE | B58: Small Industrial Commercial | C58: Small Industrial Commercial | D58: =IF(Prop2019DistTar!B18="","",Prop2019DistTar!B18) -> NSP21 Small Business Two Rate | E58: =IF(Prop2019DistTar!C18="","",Prop2019DistTar!C18) -> NSP21 Small Business Two Rate | F58: =Prop2019DistTar!BG18 -> 7266.292089 | I58: =Prop2019DistTar!BV18 -> 6227.042931
A59: =OR(EXACT(D59,Prop2019DistTar!C$6:C$65)) -> TRUE | B59: Small Industrial Commercial | C59: Small Industrial Commercial | D59: =IF(Prop2019DistTar!B19="","",Prop2019DistTar!B19) -> NSP27 Small Business Two Rate | E59: =IF(Prop2019DistTar!C19="","",Prop2019DistTar!C19) -> NSP27 Small Business Two Rate | F59: =Prop2019DistTar!BG19 -> 107523.3086 | I59: =Prop2019DistTar!BV19 -> 102678.5867
A60: =OR(EXACT(D60,Prop2019DistTar!C$6:C$65)) -> TRUE | B60: Small Industrial Commercial | C60: Small Industrial Commercial | D60: =IF(Prop2019DistTar!B20="","",Prop2019DistTar!B20) -> NEN21 Small Business Two Rate - Embedded Network | E60: =IF(Prop2019DistTar!C20="","",Prop2019DistTar!C20) -> NEN21 Small Business Two Rate - Embedded Network | F60: =Prop2019DistTar!BG20 -> 0 | I60: =Prop2019DistTar!BV20 -> 0
A61: =OR(EXACT(D61,Prop2019DistTar!C$6:C$65)) -> TRUE | B61: Small Residential | C61: Small Residential | D61: =IF(Prop2019DistTar!B21="","",Prop2019DistTar!B21) -> NEE23 Photovoltaic | E61: =IF(Prop2019DistTar!C21="","",Prop2019DistTar!C21) -> NEE23 Photovoltaic | F61: =Prop2019DistTar!BG21 -> 56456337.16 | I61: =Prop2019DistTar!BV21 -> 51634185.2
A62: =OR(EXACT(D62,Prop2019DistTar!C$6:C$65)) -> TRUE | B62: Small Residential | C62: Small Residential | D62: =IF(Prop2019DistTar!B22="","",Prop2019DistTar!B22) -> NSP23 Photovoltaic | E62: =IF(Prop2019DistTar!C22="","",Prop2019DistTar!C22) -> NSP23 Photovoltaic | F62: =Prop2019DistTar!BG22 -> 37929.36901 | I62: =Prop2019DistTar!BV22 -> 31069.49511
A63: =OR(EXACT(D63,Prop2019DistTar!C$6:C$65)) -> TRUE | B63: Small Residential | C63: Small Residential | D63: =IF(Prop2019DistTar!B23="","",Prop2019DistTar!B23) -> NEE24 Small rate 5 day 8 to 8 | E63: =IF(Prop2019DistTar!C23="","",Prop2019DistTar!C23) -> NEE24 Small rate 5 day 8 to 8 | F63: =Prop2019DistTar!BG23 -> 660918.6108 | I63: =Prop2019DistTar!BV23 -> 512832.7445
A64: =OR(EXACT(D64,Prop2019DistTar!C$6:C$65)) -> TRUE | B64: Small Industrial Commercial | C64: Small Industrial Commercial | D64: =IF(Prop2019DistTar!B24="","",Prop2019DistTar!B24) -> NEE25 Small business rate 5 day 8 to 8 | E64: =IF(Prop2019DistTar!C24="","",Prop2019DistTar!C24) -> NEE25 Small business rate 5 day 8 to 8 | F64: =Prop2019DistTar!BG24 -> 17997.25025 | I64: =Prop2019DistTar!BV24 -> 17055.43524
A65: =OR(EXACT(D65,Prop2019DistTar!C$6:C$65)) -> TRUE | B65: Small Residential | C65: Small Residential | D65: =IF(Prop2019DistTar!B25="","",Prop2019DistTar!B25) -> NEE30 Small Dedicated | E65: =IF(Prop2019DistTar!C25="","",Prop2019DistTar!C25) -> NEE30 Small Dedicated | F65: =Prop2019DistTar!BG25 -> 3501416.697 | I65: =Prop2019DistTar!BV25 -> 2642112.741
A66: =OR(EXACT(D66,Prop2019DistTar!C$6:C$65)) -> TRUE | B66: Small Residential | C66: Small Residential | D66: =IF(Prop2019DistTar!B26="","",Prop2019DistTar!B26) -> NSP30 Small Dedicated | E66: =IF(Prop2019DistTar!C26="","",Prop2019DistTar!C26) -> NSP30 Small Dedicated | F66: =Prop2019DistTar!BG26 -> 0 | I66: =Prop2019DistTar!BV26 -> 0
A67: =OR(EXACT(D67,Prop2019DistTar!C$6:C$65)) -> TRUE | B67: Small Residential | C67: Small Residential | D67: =IF(Prop2019DistTar!B27="","",Prop2019DistTar!B27) -> NEE31 Small Dedicated-afternoon boost | E67: =IF(Prop2019DistTar!C27="","",Prop2019DistTar!C27) -> NEE31 Small Dedicated-afternoon boost | F67: =Prop2019DistTar!BG27 -> 1238850.486 | I67: =Prop2019DistTar!BV27 -> 757612.9733
A68: =OR(EXACT(D68,Prop2019DistTar!C$6:C$65)) -> TRUE | B68: Small Residential | C68: Small Residential | D68: =IF(Prop2019DistTar!B28="","",Prop2019DistTar!B28) -> NSP31 Small Dedicated-afternoon boost | E68: =IF(Prop2019DistTar!C28="","",Prop2019DistTar!C28) -> NSP31 Small Dedicated-afternoon boost | F68: =Prop2019DistTar!BG28 -> 0 | I68: =Prop2019DistTar!BV28 -> 0
A69: =OR(EXACT(D69,Prop2019DistTar!C$6:C$65)) -> TRUE | B69: Small Residential | C69: Small Residential | D69: =IF(Prop2019DistTar!B29="","",Prop2019DistTar!B29) -> NEE32 Dedicated Circuit 8 to 8 | E69: =IF(Prop2019DistTar!C29="","",Prop2019DistTar!C29) -> NEE32 Dedicated Circuit 8 to 8 | F69: =Prop2019DistTar!BG29 -> 137431.0524 | I69: =Prop2019DistTar!BV29 -> 109574.8105
A70: =OR(EXACT(D70,Prop2019DistTar!C$6:C$65)) -> TRUE | B70: Small Residential | C70: Small Residential | D70: =IF(Prop2019DistTar!B30="","",Prop2019DistTar!B30) -> NSP32 Dedicated Circuit 8 to 8 | E70: =IF(Prop2019DistTar!C30="","",Prop2019DistTar!C30) -> NSP32 Dedicated Circuit 8 to 8 | F70: =Prop2019DistTar!BG30 -> 0 | I70: =Prop2019DistTar!BV30 -> 0
A71: =OR(EXACT(D71,Prop2019DistTar!C$6:C$65)) -> TRUE | B71: Medium Industrial Commercial | C71: Medium Industrial Commercial | D71: =IF(Prop2019DistTar!B31="","",Prop2019DistTar!B31) -> NEE40 Medium Single Rate - closed to new customers | E71: =IF(Prop2019DistTar!C31="","",Prop2019DistTar!C31) -> NEE40 Medium Single Rate - closed to new customers | F71: =Prop2019DistTar!BG31 -> 2002765.174 | I71: =Prop2019DistTar!BV31 -> 1875804.463
A72: =OR(EXACT(D72,Prop2019DistTar!C$6:C$65)) -> TRUE | B72: Medium Industrial Commercial | C72: Medium Industrial Commercial | D72: =IF(Prop2019DistTar!B32="","",Prop2019DistTar!B32) -> NEE51 Medium Two Rate 5Day - closed to new customers - <160MWh to NEE21 | E72: =IF(Prop2019DistTar!C32="","",Prop2019DistTar!C32) -> NEE51 Medium Two Rate 5Day - closed to new customers - <160MWh to NEE21 | F72: =Prop2019DistTar!BG32 -> 6941291.193 | I72: =Prop2019DistTar!BV32 -> 6501488.479
A73: =OR(EXACT(D73,Prop2019DistTar!C$6:C$65)) -> TRUE | B73: Medium Industrial Commercial | C73: Medium Industrial Commercial | D73: =IF(Prop2019DistTar!B33="","",Prop2019DistTar!B33) -> NEE55 Snowfields Tariff | E73: =IF(Prop2019DistTar!C33="","",Prop2019DistTar!C33) -> NEE55 Snowfields Tariff | F73: =Prop2019DistTar!BG33 -> 0 | I73: =Prop2019DistTar!BV33 -> 0
A74: =OR(EXACT(D74,Prop2019DistTar!C$6:C$65)) -> TRUE | B74: Medium Industrial Commercial | C74: Medium Industrial Commercial | D74: =IF(Prop2019DistTar!B34="","",Prop2019DistTar!B34) -> NSP55 Snowfields Tariff | E74: =IF(Prop2019DistTar!C34="","",Prop2019DistTar!C34) -> NSP55 Snowfields Tariff | F74: =Prop2019DistTar!BG34 -> 0 | I74: =Prop2019DistTar!BV34 -> 0
A75: =OR(EXACT(D75,Prop2019DistTar!C$6:C$65)) -> TRUE | B75: Medium Industrial Commercial | C75: Medium Industrial Commercial | D75: =IF(Prop2019DistTar!B35="","",Prop2019DistTar!B35) -> NSP56 Medium Demand Multi-rate | E75: =IF(Prop2019DistTar!C35="","",Prop2019DistTar!C35) -> NSP56 Medium Demand Multi-rate | F75: =Prop2019DistTar!BG35 -> 33540655.62 | I75: =Prop2019DistTar!BV35 -> 31784320.65
A76: =OR(EXACT(D76,Prop2019DistTar!C$6:C$65)) -> TRUE | B76: Medium Industrial Commercial | C76: Medium Industrial Commercial | D76: =IF(Prop2019DistTar!B36="","",Prop2019DistTar!B36) -> NEN56 Medium Demand Multi-rate - Embedded Network | E76: =IF(Prop2019DistTar!C36="","",Prop2019DistTar!C36) -> NEN56 Medium Demand Multi-rate - Embedded Network | F76: =Prop2019DistTar!BG36 -> 49019.8455 | I76: =Prop2019DistTar!BV36 -> 45999.9444
A77: =OR(EXACT(D77,Prop2019DistTar!C$6:C$65)) -> TRUE | B77: Medium Industrial Commercial | C77: Medium Industrial Commercial | D77: =IF(Prop2019DistTar!B37="","",Prop2019DistTar!B37) -> NEE60 Medium Two Rate 7Day - closed to new customers | E77: =IF(Prop2019DistTar!C37="","",Prop2019DistTar!C37) -> NEE60 Medium Two Rate 7Day - closed to new customers | F77: =Prop2019DistTar!BG37 -> 1833587.627 | I77: =Prop2019DistTar!BV37 -> 1717755.314
A78: =OR(EXACT(D78,Prop2019DistTar!C$6:C$65)) -> TRUE | B78: Medium Industrial Commercial | C78: Medium Industrial Commercial | D78: =IF(Prop2019DistTar!B38="","",Prop2019DistTar!B38) -> NEE52 Unmetered | E78: =IF(Prop2019DistTar!C38="","",Prop2019DistTar!C38) -> NEE52 Unmetered | F78: =Prop2019DistTar!BG38 -> 9031299.1 | I78: =Prop2019DistTar!BV38 -> 8510399.72
A79: =OR(EXACT(D79,Prop2019DistTar!C$6:C$65)) -> TRUE | B79: Large-1 Industrial Commercial | C79: Large-1 Industrial Commercial | D79: =IF(Prop2019DistTar!B39="","",Prop2019DistTar!B39) -> NEE74 LV Large Two Rate 5Day | E79: =IF(Prop2019DistTar!C39="","",Prop2019DistTar!C39) -> NEE74 LV Large Two Rate 5Day | F79: =Prop2019DistTar!BG39 -> 750662.5934 | I79: =Prop2019DistTar!BV39 -> 706093.5442
A80: =OR(EXACT(D80,Prop2019DistTar!C$6:C$65)) -> TRUE | B80: Large-1 Industrial Commercial | C80: Large-1 Industrial Commercial | D80: =IF(Prop2019DistTar!B40="","",Prop2019DistTar!B40) -> NSP75 Large Multi-rate <750 kVA | E80: =IF(Prop2019DistTar!C40="","",Prop2019DistTar!C40) -> NSP75 Large Multi-rate <750 kVA | F80: =Prop2019DistTar!BG40 -> 29134605.18 | I80: =Prop2019DistTar!BV40 -> 27521221.63
A81: =OR(EXACT(D81,Prop2019DistTar!C$6:C$65)) -> TRUE | B81: Large-2 Industrial Commercial | C81: Large-2 Industrial Commercial | D81: =IF(Prop2019DistTar!B41="","",Prop2019DistTar!B41) -> NSP76 Large Multi-rate >750 kVA | E81: =IF(Prop2019DistTar!C41="","",Prop2019DistTar!C41) -> NSP76 Large Multi-rate >750 kVA | F81: =Prop2019DistTar!BG41 -> 36863740.09 | I81: =Prop2019DistTar!BV41 -> 34819368.72
A82: =OR(EXACT(D82,Prop2019DistTar!C$6:C$65)) -> TRUE | B82: Large-3 Industrial Commercial | C82: Large-3 Industrial Commercial | D82: =IF(Prop2019DistTar!B42="","",Prop2019DistTar!B42) -> NSP77 Large Multi-rate >2 GWh | E82: =IF(Prop2019DistTar!C42="","",Prop2019DistTar!C42) -> NSP77 Large Multi-rate >2 GWh | F82: =Prop2019DistTar!BG42 -> 15307609.11 | I82: =Prop2019DistTar!BV42 -> 14458310.83
A83: =OR(EXACT(D83,Prop2019DistTar!C$6:C$65)) -> TRUE | B83: Large-4 Industrial Commercial | C83: Large-4 Industrial Commercial | D83: =IF(Prop2019DistTar!B43="","",Prop2019DistTar!B43) -> NSP78 Large Multi-rate >4 GWh | E83: =IF(Prop2019DistTar!C43="","",Prop2019DistTar!C43) -> NSP78 Large Multi-rate >4 GWh | F83: =Prop2019DistTar!BG43 -> 9845920.634 | I83: =Prop2019DistTar!BV43 -> 9299791.173
A84: =OR(EXACT(D84,Prop2019DistTar!C$6:C$65)) -> TRUE | B84: High Voltage-1 Industrial Commercial | C84: High Voltage-1 Industrial Commercial | D84: =IF(Prop2019DistTar!B44="","",Prop2019DistTar!B44) -> NSP81 HV Kva | E84: =IF(Prop2019DistTar!C44="","",Prop2019DistTar!C44) -> NSP81 HV Kva | F84: =Prop2019DistTar!BG44 -> 13594790.22 | I84: =Prop2019DistTar!BV44 -> 12841248.6
A85: =OR(EXACT(D85,Prop2019DistTar!C$6:C$65)) -> TRUE | B85: High Voltage-2 Industrial Commercial | C85: High Voltage-2 Industrial Commercial | D85: =IF(Prop2019DistTar!B45="","",Prop2019DistTar!B45) -> NSP82 Traction | E85: =IF(Prop2019DistTar!C45="","",Prop2019DistTar!C45) -> NSP82 Traction | F85: =Prop2019DistTar!BG45 -> 2984646.389 | I85: =Prop2019DistTar!BV45 -> 2819091.023
A86: =OR(EXACT(D86,Prop2019DistTar!C$6:C$65)) -> TRUE | B86: High Voltage-3 Industrial Commercial | C86: High Voltage-3 Industrial Commercial | D86: =IF(Prop2019DistTar!B46="","",Prop2019DistTar!B46) -> NSP83 Small HV | E86: =IF(Prop2019DistTar!C46="","",Prop2019DistTar!C46) -> NSP83 Small HV | F86: =Prop2019DistTar!BG46 -> 733791.5749 | I86: =Prop2019DistTar!BV46 -> 693103.9149
A87: =OR(EXACT(D87,Prop2019DistTar!C$6:C$65)) -> TRUE | B87: Extra High Voltage-1 Industrial Commercial | C87: Extra High Voltage-1 Industrial Commercial | D87: =IF(Prop2019DistTar!B47="","",Prop2019DistTar!B47) -> NSP91 ST kVA | E87: =IF(Prop2019DistTar!C47="","",Prop2019DistTar!C47) -> NSP91 ST kVA | F87: =Prop2019DistTar!BG47 -> 0 | I87: =Prop2019DistTar!BV47 -> 0
A88: =OR(EXACT(D88,Prop2019DistTar!C$6:C$65)) -> TRUE | B88: Extra High Voltage-2 Industrial Commercial | C88: Extra High Voltage-2 Industrial Commercial | D88: =IF(Prop2019DistTar!B48="","",Prop2019DistTar!B48) -> NEE93 Latrobe Generators kVA (non published) | E88: =IF(Prop2019DistTar!C48="","",Prop2019DistTar!C48) -> NEE93 Latrobe Generators kVA (non published) | F88: =Prop2019DistTar!BG48 -> 0 | I88: =Prop2019DistTar!BV48 -> 0
A89: =OR(EXACT(D89,Prop2019DistTar!C$6:C$65)) -> TRUE | B89: Extra High Voltage-3 Industrial Commercial | C89: Extra High Voltage-3 Industrial Commercial | D89: =IF(Prop2019DistTar!B49="","",Prop2019DistTar!B49) -> NSP94 - ST kVA >25MVA <20kM | E89: =IF(Prop2019DistTar!C49="","",Prop2019DistTar!C49) -> NSP94 - ST kVA >25MVA <20kM | F89: =Prop2019DistTar!BG49 -> 0 | I89: =Prop2019DistTar!BV49 -> 0
A90: =OR(EXACT(D90,Prop2019DistTar!C$6:C$65)) -> TRUE | B90: Extra High Voltage-4 Industrial Commercial | C90: Extra High Voltage-4 Industrial Commercial | D90: =IF(Prop2019DistTar!B50="","",Prop2019DistTar!B50) -> NSP95 - ST kVA <25MVA >20kM | E90: =IF(Prop2019DistTar!C50="","",Prop2019DistTar!C50) -> NSP95 - ST kVA <25MVA >20kM | F90: =Prop2019DistTar!BG50 -> 0 | I90: =Prop2019DistTar!BV50 -> 0
A91: =OR(EXACT(D91,Prop2019DistTar!C$6:C$65)) -> TRUE | B91: Small Industrial Commercial | C91: Small Industrial Commercial | D91: =IF(Prop2019DistTar!B51="","",Prop2019DistTar!B51) -> NASN19 - Business >40MWh Single Rate | E91: =IF(Prop2019DistTar!C51="","",Prop2019DistTar!C51) -> NASN19 - Business >40MWh Single Rate | F91: =Prop2019DistTar!BG51 -> 8067340.944 | I91: =Prop2019DistTar!BV51 -> 7657704.447
A92: =OR(EXACT(D92,Prop2019DistTar!C$6:C$65)) -> TRUE | B92: Small Industrial Commercial | C92: Small Industrial Commercial | D92: =IF(Prop2019DistTar!B52="","",Prop2019DistTar!B52) -> NASN21 - Business >40MWh Two Rate | E92: =IF(Prop2019DistTar!C52="","",Prop2019DistTar!C52) -> NASN21 - Business >40MWh Two Rate | F92: =Prop2019DistTar!BG52 -> 55748483.71 | I92: =Prop2019DistTar!BV52 -> 52956901.28
A93: =OR(EXACT(D93,Prop2019DistTar!C$6:C$65)) -> TRUE | B93: Small Residential | C93: Small Residential | D93: =IF(Prop2019DistTar!B53="","",Prop2019DistTar!B53) -> NASN11 - Residential Single Rate | E93: =IF(Prop2019DistTar!C53="","",Prop2019DistTar!C53) -> NASN11 - Residential Single Rate | F93: =Prop2019DistTar!BG53 -> 8203.275 | I93: =Prop2019DistTar!BV53 -> 7775.1276
A94: =OR(EXACT(D94,Prop2019DistTar!C$6:C$65)) -> TRUE | B94: Small Industrial Commercial | C94: Small Industrial Commercial | D94: =IF(Prop2019DistTar!B54="","",Prop2019DistTar!B54) -> NASN12 - Business Single Rate | E94: =IF(Prop2019DistTar!C54="","",Prop2019DistTar!C54) -> NASN12 - Business Single Rate | F94: =Prop2019DistTar!BG54 -> 12281.075 | I94: =Prop2019DistTar!BV54 -> 11639.5142
A95: =OR(EXACT(D95,Prop2019DistTar!C$6:C$65)) -> TRUE | D95: =IF(Prop2019DistTar!B55="","",Prop2019DistTar!B55) ->  | E95: =IF(Prop2019DistTar!C55="","",Prop2019DistTar!C55) ->  | F95: =Prop2019DistTar!BG55 -> 0 | I95: =Prop2019DistTar!BV55 -> 0
A96: =OR(EXACT(D96,Prop2019DistTar!C$6:C$65)) -> TRUE | D96: =IF(Prop2019DistTar!B56="","",Prop2019DistTar!B56) ->  | E96: =IF(Prop2019DistTar!C56="","",Prop2019DistTar!C56) ->  | F96: =Prop2019DistTar!BG56 -> 0 | I96: =Prop2019DistTar!BV56 -> 0
A97: =OR(EXACT(D97,Prop2019DistTar!C$6:C$65)) -> TRUE | D97: =IF(Prop2019DistTar!B57="","",Prop2019DistTar!B57) ->  | E97: =IF(Prop2019DistTar!C57="","",Prop2019DistTar!C57) ->  | F97: =Prop2019DistTar!BG57 -> 0 | I97: =Prop2019DistTar!BV57 -> 0
A98: =OR(EXACT(D98,Prop2019DistTar!C$6:C$65)) -> TRUE | D98: =IF(Prop2019DistTar!B58="","",Prop2019DistTar!B58) ->  | E98: =IF(Prop2019DistTar!C58="","",Prop2019DistTar!C58) ->  | F98: =Prop2019DistTar!BG58 -> 0 | I98: =Prop2019DistTar!BV58 -> 0
A99: =OR(EXACT(D99,Prop2019DistTar!C$6:C$65)) -> TRUE | D99: =IF(Prop2019DistTar!B59="","",Prop2019DistTar!B59) ->  | E99: =IF(Prop2019DistTar!C59="","",Prop2019DistTar!C59) ->  | F99: =Prop2019DistTar!BG59 -> 0 | I99: =Prop2019DistTar!BV59 -> 0
A100: =OR(EXACT(D100,Prop2019DistTar!C$6:C$65)) -> TRUE | D100: =IF(Prop2019DistTar!B60="","",Prop2019DistTar!B60) ->  | E100: =IF(Prop2019DistTar!C60="","",Prop2019DistTar!C60) ->  | F100: =Prop2019DistTar!BG60 -> 0 | I100: =Prop2019DistTar!BV60 -> 0
A101: =OR(EXACT(D101,Prop2019DistTar!C$6:C$65)) -> TRUE | D101: =IF(Prop2019DistTar!B61="","",Prop2019DistTar!B61) ->  | E101: =IF(Prop2019DistTar!C61="","",Prop2019DistTar!C61) ->  | F101: =Prop2019DistTar!BG61 -> 0 | I101: =Prop2019DistTar!BV61 -> 0
A102: =OR(EXACT(D102,Prop2019DistTar!C$6:C$65)) -> TRUE | D102: =IF(Prop2019DistTar!B62="","",Prop2019DistTar!B62) ->  | E102: =IF(Prop2019DistTar!C62="","",Prop2019DistTar!C62) ->  | F102: =Prop2019DistTar!BG62 -> 0 | I102: =Prop2019DistTar!BV62 -> 0
A103: =OR(EXACT(D103,Prop2019DistTar!C$6:C$65)) -> TRUE | D103: =IF(Prop2019DistTar!B63="","",Prop2019DistTar!B63) ->  | E103: =IF(Prop2019DistTar!C63="","",Prop2019DistTar!C63) ->  | F103: =Prop2019DistTar!BG63 -> 0 | I103: =Prop2019DistTar!BV63 -> 0
A104: =OR(EXACT(D104,Prop2019DistTar!C$6:C$65)) -> TRUE | D104: =IF(Prop2019DistTar!B64="","",Prop2019DistTar!B64) ->  | E104: =IF(Prop2019DistTar!C64="","",Prop2019DistTar!C64) ->  | F104: =Prop2019DistTar!BG64 -> 0 | I104: =Prop2019DistTar!BV64 -> 0
A105: =OR(EXACT(D105,Prop2019DistTar!C$6:C$65)) -> TRUE | D105: =IF(Prop2019DistTar!B65="","",Prop2019DistTar!B65) ->  | E105: =IF(Prop2019DistTar!C65="","",Prop2019DistTar!C65) ->  | F105: =Prop2019DistTar!BG65 -> 0 | I105: =Prop2019DistTar!BV65 -> 0
F106: =SUM(F46:F105) -> 643424082.3 | I106: =SUM(I46:I105) -> 607734458.5

Sheet Est2018DistRev
B1: ="Tariff Approval - "&'Model update'!C3 -> Tariff Approval - AusNet Services
B3: ="ESTIMATED "&'Model update'!$C$8&" Distribution Revenue" -> ESTIMATED 2018 Distribution Revenue
D4: ="Current Distribution Tariffs (Pt-1) for "&'Model update'!$C$8 -> Current Distribution Tariffs (Pt-1) for 2018 | R4: =" Estimated Distribution Quantities for "&'Model update'!$C$8&" (Qt-1)" -> Estimated Distribution Quantities for 2018 (Qt-1) | AF4: ="Estimated Revenue (Pt-1 "&'Model update'!$C$8&")*(Qt-1 " &'Model update'!$C$8&")" -> Estimated Revenue (Pt-1 2018)*(Qt-1 2018)
B5: ="Tariffs "&'Model update'!C8 -> Tariffs 2018 | D5: Current Fixed | E5: CurrentPkBlk1 | F5: CurrentPkBlk2 | G5: Current PkBlk3 | H5: Current PkBlk4 | I5: Current OPkBlk1 | J5: Current OPkBlk2 | K5: Current OPkBlk3 | L5: Current OPkBlk4 | M5: Current DemBlk1 | N5: Current DemBlk2 | O5: Current DemBlk3 | P5: Current DemBlk4 | R5: EstVol Fixed | S5: EstVol PkBlk1 | T5: EstVol PkBlk2 | U5: EstVol PkBlk3 | V5: EstVol PkBlk4 | W5: EstVol OPkBlk1 | X5: EstVol OPkBlk2 | Y5: EstVol OPkBlk3 | Z5: EstVol OPkBlk4 | AA5: EstVol DemBlk1 | AB5: EstVol DemBlk2 | AC5: EstVol DemBlk3 | AD5: EstVol DemBlk4 | AF5: EstRev Fixed | AG5: EstRev PkBlk1 | AH5: EstRev PkBlk2 | AI5: EstRev PkBlk3 | AJ5: EstRev PkBlk4 | AK5: EstRev OPkBlk1 | AL5: EstRev OPkBlk2 | AM5: EstRev OPkBlk3 | AN5: EstRev OPkBlk4 | AO5: EstRev DemBlk1 | AP5: EstRev DemBlk2 | AQ5: EstRev DemBlk3 | AR5: EstRev DemBlk4 | AS5: EstRev Total
B6: =Prop2019DistTar!C6 -> NEE11 Small Single Rate < 160MWh | D6: =Prop2019DistTar!R6 -> 109 | E6: =Prop2019DistTar!S6 -> 7.711 | F6: =Prop2019DistTar!T6 -> 10.5837 | G6: =Prop2019DistTar!U6 -> 0 | H6: =Prop2019DistTar!V6 -> 0 | I6: =Prop2019DistTar!W6 -> 0 | J6: =Prop2019DistTar!X6 -> 0 | K6: =Prop2019DistTar!Y6 -> 0 | L6: =Prop2019DistTar!Z6 -> 0 | M6: =Prop2019DistTar!AA6 -> 0 | N6: =Prop2019DistTar!AB6 -> 0 | O6: =Prop2019DistTar!AC6 -> 0 | P6: =Prop2019DistTar!AD6 -> 0 | R6: 490634.1693 | S6: 1380984713 | T6: 724241727.4 | U6: 0 | V6: 0 | W6: 0 | X6: 0 | Y6: 0 | Z6: 0 | AA6: 0 | AB6: 0 | AC6: 0 | AD6: 0 | AF6: =D6*R6 -> 53479124.46 | AG6: =E6/100*S6 -> 106487731.2 | AH6: 76651571.7 | AI6: 0 | AJ6: 0 | AK6: 0 | AL6: 0 | AM6: 0 | AN6: 0 | AO6: =M6*AA6 -> 0 | AP6: 0 | AQ6: 0 | AR6: 0 | AS6: =SUM(AF6:AR6) -> 236618427.4
B7: =Prop2019DistTar!C7 -> NGT11 Small Interval Single Rate < 160MWh | D7: =Prop2019DistTar!R7 -> 109 | E7: =Prop2019DistTar!S7 -> 9.8434 | F7: =Prop2019DistTar!T7 -> 0 | G7: =Prop2019DistTar!U7 -> 0 | H7: =Prop2019DistTar!V7 -> 0 | I7: =Prop2019DistTar!W7 -> 0 | J7: =Prop2019DistTar!X7 -> 0 | K7: =Prop2019DistTar!Y7 -> 0 | L7: =Prop2019DistTar!Z7 -> 0 | M7: =Prop2019DistTar!AA7 -> 0 | N7: =Prop2019DistTar!AB7 -> 0 | O7: =Prop2019DistTar!AC7 -> 0 | P7: =Prop2019DistTar!AD7 -> 0 | R7: 3.008802 | S7: 17396.47727 | T7: 0 | U7: 0 | V7: 0 | W7: 0 | X7: 0 | Y7: 0 | Z7: 0 | AA7: 0 | AB7: 0 | AC7: 0 | AD7: 0 | AF7: 327.959418 | AG7: 1712.404844 | AH7: 0 | AI7: 0 | AJ7: 0 | AK7: 0 | AL7: 0 | AM7: 0 | AN7: 0 | AO7: 0 | AP7: 0 | AQ7: 0 | AR7: 0 | AS7: 2040.364262
B8: =Prop2019DistTar!C8 -> NSP11 Small Single Rate < 160MWh | D8: =Prop2019DistTar!R8 -> 109 | E8: =Prop2019DistTar!S8 -> 36.0531 | F8: =Prop2019DistTar!T8 -> 31.5478 | G8: =Prop2019DistTar!U8 -> 27.61029 | H8: =Prop2019DistTar!V8 -> 0 | I8: =Prop2019DistTar!W8 -> 2.1847 | J8: =Prop2019DistTar!X8 -> 0 | K8: =Prop2019DistTar!Y8 -> 0 | L8: =Prop2019DistTar!Z8 -> 0 | M8: =Prop2019DistTar!AA8 -> 0 | N8: =Prop2019DistTar!AB8 -> 0 | O8: =Prop2019DistTar!AC8 -> 0 | P8: =Prop2019DistTar!AD8 -> 0 | R8: 11.097792 | S8: 3673.129131 | T8: 738.9997632 | U8: 2915.880593 | V8: 0 | W8: 48500.82611 | X8: 0 | Y8: 0 | Z8: 0 | AA8: 0 | AB8: 0 | AC8: 0 | AD8: 0 | AF8: 1209.659328 | AG8: 1324.276919 | AH8: 233.1381673 | AI8: 805.0830877 | AJ8: 0 | AK8: 1059.597548 | AL8: 0 | AM8: 0 | AN8: 0 | AO8: 0 | AP8: 0 | AQ8: 0 | AR8: 0 | AS8: 4631.75505
B9: =Prop2019DistTar!C9 -> NEN11 Small Single Rate < 160MWh Embedded Network | D9: =Prop2019DistTar!R9 -> 109 | E9: =Prop2019DistTar!S9 -> 4.5376 | F9: =Prop2019DistTar!T9 -> 4.9604 | G9: =Prop2019DistTar!U9 -> 0 | H9: =Prop2019DistTar!V9 -> 0 | I9: =Prop2019DistTar!W9 -> 0 | J9: =Prop2019DistTar!X9 -> 0 | K9: =Prop2019DistTar!Y9 -> 0 | L9: =Prop2019DistTar!Z9 -> 0 | M9: =Prop2019DistTar!AA9 -> 0 | N9: =Prop2019DistTar!AB9 -> 0 | O9: =Prop2019DistTar!AC9 -> 0 | P9: =Prop2019DistTar!AD9 -> 0 | R9: 0 | S9: 0 | T9: 0 | U9: 0 | V9: 0 | W9: 0 | X9: 0 | Y9: 0 | Z9: 0 | AA9: 0 | AB9: 0 | AC9: 0 | AD9: 0 | AF9: 0 | AG9: 0 | AH9: 0 | AI9: 0 | AJ9: 0 | AK9: 0 | AL9: 0 | AM9: 0 | AN9: 0 | AO9: 0 | AP9: 0 | AQ9: 0 | AR9: 0 | AS9: 0
B10: =Prop2019DistTar!C10 -> NEE12 Small Business Single Rate - new in 2001 | D10: =Prop2019DistTar!R10 -> 109 | E10: =Prop2019DistTar!S10 -> 11.2892 | F10: =Prop2019DistTar!T10 -> 14.918 | G10: =Prop2019DistTar!U10 -> 0 | H10: =Prop2019DistTar!V10 -> 0 | I10: =Prop2019DistTar!W10 -> 0 | J10: =Prop2019DistTar!X10 -> 0 | K10: =Prop2019DistTar!Y10 -> 0 | L10: =Prop2019DistTar!Z10 -> 0 | M10: =Prop2019DistTar!AA10 -> 0 | N10: =Prop2019DistTar!AB10 -> 0 | O10: =Prop2019DistTar!AC10 -> 0 | P10: =Prop2019DistTar!AD10 -> 0 | R10: 26958.0842 | S10: 55706929.27 | T10: 110123835.5 | U10: 0 | V10: 0 | W10: 0 | X10: 0 | Y10: 0 | Z10: 0 | AA10: 0 | AB10: 0 | AC10: 0 | AD10: 0 | AF10: 2938431.178 | AG10: 6288866.659 | AH10: 16428273.78 | AI10: 0 | AJ10: 0 | AK10: 0 | AL10: 0 | AM10: 0 | AN10: 0 | AO10: 0 | AP10: 0 | AQ10: 0 | AR10: 0 | AS10: 25655571.61
B11: =Prop2019DistTar!C11 -> NSP12 Small Business Single Rate - new in 2001 | D11: =Prop2019DistTar!R11 -> 109 | E11: =Prop2019DistTar!S11 -> 36.0531 | F11: =Prop2019DistTar!T11 -> 31.5478 | G11: =Prop2019DistTar!U11 -> 27.61029 | H11: =Prop2019DistTar!V11 -> 0 | I11: =Prop2019DistTar!W11 -> 2.1847 | J11: =Prop2019DistTar!X11 -> 0 | K11: =Prop2019DistTar!Y11 -> 0 | L11: =Prop2019DistTar!Z11 -> 0 | M11: =Prop2019DistTar!AA11 -> 0 | N11: =Prop2019DistTar!AB11 -> 0 | O11: =Prop2019DistTar!AC11 -> 0 | P11: =Prop2019DistTar!AD11 -> 0 | R11: 6.050634 | S11: 2627.127378 | T11: 451.6087913 | U11: 2076.929046 | V11: 0 | W11: 33722.75081 | X11: 0 | Y11: 0 | Z11: 0 | AA11: 0 | AB11: 0 | AC11: 0 | AD11: 0 | AF11: 659.519106 | AG11: 947.1608606 | AH11: 142.4726383 | AI11: 573.4461327 | AJ11: 0 | AK11: 736.7409369 | AL11: 0 | AM11: 0 | AN11: 0 | AO11: 0 | AP11: 0 | AQ11: 0 | AR11: 0 | AS11: 3059.339674
B12: =Prop2019DistTar!C12 -> NEN12 Small Business Single Rate - Embedded Network | D12: =Prop2019DistTar!R12 -> 109 | E12: =Prop2019DistTar!S12 -> 17.0489 | F12: =Prop2019DistTar!T12 -> 19.8465 | G12: =Prop2019DistTar!U12 -> 0 | H12: =Prop2019DistTar!V12 -> 0 | I12: =Prop2019DistTar!W12 -> 0 | J12: =Prop2019DistTar!X12 -> 0 | K12: =Prop2019DistTar!Y12 -> 0 | L12: =Prop2019DistTar!Z12 -> 0 | M12: =Prop2019DistTar!AA12 -> 0 | N12: =Prop2019DistTar!AB12 -> 0 | O12: =Prop2019DistTar!AC12 -> 0 | P12: =Prop2019DistTar!AD12 -> 0 | R12: 0 | S12: 0 | T12: 0 | U12: 0 | V12: 0 | W12: 0 | X12: 0 | Y12: 0 | Z12: 0 | AA12: 0 | AB12: 0 | AC12: 0 | AD12: 0 | AF12: 0 | AG12: 0 | AH12: 0 | AI12: 0 | AJ12: 0 | AK12: 0 | AL12: 0 | AM12: 0 | AN12: 0 | AO12: 0 | AP12: 0 | AQ12: 0 | AR12: 0 | AS12: 0
B13: =Prop2019DistTar!C13 -> NEE20 Small Two Rate | D13: =Prop2019DistTar!R13 -> 109 | E13: =Prop2019DistTar!S13 -> 15.6314 | F13: =Prop2019DistTar!T13 -> 0 | G13: =Prop2019DistTar!U13 -> 0 | H13: =Prop2019DistTar!V13 -> 0 | I13: =Prop2019DistTar!W13 -> 2.8749 | J13: =Prop2019DistTar!X13 -> 0 | K13: =Prop2019DistTar!Y13 -> 0 | L13: =Prop2019DistTar!Z13 -> 0 | M13: =Prop2019DistTar!AA13 -> 0 | N13: =Prop2019DistTar!AB13 -> 0 | O13: =Prop2019DistTar!AC13 -> 0 | P13: =Prop2019DistTar!AD13 -> 0 | R13: 53189.12642 | S13: 151443956.6 | T13: 0 | U13: 0 | V13: 0 | W13: 203786016.2 | X13: 0 | Y13: 0 | Z13: 0 | AA13: 0 | AB13: 0 | AC13: 0 | AD13: 0 | AF13: 5797614.78 | AG13: 23672810.64 | AH13: 0 | AI13: 0 | AJ13: 0 | AK13: 5858644.178 | AL13: 0 | AM13: 0 | AN13: 0 | AO13: 0 | AP13: 0 | AQ13: 0 | AR13: 0 | AS13: 35329069.59
B14: =Prop2019DistTar!C14 -> NSP20 Small Two Rate | D14: =Prop2019DistTar!R14 -> 109 | E14: =Prop2019DistTar!S14 -> 36.0531 | F14: =Prop2019DistTar!T14 -> 31.5478 | G14: =Prop2019DistTar!U14 -> 27.61029 | H14: =Prop2019DistTar!V14 -> 0 | I14: =Prop2019DistTar!W14 -> 2.1847 | J14: =Prop2019DistTar!X14 -> 0 | K14: =Prop2019DistTar!Y14 -> 0 | L14: =Prop2019DistTar!Z14 -> 0 | M14: =Prop2019DistTar!AA14 -> 0 | N14: =Prop2019DistTar!AB14 -> 0 | O14: =Prop2019DistTar!AC14 -> 0 | P14: =Prop2019DistTar!AD14 -> 0 | R14: 4.801092 | S14: 2391.869968 | T14: 625.8978431 | U14: 1380.417735 | V14: 0 | W14: 25217.2565 | X14: 0 | Y14: 0 | Z14: 0 | AA14: 0 | AB14: 0 | AC14: 0 | AD14: 0 | AF14: 523.319028 | AG14: 862.3432714 | AH14: 197.4569997 | AI14: 381.1373398 | AJ14: 0 | AK14: 550.9214028 | AL14: 0 | AM14: 0 | AN14: 0 | AO14: 0 | AP14: 0 | AQ14: 0 | AR14: 0 | AS14: 2515.178042
B15: =Prop2019DistTar!C15 -> NGT26 Small Interval Multi Rate | D15: =Prop2019DistTar!R15 -> 109 | E15: =Prop2019DistTar!S15 -> 11.2782 | F15: =Prop2019DistTar!T15 -> 11.2782 | G15: =Prop2019DistTar!U15 -> 8.2792 | H15: =Prop2019DistTar!V15 -> 8.2792 | I15: =Prop2019DistTar!W15 -> 2.3128 | J15: =Prop2019DistTar!X15 -> 2.3128 | K15: =Prop2019DistTar!Y15 -> 0 | L15: =Prop2019DistTar!Z15 -> 0 | M15: =Prop2019DistTar!AA15 -> 0 | N15: =Prop2019DistTar!AB15 -> 0 | O15: =Prop2019DistTar!AC15 -> 0 | P15: =Prop2019DistTar!AD15 -> 0 | R15: 1550.96916 | S15: 1663733.906 | T15: 0 | U15: 3498620.114 | V15: 0 | W15: 2370698.155 | X15: 0 | Y15: 0 | Z15: 0 | AA15: 0 | AB15: 0 | AC15: 0 | AD15: 0 | AF15: 169055.6384 | AG15: 187639.2373 | AH15: 0 | AI15: 289657.7565 | AJ15: 0 | AK15: 54829.50693 | AL15: 0 | AM15: 0 | AN15: 0 | AO15: 0 | AP15: 0 | AQ15: 0 | AR15: 0 | AS15: 701182.1392
B16: =Prop2019DistTar!C16 -> NEN20 Small Two Rate - Embedded Network | D16: =Prop2019DistTar!R16 -> 109 | E16: =Prop2019DistTar!S16 -> 8.4641 | F16: =Prop2019DistTar!T16 -> 0 | G16: =Prop2019DistTar!U16 -> 0 | H16: =Prop2019DistTar!V16 -> 0 | I16: =Prop2019DistTar!W16 -> 2.2024 | J16: =Prop2019DistTar!X16 -> 0 | K16: =Prop2019DistTar!Y16 -> 0 | L16: =Prop2019DistTar!Z16 -> 0 | M16: =Prop2019DistTar!AA16 -> 0 | N16: =Prop2019DistTar!AB16 -> 0 | O16: =Prop2019DistTar!AC16 -> 0 | P16: =Prop2019DistTar!AD16 -> 0 | R16: 0 | S16: 0 | T16: 0 | U16: 0 | V16: 0 | W16: 0 | X16: 0 | Y16: 0 | Z16: 0 | AA16: 0 | AB16: 0 | AC16: 0 | AD16: 0 | AF16: 0 | AG16: 0 | AH16: 0 | AI16: 0 | AJ16: 0 | AK16: 0 | AL16: 0 | AM16: 0 | AN16: 0 | AO16: 0 | AP16: 0 | AQ16: 0 | AR16: 0 | AS16: 0
B17: =Prop2019DistTar!C17 -> NEE21 Small Business Two Rate | D17: =Prop2019DistTar!R17 -> 109 | E17: =Prop2019DistTar!S17 -> 14.8727 | F17: =Prop2019DistTar!T17 -> 0 | G17: =Prop2019DistTar!U17 -> 0 | H17: =Prop2019DistTar!V17 -> 0 | I17: =Prop2019DistTar!W17 -> 3.0808 | J17: =Prop2019DistTar!X17 -> 0 | K17: =Prop2019DistTar!Y17 -> 2.3897 | L17: =Prop2019DistTar!Z17 -> 0 | M17: =Prop2019DistTar!AA17 -> 0 | N17: =Prop2019DistTar!AB17 -> 0 | O17: =Prop2019DistTar!AC17 -> 0 | P17: =Prop2019DistTar!AD17 -> 0 | R17: 28492.34198 | S17: 237904722.2 | T17: 0 | U17: 0 | V17: 0 | W17: 172030364 | X17: 0 | Y17: -8272287.863 | Z17: 0 | AA17: 0 | AB17: 0 | AC17: 0 | AD17: 0 | AF17: 3105665.276 | AG17: 35382855.62 | AH17: 0 | AI17: 0 | AJ17: 0 | AK17: 5299911.455 | AL17: 0 | AM17: -197682.8631 | AN17: 0 | AO17: 0 | AP17: 0 | AQ17: 0 | AR17: 0 | AS17: 43590749.48
B18: =Prop2019DistTar!C18 -> NSP21 Small Business Two Rate | D18: =Prop2019DistTar!R18 -> 109 | E18: =Prop2019DistTar!S18 -> 36.0531 | F18: =Prop2019DistTar!T18 -> 31.5478 | G18: =Prop2019DistTar!U18 -> 27.61029 | H18: =Prop2019DistTar!V18 -> 0 | I18: =Prop2019DistTar!W18 -> 2.1847 | J18: =Prop2019DistTar!X18 -> 0 | K18: =Prop2019DistTar!Y18 -> 2.3897 | L18: =Prop2019DistTar!Z18 -> 0 | M18: =Prop2019DistTar!AA18 -> 0 | N18: =Prop2019DistTar!AB18 -> 0 | O18: =Prop2019DistTar!AC18 -> 0 | P18: =Prop2019DistTar!AD18 -> 0 | R18: 1 | S18: 2601.970893 | T18: 433.1712331 | U18: 1453.913492 | V18: 0 | W18: 35657.8239 | X18: 0 | Y18: 3421.39 | Z18: 0 | AA18: 0 | AB18: 0 | AC18: 0 | AD18: 0 | AF18: 109 | AG18: 938.091168 | AH18: 136.6559943 | AI18: 401.4297315 | AJ18: 0 | AK18: 779.0164786 | AL18: 0 | AM18: 81.76095683 | AN18: 0 | AO18: 0 | AP18: 0 | AQ18: 0 | AR18: 0 | AS18: 2445.954329
B19: =Prop2019DistTar!C19 -> NSP27 Small Business Two Rate | D19: =Prop2019DistTar!R19 -> 109 | E19: =Prop2019DistTar!S19 -> 18.7332 | F19: =Prop2019DistTar!T19 -> 16.42152 | G19: =Prop2019DistTar!U19 -> 14.40252 | H19: =Prop2019DistTar!V19 -> 0 | I19: =Prop2019DistTar!W19 -> 5.9 | J19: =Prop2019DistTar!X19 -> 0 | K19: =Prop2019DistTar!Y19 -> 2.3897 | L19: =Prop2019DistTar!Z19 -> 0 | M19: =Prop2019DistTar!AA19 -> 0 | N19: =Prop2019DistTar!AB19 -> 0 | O19: =Prop2019DistTar!AC19 -> 0 | P19: =Prop2019DistTar!AD19 -> 0 | R19: 22.917792 | S19: 59157.82501 | T19: 14086.42608 | U19: 29817.39453 | V19: 0 | W19: 826138.5133 | X19: 0 | Y19: 0 | Z19: 0 | AA19: 0 | AB19: 0 | AC19: 0 | AD19: 0 | AF19: 2498.039328 | AG19: 11082.15367 | AH19: 2313.205276 | AI19: 4294.45621 | AJ19: 0 | AK19: 48742.17228 | AL19: 0 | AM19: 0 | AN19: 0 | AO19: 0 | AP19: 0 | AQ19: 0 | AR19: 0 | AS19: 68930.02677
B20: =Prop2019DistTar!C20 -> NEN21 Small Business Two Rate - Embedded Network | D20: =Prop2019DistTar!R20 -> 109 | E20: =Prop2019DistTar!S20 -> 10.4078 | F20: =Prop2019DistTar!T20 -> 0 | G20: =Prop2019DistTar!U20 -> 0 | H20: =Prop2019DistTar!V20 -> 0 | I20: =Prop2019DistTar!W20 -> 5.2383 | J20: =Prop2019DistTar!X20 -> 0 | K20: =Prop2019DistTar!Y20 -> 0 | L20: =Prop2019DistTar!Z20 -> 0 | M20: =Prop2019DistTar!AA20 -> 0 | N20: =Prop2019DistTar!AB20 -> 0 | O20: =Prop2019DistTar!AC20 -> 0 | P20: =Prop2019DistTar!AD20 -> 0 | R20: 0 | S20: 0 | T20: 0 | U20: 0 | V20: 0 | W20: 0 | X20: 0 | Y20: 0 | Z20: 0 | AA20: 0 | AB20: 0 | AC20: 0 | AD20: 0 | AF20: 0 | AG20: 0 | AH20: 0 | AI20: 0 | AJ20: 0 | AK20: 0 | AL20: 0 | AM20: 0 | AN20: 0 | AO20: 0 | AP20: 0 | AQ20: 0 | AR20: 0 | AS20: 0
B21: =Prop2019DistTar!C21 -> NEE23 Photovoltaic | D21: =Prop2019DistTar!R21 -> 120 | E21: =Prop2019DistTar!S21 -> 15.6315 | F21: =Prop2019DistTar!T21 -> 0 | G21: =Prop2019DistTar!U21 -> 0 | H21: =Prop2019DistTar!V21 -> 0 | I21: =Prop2019DistTar!W21 -> 2.875 | J21: =Prop2019DistTar!X21 -> 0 | K21: =Prop2019DistTar!Y21 -> 2.3897 | L21: =Prop2019DistTar!Z21 -> 0 | M21: =Prop2019DistTar!AA21 -> 0 | N21: =Prop2019DistTar!AB21 -> 0 | O21: =Prop2019DistTar!AC21 -> 0 | P21: =Prop2019DistTar!AD21 -> 0 | R21: 105100.972 | S21: 227297672 | T21: 0 | U21: 0 | V21: 0 | W21: 279270822 | X21: 0 | Y21: -195758545.2 | Z21: 0 | AA21: 0 | AB21: 0 | AC21: 0 | AD21: 0 | AF21: 12612116.64 | AG21: 35530035.6 | AH21: 0 | AI21: 0 | AJ21: 0 | AK21: 8029036.133 | AL21: 0 | AM21: -4678041.955 | AN21: 0 | AO21: 0 | AP21: 0 | AQ21: 0 | AR21: 0 | AS21: 51493146.41
B22: =Prop2019DistTar!C22 -> NSP23 Photovoltaic | D22: =Prop2019DistTar!R22 -> 120 | E22: =Prop2019DistTar!S22 -> 36.0531 | F22: =Prop2019DistTar!T22 -> 31.5478 | G22: =Prop2019DistTar!U22 -> 27.61029 | H22: =Prop2019DistTar!V22 -> 0 | I22: =Prop2019DistTar!W22 -> 2.1847 | J22: =Prop2019DistTar!X22 -> 0 | K22: =Prop2019DistTar!Y22 -> 2.3897 | L22: =Prop2019DistTar!Z22 -> 0 | M22: =Prop2019DistTar!AA22 -> 0 | N22: =Prop2019DistTar!AB22 -> 0 | O22: =Prop2019DistTar!AC22 -> 0 | P22: =Prop2019DistTar!AD22 -> 0 | R22: 103.07799 | S22: 26202.34564 | T22: 1705.01852 | U22: 28872.57076 | V22: 0 | W22: 349298.8318 | X22: 0 | Y22: -165921.09 | Z22: 0 | AA22: 0 | AB22: 0 | AC22: 0 | AD22: 0 | AF22: 12369.3588 | AG22: 9446.757875 | AH22: 537.8958326 | AI22: 7971.800516 | AJ22: 0 | AK22: 7631.131577 | AL22: 0 | AM22: -3965.016288 | AN22: 0 | AO22: 0 | AP22: 0 | AQ22: 0 | AR22: 0 | AS22: 33991.92831
B23: =Prop2019DistTar!C23 -> NEE24 Small rate 5 day 8 to 8 | D23: =Prop2019DistTar!R23 -> 109 | E23: =Prop2019DistTar!S23 -> 5.8832 | F23: =Prop2019DistTar!T23 -> 0 | G23: =Prop2019DistTar!U23 -> 0 | H23: =Prop2019DistTar!V23 -> 0 | I23: =Prop2019DistTar!W23 -> 1.1315 | J23: =Prop2019DistTar!X23 -> 0 | K23: =Prop2019DistTar!Y23 -> 0 | L23: =Prop2019DistTar!Z23 -> 0 | M23: =Prop2019DistTar!AA23 -> 0 | N23: =Prop2019DistTar!AB23 -> 0 | O23: =Prop2019DistTar!AC23 -> 0 | P23: =Prop2019DistTar!AD23 -> 0 | R23: 2395.127886 | S23: 2990114.858 | T23: 0 | U23: 0 | V23: 0 | W23: 7304821.54 | X23: 0 | Y23: 0 | Z23: 0 | AA23: 0 | AB23: 0 | AC23: 0 | AD23: 0 | AF23: 261068.9396 | AG23: 175914.4373 | AH23: 0 | AI23: 0 | AJ23: 0 | AK23: 82654.05572 | AL23: 0 | AM23: 0 | AN23: 0 | AO23: 0 | AP23: 0 | AQ23: 0 | AR23: 0 | AS23: 519637.4326
B24: =Prop2019DistTar!C24 -> NEE25 Small business rate 5 day 8 to 8 | D24: =Prop2019DistTar!R24 -> 109 | E24: =Prop2019DistTar!S24 -> 13.983 | F24: =Prop2019DistTar!T24 -> 0 | G24: =Prop2019DistTar!U24 -> 0 | H24: =Prop2019DistTar!V24 -> 0 | I24: =Prop2019DistTar!W24 -> 2.915 | J24: =Prop2019DistTar!X24 -> 0 | K24: =Prop2019DistTar!Y24 -> 0 | L24: =Prop2019DistTar!Z24 -> 0 | M24: =Prop2019DistTar!AA24 -> 0 | N24: =Prop2019DistTar!AB24 -> 0 | O24: =Prop2019DistTar!AC24 -> 0 | P24: =Prop2019DistTar!AD24 -> 0 | R24: 3.551556 | S24: 98982.09723 | T24: 0 | U24: 0 | V24: 0 | W24: 97904.78723 | X24: 0 | Y24: 0 | Z24: 0 | AA24: 0 | AB24: 0 | AC24: 0 | AD24: 0 | AF24: 387.119604 | AG24: 13840.66666 | AH24: 0 | AI24: 0 | AJ24: 0 | AK24: 2853.924548 | AL24: 0 | AM24: 0 | AN24: 0 | AO24: 0 | AP24: 0 | AQ24: 0 | AR24: 0 | AS24: 17081.71081
B25: =Prop2019DistTar!C25 -> NEE30 Small Dedicated | D25: =Prop2019DistTar!R25 -> 0 | E25: =Prop2019DistTar!S25 -> 0 | F25: =Prop2019DistTar!T25 -> 0 | G25: =Prop2019DistTar!U25 -> 0 | H25: =Prop2019DistTar!V25 -> 0 | I25: =Prop2019DistTar!W25 -> 2.14 | J25: =Prop2019DistTar!X25 -> 0 | K25: =Prop2019DistTar!Y25 -> 0 | L25: =Prop2019DistTar!Z25 -> 0 | M25: =Prop2019DistTar!AA25 -> 0 | N25: =Prop2019DistTar!AB25 -> 0 | O25: =Prop2019DistTar!AC25 -> 0 | P25: =Prop2019DistTar!AD25 -> 0 | R25: 93496.54834 | S25: 0 | T25: 0 | U25: 0 | V25: 0 | W25: 129027278.2 | X25: 0 | Y25: 0 | Z25: 0 | AA25: 0 | AB25: 0 | AC25: 0 | AD25: 0 | AF25: 0 | AG25: 0 | AH25: 0 | AI25: 0 | AJ25: 0 | AK25: 2761183.754 | AL25: 0 | AM25: 0 | AN25: 0 | AO25: 0 | AP25: 0 | AQ25: 0 | AR25: 0 | AS25: 2761183.754
B26: =Prop2019DistTar!C26 -> NSP30 Small Dedicated | D26: =Prop2019DistTar!R26 -> 0 | E26: =Prop2019DistTar!S26 -> 0 | F26: =Prop2019DistTar!T26 -> 0 | G26: =Prop2019DistTar!U26 -> 0 | H26: =Prop2019DistTar!V26 -> 0 | I26: =Prop2019DistTar!W26 -> 2.14 | J26: =Prop2019DistTar!X26 -> 0 | K26: =Prop2019DistTar!Y26 -> 0 | L26: =Prop2019DistTar!Z26 -> 0 | M26: =Prop2019DistTar!AA26 -> 0 | N26: =Prop2019DistTar!AB26 -> 0 | O26: =Prop2019DistTar!AC26 -> 0 | P26: =Prop2019DistTar!AD26 -> 0 | R26: 0 | S26: 0 | T26: 0 | U26: 0 | V26: 0 | W26: 0 | X26: 0 | Y26: 0 | Z26: 0 | AA26: 0 | AB26: 0 | AC26: 0 | AD26: 0 | AF26: 0 | AG26: 0 | AH26: 0 | AI26: 0 | AJ26: 0 | AK26: 0 | AL26: 0 | AM26: 0 | AN26: 0 | AO26: 0 | AP26: 0 | AQ26: 0 | AR26: 0 | AS26: 0
B27: =Prop2019DistTar!C27 -> NEE31 Small Dedicated-afternoon boost | D27: =Prop2019DistTar!R27 -> 0 | E27: =Prop2019DistTar!S27 -> 0 | F27: =Prop2019DistTar!T27 -> 0 | G27: =Prop2019DistTar!U27 -> 0 | H27: =Prop2019DistTar!V27 -> 0 | I27: =Prop2019DistTar!W27 -> 1.73 | J27: =Prop2019DistTar!X27 -> 0 | K27: =Prop2019DistTar!Y27 -> 0 | L27: =Prop2019DistTar!Z27 -> 0 | M27: =Prop2019DistTar!AA27 -> 0 | N27: =Prop2019DistTar!AB27 -> 0 | O27: =Prop2019DistTar!AC27 -> 0 | P27: =Prop2019DistTar!AD27 -> 0 | R27: 13804.03077 | S27: 0 | T27: 0 | U27: 0 | V27: 0 | W27: 44180598.21 | X27: 0 | Y27: 0 | Z27: 0 | AA27: 0 | AB27: 0 | AC27: 0 | AD27: 0 | AF27: 0 | AG27: 0 | AH27: 0 | AI27: 0 | AJ27: 0 | AK27: 764324.3491 | AL27: 0 | AM27: 0 | AN27: 0 | AO27: 0 | AP27: 0 | AQ27: 0 | AR27: 0 | AS27: 764324.3491
B28: =Prop2019DistTar!C28 -> NSP31 Small Dedicated-afternoon boost | D28: =Prop2019DistTar!R28 -> 0 | E28: =Prop2019DistTar!S28 -> 0 | F28: =Prop2019DistTar!T28 -> 0 | G28: =Prop2019DistTar!U28 -> 0 | H28: =Prop2019DistTar!V28 -> 0 | I28: =Prop2019DistTar!W28 -> 1.73 | J28: =Prop2019DistTar!X28 -> 0 | K28: =Prop2019DistTar!Y28 -> 0 | L28: =Prop2019DistTar!Z28 -> 0 | M28: =Prop2019DistTar!AA28 -> 0 | N28: =Prop2019DistTar!AB28 -> 0 | O28: =Prop2019DistTar!AC28 -> 0 | P28: =Prop2019DistTar!AD28 -> 0 | R28: 0 | S28: 0 | T28: 0 | U28: 0 | V28: 0 | W28: 0 | X28: 0 | Y28: 0 | Z28: 0 | AA28: 0 | AB28: 0 | AC28: 0 | AD28: 0 | AF28: 0 | AG28: 0 | AH28: 0 | AI28: 0 | AJ28: 0 | AK28: 0 | AL28: 0 | AM28: 0 | AN28: 0 | AO28: 0 | AP28: 0 | AQ28: 0 | AR28: 0 | AS28: 0
B29: =Prop2019DistTar!C29 -> NEE32 Dedicated Circuit 8 to 8 | D29: =Prop2019DistTar!R29 -> 0 | E29: =Prop2019DistTar!S29 -> 0 | F29: =Prop2019DistTar!T29 -> 0 | G29: =Prop2019DistTar!U29 -> 0 | H29: =Prop2019DistTar!V29 -> 0 | I29: =Prop2019DistTar!W29 -> 2.215 | J29: =Prop2019DistTar!X29 -> 0 | K29: =Prop2019DistTar!Y29 -> 0 | L29: =Prop2019DistTar!Z29 -> 0 | M29: =Prop2019DistTar!AA29 -> 0 | N29: =Prop2019DistTar!AB29 -> 0 | O29: =Prop2019DistTar!AC29 -> 0 | P29: =Prop2019DistTar!AD29 -> 0 | R29: 3879.007706 | S29: 0 | T29: 0 | U29: 0 | V29: 0 | W29: 5078516.987 | X29: 0 | Y29: 0 | Z29: 0 | AA29: 0 | AB29: 0 | AC29: 0 | AD29: 0 | AF29: 0 | AG29: 0 | AH29: 0 | AI29: 0 | AJ29: 0 | AK29: 112489.1513 | AL29: 0 | AM29: 0 | AN29: 0 | AO29: 0 | AP29: 0 | AQ29: 0 | AR29: 0 | AS29: 112489.1513
B30: =Prop2019DistTar!C30 -> NSP32 Dedicated Circuit 8 to 8 | D30: =Prop2019DistTar!R30 -> 0 | E30: =Prop2019DistTar!S30 -> 0 | F30: =Prop2019DistTar!T30 -> 0 | G30: =Prop2019DistTar!U30 -> 0 | H30: =Prop2019DistTar!V30 -> 0 | I30: =Prop2019DistTar!W30 -> 2.215 | J30: =Prop2019DistTar!X30 -> 0 | K30: =Prop2019DistTar!Y30 -> 0 | L30: =Prop2019DistTar!Z30 -> 0 | M30: =Prop2019DistTar!AA30 -> 0 | N30: =Prop2019DistTar!AB30 -> 0 | O30: =Prop2019DistTar!AC30 -> 0 | P30: =Prop2019DistTar!AD30 -> 0 | R30: 0 | S30: 0 | T30: 0 | U30: 0 | V30: 0 | W30: 0 | X30: 0 | Y30: 0 | Z30: 0 | AA30: 0 | AB30: 0 | AC30: 0 | AD30: 0 | AF30: 0 | AG30: 0 | AH30: 0 | AI30: 0 | AJ30: 0 | AK30: 0 | AL30: 0 | AM30: 0 | AN30: 0 | AO30: 0 | AP30: 0 | AQ30: 0 | AR30: 0 | AS30: 0
B31: =Prop2019DistTar!C31 -> NEE40 Medium Single Rate - closed to new customers | D31: =Prop2019DistTar!R31 -> 109 | E31: =Prop2019DistTar!S31 -> 20.1934 | F31: =Prop2019DistTar!T31 -> 0 | G31: =Prop2019DistTar!U31 -> 0 | H31: =Prop2019DistTar!V31 -> 0 | I31: =Prop2019DistTar!W31 -> 0 | J31: =Prop2019DistTar!X31 -> 0 | K31: =Prop2019DistTar!Y31 -> 0 | L31: =Prop2019DistTar!Z31 -> 0 | M31: =Prop2019DistTar!AA31 -> 0 | N31: =Prop2019DistTar!AB31 -> 0 | O31: =Prop2019DistTar!AC31 -> 0 | P31: =Prop2019DistTar!AD31 -> 0 | R31: 1523.822742 | S31: 13436538.09 | T31: 0 | U31: 0 | V31: 0 | W31: 0 | X31: 0 | Y31: 0 | Z31: 0 | AA31: 0 | AB31: 0 | AC31: 0 | AD31: 0 | AF31: 166096.6789 | AG31: 2713293.882 | AH31: 0 | AI31: 0 | AJ31: 0 | AK31: 0 | AL31: 0 | AM31: 0 | AN31: 0 | AO31: 0 | AP31: 0 | AQ31: 0 | AR31: 0 | AS31: 2879390.561
B32: =Prop2019DistTar!C32 -> NEE51 Medium Two Rate 5Day - closed to new customers - <160MWh to NEE21 | D32: =Prop2019DistTar!R32 -> 109 | E32: =Prop2019DistTar!S32 -> 17.47 | F32: =Prop2019DistTar!T32 -> 0 | G32: =Prop2019DistTar!U32 -> 0 | H32: =Prop2019DistTar!V32 -> 0 | I32: =Prop2019DistTar!W32 -> 3.7 | J32: =Prop2019DistTar!X32 -> 0 | K32: =Prop2019DistTar!Y32 -> 0 | L32: =Prop2019DistTar!Z32 -> 0 | M32: =Prop2019DistTar!AA32 -> 0 | N32: =Prop2019DistTar!AB32 -> 0 | O32: =Prop2019DistTar!AC32 -> 0 | P32: =Prop2019DistTar!AD32 -> 0 | R32: 1691.489172 | S32: 76213451.6 | T32: 0 | U32: 0 | V32: 0 | W32: 59488363.02 | X32: 0 | Y32: 0 | Z32: 0 | AA32: 0 | AB32: 0 | AC32: 0 | AD32: 0 | AF32: 184372.3197 | AG32: 13314489.99 | AH32: 0 | AI32: 0 | AJ32: 0 | AK32: 2201069.432 | AL32: 0 | AM32: 0 | AN32: 0 | AO32: 0 | AP32: 0 | AQ32: 0 | AR32: 0 | AS32: 15699931.75
B33: =Prop2019DistTar!C33 -> NEE55 Snowfields Tariff | D33: =Prop2019DistTar!R33 -> 109 | E33: =Prop2019DistTar!S33 -> 13.3408 | F33: =Prop2019DistTar!T33 -> 0 | G33: =Prop2019DistTar!U33 -> 0 | H33: =Prop2019DistTar!V33 -> 0 | I33: =Prop2019DistTar!W33 -> 3.7335 | J33: =Prop2019DistTar!X33 -> 0 | K33: =Prop2019DistTar!Y33 -> 0 | L33: =Prop2019DistTar!Z33 -> 0 | M33: =Prop2019DistTar!AA33 -> 0 | N33: =Prop2019DistTar!AB33 -> 0 | O33: =Prop2019DistTar!AC33 -> 0 | P33: =Prop2019DistTar!AD33 -> 0 | R33: 1.002738 | S33: 86611.4064 | T33: 0 | U33: 0 | V33: 0 | W33: 60734.33949 | X33: 0 | Y33: 0 | Z33: 0 | AA33: 0 | AB33: 0 | AC33: 0 | AD33: 0 | AF33: 109.298442 | AG33: 11554.65451 | AH33: 0 | AI33: 0 | AJ33: 0 | AK33: 2267.516565 | AL33: 0 | AM33: 0 | AN33: 0 | AO33: 0 | AP33: 0 | AQ33: 0 | AR33: 0 | AS33: 13931.46951
B34: =Prop2019DistTar!C34 -> NSP55 Snowfields Tariff | D34: =Prop2019DistTar!R34 -> 109 | E34: =Prop2019DistTar!S34 -> 36.0531 | F34: =Prop2019DistTar!T34 -> 31.5478 | G34: =Prop2019DistTar!U34 -> 27.61029 | H34: =Prop2019DistTar!V34 -> 0 | I34: =Prop2019DistTar!W34 -> 2.1847 | J34: =Prop2019DistTar!X34 -> 0 | K34: =Prop2019DistTar!Y34 -> 0 | L34: =Prop2019DistTar!Z34 -> 0 | M34: =Prop2019DistTar!AA34 -> 0 | N34: =Prop2019DistTar!AB34 -> 0 | O34: =Prop2019DistTar!AC34 -> 0 | P34: =Prop2019DistTar!AD34 -> 0 | R34: 0 | S34: 0 | T34: 0 | U34: 0 | V34: 0 | W34: 0 | X34: 0 | Y34: 0 | Z34: 0 | AA34: 0 | AB34: 0 | AC34: 0 | AD34: 0 | AF34: 0 | AG34: 0 | AH34: 0 | AI34: 0 | AJ34: 0 | AK34: 0 | AL34: 0 | AM34: 0 | AN34: 0 | AO34: 0 | AP34: 0 | AQ34: 0 | AR34: 0 | AS34: 0
B35: =Prop2019DistTar!C35 -> NSP56 Medium Demand Multi-rate | D35: =Prop2019DistTar!R35 -> 2352 | E35: =Prop2019DistTar!S35 -> 10.2805 | F35: =Prop2019DistTar!T35 -> 7.486 | G35: =Prop2019DistTar!U35 -> 0 | H35: =Prop2019DistTar!V35 -> 0 | I35: =Prop2019DistTar!W35 -> 3.5134 | J35: =Prop2019DistTar!X35 -> 0 | K35: =Prop2019DistTar!Y35 -> 0 | L35: =Prop2019DistTar!Z35 -> 0 | M35: =Prop2019DistTar!AA35 -> 17.8782 | N35: =Prop2019DistTar!AB35 -> 29.8033 | O35: =Prop2019DistTar!AC35 -> 0 | P35: =Prop2019DistTar!AD35 -> 0 | R35: 1126.790364 | S35: 85030637.34 | T35: 67483790.35 | U35: 0 | V35: 0 | W35: 108203911.9 | X35: 0 | Y35: 0 | Z35: 0 | AA35: 174943.3977 | AB35: 71182.95279 | AC35: 0 | AD35: 0 | AF35: 2650210.936 | AG35: 8741574.672 | AH35: 5051836.546 | AI35: 0 | AJ35: 0 | AK35: 3801636.242 | AL35: 0 | AM35: 0 | AN35: 0 | AO35: 3127673.053 | AP35: 2121486.897 | AQ35: 0 | AR35: 0 | AS35: 25494418.35
B36: =Prop2019DistTar!C36 -> NEN56 Medium Demand Multi-rate - Embedded Network | D36: =Prop2019DistTar!R36 -> 2352 | E36: =Prop2019DistTar!S36 -> 7.833 | F36: =Prop2019DistTar!T36 -> 5.4592 | G36: =Prop2019DistTar!U36 -> 0 | H36: =Prop2019DistTar!V36 -> 0 | I36: =Prop2019DistTar!W36 -> 3.5134 | J36: =Prop2019DistTar!X36 -> 0 | K36: =Prop2019DistTar!Y36 -> 0 | L36: =Prop2019DistTar!Z36 -> 0 | M36: =Prop2019DistTar!AA36 -> 17.8782 | N36: =Prop2019DistTar!AB36 -> 29.8033 | O36: =Prop2019DistTar!AC36 -> 0 | P36: =Prop2019DistTar!AD36 -> 0 | R36: 2.005488 | S36: 146233.9441 | T36: 154648.7649 | U36: 0 | V36: 0 | W36: 156877.588 | X36: 0 | Y36: 0 | Z36: 0 | AA36: 303.31 | AB36: 102.37 | AC36: 0 | AD36: 0 | AF36: 4716.907776 | AG36: 11454.50484 | AH36: 8442.585372 | AI36: 0 | AJ36: 0 | AK36: 5511.737176 | AL36: 0 | AM36: 0 | AN36: 0 | AO36: 5422.636842 | AP36: 3050.963821 | AQ36: 0 | AR36: 0 | AS36: 38599.33583
B37: =Prop2019DistTar!C37 -> NEE60 Medium Two Rate 7Day - closed to new customers | D37: =Prop2019DistTar!R37 -> 109 | E37: =Prop2019DistTar!S37 -> 9 | F37: =Prop2019DistTar!T37 -> 0 | G37: =Prop2019DistTar!U37 -> 0 | H37: =Prop2019DistTar!V37 -> 0 | I37: =Prop2019DistTar!W37 -> 3.5 | J37: =Prop2019DistTar!X37 -> 0 | K37: =Prop2019DistTar!Y37 -> 0 | L37: =Prop2019DistTar!Z37 -> 0 | M37: =Prop2019DistTar!AA37 -> 0 | N37: =Prop2019DistTar!AB37 -> 0 | O37: =Prop2019DistTar!AC37 -> 0 | P37: =Prop2019DistTar!AD37 -> 0 | R37: 401.250696 | S37: 17145428.55 | T37: 0 | U37: 0 | V37: 0 | W37: 5240988.585 | X37: 0 | Y37: 0 | Z37: 0 | AA37: 0 | AB37: 0 | AC37: 0 | AD37: 0 | AF37: 43736.32586 | AG37: 1543088.57 | AH37: 0 | AI37: 0 | AJ37: 0 | AK37: 183434.6005 | AL37: 0 | AM37: 0 | AN37: =L37/100*Z37 -> 0 | AO37: 0 | AP37: 0 | AQ37: 0 | AR37: 0 | AS37: 1770259.496
B38: =Prop2019DistTar!C38 -> NEE52 Unmetered | D38: =Prop2019DistTar!R38 -> 0 | E38: =Prop2019DistTar!S38 -> 15.4 | F38: =Prop2019DistTar!T38 -> 0 | G38: =Prop2019DistTar!U38 -> 0 | H38: =Prop2019DistTar!V38 -> 0 | I38: =Prop2019DistTar!W38 -> 7.9 | J38: =Prop2019DistTar!X38 -> 0 | K38: =Prop2019DistTar!Y38 -> 0 | L38: =Prop2019DistTar!Z38 -> 0 | M38: =Prop2019DistTar!AA38 -> 0 | N38: =Prop2019DistTar!AB38 -> 0 | O38: =Prop2019DistTar!AC38 -> 0 | P38: =Prop2019DistTar!AD38 -> 0 | R38: 0 | S38: 26465260.03 | T38: 0 | U38: 0 | V38: 0 | W38: 55924351 | X38: 0 | Y38: 0 | Z38: 0 | AA38: 0 | AB38: 0 | AC38: 0 | AD38: 0 | AF38: 0 | AG38: =E38/100*S38 -> 4075650.044 | AH38: 0 | AI38: 0 | AJ38: 0 | AK38: 4418023.729 | AL38: 0 | AM38: 0 | AN38: 0 | AO38: =M38*AA38 -> 0 | AP38: 0 | AQ38: 0 | AR38: 0 | AS38: 8493673.773
B39: =Prop2019DistTar!C39 -> NEE74 LV Large Two Rate 5Day | D39: =Prop2019DistTar!R39 -> 130 | E39: =Prop2019DistTar!S39 -> 21.9655 | F39: =Prop2019DistTar!T39 -> 0 | G39: =Prop2019DistTar!U39 -> 0 | H39: =Prop2019DistTar!V39 -> 0 | I39: =Prop2019DistTar!W39 -> 6.2398 | J39: =Prop2019DistTar!X39 -> 0 | K39: =Prop2019DistTar!Y39 -> 0 | L39: =Prop2019DistTar!Z39 -> 0 | M39: =Prop2019DistTar!AA39 -> 0 | N39: =Prop2019DistTar!AB39 -> 0 | O39: =Prop2019DistTar!AC39 -> 0 | P39: =Prop2019DistTar!AD39 -> 0 | R39: 8.021994 | S39: 2508570.323 | T39: 0 | U39: 0 | V39: 0 | W39: 3101259.793 | X39: 0 | Y39: 0 | Z39: 0 | AA39: 0 | AB39: 0 | AC39: 0 | AD39: 0 | AF39: 1042.85922 | AG39: 551020.0142 | AH39: 0 | AI39: 0 | AJ39: 0 | AK39: 193512.4085 | AL39: 0 | AM39: 0 | AN39: 0 | AO39: 0 | AP39: 0 | AQ39: 0 | AR39: 0 | AS39: 745575.2819
B40: =Prop2019DistTar!C40 -> NSP75 Large Multi-rate <750 kVA | D40: =Prop2019DistTar!R40 -> 5208 | E40: =Prop2019DistTar!S40 -> 2.908 | F40: =Prop2019DistTar!T40 -> 1.9705 | G40: =Prop2019DistTar!U40 -> 0 | H40: =Prop2019DistTar!V40 -> 0 | I40: =Prop2019DistTar!W40 -> 1.1239 | J40: =Prop2019DistTar!X40 -> 0 | K40: =Prop2019DistTar!Y40 -> 0 | L40: =Prop2019DistTar!Z40 -> 0 | M40: =Prop2019DistTar!AA40 -> 43.4478 | N40: =Prop2019DistTar!AB40 -> 72.8688 | O40: =Prop2019DistTar!AC40 -> 0 | P40: =Prop2019DistTar!AD40 -> 0 | R40: 780.750114 | S40: 136710972.2 | T40: 101823183.9 | U40: 0 | V40: 0 | W40: 183558803.2 | X40: 0 | Y40: 0 | Z40: 0 | AA40: 200952.2098 | AB40: 94328.07063 | AC40: 0 | AD40: 0 | AF40: 4066146.594 | AG40: 3975555.071 | AH40: 2006425.839 | AI40: 0 | AJ40: 0 | AK40: 2063017.389 | AL40: 0 | AM40: 0 | AN40: 0 | AO40: 8730931.419 | AP40: 6873573.313 | AQ40: 0 | AR40: 0 | AS40: 27715649.62
B41: =Prop2019DistTar!C41 -> NSP76 Large Multi-rate >750 kVA | D41: =Prop2019DistTar!R41 -> 5208 | E41: =Prop2019DistTar!S41 -> 2.6716 | F41: =Prop2019DistTar!T41 -> 1.75 | G41: =Prop2019DistTar!U41 -> 0 | H41: =Prop2019DistTar!V41 -> 0 | I41: =Prop2019DistTar!W41 -> 0.9928 | J41: =Prop2019DistTar!X41 -> 0 | K41: =Prop2019DistTar!Y41 -> 0 | L41: =Prop2019DistTar!Z41 -> 0 | M41: =Prop2019DistTar!AA41 -> 45.2966 | N41: =Prop2019DistTar!AB41 -> 76.6057 | O41: =Prop2019DistTar!AC41 -> 0 | P41: =Prop2019DistTar!AD41 -> 0 | R41: 512.23581 | S41: 194303198.8 | T41: 144244927 | U41: 0 | V41: 0 | W41: 246299630.3 | X41: 0 | Y41: 0 | Z41: 0 | AA41: 260131.1383 | AB41: 131829.8349 | AC41: 0 | AD41: 0 | AF41: 2667724.098 | AG41: 5191004.26 | AH41: 2524286.223 | AI41: 0 | AJ41: 0 | AK41: 2445262.73 | AL41: 0 | AM41: 0 | AN41: 0 | AO41: 11783056.12 | AP41: 10098916.78 | AQ41: 0 | AR41: 0 | AS41: 34710250.21
B42: =Prop2019DistTar!C42 -> NSP77 Large Multi-rate >2 GWh | D42: =Prop2019DistTar!R42 -> 5208 | E42: =Prop2019DistTar!S42 -> 2.6244 | F42: =Prop2019DistTar!T42 -> 1.7303 | G42: =Prop2019DistTar!U42 -> 0 | H42: =Prop2019DistTar!V42 -> 0 | I42: =Prop2019DistTar!W42 -> 0.9372 | J42: =Prop2019DistTar!X42 -> 0 | K42: =Prop2019DistTar!Y42 -> 0 | L42: =Prop2019DistTar!Z42 -> 0 | M42: =Prop2019DistTar!AA42 -> 49.6691 | N42: =Prop2019DistTar!AB42 -> 82.4398 | O42: =Prop2019DistTar!AC42 -> 0 | P42: =Prop2019DistTar!AD42 -> 0 | R42: 106.433112 | S42: 91084211.52 | T42: 67537664.82 | U42: 0 | V42: 0 | W42: 120220748.8 | X42: 0 | Y42: 0 | Z42: 0 | AA42: 95505.89284 | AB42: 52989.76823 | AC42: 0 | AD42: 0 | AF42: 554303.6473 | AG42: 2390414.047 | AH42: 1168604.214 | AI42: 0 | AJ42: 0 | AK42: 1126708.858 | AL42: 0 | AM42: 0 | AN42: 0 | AO42: 4743691.742 | AP42: 4368465.895 | AQ42: 0 | AR42: 0 | AS42: 14352188.4
B43: =Prop2019DistTar!C43 -> NSP78 Large Multi-rate >4 GWh | D43: =Prop2019DistTar!R43 -> 5208 | E43: =Prop2019DistTar!S43 -> 2.3361 | F43: =Prop2019DistTar!T43 -> 1.541 | G43: =Prop2019DistTar!U43 -> 0 | H43: =Prop2019DistTar!V43 -> 0 | I43: =Prop2019DistTar!W43 -> 0.8064 | J43: =Prop2019DistTar!X43 -> 0 | K43: =Prop2019DistTar!Y43 -> 0 | L43: =Prop2019DistTar!Z43 -> 0 | M43: =Prop2019DistTar!AA43 -> 54.6332 | N43: =Prop2019DistTar!AB43 -> 90.39 | O43: =Prop2019DistTar!AC43 -> 0 | P43: =Prop2019DistTar!AD43 -> 0 | R43: 35.309526 | S43: 63168087.83 | T43: 44174315.44 | U43: 0 | V43: 0 | W43: 80264209.65 | X43: 0 | Y43: 0 | Z43: 0 | AA43: 57376.92418 | AB43: 34582.0939 | AC43: 0 | AD43: 0 | AF43: 183892.0114 | AG43: 1475669.7 | AH43: 680726.201 | AI43: 0 | AJ43: 0 | AK43: 647250.5866 | AL43: 0 | AM43: 0 | AN43: 0 | AO43: 3134684.974 | AP43: 3125875.468 | AQ43: 0 | AR43: 0 | AS43: 9248098.94
B44: =Prop2019DistTar!C44 -> NSP81 HV Kva | D44: =Prop2019DistTar!R44 -> 5208 | E44: =Prop2019DistTar!S44 -> 0.489 | F44: =Prop2019DistTar!T44 -> 0 | G44: =Prop2019DistTar!U44 -> 0 | H44: =Prop2019DistTar!V44 -> 0 | I44: =Prop2019DistTar!W44 -> 0.1978 | J44: =Prop2019DistTar!X44 -> 0 | K44: =Prop2019DistTar!Y44 -> 0 | L44: =Prop2019DistTar!Z44 -> 0 | M44: =Prop2019DistTar!AA44 -> 35.7566 | N44: =Prop2019DistTar!AB44 -> 58.6082 | O44: =Prop2019DistTar!AC44 -> 0 | P44: =Prop2019DistTar!AD44 -> 0 | R44: 53.145108 | S44: 281245838.6 | T44: 0 | U44: 0 | V44: 0 | W44: 236135255.2 | X44: 0 | Y44: 0 | Z44: 0 | AA44: 170762.5024 | AB44: 81510.87482 | AC44: 0 | AD44: 0 | AF44: 276779.7225 | AG44: 1375292.151 | AH44: 0 | AI44: 0 | AJ44: 0 | AK44: 467075.5348 | AL44: 0 | AM44: 0 | AN44: 0 | AO44: 6105886.494 | AP44: 4777205.654 | AQ44: 0 | AR44: 0 | AS44: 13002239.56
B45: =Prop2019DistTar!C45 -> NSP82 Traction | D45: =Prop2019DistTar!R45 -> 5208 | E45: =Prop2019DistTar!S45 -> 0.432 | F45: =Prop2019DistTar!T45 -> 0.432 | G45: =Prop2019DistTar!U45 -> 0 | H45: =Prop2019DistTar!V45 -> 0 | I45: =Prop2019DistTar!W45 -> 0.3681 | J45: =Prop2019DistTar!X45 -> 0 | K45: =Prop2019DistTar!Y45 -> 0 | L45: =Prop2019DistTar!Z45 -> 0 | M45: =Prop2019DistTar!AA45 -> 32.78 | N45: =Prop2019DistTar!AB45 -> 53.6348 | O45: =Prop2019DistTar!AC45 -> 0 | P45: =Prop2019DistTar!AD45 -> 0 | R45: 23.062968 | S45: 31409369.65 | T45: 17945948.4 | U45: 0 | V45: 0 | W45: 37014152.49 | X45: 0 | Y45: 0 | Z45: 0 | AA45: 38774.11056 | AB45: 20633.29951 | AC45: 0 | AD45: 0 | AF45: 120111.9373 | AG45: 135688.4769 | AH45: 77526.49711 | AI45: 0 | AJ45: 0 | AK45: 136249.0953 | AL45: 0 | AM45: 0 | AN45: 0 | AO45: 1271015.344 | AP45: 1106662.892 | AQ45: 0 | AR45: 0 | AS45: 2847254.243
B46: =Prop2019DistTar!C46 -> NSP83 Small HV | D46: =Prop2019DistTar!R46 -> 5208 | E46: =Prop2019DistTar!S46 -> 8.7673 | F46: =Prop2019DistTar!T46 -> 3.0677 | G46: =Prop2019DistTar!U46 -> 0 | H46: =Prop2019DistTar!V46 -> 0 | I46: =Prop2019DistTar!W46 -> 0.9554 | J46: =Prop2019DistTar!X46 -> 0 | K46: =Prop2019DistTar!Y46 -> 0 | L46: =Prop2019DistTar!Z46 -> 0 | M46: =Prop2019DistTar!AA46 -> 3.81795 | N46: =Prop2019DistTar!AB46 -> 6.3138 | O46: =Prop2019DistTar!AC46 -> 0 | P46: =Prop2019DistTar!AD46 -> 0 | R46: 22.06023 | S46: 3637611.16 | T46: 2483479.842 | U46: 0 | V46: 0 | W46: 5461639.357 | X46: 0 | Y46: 0 | Z46: 0 | AA46: 22391.39944 | AB46: 5565.790242 | AC46: 0 | AD46: 0 | AF46: 114889.6778 | AG46: 318920.2832 | AH46: 76185.71111 | AI46: 0 | AJ46: 0 | AK46: 52180.50242 | AL46: 0 | AM46: 0 | AN46: 0 | AO46: 85489.24351 | AP46: 35141.28643 | AQ46: 0 | AR46: 0 | AS46: 682806.7045
B47: =Prop2019DistTar!C47 -> NSP91 ST kVA | D47: =Prop2019DistTar!R47 -> 18504 | E47: =Prop2019DistTar!S47 -> 0.4714 | F47: =Prop2019DistTar!T47 -> 0 | G47: =Prop2019DistTar!U47 -> 0 | H47: =Prop2019DistTar!V47 -> 0 | I47: =Prop2019DistTar!W47 -> 0.0444 | J47: =Prop2019DistTar!X47 -> 0 | K47: =Prop2019DistTar!Y47 -> 0 | L47: =Prop2019DistTar!Z47 -> 0 | M47: =Prop2019DistTar!AA47 -> 2.385 | N47: =Prop2019DistTar!AB47 -> 3.938 | O47: =Prop2019DistTar!AC47 -> 0 | P47: =Prop2019DistTar!AD47 -> 0 | AF47: 0 | AG47: 0 | AH47: 0 | AI47: 0 | AJ47: 0 | AK47: 0 | AL47: 0 | AM47: 0 | AN47: 0 | AO47: 0 | AP47: 0 | AQ47: 0 | AR47: 0 | AS47: 0
B48: =Prop2019DistTar!C48 -> NEE93 Latrobe Generators kVA (non published) | D48: =Prop2019DistTar!R48 -> 0 | E48: =Prop2019DistTar!S48 -> 0.93015 | F48: =Prop2019DistTar!T48 -> 0 | G48: =Prop2019DistTar!U48 -> 0 | H48: =Prop2019DistTar!V48 -> 0 | I48: =Prop2019DistTar!W48 -> 0.9301 | J48: =Prop2019DistTar!X48 -> 0 | K48: =Prop2019DistTar!Y48 -> 0 | L48: =Prop2019DistTar!Z48 -> 0 | M48: =Prop2019DistTar!AA48 -> 0 | N48: =Prop2019DistTar!AB48 -> 0 | O48: =Prop2019DistTar!AC48 -> 0 | P48: =Prop2019DistTar!AD48 -> 0 | AF48: 0 | AG48: 0 | AH48: 0 | AI48: 0 | AJ48: 0 | AK48: 0 | AL48: 0 | AM48: 0 | AN48: 0 | AO48: 0 | AP48: 0 | AQ48: 0 | AR48: 0 | AS48: 0
B49: =Prop2019DistTar!C49 -> NSP94 - ST kVA >25MVA <20kM | D49: =Prop2019DistTar!R49 -> 18504 | E49: =Prop2019DistTar!S49 -> 0.4388 | F49: =Prop2019DistTar!T49 -> 0 | G49: =Prop2019DistTar!U49 -> 0 | H49: =Prop2019DistTar!V49 -> 0 | I49: =Prop2019DistTar!W49 -> 0.0282 | J49: =Prop2019DistTar!X49 -> 0 | K49: =Prop2019DistTar!Y49 -> 0 | L49: =Prop2019DistTar!Z49 -> 0 | M49: =Prop2019DistTar!AA49 -> 1.7841 | N49: =Prop2019DistTar!AB49 -> 2.9582 | O49: =Prop2019DistTar!AC49 -> 0 | P49: =Prop2019DistTar!AD49 -> 0 | AF49: 0 | AG49: 0 | AH49: 0 | AI49: 0 | AJ49: 0 | AK49: 0 | AL49: 0 | AM49: 0 | AN49: 0 | AO49: 0 | AP49: 0 | AQ49: 0 | AR49: 0 | AS49: 0
B50: =Prop2019DistTar!C50 -> NSP95 - ST kVA <25MVA >20kM | D50: =Prop2019DistTar!R50 -> 18504 | E50: =Prop2019DistTar!S50 -> 0.5012 | F50: =Prop2019DistTar!T50 -> 0 | G50: =Prop2019DistTar!U50 -> 0 | H50: =Prop2019DistTar!V50 -> 0 | I50: =Prop2019DistTar!W50 -> 0.0631 | J50: =Prop2019DistTar!X50 -> 0 | K50: =Prop2019DistTar!Y50 -> 0 | L50: =Prop2019DistTar!Z50 -> 0 | M50: =Prop2019DistTar!AA50 -> 3.6976 | N50: =Prop2019DistTar!AB50 -> 6.1381 | O50: =Prop2019DistTar!AC50 -> 0 | P50: =Prop2019DistTar!AD50 -> 0 | AF50: 0 | AG50: 0 | AH50: 0 | AI50: 0 | AJ50: 0 | AK50: 0 | AL50: 0 | AM50: 0 | AN50: 0 | AO50: 0 | AP50: 0 | AQ50: 0 | AR50: 0 | AS50: 0
B51: =Prop2019DistTar!C51 -> NASN19 - Business >40MWh Single Rate | D51: =Prop2019DistTar!R51 -> 109 | E51: =Prop2019DistTar!S51 -> 13.6453 | F51: =Prop2019DistTar!T51 -> 13.6453 | G51: =Prop2019DistTar!U51 -> 0 | H51: =Prop2019DistTar!V51 -> 0 | I51: =Prop2019DistTar!W51 -> 0 | J51: =Prop2019DistTar!X51 -> 0 | K51: =Prop2019DistTar!Y51 -> 0 | L51: =Prop2019DistTar!Z51 -> 0 | M51: =Prop2019DistTar!AA51 -> 0.4485 | N51: =Prop2019DistTar!AB51 -> 1.7838 | O51: =Prop2019DistTar!AC51 -> 0 | P51: =Prop2019DistTar!AD51 -> 0 | R51: 983.655954 | S51: 55069964.73 | T51: 0 | U51: 0 | V51: 0 | W51: 0 | X51: 0 | Y51: 0 | Z51: 0 | AA51: 161316.4062 | AB51: 59935.05896 | AC51: 0 | AD51: 0 | AF51: 107218.499 | AG51: 7514461.897 | AH51: 0 | AI51: 0 | AJ51: 0 | AK51: 0 | AL51: 0 | AM51: 0 | AN51: 0 | AO51: 72350.4082 | AP51: 106912.1582 | AQ51: 0 | AR51: 0 | AS51: 7800942.962
B52: =Prop2019DistTar!C52 -> NASN21 - Business >40MWh Two Rate | D52: =Prop2019DistTar!R52 -> 109 | E52: =Prop2019DistTar!S52 -> 14.2516 | F52: =Prop2019DistTar!T52 -> 0 | G52: =Prop2019DistTar!U52 -> 0 | H52: =Prop2019DistTar!V52 -> 0 | I52: =Prop2019DistTar!W52 -> 3.0808 | J52: =Prop2019DistTar!X52 -> 0 | K52: =Prop2019DistTar!Y52 -> 2.3897 | L52: =Prop2019DistTar!Z52 -> 0 | M52: =Prop2019DistTar!AA52 -> 0.4485 | N52: =Prop2019DistTar!AB52 -> 1.7838 | O52: =Prop2019DistTar!AC52 -> 0 | P52: =Prop2019DistTar!AD52 -> 0 | R52: 7841.033922 | S52: 303276787.8 | T52: 0 | U52: 0 | V52: 0 | W52: 249711097.3 | X52: 0 | Y52: -2932053.21 | Z52: 0 | AA52: 1676516.055 | AB52: 637121.7997 | AC52: 0 | AD52: 0 | AF52: =D52*R52 -> 854672.6975 | AG52: =E52/100*S52 -> 43221794.69 | AH52: =F52/100*T52 -> 0 | AI52: =G52/100*U52 -> 0 | AJ52: =H52/100*V52 -> 0 | AK52: =I52/100*W52 -> 7693099.484 | AL52: =J52/100*X52 -> 0 | AM52: =K52/100*Y52 -> -70067.27556 | AN52: =L52/100*Z52 -> 0 | AO52: =M52*AA52 -> 751917.4505 | AP52: =N52*AB52 -> 1136497.866 | AQ52: =O52*AC52 -> 0 | AR52: =P52*AD52 -> 0 | AS52: =SUM(AF52:AR52) -> 53587914.92
B53: =Prop2019DistTar!C53 -> NASN11 - Residential Single Rate | D53: =Prop2019DistTar!R53 -> 109 | E53: =Prop2019DistTar!S53 -> 5.254 | F53: =Prop2019DistTar!T53 -> 5.254 | G53: =Prop2019DistTar!U53 -> 0 | H53: =Prop2019DistTar!V53 -> 0 | I53: =Prop2019DistTar!W53 -> 0 | J53: =Prop2019DistTar!X53 -> 0 | K53: =Prop2019DistTar!Y53 -> 2.3897 | L53: =Prop2019DistTar!Z53 -> 0 | M53: =Prop2019DistTar!AA53 -> 2.2278 | N53: =Prop2019DistTar!AB53 -> 8.9111 | O53: =Prop2019DistTar!AC53 -> 0 | P53: =Prop2019DistTar!AD53 -> 0 | R53: 10 | S53: 75000 | T53: 0 | U53: 0 | V53: 0 | W53: 0 | X53: 0 | Y53: 0 | Z53: 0 | AA53: 352 | AB53: 220 | AC53: 0 | AD53: 0 | AF53: 1090 | AG53: 3940.5 | AH53: 0 | AI53: 0 | AJ53: 0 | AK53: 0 | AL53: 0 | AM53: 0 | AN53: 0 | AO53: 784.1856 | AP53: 1960.442 | AQ53: 0 | AR53: 0 | AS53: 7775.1276
B54: =Prop2019DistTar!C54 -> NASN12 - Business Single Rate | D54: =Prop2019DistTar!R54 -> 109 | E54: =Prop2019DistTar!S54 -> 10.8005 | F54: =Prop2019DistTar!T54 -> 10.8005 | G54: =Prop2019DistTar!U54 -> 0 | H54: =Prop2019DistTar!V54 -> 0 | I54: =Prop2019DistTar!W54 -> 0 | J54: =Prop2019DistTar!X54 -> 0 | K54: =Prop2019DistTar!Y54 -> 2.3897 | L54: =Prop2019DistTar!Z54 -> 0 | M54: =Prop2019DistTar!AA54 -> 2.2278 | N54: =Prop2019DistTar!AB54 -> 8.9111 | O54: =Prop2019DistTar!AC54 -> 0 | P54: =Prop2019DistTar!AD54 -> 0 | R54: 5 | S54: 75000 | T54: 0 | U54: 0 | V54: 0 | W54: 0 | X54: 0 | Y54: 0 | Z54: 0 | AA54: 384 | AB54: 240 | AC54: 0 | AD54: 0 | AF54: 545 | AG54: 8100.375 | AH54: 0 | AI54: 0 | AJ54: 0 | AK54: 0 | AL54: 0 | AM54: 0 | AN54: 0 | AO54: 855.4752 | AP54: 2138.664 | AQ54: 0 | AR54: 0 | AS54: 11639.5142
AF55: 0 | AG55: 0 | AH55: 0 | AI55: 0 | AJ55: 0 | AK55: 0 | AL55: 0 | AM55: 0 | AN55: 0 | AO55: 0 | AP55: 0 | AQ55: 0 | AR55: 0 | AS55: 0
AF56: 0 | AG56: 0 | AH56: 0 | AI56: 0 | AJ56: 0 | AK56: 0 | AL56: 0 | AM56: 0 | AN56: 0 | AO56: 0 | AP56: 0 | AQ56: 0 | AR56: 0 | AS56: 0
AF57: 0 | AG57: 0 | AH57: 0 | AI57: 0 | AJ57: 0 | AK57: 0 | AL57: 0 | AM57: 0 | AN57: 0 | AO57: 0 | AP57: 0 | AQ57: 0 | AR57: 0 | AS57: 0
AF58: 0 | AG58: 0 | AH58: 0 | AI58: 0 | AJ58: 0 | AK58: 0 | AL58: 0 | AM58: 0 | AN58: 0 | AO58: 0 | AP58: 0 | AQ58: 0 | AR58: 0 | AS58: 0
AF59: 0 | AG59: 0 | AH59: 0 | AI59: 0 | AJ59: 0 | AK59: 0 | AL59: 0 | AM59: 0 | AN59: 0 | AO59: 0 | AP59: 0 | AQ59: 0 | AR59: 0 | AS59: 0
AF60: 0 | AG60: 0 | AH60: 0 | AI60: 0 | AJ60: 0 | AK60: 0 | AL60: 0 | AM60: 0 | AN60: 0 | AO60: 0 | AP60: 0 | AQ60: 0 | AR60: 0 | AS60: 0
AF61: 0 | AG61: 0 | AH61: 0 | AI61: 0 | AJ61: 0 | AK61: 0 | AL61: 0 | AM61: 0 | AN61: 0 | AO61: 0 | AP61: 0 | AQ61: 0 | AR61: 0 | AS61: 0
AF62: 0 | AG62: 0 | AH62: 0 | AI62: 0 | AJ62: 0 | AK62: 0 | AL62: 0 | AM62: 0 | AN62: 0 | AO62: 0 | AP62: 0 | AQ62: 0 | AR62: 0 | AS62: 0
AF63: 0 | AG63: 0 | AH63: 0 | AI63: 0 | AJ63: 0 | AK63: 0 | AL63: 0 | AM63: 0 | AN63: 0 | AO63: 0 | AP63: 0 | AQ63: 0 | AR63: 0 | AS63: 0
AF64: 0 | AG64: 0 | AH64: 0 | AI64: 0 | AJ64: 0 | AK64: 0 | AL64: 0 | AM64: 0 | AN64: 0 | AO64: 0 | AP64: 0 | AQ64: 0 | AR64: 0 | AS64: 0
AF65: 0 | AG65: 0 | AH65: 0 | AI65: 0 | AJ65: 0 | AK65: 0 | AL65: 0 | AM65: 0 | AN65: 0 | AO65: 0 | AP65: 0 | AQ65: 0 | AR65: 0 | AS65: 0
R66: =SUM(R6:R65) -> 834782.9534 | S66: 3439293648 | T66: 1280231562 | U66: 3565137.22 | V66: 0 | W66: 2235307579 | X66: 0 | Y66: -207125386 | Z66: 0 | AA66: 2859709.346 | AB66: 1190241.914 | AC66: 0 | AD66: 0 | AF66: =SUM(AF6:AF65) -> 90378820.09 | AG66: 304338975 | AH66: 104677440.1 | AI66: 304085.1095 | AJ66: 0 | AK66: 48461725.93 | AL66: 0 | AM66: =SUM(AM6:AM65) -> -4949675.349 | AN66: 0 | AO66: 39813758.55 | AP66: 33757888.28 | AQ66: 0 | AR66: 0 | AS66: =SUM(AS6:AS65) -> 616783017.8

Sheet Prop2019TransTar
B1: ="Tariff Approval - "&'Model update'!C3 -> Tariff Approval - AusNet Services
B3: ="PROPOSED "&'Model update'!$C$5&" TRANSMISSION TARIFFS" -> PROPOSED 2019 TRANSMISSION TARIFFS
D4: ="Proposed Transmission Tariffs (Pt) for "&'Model update'!$C$5 -> Proposed Transmission Tariffs (Pt) for 2019 | R4: ="Forecast Quantities (Qt) for "&'Model update'!$C$5 -> Forecast Quantities (Qt) for 2019 | AF4: ="Forecast Revenue (Pt "&'Model update'!$C$5&")*(Qt " &'Model update'!$C$5&")" -> Forecast Revenue (Pt 2019)*(Qt 2019)
B5: Proposed tariff | D5: PropTar Fixed | E5: PropTar PkBlk1 | F5: PropTar PkBlk2 | G5: PropTar PkBlk3 | H5: PropTar PkBlk4 | I5: PropTar OPkBlk1 | J5: PropTar OPkBlk2 | K5: PropTar OPkBlk3 | L5: PropTar OPkBlk4 | M5: PropTar DemBlk1 | N5: PropTar DemBlk2 | O5: PropTar DemBlk3 | P5: PropTar DemBlk4 | R5: FcastVol Fixed | S5: FcastVol PkBlk1 | T5: FcastVol PkBlk2 | U5: FcastVol PkBlk3 | V5: FcastVol PkBlk4 | W5: FcastVol OPkBlk1 | X5: FcastVol OPkBlk2 | Y5: FcastVol OPkBlk3 | Z5: FcastVol OPkBlk4 | AA5: FcastVol DemBlk1 | AB5: FcastVol DemBlk2 | AC5: FcastVol DemBlk3 | AD5: FcastVol DemBlk4 | AF5: PropRev Fixed | AG5: PropRev PkBlk1 | AH5: PropRev PkBlk2 | AI5: PropRev PkBlk3 | AJ5: PropRev PkBlk4 | AK5: PropRev OPkBlk1 | AL5: PropRev OPkBlk2 | AM5: PropRev OPkBlk3 | AN5: PropRev OPkBlk4 | AO5: PropRev DemBlk1 | AP5: PropRev DemBlk2 | AQ5: PropRev DemBlk3 | AR5: PropRev DemBlk4 | AS5: PropRev SumBlk1
B6: =Prop2019DistTar!B6 -> NEE11 Small Single Rate < 160MWh | D6: 0 | E6: 1.4266 | F6: 1.4266 | G6: 0 | H6: 0 | I6: 0 | J6: 0 | K6: 0 | L6: 0 | M6: 0 | N6: 0 | O6: 0 | P6: 0 | R6: =Prop2019DistTar!AF6 -> 491445.6539 | S6: =Prop2019DistTar!AG6 -> 1306238592 | T6: =Prop2019DistTar!AH6 -> 728544600.8 | U6: =Prop2019DistTar!AI6 -> 0 | V6: =Prop2019DistTar!AJ6 -> 0 | W6: =Prop2019DistTar!AK6 -> 0 | X6: =Prop2019DistTar!AL6 -> 0 | Y6: =Prop2019DistTar!AM6 -> 0 | Z6: =Prop2019DistTar!AN6 -> 0 | AA6: =Prop2019DistTar!AO6 -> 0 | AB6: =Prop2019DistTar!AP6 -> 0 | AC6: =Prop2019DistTar!AQ6 -> 0 | AD6: =Prop2019DistTar!AR6 -> 0 | AF6: =D6*R6 -> 0 | AG6: =E6/100*S6 -> 18634799.76 | AH6: 10393417.27 | AI6: 0 | AJ6: 0 | AK6: 0 | AL6: 0 | AM6: 0 | AN6: 0 | AO6: =M6*AA6 -> 0 | AP6: 0 | AQ6: 0 | AR6: 0 | AS6: =SUM(AF6:AR6) -> 29028217.03
B7: =Prop2019DistTar!B7 -> NGT11 Small Interval Single Rate < 160MWh | D7: 0 | E7: 1.4261 | F7: 0 | G7: 0 | H7: 0 | I7: 0 | J7: 0 | K7: 0 | L7: 0 | M7: 0 | N7: 0 | O7: 0 | P7: 0 | R7: =Prop2019DistTar!AF7 -> 3 | S7: =Prop2019DistTar!AG7 -> 19756.14545 | T7: =Prop2019DistTar!AH7 -> 0 | U7: =Prop2019DistTar!AI7 -> 0 | V7: =Prop2019DistTar!AJ7 -> 0 | W7: =Prop2019DistTar!AK7 -> 0 | X7: =Prop2019DistTar!AL7 -> 0 | Y7: =Prop2019DistTar!AM7 -> 0 | Z7: =Prop2019DistTar!AN7 -> 0 | AA7: =Prop2019DistTar!AO7 -> 0 | AB7: =Prop2019DistTar!AP7 -> 0 | AC7: =Prop2019DistTar!AQ7 -> 0 | AD7: =Prop2019DistTar!AR7 -> 0 | AF7: 0 | AG7: 281.7423903 | AH7: 0 | AI7: 0 | AJ7: 0 | AK7: 0 | AL7: 0 | AM7: 0 | AN7: 0 | AO7: 0 | AP7: 0 | AQ7: 0 | AR7: 0 | AS7: 281.7423903
B8: =Prop2019DistTar!B8 -> NSP11 Small Single Rate < 160MWh | D8: 0 | E8: 1.4261 | F8: 1.4261 | G8: 1.4261 | H8: 0 | I8: 0.3977 | J8: 0 | K8: 0 | L8: 0 | M8: 0 | N8: 0 | O8: 0 | P8: 0 | R8: =Prop2019DistTar!AF8 -> 0 | S8: =Prop2019DistTar!AG8 -> 0 | T8: =Prop2019DistTar!AH8 -> 0 | U8: =Prop2019DistTar!AI8 -> 0 | V8: =Prop2019DistTar!AJ8 -> 0 | W8: =Prop2019DistTar!AK8 -> 0 | X8: =Prop2019DistTar!AL8 -> 0 | Y8: =Prop2019DistTar!AM8 -> 0 | Z8: =Prop2019DistTar!AN8 -> 0 | AA8: =Prop2019DistTar!AO8 -> 0 | AB8: =Prop2019DistTar!AP8 -> 0 | AC8: =Prop2019DistTar!AQ8 -> 0 | AD8: =Prop2019DistTar!AR8 -> 0 | AF8: 0 | AG8: 0 | AH8: 0 | AI8: 0 | AJ8: 0 | AK8: 0 | AL8: 0 | AM8: 0 | AN8: 0 | AO8: 0 | AP8: 0 | AQ8: 0 | AR8: 0 | AS8: 0
B9: =Prop2019DistTar!B9 -> NEN11 Small Single Rate < 160MWh Embedded Network | D9: 0 | E9: 1.4261 | F9: 1.4261 | G9: 0 | H9: 0 | I9: 0 | J9: 0 | K9: 0 | L9: 0 | M9: 0 | N9: 0 | O9: 0 | P9: 0 | R9: =Prop2019DistTar!AF9 -> 0 | S9: =Prop2019DistTar!AG9 -> 0 | T9: =Prop2019DistTar!AH9 -> 0 | U9: =Prop2019DistTar!AI9 -> 0 | V9: =Prop2019DistTar!AJ9 -> 0 | W9: =Prop2019DistTar!AK9 -> 0 | X9: =Prop2019DistTar!AL9 -> 0 | Y9: =Prop2019DistTar!AM9 -> 0 | Z9: =Prop2019DistTar!AN9 -> 0 | AA9: =Prop2019DistTar!AO9 -> 0 | AB9: =Prop2019DistTar!AP9 -> 0 | AC9: =Prop2019DistTar!AQ9 -> 0 | AD9: =Prop2019DistTar!AR9 -> 0 | AF9: 0 | AG9: 0 | AH9: 0 | AI9: 0 | AJ9: 0 | AK9: 0 | AL9: 0 | AM9: 0 | AN9: 0 | AO9: 0 | AP9: 0 | AQ9: 0 | AR9: 0 | AS9: 0
B10: =Prop2019DistTar!B10 -> NEE12 Small Business Single Rate - new in 2001 | D10: 0 | E10: 1.4266 | F10: 1.4266 | G10: 0 | H10: 0 | I10: 0 | J10: 0 | K10: 0 | L10: 0 | M10: 0 | N10: 0 | O10: 0 | P10: 0 | R10: =Prop2019DistTar!AF10 -> 28657.76573 | S10: =Prop2019DistTar!AG10 -> 53819826.96 | T10: =Prop2019DistTar!AH10 -> 112036706.5 | U10: =Prop2019DistTar!AI10 -> 0 | V10: =Prop2019DistTar!AJ10 -> 0 | W10: =Prop2019DistTar!AK10 -> 0 | X10: =Prop2019DistTar!AL10 -> 0 | Y10: =Prop2019DistTar!AM10 -> 0 | Z10: =Prop2019DistTar!AN10 -> 0 | AA10: =Prop2019DistTar!AO10 -> 0 | AB10: =Prop2019DistTar!AP10 -> 0 | AC10: =Prop2019DistTar!AQ10 -> 0 | AD10: =Prop2019DistTar!AR10 -> 0 | AF10: 0 | AG10: 767793.6514 | AH10: 1598315.656 | AI10: 0 | AJ10: 0 | AK10: 0 | AL10: 0 | AM10: 0 | AN10: 0 | AO10: 0 | AP10: 0 | AQ10: 0 | AR10: 0 | AS10: 2366109.307
B11: =Prop2019DistTar!B11 -> NSP12 Small Business Single Rate - new in 2001 | D11: 0 | E11: 1.4261 | F11: 1.4261 | G11: 1.4261 | H11: 0 | I11: 0.3977 | J11: 0 | K11: 0 | L11: 0 | M11: 0 | N11: 0 | O11: 0 | P11: 0 | R11: =Prop2019DistTar!AF11 -> 0 | S11: =Prop2019DistTar!AG11 -> 0 | T11: =Prop2019DistTar!AH11 -> 0 | U11: =Prop2019DistTar!AI11 -> 0 | V11: =Prop2019DistTar!AJ11 -> 0 | W11: =Prop2019DistTar!AK11 -> 0 | X11: =Prop2019DistTar!AL11 -> 0 | Y11: =Prop2019DistTar!AM11 -> 0 | Z11: =Prop2019DistTar!AN11 -> 0 | AA11: =Prop2019DistTar!AO11 -> 0 | AB11: =Prop2019DistTar!AP11 -> 0 | AC11: =Prop2019DistTar!AQ11 -> 0 | AD11: =Prop2019DistTar!AR11 -> 0 | AF11: 0 | AG11: 0 | AH11: 0 | AI11: 0 | AJ11: 0 | AK11: 0 | AL11: 0 | AM11: 0 | AN11: 0 | AO11: 0 | AP11: 0 | AQ11: 0 | AR11: 0 | AS11: 0
B12: =Prop2019DistTar!B12 -> NEN12 Small Business Single Rate - Embedded Network | D12: 0 | E12: 1.4261 | F12: 1.4261 | G12: 0 | H12: 0 | I12: 0 | J12: 0 | K12: 0 | L12: 0 | M12: 0 | N12: 0 | O12: 0 | P12: 0 | R12: =Prop2019DistTar!AF12 -> 0 | S12: =Prop2019DistTar!AG12 -> 0 | T12: =Prop2019DistTar!AH12 -> 0 | U12: =Prop2019DistTar!AI12 -> 0 | V12: =Prop2019DistTar!AJ12 -> 0 | W12: =Prop2019DistTar!AK12 -> 0 | X12: =Prop2019DistTar!AL12 -> 0 | Y12: =Prop2019DistTar!AM12 -> 0 | Z12: =Prop2019DistTar!AN12 -> 0 | AA12: =Prop2019DistTar!AO12 -> 0 | AB12: =Prop2019DistTar!AP12 -> 0 | AC12: =Prop2019DistTar!AQ12 -> 0 | AD12: =Prop2019DistTar!AR12 -> 0 | AF12: 0 | AG12: 0 | AH12: 0 | AI12: 0 | AJ12: 0 | AK12: 0 | AL12: 0 | AM12: 0 | AN12: 0 | AO12: 0 | AP12: 0 | AQ12: 0 | AR12: 0 | AS12: 0
B13: =Prop2019DistTar!B13 -> NEE20 Small Two Rate | D13: 0 | E13: 1.4266 | F13: 0 | G13: 0 | H13: 0 | I13: 0.3977 | J13: 0 | K13: 0 | L13: 0 | M13: 0 | N13: 0 | O13: 0 | P13: 0 | R13: =Prop2019DistTar!AF13 -> 53978.5 | S13: =Prop2019DistTar!AG13 -> 147773972.1 | T13: =Prop2019DistTar!AH13 -> 0 | U13: =Prop2019DistTar!AI13 -> 0 | V13: =Prop2019DistTar!AJ13 -> 0 | W13: =Prop2019DistTar!AK13 -> 200142110.8 | X13: =Prop2019DistTar!AL13 -> 0 | Y13: =Prop2019DistTar!AM13 -> 0 | Z13: =Prop2019DistTar!AN13 -> 0 | AA13: =Prop2019DistTar!AO13 -> 0 | AB13: =Prop2019DistTar!AP13 -> 0 | AC13: =Prop2019DistTar!AQ13 -> 0 | AD13: =Prop2019DistTar!AR13 -> 0 | AF13: 0 | AG13: 2108143.486 | AH13: 0 | AI13: 0 | AJ13: 0 | AK13: 795965.1747 | AL13: 0 | AM13: 0 | AN13: 0 | AO13: 0 | AP13: 0 | AQ13: 0 | AR13: 0 | AS13: 2904108.661
B14: =Prop2019DistTar!B14 -> NSP20 Small Two Rate | D14: 0 | E14: 1.4261 | F14: 1.4261 | G14: 1.4261 | H14: 0 | I14: 0.3977 | J14: 0 | K14: 0 | L14: 0 | M14: 0 | N14: 0 | O14: 0 | P14: 0 | R14: =Prop2019DistTar!AF14 -> 8 | S14: =Prop2019DistTar!AG14 -> 4876.412115 | T14: =Prop2019DistTar!AH14 -> 5277.618428 | U14: =Prop2019DistTar!AI14 -> 3651.265938 | V14: =Prop2019DistTar!AJ14 -> 0 | W14: =Prop2019DistTar!AK14 -> 79729.67288 | X14: =Prop2019DistTar!AL14 -> 0 | Y14: =Prop2019DistTar!AM14 -> 0 | Z14: =Prop2019DistTar!AN14 -> 0 | AA14: =Prop2019DistTar!AO14 -> 0 | AB14: =Prop2019DistTar!AP14 -> 0 | AC14: =Prop2019DistTar!AQ14 -> 0 | AD14: =Prop2019DistTar!AR14 -> 0 | AF14: 0 | AG14: 69.54251317 | AH14: 75.2641164 | AI14: 52.07070354 | AJ14: 0 | AK14: 317.0849091 | AL14: 0 | AM14: 0 | AN14: 0 | AO14: 0 | AP14: 0 | AQ14: 0 | AR14: 0 | AS14: 513.9622422
B15: =Prop2019DistTar!B15 -> NGT26 Small Interval Multi Rate | D15: 0 | E15: 1.4261 | F15: 1.4261 | G15: 1.4261 | H15: 1.4261 | I15: 0.3977 | J15: 0.3977 | K15: 0 | L15: 0 | M15: 0 | N15: 0 | O15: 0 | P15: 0 | R15: =Prop2019DistTar!AF15 -> 1576 | S15: =Prop2019DistTar!AG15 -> 1490394.785 | T15: =Prop2019DistTar!AH15 -> 0 | U15: =Prop2019DistTar!AI15 -> 3386074.403 | V15: =Prop2019DistTar!AJ15 -> 0 | W15: =Prop2019DistTar!AK15 -> 2683740.741 | X15: =Prop2019DistTar!AL15 -> 0 | Y15: =Prop2019DistTar!AM15 -> 0 | Z15: =Prop2019DistTar!AN15 -> 0 | AA15: =Prop2019DistTar!AO15 -> 0 | AB15: =Prop2019DistTar!AP15 -> 0 | AC15: =Prop2019DistTar!AQ15 -> 0 | AD15: =Prop2019DistTar!AR15 -> 0 | AF15: 0 | AG15: 21254.52003 | AH15: 0 | AI15: 48288.80706 | AJ15: 0 | AK15: 10673.23693 | AL15: 0 | AM15: 0 | AN15: 0 | AO15: 0 | AP15: 0 | AQ15: 0 | AR15: 0 | AS15: 80216.56402
B16: =Prop2019DistTar!B16 -> NEN20 Small Two Rate - Embedded Network | D16: 0 | E16: 1.4261 | F16: 0 | G16: 0 | H16: 0 | I16: 0.3977 | J16: 0 | K16: 0 | L16: 0 | M16: 0 | N16: 0 | O16: 0 | P16: 0 | R16: =Prop2019DistTar!AF16 -> 0 | S16: =Prop2019DistTar!AG16 -> 0 | T16: =Prop2019DistTar!AH16 -> 0 | U16: =Prop2019DistTar!AI16 -> 0 | V16: =Prop2019DistTar!AJ16 -> 0 | W16: =Prop2019DistTar!AK16 -> 0 | X16: =Prop2019DistTar!AL16 -> 0 | Y16: =Prop2019DistTar!AM16 -> 0 | Z16: =Prop2019DistTar!AN16 -> 0 | AA16: =Prop2019DistTar!AO16 -> 0 | AB16: =Prop2019DistTar!AP16 -> 0 | AC16: =Prop2019DistTar!AQ16 -> 0 | AD16: =Prop2019DistTar!AR16 -> 0 | AF16: 0 | AG16: 0 | AH16: 0 | AI16: 0 | AJ16: 0 | AK16: 0 | AL16: 0 | AM16: 0 | AN16: 0 | AO16: 0 | AP16: 0 | AQ16: 0 | AR16: 0 | AS16: 0
B17: =Prop2019DistTar!B17 -> NEE21 Small Business Two Rate | D17: 0 | E17: 1.4261 | F17: 0 | G17: 0 | H17: 0 | I17: 0.3977 | J17: 0 | K17: 0 | L17: 0 | M17: 0 | N17: 0 | O17: 0 | P17: 0 | R17: =Prop2019DistTar!AF17 -> 30298.98593 | S17: =Prop2019DistTar!AG17 -> 244202938.2 | T17: =Prop2019DistTar!AH17 -> 0 | U17: =Prop2019DistTar!AI17 -> 0 | V17: =Prop2019DistTar!AJ17 -> 0 | W17: =Prop2019DistTar!AK17 -> 173819160.2 | X17: =Prop2019DistTar!AL17 -> 0 | Y17: =Prop2019DistTar!AM17 -> -1010221.146 | Z17: =Prop2019DistTar!AN17 -> 0 | AA17: =Prop2019DistTar!AO17 -> 0 | AB17: =Prop2019DistTar!AP17 -> 0 | AC17: =Prop2019DistTar!AQ17 -> 0 | AD17: =Prop2019DistTar!AR17 -> 0 | AF17: 0 | AG17: 3482578.101 | AH17: 0 | AI17: 0 | AJ17: 0 | AK17: 691278.8002 | AL17: 0 | AM17: 0 | AN17: 0 | AO17: 0 | AP17: 0 | AQ17: 0 | AR17: 0 | AS17: 4173856.901
B18: =Prop2019DistTar!B18 -> NSP21 Small Business Two Rate | D18: 0 | E18: 1.4261 | F18: 1.4261 | G18: 1.4261 | H18: 0 | I18: 0.3977 | J18: 0 | K18: 0 | L18: 0 | M18: 0 | N18: 0 | O18: 0 | P18: 0 | R18: =Prop2019DistTar!AF18 -> 4 | S18: =Prop2019DistTar!AG18 -> 4011.951541 | T18: =Prop2019DistTar!AH18 -> 4533.154029 | U18: =Prop2019DistTar!AI18 -> 4704.920467 | V18: =Prop2019DistTar!AJ18 -> 0 | W18: =Prop2019DistTar!AK18 -> 73980.60355 | X18: =Prop2019DistTar!AL18 -> 0 | Y18: =Prop2019DistTar!AM18 -> -33.34174777 | Z18: =Prop2019DistTar!AN18 -> 0 | AA18: =Prop2019DistTar!AO18 -> 0 | AB18: =Prop2019DistTar!AP18 -> 0 | AC18: =Prop2019DistTar!AQ18 -> 0 | AD18: =Prop2019DistTar!AR18 -> 0 | AF18: 0 | AG18: 57.21444093 | AH18: 64.64730961 | AI18: 67.09687078 | AJ18: 0 | AK18: 294.2208603 | AL18: 0 | AM18: 0 | AN18: 0 | AO18: 0 | AP18: 0 | AQ18: 0 | AR18: 0 | AS18: 483.1794816
B19: =Prop2019DistTar!B19 -> NSP27 Small Business Two Rate | D19: 0 | E19: 1.4261 | F19: 1.4261 | G19: 1.4261 | H19: 0 | I19: 0.3977 | J19: 0 | K19: 0 | L19: 0 | M19: 0 | N19: 0 | O19: 0 | P19: 0 | R19: =Prop2019DistTar!AF19 -> 42.25 | S19: =Prop2019DistTar!AG19 -> 71727.5672 | T19: =Prop2019DistTar!AH19 -> 60197.70629 | U19: =Prop2019DistTar!AI19 -> 29438.85715 | V19: =Prop2019DistTar!AJ19 -> 0 | W19: =Prop2019DistTar!AK19 -> 1195104.277 | X19: =Prop2019DistTar!AL19 -> 0 | Y19: =Prop2019DistTar!AM19 -> 0 | Z19: =Prop2019DistTar!AN19 -> 0 | AA19: =Prop2019DistTar!AO19 -> 0 | AB19: =Prop2019DistTar!AP19 -> 0 | AC19: =Prop2019DistTar!AQ19 -> 0 | AD19: =Prop2019DistTar!AR19 -> 0 | AF19: 0 | AG19: 1022.906836 | AH19: 858.4794893 | AI19: 419.8275418 | AJ19: 0 | AK19: 4752.929711 | AL19: 0 | AM19: 0 | AN19: 0 | AO19: 0 | AP19: 0 | AQ19: 0 | AR19: 0 | AS19: 7054.143578
B20: =Prop2019DistTar!B20 -> NEN21 Small Business Two Rate - Embedded Network | D20: 0 | E20: 1.4261 | F20: 0 | G20: 0 | H20: 0 | I20: 0.3977 | J20: 0 | K20: 0 | L20: 0 | M20: 0 | N20: 0 | O20: 0 | P20: 0 | R20: =Prop2019DistTar!AF20 -> 0 | S20: =Prop2019DistTar!AG20 -> 0 | T20: =Prop2019DistTar!AH20 -> 0 | U20: =Prop2019DistTar!AI20 -> 0 | V20: =Prop2019DistTar!AJ20 -> 0 | W20: =Prop2019DistTar!AK20 -> 0 | X20: =Prop2019DistTar!AL20 -> 0 | Y20: =Prop2019DistTar!AM20 -> 0 | Z20: =Prop2019DistTar!AN20 -> 0 | AA20: =Prop2019DistTar!AO20 -> 0 | AB20: =Prop2019DistTar!AP20 -> 0 | AC20: =Prop2019DistTar!AQ20 -> 0 | AD20: =Prop2019DistTar!AR20 -> 0 | AF20: 0 | AG20: 0 | AH20: 0 | AI20: 0 | AJ20: 0 | AK20: 0 | AL20: 0 | AM20: 0 | AN20: 0 | AO20: 0 | AP20: 0 | AQ20: 0 | AR20: 0 | AS20: 0
B21: =Prop2019DistTar!B21 -> NEE23 Photovoltaic | D21: 0 | E21: 1.4261 | F21: 0 | G21: 0 | H21: 0 | I21: 0.3977 | J21: 0 | K21: 0 | L21: 0 | M21: 0 | N21: 0 | O21: 0 | P21: 0 | R21: =Prop2019DistTar!AF21 -> 114944.3998 | S21: =Prop2019DistTar!AG21 -> 218602633.5 | T21: =Prop2019DistTar!AH21 -> 0 | U21: =Prop2019DistTar!AI21 -> 0 | V21: =Prop2019DistTar!AJ21 -> 0 | W21: =Prop2019DistTar!AK21 -> 269974610.7 | X21: =Prop2019DistTar!AL21 -> 0 | Y21: =Prop2019DistTar!AM21 -> -171225823.1 | Z21: =Prop2019DistTar!AN21 -> 0 | AA21: =Prop2019DistTar!AO21 -> 0 | AB21: =Prop2019DistTar!AP21 -> 0 | AC21: =Prop2019DistTar!AQ21 -> 0 | AD21: =Prop2019DistTar!AR21 -> 0 | AF21: 0 | AG21: 3117492.157 | AH21: 0 | AI21: 0 | AJ21: 0 | AK21: 1073689.027 | AL21: 0 | AM21: 0 | AN21: 0 | AO21: 0 | AP21: 0 | AQ21: 0 | AR21: 0 | AS21: 4191181.183
B22: =Prop2019DistTar!B22 -> NSP23 Photovoltaic | D22: 0 | E22: 1.4261 | F22: 1.4261 | G22: 1.4261 | H22: 0 | I22: 0.3977 | J22: 0 | K22: 0 | L22: 0 | M22: 0 | N22: 0 | O22: 0 | P22: 0 | R22: =Prop2019DistTar!AF22 -> 107 | S22: =Prop2019DistTar!AG22 -> 6211.1656 | T22: =Prop2019DistTar!AH22 -> 6912.032779 | U22: =Prop2019DistTar!AI22 -> 38632.7258 | V22: =Prop2019DistTar!AJ22 -> 0 | W22: =Prop2019DistTar!AK22 -> 318210.954 | X22: =Prop2019DistTar!AL22 -> 0 | Y22: =Prop2019DistTar!AM22 -> -159391.5241 | Z22: =Prop2019DistTar!AN22 -> 0 | AA22: =Prop2019DistTar!AO22 -> 0 | AB22: =Prop2019DistTar!AP22 -> 0 | AC22: =Prop2019DistTar!AQ22 -> 0 | AD22: =Prop2019DistTar!AR22 -> 0 | AF22: 0 | AG22: 88.57743262 | AH22: 98.57249946 | AI22: 550.9413026 | AJ22: 0 | AK22: 1265.524964 | AL22: 0 | AM22: 0 | AN22: 0 | AO22: 0 | AP22: 0 | AQ22: 0 | AR22: 0 | AS22: 2003.616199
B23: =Prop2019DistTar!B23 -> NEE24 Small rate 5 day 8 to 8 | D23: 0 | E23: 1.4261 | F23: 0 | G23: 0 | H23: 0 | I23: 0.3977 | J23: 0 | K23: 0 | L23: 0 | M23: 0 | N23: 0 | O23: 0 | P23: 0 | R23: =Prop2019DistTar!AF23 -> 2389.626691 | S23: =Prop2019DistTar!AG23 -> 2918299.584 | T23: =Prop2019DistTar!AH23 -> 0 | U23: =Prop2019DistTar!AI23 -> 0 | V23: =Prop2019DistTar!AJ23 -> 0 | W23: =Prop2019DistTar!AK23 -> 7129830.673 | X23: =Prop2019DistTar!AL23 -> 0 | Y23: =Prop2019DistTar!AM23 -> 0 | Z23: =Prop2019DistTar!AN23 -> 0 | AA23: =Prop2019DistTar!AO23 -> 0 | AB23: =Prop2019DistTar!AP23 -> 0 | AC23: =Prop2019DistTar!AQ23 -> 0 | AD23: =Prop2019DistTar!AR23 -> 0 | AF23: 0 | AG23: 41617.87037 | AH23: 0 | AI23: 0 | AJ23: 0 | AK23: 28355.33658 | AL23: 0 | AM23: 0 | AN23: 0 | AO23: 0 | AP23: 0 | AQ23: 0 | AR23: 0 | AS23: 69973.20695
B24: =Prop2019DistTar!B24 -> NEE25 Small business rate 5 day 8 to 8 | D24: 0 | E24: 1.4261 | F24: 0 | G24: 0 | H24: 0 | I24: 0.3977 | J24: 0 | K24: 0 | L24: 0 | M24: 0 | N24: 0 | O24: 0 | P24: 0 | R24: =Prop2019DistTar!AF24 -> 4 | S24: =Prop2019DistTar!AG24 -> 99442.66781 | T24: =Prop2019DistTar!AH24 -> 0 | U24: =Prop2019DistTar!AI24 -> 0 | V24: =Prop2019DistTar!AJ24 -> 0 | W24: =Prop2019DistTar!AK24 -> 93117.22125 | X24: =Prop2019DistTar!AL24 -> 0 | Y24: =Prop2019DistTar!AM24 -> 0 | Z24: =Prop2019DistTar!AN24 -> 0 | AA24: =Prop2019DistTar!AO24 -> 0 | AB24: =Prop2019DistTar!AP24 -> 0 | AC24: =Prop2019DistTar!AQ24 -> 0 | AD24: =Prop2019DistTar!AR24 -> 0 | AF24: 0 | AG24: 1418.151886 | AH24: 0 | AI24: 0 | AJ24: 0 | AK24: 370.3271889 | AL24: 0 | AM24: 0 | AN24: 0 | AO24: 0 | AP24: 0 | AQ24: 0 | AR24: 0 | AS24: 1788.479075
B25: =Prop2019DistTar!B25 -> NEE30 Small Dedicated | D25: 0 | E25: 0 | F25: 0 | G25: 0 | H25: 0 | I25: 0.3977 | J25: 0 | K25: 0 | L25: 0 | M25: 0 | N25: 0 | O25: 0 | P25: 0 | R25: =Prop2019DistTar!AF25 -> 91299.7941 | S25: =Prop2019DistTar!AG25 -> 0 | T25: =Prop2019DistTar!AH25 -> 0 | U25: =Prop2019DistTar!AI25 -> 0 | V25: =Prop2019DistTar!AJ25 -> 0 | W25: =Prop2019DistTar!AK25 -> 123463212.2 | X25: =Prop2019DistTar!AL25 -> 0 | Y25: =Prop2019DistTar!AM25 -> 0 | Z25: =Prop2019DistTar!AN25 -> 0 | AA25: =Prop2019DistTar!AO25 -> 0 | AB25: =Prop2019DistTar!AP25 -> 0 | AC25: =Prop2019DistTar!AQ25 -> 0 | AD25: =Prop2019DistTar!AR25 -> 0 | AF25: 0 | AG25: 0 | AH25: 0 | AI25: 0 | AJ25: 0 | AK25: 491013.1948 | AL25: 0 | AM25: 0 | AN25: 0 | AO25: 0 | AP25: 0 | AQ25: 0 | AR25: 0 | AS25: 491013.1948
B26: =Prop2019DistTar!B26 -> NSP30 Small Dedicated | D26: 0 | E26: 0 | F26: 0 | G26: 0 | H26: 0 | I26: 0.3977 | J26: 0 | K26: 0 | L26: 0 | M26: 0 | N26: 0 | O26: 0 | P26: 0 | R26: =Prop2019DistTar!AF26 -> 0 | S26: =Prop2019DistTar!AG26 -> 0 | T26: =Prop2019DistTar!AH26 -> 0 | U26: =Prop2019DistTar!AI26 -> 0 | V26: =Prop2019DistTar!AJ26 -> 0 | W26: =Prop2019DistTar!AK26 -> 0 | X26: =Prop2019DistTar!AL26 -> 0 | Y26: =Prop2019DistTar!AM26 -> 0 | Z26: =Prop2019DistTar!AN26 -> 0 | AA26: =Prop2019DistTar!AO26 -> 0 | AB26: =Prop2019DistTar!AP26 -> 0 | AC26: =Prop2019DistTar!AQ26 -> 0 | AD26: =Prop2019DistTar!AR26 -> 0 | AF26: 0 | AG26: 0 | AH26: 0 | AI26: 0 | AJ26: 0 | AK26: 0 | AL26: 0 | AM26: 0 | AN26: 0 | AO26: 0 | AP26: 0 | AQ26: 0 | AR26: 0 | AS26: 0
B27: =Prop2019DistTar!B27 -> NEE31 Small Dedicated-afternoon boost | D27: 0 | E27: 0 | F27: 0 | G27: 0 | H27: 0 | I27: 0.3977 | J27: 0 | K27: 0 | L27: 0 | M27: 0 | N27: 0 | O27: 0 | P27: 0 | R27: =Prop2019DistTar!AF27 -> 13613.33664 | S27: =Prop2019DistTar!AG27 -> 0 | T27: =Prop2019DistTar!AH27 -> 0 | U27: =Prop2019DistTar!AI27 -> 0 | V27: =Prop2019DistTar!AJ27 -> 0 | W27: =Prop2019DistTar!AK27 -> 43792657.42 | X27: =Prop2019DistTar!AL27 -> 0 | Y27: =Prop2019DistTar!AM27 -> 0 | Z27: =Prop2019DistTar!AN27 -> 0 | AA27: =Prop2019DistTar!AO27 -> 0 | AB27: =Prop2019DistTar!AP27 -> 0 | AC27: =Prop2019DistTar!AQ27 -> 0 | AD27: =Prop2019DistTar!AR27 -> 0 | AF27: 0 | AG27: 0 | AH27: 0 | AI27: 0 | AJ27: 0 | AK27: 174163.3985 | AL27: 0 | AM27: 0 | AN27: 0 | AO27: 0 | AP27: 0 | AQ27: 0 | AR27: 0 | AS27: 174163.3985
B28: =Prop2019DistTar!B28 -> NSP31 Small Dedicated-afternoon boost | D28: 0 | E28: 0 | F28: 0 | G28: 0 | H28: 0 | I28: 0.3977 | J28: 0 | K28: 0 | L28: 0 | M28: 0 | N28: 0 | O28: 0 | P28: 0 | R28: =Prop2019DistTar!AF28 -> 0 | S28: =Prop2019DistTar!AG28 -> 0 | T28: =Prop2019DistTar!AH28 -> 0 | U28: =Prop2019DistTar!AI28 -> 0 | V28: =Prop2019DistTar!AJ28 -> 0 | W28: =Prop2019DistTar!AK28 -> 0 | X28: =Prop2019DistTar!AL28 -> 0 | Y28: =Prop2019DistTar!AM28 -> 0 | Z28: =Prop2019DistTar!AN28 -> 0 | AA28: =Prop2019DistTar!AO28 -> 0 | AB28: =Prop2019DistTar!AP28 -> 0 | AC28: =Prop2019DistTar!AQ28 -> 0 | AD28: =Prop2019DistTar!AR28 -> 0 | AF28: 0 | AG28: 0 | AH28: 0 | AI28: 0 | AJ28: 0 | AK28: 0 | AL28: 0 | AM28: 0 | AN28: 0 | AO28: 0 | AP28: 0 | AQ28: 0 | AR28: 0 | AS28: 0
B29: =Prop2019DistTar!B29 -> NEE32 Dedicated Circuit 8 to 8 | D29: 0 | E29: 0 | F29: 0 | G29: 0 | H29: 0 | I29: 0.3977 | J29: 0 | K29: 0 | L29: 0 | M29: 0 | N29: 0 | O29: 0 | P29: 0 | R29: =Prop2019DistTar!AF29 -> 3819.773799 | S29: =Prop2019DistTar!AG29 -> 0 | T29: =Prop2019DistTar!AH29 -> 0 | U29: =Prop2019DistTar!AI29 -> 0 | V29: =Prop2019DistTar!AJ29 -> 0 | W29: =Prop2019DistTar!AK29 -> 4946944.043 | X29: =Prop2019DistTar!AL29 -> 0 | Y29: =Prop2019DistTar!AM29 -> 0 | Z29: =Prop2019DistTar!AN29 -> 0 | AA29: =Prop2019DistTar!AO29 -> 0 | AB29: =Prop2019DistTar!AP29 -> 0 | AC29: =Prop2019DistTar!AQ29 -> 0 | AD29: =Prop2019DistTar!AR29 -> 0 | AF29: 0 | AG29: 0 | AH29: 0 | AI29: 0 | AJ29: 0 | AK29: 19673.99646 | AL29: 0 | AM29: 0 | AN29: 0 | AO29: 0 | AP29: 0 | AQ29: 0 | AR29: 0 | AS29: 19673.99646
B30: =Prop2019DistTar!B30 -> NSP32 Dedicated Circuit 8 to 8 | D30: 0 | E30: 0 | F30: 0 | G30: 0 | H30: 0 | I30: 0.3977 | J30: 0 | K30: 0 | L30: 0 | M30: 0 | N30: 0 | O30: 0 | P30: 0 | R30: =Prop2019DistTar!AF30 -> 0 | S30: =Prop2019DistTar!AG30 -> 0 | T30: =Prop2019DistTar!AH30 -> 0 | U30: =Prop2019DistTar!AI30 -> 0 | V30: =Prop2019DistTar!AJ30 -> 0 | W30: =Prop2019DistTar!AK30 -> 0 | X30: =Prop2019DistTar!AL30 -> 0 | Y30: =Prop2019DistTar!AM30 -> 0 | Z30: =Prop2019DistTar!AN30 -> 0 | AA30: =Prop2019DistTar!AO30 -> 0 | AB30: =Prop2019DistTar!AP30 -> 0 | AC30: =Prop2019DistTar!AQ30 -> 0 | AD30: =Prop2019DistTar!AR30 -> 0 | AF30: 0 | AG30: 0 | AH30: 0 | AI30: 0 | AJ30: 0 | AK30: 0 | AL30: 0 | AM30: 0 | AN30: 0 | AO30: 0 | AP30: 0 | AQ30: 0 | AR30: 0 | AS30: 0
B31: =Prop2019DistTar!B31 -> NEE40 Medium Single Rate - closed to new customers | D31: 0 | E31: 1.4261 | F31: 0 | G31: 0 | H31: 0 | I31: 0 | J31: 0 | K31: 0 | L31: 0 | M31: 0 | N31: 0 | O31: 0 | P31: 0 | R31: =Prop2019DistTar!AF31 -> 49.97616386 | S31: =Prop2019DistTar!AG31 -> 9262219.642 | T31: =Prop2019DistTar!AH31 -> 0 | U31: =Prop2019DistTar!AI31 -> 0 | V31: =Prop2019DistTar!AJ31 -> 0 | W31: =Prop2019DistTar!AK31 -> 0 | X31: =Prop2019DistTar!AL31 -> 0 | Y31: =Prop2019DistTar!AM31 -> 0 | Z31: =Prop2019DistTar!AN31 -> 0 | AA31: =Prop2019DistTar!AO31 -> 0 | AB31: =Prop2019DistTar!AP31 -> 0 | AC31: =Prop2019DistTar!AQ31 -> 0 | AD31: =Prop2019DistTar!AR31 -> 0 | AF31: 0 | AG31: 132088.5143 | AH31: 0 | AI31: 0 | AJ31: 0 | AK31: 0 | AL31: 0 | AM31: 0 | AN31: 0 | AO31: 0 | AP31: 0 | AQ31: 0 | AR31: 0 | AS31: 132088.5143
B32: =Prop2019DistTar!B32 -> NEE51 Medium Two Rate 5Day - closed to new customers - <160MWh to NEE21 | D32: 0 | E32: 1.4261 | F32: 0 | G32: 0 | H32: 0 | I32: 0.3977 | J32: 0 | K32: 0 | L32: 0 | M32: 0 | N32: 0 | O32: 0 | P32: 0 | R32: =Prop2019DistTar!AF32 -> 360.5833333 | S32: =Prop2019DistTar!AG32 -> 30945924.42 | T32: =Prop2019DistTar!AH32 -> 0 | U32: =Prop2019DistTar!AI32 -> 0 | V32: =Prop2019DistTar!AJ32 -> 0 | W32: =Prop2019DistTar!AK32 -> 28538699.99 | X32: =Prop2019DistTar!AL32 -> 0 | Y32: =Prop2019DistTar!AM32 -> 0 | Z32: =Prop2019DistTar!AN32 -> 0 | AA32: =Prop2019DistTar!AO32 -> 0 | AB32: =Prop2019DistTar!AP32 -> 0 | AC32: =Prop2019DistTar!AQ32 -> 0 | AD32: =Prop2019DistTar!AR32 -> 0 | AF32: 0 | AG32: 441319.8281 | AH32: 0 | AI32: 0 | AJ32: 0 | AK32: 113498.4099 | AL32: 0 | AM32: 0 | AN32: 0 | AO32: 0 | AP32: 0 | AQ32: 0 | AR32: 0 | AS32: 554818.238
B33: =Prop2019DistTar!B33 -> NEE55 Snowfields Tariff | D33: 0 | E33: 1.4261 | F33: 0 | G33: 0 | H33: 0 | I33: 0.3977 | J33: 0 | K33: 0 | L33: 0 | M33: 0 | N33: 0 | O33: 0 | P33: 0 | R33: =Prop2019DistTar!AF33 -> 0 | S33: =Prop2019DistTar!AG33 -> 0 | T33: =Prop2019DistTar!AH33 -> 0 | U33: =Prop2019DistTar!AI33 -> 0 | V33: =Prop2019DistTar!AJ33 -> 0 | W33: =Prop2019DistTar!AK33 -> 0 | X33: =Prop2019DistTar!AL33 -> 0 | Y33: =Prop2019DistTar!AM33 -> 0 | Z33: =Prop2019DistTar!AN33 -> 0 | AA33: =Prop2019DistTar!AO33 -> 0 | AB33: =Prop2019DistTar!AP33 -> 0 | AC33: =Prop2019DistTar!AQ33 -> 0 | AD33: =Prop2019DistTar!AR33 -> 0 | AF33: 0 | AG33: 0 | AH33: 0 | AI33: 0 | AJ33: 0 | AK33: 0 | AL33: 0 | AM33: 0 | AN33: 0 | AO33: 0 | AP33: 0 | AQ33: 0 | AR33: 0 | AS33: 0
B34: =Prop2019DistTar!B34 -> NSP55 Snowfields Tariff | D34: 0 | E34: 1.4261 | F34: 1.4261 | G34: 1.4261 | H34: 0 | I34: 0.3977 | J34: 0 | K34: 0 | L34: 0 | M34: 0 | N34: 0 | O34: 0 | P34: 0 | R34: =Prop2019DistTar!AF34 -> 0 | S34: =Prop2019DistTar!AG34 -> 0 | T34: =Prop2019DistTar!AH34 -> 0 | U34: =Prop2019DistTar!AI34 -> 0 | V34: =Prop2019DistTar!AJ34 -> 0 | W34: =Prop2019DistTar!AK34 -> 0 | X34: =Prop2019DistTar!AL34 -> 0 | Y34: =Prop2019DistTar!AM34 -> 0 | Z34: =Prop2019DistTar!AN34 -> 0 | AA34: =Prop2019DistTar!AO34 -> 0 | AB34: =Prop2019DistTar!AP34 -> 0 | AC34: =Prop2019DistTar!AQ34 -> 0 | AD34: =Prop2019DistTar!AR34 -> 0 | AF34: 0 | AG34: 0 | AH34: 0 | AI34: 0 | AJ34: 0 | AK34: 0 | AL34: 0 | AM34: 0 | AN34: 0 | AO34: 0 | AP34: 0 | AQ34: 0 | AR34: 0 | AS34: 0
B35: =Prop2019DistTar!B35 -> NSP56 Medium Demand Multi-rate | D35: 0 | E35: 1.4261 | F35: 1.4261 | G35: 0 | H35: 0 | I35: 0.3977 | J35: 0 | K35: 0 | L35: 0 | M35: 0 | N35: 0 | O35: 0 | P35: 0 | R35: =Prop2019DistTar!AF35 -> 1315.314697 | S35: =Prop2019DistTar!AG35 -> 107539102.4 | T35: =Prop2019DistTar!AH35 -> 86725869.01 | U35: =Prop2019DistTar!AI35 -> 0 | V35: =Prop2019DistTar!AJ35 -> 0 | W35: =Prop2019DistTar!AK35 -> 135663741.9 | X35: =Prop2019DistTar!AL35 -> 0 | Y35: =Prop2019DistTar!AM35 -> 0 | Z35: =Prop2019DistTar!AN35 -> 0 | AA35: =Prop2019DistTar!AO35 -> 205494.1126 | AB35: =Prop2019DistTar!AP35 -> 90680.21847 | AC35: =Prop2019DistTar!AQ35 -> 0 | AD35: =Prop2019DistTar!AR35 -> 0 | AF35: 0 | AG35: 1533615.139 | AH35: 1236797.618 | AI35: 0 | AJ35: 0 | AK35: 539534.7016 | AL35: 0 | AM35: 0 | AN35: 0 | AO35: 0 | AP35: 0 | AQ35: 0 | AR35: 0 | AS35: 3309947.459
B36: =Prop2019DistTar!B36 -> NEN56 Medium Demand Multi-rate - Embedded Network | D36: 0 | E36: 1.4261 | F36: 1.4261 | G36: 0 | H36: 0 | I36: 0.3977 | J36: 0 | K36: 0 | L36: 0 | M36: 0 | N36: 0 | O36: 0 | P36: 0 | R36: =Prop2019DistTar!AF36 -> 3.253912568 | S36: =Prop2019DistTar!AG36 -> 218248.2857 | T36: =Prop2019DistTar!AH36 -> 240336.3296 | U36: =Prop2019DistTar!AI36 -> 0 | V36: =Prop2019DistTar!AJ36 -> 0 | W36: =Prop2019DistTar!AK36 -> 231425.7677 | X36: =Prop2019DistTar!AL36 -> 0 | Y36: =Prop2019DistTar!AM36 -> 0 | Z36: =Prop2019DistTar!AN36 -> 0 | AA36: =Prop2019DistTar!AO36 -> 0 | AB36: =Prop2019DistTar!AP36 -> 0 | AC36: =Prop2019DistTar!AQ36 -> 0 | AD36: =Prop2019DistTar!AR36 -> 0 | AF36: 0 | AG36: 3112.438802 | AH36: 3427.436396 | AI36: 0 | AJ36: 0 | AK36: 920.3802781 | AL36: 0 | AM36: 0 | AN36: 0 | AO36: 0 | AP36: 0 | AQ36: 0 | AR36: 0 | AS36: 7460.255476
B37: =Prop2019DistTar!B37 -> NEE60 Medium Two Rate 7Day - closed to new customers | D37: 0 | E37: 1.4261 | F37: 0 | G37: 0 | H37: 0 | I37: 0.3977 | J37: 0 | K37: 0 | L37: 0 | M37: 0 | N37: 0 | O37: 0 | P37: 0 | R37: =Prop2019DistTar!AF37 -> 359.3333333 | S37: =Prop2019DistTar!AG37 -> 16698393.61 | T37: =Prop2019DistTar!AH37 -> 0 | U37: =Prop2019DistTar!AI37 -> 0 | V37: =Prop2019DistTar!AJ37 -> 0 | W37: =Prop2019DistTar!AK37 -> 5020930.153 | X37: =Prop2019DistTar!AL37 -> 0 | Y37: =Prop2019DistTar!AM37 -> 0 | Z37: =Prop2019DistTar!AN37 -> 0 | AA37: =Prop2019DistTar!AO37 -> 0 | AB37: =Prop2019DistTar!AP37 -> 0 | AC37: =Prop2019DistTar!AQ37 -> 0 | AD37: =Prop2019DistTar!AR37 -> 0 | AF37: 0 | AG37: 238135.7913 | AH37: 0 | AI37: 0 | AJ37: 0 | AK37: 19968.23922 | AL37: 0 | AM37: 0 | AN37: =L37/100*Z37 -> 0 | AO37: 0 | AP37: 0 | AQ37: 0 | AR37: 0 | AS37: 258104.0305
B38: =Prop2019DistTar!B38 -> NEE52 Unmetered | D38: 0 | E38: 1.4261 | F38: 0 | G38: 0 | H38: 0 | I38: 0.3977 | J38: 0 | K38: 0 | L38: 0 | M38: 0 | N38: 0 | O38: 0 | P38: 0 | R38: =Prop2019DistTar!AF38 -> 90.81118907 | S38: =Prop2019DistTar!AG38 -> 26450447.25 | T38: =Prop2019DistTar!AH38 -> 0 | U38: =Prop2019DistTar!AI38 -> 0 | V38: =Prop2019DistTar!AJ38 -> 0 | W38: =Prop2019DistTar!AK38 -> 56164947.39 | X38: =Prop2019DistTar!AL38 -> 0 | Y38: =Prop2019DistTar!AM38 -> 0 | Z38: =Prop2019DistTar!AN38 -> 0 | AA38: =Prop2019DistTar!AO38 -> 0 | AB38: =Prop2019DistTar!AP38 -> 0 | AC38: =Prop2019DistTar!AQ38 -> 0 | AD38: =Prop2019DistTar!AR38 -> 0 | AF38: 0 | AG38: =E38/100*S38 -> 377209.8282 | AH38: 0 | AI38: 0 | AJ38: 0 | AK38: 223367.9958 | AL38: 0 | AM38: 0 | AN38: 0 | AO38: =M38*AA38 -> 0 | AP38: 0 | AQ38: 0 | AR38: 0 | AS38: 600577.8239
B39: =Prop2019DistTar!B39 -> NEE74 LV Large Two Rate 5Day | D39: 0 | E39: 1.4261 | F39: 0 | G39: 0 | H39: 0 | I39: 0.3977 | J39: 0 | K39: 0 | L39: 0 | M39: 0 | N39: 0 | O39: 0 | P39: 0 | R39: =Prop2019DistTar!AF39 -> 8 | S39: =Prop2019DistTar!AG39 -> 2471348.796 | T39: =Prop2019DistTar!AH39 -> 0 | U39: =Prop2019DistTar!AI39 -> 0 | V39: =Prop2019DistTar!AJ39 -> 0 | W39: =Prop2019DistTar!AK39 -> 2599593.326 | X39: =Prop2019DistTar!AL39 -> 0 | Y39: =Prop2019DistTar!AM39 -> 0 | Z39: =Prop2019DistTar!AN39 -> 0 | AA39: =Prop2019DistTar!AO39 -> 0 | AB39: =Prop2019DistTar!AP39 -> 0 | AC39: =Prop2019DistTar!AQ39 -> 0 | AD39: =Prop2019DistTar!AR39 -> 0 | AF39: 0 | AG39: 35243.90519 | AH39: 0 | AI39: 0 | AJ39: 0 | AK39: 10338.58266 | AL39: 0 | AM39: 0 | AN39: 0 | AO39: 0 | AP39: 0 | AQ39: 0 | AR39: 0 | AS39: 45582.48784
B40: =Prop2019DistTar!B40 -> NSP75 Large Multi-rate <750 kVA | D40: 0 | E40: 1.4261 | F40: 1.4261 | G40: 0 | H40: 0 | I40: 0.3977 | J40: 0 | K40: 0 | L40: 0 | M40: 0 | N40: 0 | O40: 0 | P40: 0 | R40: =Prop2019DistTar!AF40 -> 783.25 | S40: =Prop2019DistTar!AG40 -> 136278379.2 | T40: =Prop2019DistTar!AH40 -> 102506100.8 | U40: =Prop2019DistTar!AI40 -> 0 | V40: =Prop2019DistTar!AJ40 -> 0 | W40: =Prop2019DistTar!AK40 -> 182078290.2 | X40: =Prop2019DistTar!AL40 -> 0 | Y40: =Prop2019DistTar!AM40 -> 0 | Z40: =Prop2019DistTar!AN40 -> 0 | AA40: =Prop2019DistTar!AO40 -> 198248.5309 | AB40: =Prop2019DistTar!AP40 -> 93309.58132 | AC40: =Prop2019DistTar!AQ40 -> 0 | AD40: =Prop2019DistTar!AR40 -> 0 | AF40: 0 | AG40: 1943465.966 | AH40: 1461839.503 | AI40: 0 | AJ40: 0 | AK40: 724125.3602 | AL40: 0 | AM40: 0 | AN40: 0 | AO40: 0 | AP40: 0 | AQ40: 0 | AR40: 0 | AS40: 4129430.83
B41: =Prop2019DistTar!B41 -> NSP76 Large Multi-rate >750 kVA | D41: 0 | E41: 1.4261 | F41: 1.4261 | G41: 0 | H41: 0 | I41: 0.3977 | J41: 0 | K41: 0 | L41: 0 | M41: 0 | N41: 0 | O41: 0 | P41: 0 | R41: =Prop2019DistTar!AF41 -> 516 | S41: =Prop2019DistTar!AG41 -> 192445947.1 | T41: =Prop2019DistTar!AH41 -> 142333558.7 | U41: =Prop2019DistTar!AI41 -> 0 | V41: =Prop2019DistTar!AJ41 -> 0 | W41: =Prop2019DistTar!AK41 -> 242213486.1 | X41: =Prop2019DistTar!AL41 -> 0 | Y41: =Prop2019DistTar!AM41 -> 0 | Z41: =Prop2019DistTar!AN41 -> 0 | AA41: =Prop2019DistTar!AO41 -> 259623.8491 | AB41: =Prop2019DistTar!AP41 -> 134912.2113 | AC41: =Prop2019DistTar!AQ41 -> 0 | AD41: =Prop2019DistTar!AR41 -> 0 | AF41: 0 | AG41: 2744471.651 | AH41: 2029818.881 | AI41: 0 | AJ41: 0 | AK41: 963283.0343 | AL41: 0 | AM41: 0 | AN41: 0 | AO41: 0 | AP41: 0 | AQ41: 0 | AR41: 0 | AS41: 5737573.567
B42: =Prop2019DistTar!B42 -> NSP77 Large Multi-rate >2 GWh | D42: 0 | E42: 1.4261 | F42: 1.4261 | G42: 0 | H42: 0 | I42: 0.3977 | J42: 0 | K42: 0 | L42: 0 | M42: 0 | N42: 0 | O42: 0 | P42: 0 | R42: =Prop2019DistTar!AF42 -> 116.75 | S42: =Prop2019DistTar!AG42 -> 91857245.83 | T42: =Prop2019DistTar!AH42 -> 72454339.2 | U42: =Prop2019DistTar!AI42 -> 0 | V42: =Prop2019DistTar!AJ42 -> 0 | W42: =Prop2019DistTar!AK42 -> 120135613 | X42: =Prop2019DistTar!AL42 -> 0 | Y42: =Prop2019DistTar!AM42 -> 0 | Z42: =Prop2019DistTar!AN42 -> 0 | AA42: =Prop2019DistTar!AO42 -> 94342.66947 | AB42: =Prop2019DistTar!AP42 -> 53057.76325 | AC42: =Prop2019DistTar!AQ42 -> 0 | AD42: =Prop2019DistTar!AR42 -> 0 | AF42: 0 | AG42: 1309976.183 | AH42: 1033271.331 | AI42: 0 | AJ42: 0 | AK42: 477779.3331 | AL42: 0 | AM42: 0 | AN42: 0 | AO42: 0 | AP42: 0 | AQ42: 0 | AR42: 0 | AS42: 2821026.847
B43: =Prop2019DistTar!B43 -> NSP78 Large Multi-rate >4 GWh | D43: 0 | E43: 1.4261 | F43: 1.4261 | G43: 0 | H43: 0 | I43: 0.3977 | J43: 0 | K43: 0 | L43: 0 | M43: 0 | N43: 0 | O43: 0 | P43: 0 | R43: =Prop2019DistTar!AF43 -> 41.15884153 | S43: =Prop2019DistTar!AG43 -> 62427911.79 | T43: =Prop2019DistTar!AH43 -> 43859922.62 | U43: =Prop2019DistTar!AI43 -> 0 | V43: =Prop2019DistTar!AJ43 -> 0 | W43: =Prop2019DistTar!AK43 -> 79220923.81 | X43: =Prop2019DistTar!AL43 -> 0 | Y43: =Prop2019DistTar!AM43 -> 0 | Z43: =Prop2019DistTar!AN43 -> 0 | AA43: =Prop2019DistTar!AO43 -> 58171.74926 | AB43: =Prop2019DistTar!AP43 -> 34674.51853 | AC43: =Prop2019DistTar!AQ43 -> 0 | AD43: =Prop2019DistTar!AR43 -> 0 | AF43: 0 | AG43: 890284.4501 | AH43: 625486.3566 | AI43: 0 | AJ43: 0 | AK43: 315061.614 | AL43: 0 | AM43: 0 | AN43: 0 | AO43: 0 | AP43: 0 | AQ43: 0 | AR43: 0 | AS43: 1830832.421
B44: =Prop2019DistTar!B44 -> NSP81 HV Kva | D44: 0 | E44: 1.4261 | F44: 0 | G44: 0 | H44: 0 | I44: 0.3977 | J44: 0 | K44: 0 | L44: 0 | M44: 0 | N44: 0 | O44: 0 | P44: 0 | R44: =Prop2019DistTar!AF44 -> 52.65234754 | S44: =Prop2019DistTar!AG44 -> 279570848.7 | T44: =Prop2019DistTar!AH44 -> 0 | U44: =Prop2019DistTar!AI44 -> 0 | V44: =Prop2019DistTar!AJ44 -> 0 | W44: =Prop2019DistTar!AK44 -> 232759405.2 | X44: =Prop2019DistTar!AL44 -> 0 | Y44: =Prop2019DistTar!AM44 -> 0 | Z44: =Prop2019DistTar!AN44 -> 0 | AA44: =Prop2019DistTar!AO44 -> 166608.8104 | AB44: =Prop2019DistTar!AP44 -> 81595.59638 | AC44: =Prop2019DistTar!AQ44 -> 0 | AD44: =Prop2019DistTar!AR44 -> 0 | AF44: 0 | AG44: 3986959.873 | AH44: 0 | AI44: 0 | AJ44: 0 | AK44: 925684.1543 | AL44: 0 | AM44: 0 | AN44: 0 | AO44: 0 | AP44: 0 | AQ44: 0 | AR44: 0 | AS44: 4912644.027
B45: =Prop2019DistTar!B45 -> NSP82 Traction | D45: 0 | E45: 1.4261 | F45: 1.4261 | G45: 0 | H45: 0 | I45: 0.3977 | J45: 0 | K45: 0 | L45: 0 | M45: 0 | N45: 0 | O45: 0 | P45: 0 | R45: =Prop2019DistTar!AF45 -> 23 | S45: =Prop2019DistTar!AG45 -> 30815858.39 | T45: =Prop2019DistTar!AH45 -> 17770357.46 | U45: =Prop2019DistTar!AI45 -> 0 | V45: =Prop2019DistTar!AJ45 -> 0 | W45: =Prop2019DistTar!AK45 -> 36061455.7 | X45: =Prop2019DistTar!AL45 -> 0 | Y45: =Prop2019DistTar!AM45 -> 0 | Z45: =Prop2019DistTar!AN45 -> 0 | AA45: =Prop2019DistTar!AO45 -> 38743.82192 | AB45: =Prop2019DistTar!AP45 -> 20260.16448 | AC45: =Prop2019DistTar!AQ45 -> 0 | AD45: =Prop2019DistTar!AR45 -> 0 | AF45: 0 | AG45: 439464.9565 | AH45: 253423.0678 | AI45: 0 | AJ45: 0 | AK45: 143416.4093 | AL45: 0 | AM45: 0 | AN45: 0 | AO45: 0 | AP45: 0 | AQ45: 0 | AR45: 0 | AS45: 836304.4336
B46: =Prop2019DistTar!B46 -> NSP83 Small HV | D46: 0 | E46: 1.4261 | F46: 1.4261 | G46: 0 | H46: 0 | I46: 0.3977 | J46: 0 | K46: 0 | L46: 0 | M46: 0 | N46: 0 | O46: 0 | P46: 0 | R46: =Prop2019DistTar!AF46 -> 22 | S46: =Prop2019DistTar!AG46 -> 3631448.833 | T46: =Prop2019DistTar!AH46 -> 2475465.096 | U46: =Prop2019DistTar!AI46 -> 0 | V46: =Prop2019DistTar!AJ46 -> 0 | W46: =Prop2019DistTar!AK46 -> 5389338.112 | X46: =Prop2019DistTar!AL46 -> 0 | Y46: =Prop2019DistTar!AM46 -> 0 | Z46: =Prop2019DistTar!AN46 -> 0 | AA46: =Prop2019DistTar!AO46 -> 24124.46352 | AB46: =Prop2019DistTar!AP46 -> 6432.311252 | AC46: =Prop2019DistTar!AQ46 -> 0 | AD46: =Prop2019DistTar!AR46 -> 0 | AF46: 0 | AG46: 51788.0918 | AH46: 35302.60774 | AI46: 0 | AJ46: 0 | AK46: 21433.39767 | AL46: 0 | AM46: 0 | AN46: 0 | AO46: 0 | AP46: 0 | AQ46: 0 | AR46: 0 | AS46: 108524.0972
B47: =Prop2019DistTar!B47 -> NSP91 ST kVA | D47: 0 | E47: 1.4261 | F47: 0 | G47: 0 | H47: 0 | I47: 0.3977 | J47: 0 | K47: 0 | L47: 0 | M47: 0 | N47: 0 | O47: 0 | P47: 0 | R47: =Prop2019DistTar!AF47 -> 0 | S47: =Prop2019DistTar!AG47 -> 0 | T47: =Prop2019DistTar!AH47 -> 0 | U47: =Prop2019DistTar!AI47 -> 0 | V47: =Prop2019DistTar!AJ47 -> 0 | W47: =Prop2019DistTar!AK47 -> 0 | X47: =Prop2019DistTar!AL47 -> 0 | Y47: =Prop2019DistTar!AM47 -> 0 | Z47: =Prop2019DistTar!AN47 -> 0 | AA47: =Prop2019DistTar!AO47 -> 0 | AB47: =Prop2019DistTar!AP47 -> 0 | AC47: =Prop2019DistTar!AQ47 -> 0 | AD47: =Prop2019DistTar!AR47 -> 0 | AF47: 0 | AG47: 0 | AH47: 0 | AI47: 0 | AJ47: 0 | AK47: 0 | AL47: 0 | AM47: 0 | AN47: 0 | AO47: 0 | AP47: 0 | AQ47: 0 | AR47: 0 | AS47: 0
B48: =Prop2019DistTar!B48 -> NEE93 Latrobe Generators kVA (non published) | D48: 0 | E48: 0.9146 | F48: 0 | G48: 0 | H48: 0 | I48: 0.9146 | J48: 0 | K48: 0 | L48: 0 | M48: 0 | N48: 0 | O48: 0 | P48: 0 | R48: =Prop2019DistTar!AF48 -> 0 | S48: =Prop2019DistTar!AG48 -> 0 | T48: =Prop2019DistTar!AH48 -> 0 | U48: =Prop2019DistTar!AI48 -> 0 | V48: =Prop2019DistTar!AJ48 -> 0 | W48: =Prop2019DistTar!AK48 -> 0 | X48: =Prop2019DistTar!AL48 -> 0 | Y48: =Prop2019DistTar!AM48 -> 0 | Z48: =Prop2019DistTar!AN48 -> 0 | AA48: =Prop2019DistTar!AO48 -> 0 | AB48: =Prop2019DistTar!AP48 -> 0 | AC48: =Prop2019DistTar!AQ48 -> 0 | AD48: =Prop2019DistTar!AR48 -> 0 | AF48: 0 | AG48: 0 | AH48: 0 | AI48: 0 | AJ48: 0 | AK48: 0 | AL48: 0 | AM48: 0 | AN48: 0 | AO48: 0 | AP48: 0 | AQ48: 0 | AR48: 0 | AS48: 0
B49: =Prop2019DistTar!B49 -> NSP94 - ST kVA >25MVA <20kM | D49: 0 | E49: 1.4261 | F49: 0 | G49: 0 | H49: 0 | I49: 0.3977 | J49: 0 | K49: 0 | L49: 0 | M49: 0 | N49: 0 | O49: 0 | P49: 0 | R49: =Prop2019DistTar!AF49 -> 0 | S49: =Prop2019DistTar!AG49 -> 0 | T49: =Prop2019DistTar!AH49 -> 0 | U49: =Prop2019DistTar!AI49 -> 0 | V49: =Prop2019DistTar!AJ49 -> 0 | W49: =Prop2019DistTar!AK49 -> 0 | X49: =Prop2019DistTar!AL49 -> 0 | Y49: =Prop2019DistTar!AM49 -> 0 | Z49: =Prop2019DistTar!AN49 -> 0 | AA49: =Prop2019DistTar!AO49 -> 0 | AB49: =Prop2019DistTar!AP49 -> 0 | AC49: =Prop2019DistTar!AQ49 -> 0 | AD49: =Prop2019DistTar!AR49 -> 0 | AF49: 0 | AG49: 0 | AH49: 0 | AI49: 0 | AJ49: 0 | AK49: 0 | AL49: 0 | AM49: 0 | AN49: 0 | AO49: 0 | AP49: 0 | AQ49: 0 | AR49: 0 | AS49: 0
B50: =Prop2019DistTar!B50 -> NSP95 - ST kVA <25MVA >20kM | D50: 0 | E50: 1.4261 | F50: 0 | G50: 0 | H50: 0 | I50: 0.3977 | J50: 0 | K50: 0 | L50: 0 | M50: 0 | N50: 0 | O50: 0 | P50: 0 | R50: =Prop2019DistTar!AF50 -> 0 | S50: =Prop2019DistTar!AG50 -> 0 | T50: =Prop2019DistTar!AH50 -> 0 | U50: =Prop2019DistTar!AI50 -> 0 | V50: =Prop2019DistTar!AJ50 -> 0 | W50: =Prop2019DistTar!AK50 -> 0 | X50: =Prop2019DistTar!AL50 -> 0 | Y50: =Prop2019DistTar!AM50 -> 0 | Z50: =Prop2019DistTar!AN50 -> 0 | AA50: =Prop2019DistTar!AO50 -> 0 | AB50: =Prop2019DistTar!AP50 -> 0 | AC50: =Prop2019DistTar!AQ50 -> 0 | AD50: =Prop2019DistTar!AR50 -> 0 | AF50: 0 | AG50: 0 | AH50: 0 | AI50: 0 | AJ50: 0 | AK50: 0 | AL50: 0 | AM50: 0 | AN50: 0 | AO50: 0 | AP50: 0 | AQ50: 0 | AR50: 0 | AS50: 0
B51: NASN19 - Business >40MWh Single Rate | D51: 0 | E51: 1.4261 | F51: 1.4261 | G51: 0 | H51: 0 | I51: 0 | J51: 0 | K51: 0 | L51: 0 | M51: 0 | N51: 0 | O51: 0 | P51: 0 | R51: =Prop2019DistTar!AF51 -> 974.16 | S51: =Prop2019DistTar!AG51 -> 53627365.06 | T51: =Prop2019DistTar!AH51 -> 0 | U51: =Prop2019DistTar!AI51 -> 0 | V51: =Prop2019DistTar!AJ51 -> 0 | W51: =Prop2019DistTar!AK51 -> 0 | X51: =Prop2019DistTar!AL51 -> 0 | Y51: =Prop2019DistTar!AM51 -> 0 | Z51: =Prop2019DistTar!AN51 -> 0 | AA51: =Prop2019DistTar!AO51 -> 165268.3861 | AB51: =Prop2019DistTar!AP51 -> 89574.66694 | AC51: =Prop2019DistTar!AQ51 -> 0 | AD51: =Prop2019DistTar!AR51 -> 0 | AF51: 0 | AG51: 764779.8532 | AH51: 0 | AI51: 0 | AJ51: 0 | AK51: 0 | AL51: 0 | AM51: 0 | AN51: 0 | AO51: 0 | AP51: 0 | AQ51: 0 | AR51: 0 | AS51: 764779.8532
B52: NASN21 - Business >40MWh Two Rate | D52: 0 | E52: 1.4261 | F52: 0 | G52: 0 | H52: 0 | I52: 0.3977 | J52: 0 | K52: 0 | L52: 0 | M52: 0 | N52: 0 | O52: 0 | P52: 0 | R52: =Prop2019DistTar!AF52 -> 7750.71 | S52: =Prop2019DistTar!AG52 -> 296536561.4 | T52: =Prop2019DistTar!AH52 -> 0 | U52: =Prop2019DistTar!AI52 -> 0 | V52: =Prop2019DistTar!AJ52 -> 0 | W52: =Prop2019DistTar!AK52 -> 243621835 | X52: =Prop2019DistTar!AL52 -> 0 | Y52: =Prop2019DistTar!AM52 -> 0 | Z52: =Prop2019DistTar!AN52 -> 0 | AA52: =Prop2019DistTar!AO52 -> 1656385.815 | AB52: =Prop2019DistTar!AP52 -> 898351.1493 | AC52: =Prop2019DistTar!AQ52 -> 0 | AD52: =Prop2019DistTar!AR52 -> 0 | AF52: 0 | AG52: 4228907.902 | AH52: 0 | AI52: 0 | AJ52: 0 | AK52: 968884.0377 | AL52: 0 | AM52: 0 | AN52: 0 | AO52: 0 | AP52: 0 | AQ52: 0 | AR52: 0 | AS52: 5197791.939
B53: NASN11 - Residential Single Rate | D53: 0 | E53: 1.4261 | F53: 1.4261 | G53: 0 | H53: 0 | I53: 0 | J53: 0 | K53: 0 | L53: 0 | M53: 0 | N53: 0 | O53: 0 | P53: 0 | R53: =Prop2019DistTar!AF53 -> 10 | S53: =Prop2019DistTar!AG53 -> 75000 | T53: =Prop2019DistTar!AH53 -> 0 | U53: =Prop2019DistTar!AI53 -> 0 | V53: =Prop2019DistTar!AJ53 -> 0 | W53: =Prop2019DistTar!AK53 -> 0 | X53: =Prop2019DistTar!AL53 -> 0 | Y53: =Prop2019DistTar!AM53 -> 0 | Z53: =Prop2019DistTar!AN53 -> 0 | AA53: =Prop2019DistTar!AO53 -> 352 | AB53: =Prop2019DistTar!AP53 -> 220 | AC53: =Prop2019DistTar!AQ53 -> 0 | AD53: =Prop2019DistTar!AR53 -> 0 | AF53: 0 | AG53: 1069.575 | AH53: 0 | AI53: 0 | AJ53: 0 | AK53: 0 | AL53: 0 | AM53: 0 | AN53: 0 | AO53: 0 | AP53: 0 | AQ53: 0 | AR53: 0 | AS53: 1069.575
B54: NASN12 - Business Single Rate | D54: 0 | E54: 1.4261 | F54: 1.4261 | G54: 0 | H54: 0 | I54: 0 | J54: 0 | K54: 0 | L54: 0 | M54: 0 | N54: 0 | O54: 0 | P54: 0 | R54: =Prop2019DistTar!AF54 -> 5 | S54: =Prop2019DistTar!AG54 -> 75000 | T54: =Prop2019DistTar!AH54 -> 0 | U54: =Prop2019DistTar!AI54 -> 0 | V54: =Prop2019DistTar!AJ54 -> 0 | W54: =Prop2019DistTar!AK54 -> 0 | X54: =Prop2019DistTar!AL54 -> 0 | Y54: =Prop2019DistTar!AM54 -> 0 | Z54: =Prop2019DistTar!AN54 -> 0 | AA54: =Prop2019DistTar!AO54 -> 384 | AB54: =Prop2019DistTar!AP54 -> 240 | AC54: =Prop2019DistTar!AQ54 -> 0 | AD54: =Prop2019DistTar!AR54 -> 0 | AF54: 0 | AG54: 1069.575 | AH54: 0 | AI54: 0 | AJ54: 0 | AK54: 0 | AL54: 0 | AM54: 0 | AN54: 0 | AO54: 0 | AP54: 0 | AQ54: 0 | AR54: 0 | AS54: 1069.575
AF55: 0 | AG55: 0 | AH55: 0 | AI55: 0 | AJ55: 0 | AK55: 0 | AL55: 0 | AM55: 0 | AN55: 0 | AO55: 0 | AP55: 0 | AQ55: 0 | AR55: 0 | AS55: 0
AF56: 0 | AG56: 0 | AH56: 0 | AI56: 0 | AJ56: 0 | AK56: 0 | AL56: 0 | AM56: 0 | AN56: 0 | AO56: 0 | AP56: 0 | AQ56: 0 | AR56: 0 | AS56: 0
AF57: 0 | AG57: 0 | AH57: 0 | AI57: 0 | AJ57: 0 | AK57: 0 | AL57: 0 | AM57: 0 | AN57: 0 | AO57: 0 | AP57: 0 | AQ57: 0 | AR57: 0 | AS57: 0
AF58: 0 | AG58: 0 | AH58: 0 | AI58: 0 | AJ58: 0 | AK58: 0 | AL58: 0 | AM58: 0 | AN58: 0 | AO58: 0 | AP58: 0 | AQ58: 0 | AR58: 0 | AS58: 0
AF59: 0 | AG59: 0 | AH59: 0 | AI59: 0 | AJ59: 0 | AK59: 0 | AL59: 0 | AM59: 0 | AN59: 0 | AO59: 0 | AP59: 0 | AQ59: 0 | AR59: 0 | AS59: 0
AF60: 0 | AG60: 0 | AH60: 0 | AI60: 0 | AJ60: 0 | AK60: 0 | AL60: 0 | AM60: 0 | AN60: 0 | AO60: 0 | AP60: 0 | AQ60: 0 | AR60: 0 | AS60: 0
AF61: 0 | AG61: 0 | AH61: 0 | AI61: 0 | AJ61: 0 | AK61: 0 | AL61: 0 | AM61: 0 | AN61: 0 | AO61: 0 | AP61: 0 | AQ61: 0 | AR61: 0 | AS61: 0
AF62: 0 | AG62: 0 | AH62: 0 | AI62: 0 | AJ62: 0 | AK62: 0 | AL62: 0 | AM62: 0 | AN62: 0 | AO62: 0 | AP62: 0 | AQ62: 0 | AR62: 0 | AS62: 0
AF63: 0 | AG63: 0 | AH63: 0 | AI63: 0 | AJ63: 0 | AK63: 0 | AL63: 0 | AM63: 0 | AN63: 0 | AO63: 0 | AP63: 0 | AQ63: 0 | AR63: 0 | AS63: 0
AF64: 0 | AG64: 0 | AH64: 0 | AI64: 0 | AJ64: 0 | AK64: 0 | AL64: 0 | AM64: 0 | AN64: 0 | AO64: 0 | AP64: 0 | AQ64: 0 | AR64: 0 | AS64: 0
AF65: 0 | AG65: 0 | AH65: 0 | AI65: 0 | AJ65: 0 | AK65: 0 | AL65: 0 | AM65: 0 | AN65: 0 | AO65: 0 | AP65: 0 | AQ65: 0 | AR65: 0 | AS65: 0
R66: =SUM(R6:R65) -> 844674.0404 | S66: 3316179934 | T66: 1309024177 | U66: 3462502.172 | V66: 0 | W66: 2197412095 | X66: 0 | Y66: =SUM(Y6:Y65) -> -172395469.1 | Z66: 0 | AA66: 2867748.209 | AB66: 1503308.181 | AC66: 0 | AD66: 0 | AF66: =SUM(AF6:AF65) -> 0 | AG66: 47299581.2 | AH66: 18672196.7 | AI66: 49378.74348 | AJ66: 0 | AK66: 8739107.902 | AL66: 0 | AM66: =SUM(AM6:AM65) -> 0 | AN66: 0 | AO66: 0 | AP66: 0 | AQ66: 0 | AR66: 0 | AS66: 74760264.54

Sheet Est2018TransRev
B1: ="Tariff Approval - "&'Model update'!C3 -> Tariff Approval - AusNet Services
B3: ="ESTIMATED "&'Model update'!C8&" TRANSMISSION TARIFF REVENUE" -> ESTIMATED 2018 TRANSMISSION TARIFF REVENUE
D4: ="Current Transmission Tariffs (Pt-1) for "&'Model update'!$C$8 -> Current Transmission Tariffs (Pt-1) for 2018 | R4: ="Estimated Quantities (Qt-1) for "&'Model update'!$C$8 -> Estimated Quantities (Qt-1) for 2018 | AF4: ="Estimated Revenue (Pt-1 "&'Model update'!$C$8&")*(Qt-1 " &'Model update'!$C$8&")" -> Estimated Revenue (Pt-1 2018)*(Qt-1 2018)
B5: ="Tariffs "&'Model update'!C8 -> Tariffs 2018 | D5: Current Fixed | E5: CurrentPkBlk1 | F5: CurrentPkBlk2 | G5: Current PkBlk3 | H5: Current PkBlk4 | I5: Current OPkBlk1 | J5: Current OPkBlk2 | K5: Current OPkBlk3 | L5: Current OPkBlk4 | M5: Current DemBlk1 | N5: Current DemBlk2 | O5: Current DemBlk3 | P5: Current DemBlk4 | R5: EstVol Fixed | S5: EstVol PkBlk1 | T5: EstVol PkBlk2 | U5: EstVol PkBlk3 | V5: EstVol PkBlk4 | W5: EstVol OPkBlk1 | X5: EstVol OPkBlk2 | Y5: EstVol OPkBlk3 | Z5: EstVol OPkBlk4 | AA5: EstVol DemBlk1 | AB5: EstVol DemBlk2 | AC5: EstVol DemBlk3 | AD5: EstVol DemBlk4 | AF5: EstRev Fixed | AG5: EstRev PkBlk1 | AH5: EstRev PkBlk2 | AI5: EstRev PkBlk3 | AJ5: EstRev PkBlk4 | AK5: EstRev OPkBlk1 | AL5: EstRev OPkBlk2 | AM5: EstRev OPkBlk3 | AN5: EstRev OPkBlk4 | AO5: EstRev DemBlk1 | AP5: EstRev DemBlk2 | AQ5: EstRev DemBlk3 | AR5: EstRev DemBlk4 | AS5: EstRev Total
B6: NEE11 Small Single Rate < 160MWh | D6: 0 | E6: 1.5053 | F6: 1.5053 | G6: 0 | H6: 0 | I6: 0 | J6: 0 | K6: 0 | L6: 0 | M6: 0 | N6: 0 | O6: 0 | P6: 0 | R6: =Est2018DistRev!R6 -> 490634.1693 | S6: =Est2018DistRev!S6 -> 1380984713 | T6: =Est2018DistRev!T6 -> 724241727.4 | U6: =Est2018DistRev!U6 -> 0 | V6: =Est2018DistRev!V6 -> 0 | W6: =Est2018DistRev!W6 -> 0 | X6: =Est2018DistRev!X6 -> 0 | Y6: =Est2018DistRev!Y6 -> 0 | Z6: =Est2018DistRev!Z6 -> 0 | AA6: =Est2018DistRev!AA6 -> 0 | AB6: =Est2018DistRev!AB6 -> 0 | AC6: =Est2018DistRev!AC6 -> 0 | AD6: =Est2018DistRev!AD6 -> 0 | AF6: =D6*R6 -> 0 | AG6: =E6/100*S6 -> 20787962.88 | AH6: 10902010.72 | AI6: 0 | AJ6: 0 | AK6: 0 | AL6: 0 | AM6: 0 | AN6: 0 | AO6: =M6*AA6 -> 0 | AP6: 0 | AQ6: 0 | AR6: 0 | AS6: =SUM(AF6:AR6) -> 31689973.61
B7: NGT11 Small Interval Single Rate < 160MWh | D7: 0 | E7: 1.5048 | F7: 0 | G7: 0 | H7: 0 | I7: 0 | J7: 0 | K7: 0 | L7: 0 | M7: 0 | N7: 0 | O7: 0 | P7: 0 | R7: =Est2018DistRev!R7 -> 3.008802 | S7: =Est2018DistRev!S7 -> 17396.47727 | T7: =Est2018DistRev!T7 -> 0 | U7: =Est2018DistRev!U7 -> 0 | V7: =Est2018DistRev!V7 -> 0 | W7: =Est2018DistRev!W7 -> 0 | X7: =Est2018DistRev!X7 -> 0 | Y7: =Est2018DistRev!Y7 -> 0 | Z7: =Est2018DistRev!Z7 -> 0 | AA7: =Est2018DistRev!AA7 -> 0 | AB7: =Est2018DistRev!AB7 -> 0 | AC7: =Est2018DistRev!AC7 -> 0 | AD7: =Est2018DistRev!AD7 -> 0 | AF7: 0 | AG7: 261.78219 | AH7: 0 | AI7: 0 | AJ7: 0 | AK7: 0 | AL7: 0 | AM7: 0 | AN7: 0 | AO7: 0 | AP7: 0 | AQ7: 0 | AR7: 0 | AS7: 261.78219
B8: NSP11 Small Single Rate < 160MWh | D8: 0 | E8: 1.5053 | F8: 1.5053 | G8: 1.5053 | H8: 0 | I8: 0.4196 | J8: 0 | K8: 0 | L8: 0 | M8: 0 | N8: 0 | O8: 0 | P8: 0 | R8: =Est2018DistRev!R8 -> 11.097792 | S8: =Est2018DistRev!S8 -> 3673.129131 | T8: =Est2018DistRev!T8 -> 738.9997632 | U8: =Est2018DistRev!U8 -> 2915.880593 | V8: =Est2018DistRev!V8 -> 0 | W8: =Est2018DistRev!W8 -> 48500.82611 | X8: =Est2018DistRev!X8 -> 0 | Y8: =Est2018DistRev!Y8 -> 0 | Z8: =Est2018DistRev!Z8 -> 0 | AA8: =Est2018DistRev!AA8 -> 0 | AB8: =Est2018DistRev!AB8 -> 0 | AC8: =Est2018DistRev!AC8 -> 0 | AD8: =Est2018DistRev!AD8 -> 0 | AF8: 0 | AG8: 55.29161281 | AH8: 11.12416344 | AI8: 43.89275056 | AJ8: 0 | AK8: 203.5094664 | AL8: 0 | AM8: 0 | AN8: 0 | AO8: 0 | AP8: 0 | AQ8: 0 | AR8: 0 | AS8: 313.8179932
B9: NEN11 Small Single Rate < 160MWh Embedded Network | D9: 0 | E9: 1.5048 | F9: 1.5048 | G9: 0 | H9: 0 | I9: 0 | J9: 0 | K9: 0 | L9: 0 | M9: 0 | N9: 0 | O9: 0 | P9: 0 | R9: =Est2018DistRev!R9 -> 0 | S9: =Est2018DistRev!S9 -> 0 | T9: =Est2018DistRev!T9 -> 0 | U9: =Est2018DistRev!U9 -> 0 | V9: =Est2018DistRev!V9 -> 0 | W9: =Est2018DistRev!W9 -> 0 | X9: =Est2018DistRev!X9 -> 0 | Y9: =Est2018DistRev!Y9 -> 0 | Z9: =Est2018DistRev!Z9 -> 0 | AA9: =Est2018DistRev!AA9 -> 0 | AB9: =Est2018DistRev!AB9 -> 0 | AC9: =Est2018DistRev!AC9 -> 0 | AD9: =Est2018DistRev!AD9 -> 0 | AF9: 0 | AG9: 0 | AH9: 0 | AI9: 0 | AJ9: 0 | AK9: 0 | AL9: 0 | AM9: 0 | AN9: 0 | AO9: 0 | AP9: 0 | AQ9: 0 | AR9: 0 | AS9: 0
B10: NEE12 Small Business Single Rate - new in 2001 | D10: 0 | E10: 1.5048 | F10: 1.5048 | G10: 0 | H10: 0 | I10: 0 | J10: 0 | K10: 0 | L10: 0 | M10: 0 | N10: 0 | O10: 0 | P10: 0 | R10: =Est2018DistRev!R10 -> 26958.0842 | S10: =Est2018DistRev!S10 -> 55706929.27 | T10: =Est2018DistRev!T10 -> 110123835.5 | U10: =Est2018DistRev!U10 -> 0 | V10: =Est2018DistRev!V10 -> 0 | W10: =Est2018DistRev!W10 -> 0 | X10: =Est2018DistRev!X10 -> 0 | Y10: =Est2018DistRev!Y10 -> 0 | Z10: =Est2018DistRev!Z10 -> 0 | AA10: =Est2018DistRev!AA10 -> 0 | AB10: =Est2018DistRev!AB10 -> 0 | AC10: =Est2018DistRev!AC10 -> 0 | AD10: =Est2018DistRev!AD10 -> 0 | AF10: 0 | AG10: 838277.8716 | AH10: 1657143.476 | AI10: 0 | AJ10: 0 | AK10: 0 | AL10: 0 | AM10: 0 | AN10: 0 | AO10: 0 | AP10: 0 | AQ10: 0 | AR10: 0 | AS10: 2495421.348
B11: NSP12 Small Business Single Rate - new in 2001 | D11: 0 | E11: 1.5048 | F11: 1.5048 | G11: 1.5048 | H11: 0 | I11: 0.4196 | J11: 0 | K11: 0 | L11: 0 | M11: 0 | N11: 0 | O11: 0 | P11: 0 | R11: =Est2018DistRev!R11 -> 6.050634 | S11: =Est2018DistRev!S11 -> 2627.127378 | T11: =Est2018DistRev!T11 -> 451.6087913 | U11: =Est2018DistRev!U11 -> 2076.929046 | V11: =Est2018DistRev!V11 -> 0 | W11: =Est2018DistRev!W11 -> 33722.75081 | X11: =Est2018DistRev!X11 -> 0 | Y11: =Est2018DistRev!Y11 -> 0 | Z11: =Est2018DistRev!Z11 -> 0 | AA11: =Est2018DistRev!AA11 -> 0 | AB11: =Est2018DistRev!AB11 -> 0 | AC11: =Est2018DistRev!AC11 -> 0 | AD11: =Est2018DistRev!AD11 -> 0 | AF11: 0 | AG11: 39.53301278 | AH11: 6.795809092 | AI11: 31.25362828 | AJ11: 0 | AK11: 141.5006624 | AL11: 0 | AM11: 0 | AN11: 0 | AO11: 0 | AP11: 0 | AQ11: 0 | AR11: 0 | AS11: 219.0831125
B12: NEN12 Small Business Single Rate - Embedded Network | D12: 0 | E12: 1.5048 | F12: 1.5048 | G12: 0 | H12: 0 | I12: 0 | J12: 0 | K12: 0 | L12: 0 | M12: 0 | N12: 0 | O12: 0 | P12: 0 | R12: =Est2018DistRev!R12 -> 0 | S12: =Est2018DistRev!S12 -> 0 | T12: =Est2018DistRev!T12 -> 0 | U12: =Est2018DistRev!U12 -> 0 | V12: =Est2018DistRev!V12 -> 0 | W12: =Est2018DistRev!W12 -> 0 | X12: =Est2018DistRev!X12 -> 0 | Y12: =Est2018DistRev!Y12 -> 0 | Z12: =Est2018DistRev!Z12 -> 0 | AA12: =Est2018DistRev!AA12 -> 0 | AB12: =Est2018DistRev!AB12 -> 0 | AC12: =Est2018DistRev!AC12 -> 0 | AD12: =Est2018DistRev!AD12 -> 0 | AF12: 0 | AG12: 0 | AH12: 0 | AI12: 0 | AJ12: 0 | AK12: 0 | AL12: 0 | AM12: 0 | AN12: 0 | AO12: 0 | AP12: 0 | AQ12: 0 | AR12: 0 | AS12: 0
B13: NEE20 Small Two Rate | D13: 0 | E13: 1.5048 | F13: 0 | G13: 0 | H13: 0 | I13: 0.4196 | J13: 0 | K13: 0 | L13: 0 | M13: 0 | N13: 0 | O13: 0 | P13: 0 | R13: =Est2018DistRev!R13 -> 53189.12642 | S13: =Est2018DistRev!S13 -> 151443956.6 | T13: =Est2018DistRev!T13 -> 0 | U13: =Est2018DistRev!U13 -> 0 | V13: =Est2018DistRev!V13 -> 0 | W13: =Est2018DistRev!W13 -> 203786016.2 | X13: =Est2018DistRev!X13 -> 0 | Y13: =Est2018DistRev!Y13 -> 0 | Z13: =Est2018DistRev!Z13 -> 0 | AA13: =Est2018DistRev!AA13 -> 0 | AB13: =Est2018DistRev!AB13 -> 0 | AC13: =Est2018DistRev!AC13 -> 0 | AD13: =Est2018DistRev!AD13 -> 0 | AF13: 0 | AG13: 2278928.659 | AH13: 0 | AI13: 0 | AJ13: 0 | AK13: 855086.1238 | AL13: 0 | AM13: 0 | AN13: 0 | AO13: 0 | AP13: 0 | AQ13: 0 | AR13: 0 | AS13: 3134014.783
B14: NSP20 Small Two Rate | D14: 0 | E14: 1.5048 | F14: 1.5048 | G14: 1.5048 | H14: 0 | I14: 0.4196 | J14: 0 | K14: 0 | L14: 0 | M14: 0 | N14: 0 | O14: 0 | P14: 0 | R14: =Est2018DistRev!R14 -> 4.801092 | S14: =Est2018DistRev!S14 -> 2391.869968 | T14: =Est2018DistRev!T14 -> 625.8978431 | U14: =Est2018DistRev!U14 -> 1380.417735 | V14: =Est2018DistRev!V14 -> 0 | W14: =Est2018DistRev!W14 -> 25217.2565 | X14: =Est2018DistRev!X14 -> 0 | Y14: =Est2018DistRev!Y14 -> 0 | Z14: =Est2018DistRev!Z14 -> 0 | AA14: =Est2018DistRev!AA14 -> 0 | AB14: =Est2018DistRev!AB14 -> 0 | AC14: =Est2018DistRev!AC14 -> 0 | AD14: =Est2018DistRev!AD14 -> 0 | AF14: 0 | AG14: 35.99285928 | AH14: 9.418510743 | AI14: 20.77252607 | AJ14: 0 | AK14: 105.8116083 | AL14: 0 | AM14: 0 | AN14: 0 | AO14: 0 | AP14: 0 | AQ14: 0 | AR14: 0 | AS14: 171.9955044
B15: NGT26 Small Interval Multi Rate | D15: 0 | E15: 1.5048 | F15: 1.5048 | G15: 1.5048 | H15: 1.504891011 | I15: 0.4196 | J15: 0.4196 | K15: 0 | L15: 0 | M15: 0 | N15: 0 | O15: 0 | P15: 0 | R15: =Est2018DistRev!R15 -> 1550.96916 | S15: =Est2018DistRev!S15 -> 1663733.906 | T15: =Est2018DistRev!T15 -> 0 | U15: =Est2018DistRev!U15 -> 3498620.114 | V15: =Est2018DistRev!V15 -> 0 | W15: =Est2018DistRev!W15 -> 2370698.155 | X15: =Est2018DistRev!X15 -> 0 | Y15: =Est2018DistRev!Y15 -> 0 | Z15: =Est2018DistRev!Z15 -> 0 | AA15: =Est2018DistRev!AA15 -> 0 | AB15: =Est2018DistRev!AB15 -> 0 | AC15: =Est2018DistRev!AC15 -> 0 | AD15: =Est2018DistRev!AD15 -> 0 | AF15: 0 | AG15: 25035.86781 | AH15: 0 | AI15: 52647.23548 | AJ15: 0 | AK15: 9947.449458 | AL15: 0 | AM15: 0 | AN15: 0 | AO15: 0 | AP15: 0 | AQ15: 0 | AR15: 0 | AS15: 87630.55275
B16: NEN20 Small Two Rate - Embedded Network | D16: 0 | E16: 1.5048 | F16: 0 | G16: 0 | H16: 0 | I16: 0.4196 | J16: 0 | K16: 0 | L16: 0 | M16: 0 | N16: 0 | O16: 0 | P16: 0 | R16: =Est2018DistRev!R16 -> 0 | S16: =Est2018DistRev!S16 -> 0 | T16: =Est2018DistRev!T16 -> 0 | U16: =Est2018DistRev!U16 -> 0 | V16: =Est2018DistRev!V16 -> 0 | W16: =Est2018DistRev!W16 -> 0 | X16: =Est2018DistRev!X16 -> 0 | Y16: =Est2018DistRev!Y16 -> 0 | Z16: =Est2018DistRev!Z16 -> 0 | AA16: =Est2018DistRev!AA16 -> 0 | AB16: =Est2018DistRev!AB16 -> 0 | AC16: =Est2018DistRev!AC16 -> 0 | AD16: =Est2018DistRev!AD16 -> 0 | AF16: 0 | AG16: 0 | AH16: 0 | AI16: 0 | AJ16: 0 | AK16: 0 | AL16: 0 | AM16: 0 | AN16: 0 | AO16: 0 | AP16: 0 | AQ16: 0 | AR16: 0 | AS16: 0
B17: NEE21 Small Business Two Rate | D17: 0 | E17: 1.5048 | F17: 0 | G17: 0 | H17: 0 | I17: 0.4196 | J17: 0 | K17: 0 | L17: 0 | M17: 0 | N17: 0 | O17: 0 | P17: 0 | R17: =Est2018DistRev!R17 -> 28492.34198 | S17: =Est2018DistRev!S17 -> 237904722.2 | T17: =Est2018DistRev!T17 -> 0 | U17: =Est2018DistRev!U17 -> 0 | V17: =Est2018DistRev!V17 -> 0 | W17: =Est2018DistRev!W17 -> 172030364 | X17: =Est2018DistRev!X17 -> 0 | Y17: =Est2018DistRev!Y17 -> -8272287.863 | Z17: =Est2018DistRev!Z17 -> 0 | AA17: =Est2018DistRev!AA17 -> 0 | AB17: =Est2018DistRev!AB17 -> 0 | AC17: =Est2018DistRev!AC17 -> 0 | AD17: =Est2018DistRev!AD17 -> 0 | AF17: 0 | AG17: 3579990.259 | AH17: 0 | AI17: 0 | AJ17: 0 | AK17: 721839.4074 | AL17: 0 | AM17: 0 | AN17: 0 | AO17: 0 | AP17: 0 | AQ17: 0 | AR17: 0 | AS17: 4301829.667
B18: NSP21 Small Business Two Rate | D18: 0 | E18: 1.5048 | F18: 1.5048 | G18: 1.5048 | H18: 0 | I18: 0.4196 | J18: 0 | K18: 0 | L18: 0 | M18: 0 | N18: 0 | O18: 0 | P18: 0 | R18: =Est2018DistRev!R18 -> 1 | S18: =Est2018DistRev!S18 -> 2601.970893 | T18: =Est2018DistRev!T18 -> 433.1712331 | U18: =Est2018DistRev!U18 -> 1453.913492 | V18: =Est2018DistRev!V18 -> 0 | W18: =Est2018DistRev!W18 -> 35657.8239 | X18: =Est2018DistRev!X18 -> 0 | Y18: =Est2018DistRev!Y18 -> 3421.39 | Z18: =Est2018DistRev!Z18 -> 0 | AA18: =Est2018DistRev!AA18 -> 0 | AB18: =Est2018DistRev!AB18 -> 0 | AC18: =Est2018DistRev!AC18 -> 0 | AD18: =Est2018DistRev!AD18 -> 0 | AF18: 0 | AG18: 39.154458 | AH18: 6.518360715 | AI18: 21.87849023 | AJ18: 0 | AK18: 149.6202291 | AL18: 0 | AM18: 0 | AN18: 0 | AO18: 0 | AP18: 0 | AQ18: 0 | AR18: 0 | AS18: 217.171538
B19: NSP27 Small Business Two Rate | D19: 0 | E19: 1.5048 | F19: 1.5048 | G19: 1.5048 | H19: 0 | I19: 0.4196 | J19: 0 | K19: 0 | L19: 0 | M19: 0 | N19: 0 | O19: 0 | P19: 0 | R19: =Est2018DistRev!R19 -> 22.917792 | S19: =Est2018DistRev!S19 -> 59157.82501 | T19: =Est2018DistRev!T19 -> 14086.42608 | U19: =Est2018DistRev!U19 -> 29817.39453 | V19: =Est2018DistRev!V19 -> 0 | W19: =Est2018DistRev!W19 -> 826138.5133 | X19: =Est2018DistRev!X19 -> 0 | Y19: =Est2018DistRev!Y19 -> 0 | Z19: =Est2018DistRev!Z19 -> 0 | AA19: =Est2018DistRev!AA19 -> 0 | AB19: =Est2018DistRev!AB19 -> 0 | AC19: =Est2018DistRev!AC19 -> 0 | AD19: =Est2018DistRev!AD19 -> 0 | AF19: 0 | AG19: 890.2069507 | AH19: 211.9725396 | AI19: 448.6921528 | AJ19: 0 | AK19: 3466.477202 | AL19: 0 | AM19: 0 | AN19: 0 | AO19: 0 | AP19: 0 | AQ19: 0 | AR19: 0 | AS19: 5017.348845
B20: NEN21 Small Business Two Rate - Embedded Network | D20: 0 | E20: 1.5048 | F20: 0 | G20: 0 | H20: 0 | I20: 0.4196 | J20: 0 | K20: 0 | L20: 0 | M20: 0 | N20: 0 | O20: 0 | P20: 0 | R20: =Est2018DistRev!R20 -> 0 | S20: =Est2018DistRev!S20 -> 0 | T20: =Est2018DistRev!T20 -> 0 | U20: =Est2018DistRev!U20 -> 0 | V20: =Est2018DistRev!V20 -> 0 | W20: =Est2018DistRev!W20 -> 0 | X20: =Est2018DistRev!X20 -> 0 | Y20: =Est2018DistRev!Y20 -> 0 | Z20: =Est2018DistRev!Z20 -> 0 | AA20: =Est2018DistRev!AA20 -> 0 | AB20: =Est2018DistRev!AB20 -> 0 | AC20: =Est2018DistRev!AC20 -> 0 | AD20: =Est2018DistRev!AD20 -> 0 | AF20: 0 | AG20: 0 | AH20: 0 | AI20: 0 | AJ20: 0 | AK20: 0 | AL20: 0 | AM20: 0 | AN20: 0 | AO20: 0 | AP20: 0 | AQ20: 0 | AR20: 0 | AS20: 0
B21: NEE23 Photovoltaic | D21: 0 | E21: 1.5048 | F21: 0 | G21: 0 | H21: 0 | I21: 0.4196 | J21: 0 | K21: 0 | L21: 0 | M21: 0 | N21: 0 | O21: 0 | P21: 0 | R21: =Est2018DistRev!R21 -> 105100.972 | S21: =Est2018DistRev!S21 -> 227297672 | T21: =Est2018DistRev!T21 -> 0 | U21: =Est2018DistRev!U21 -> 0 | V21: =Est2018DistRev!V21 -> 0 | W21: =Est2018DistRev!W21 -> 279270822 | X21: =Est2018DistRev!X21 -> 0 | Y21: =Est2018DistRev!Y21 -> -195758545.2 | Z21: =Est2018DistRev!Z21 -> 0 | AA21: =Est2018DistRev!AA21 -> 0 | AB21: =Est2018DistRev!AB21 -> 0 | AC21: =Est2018DistRev!AC21 -> 0 | AD21: =Est2018DistRev!AD21 -> 0 | AF21: 0 | AG21: 3420375.368 | AH21: 0 | AI21: 0 | AJ21: 0 | AK21: 1171820.369 | AL21: 0 | AM21: 0 | AN21: 0 | AO21: 0 | AP21: 0 | AQ21: 0 | AR21: 0 | AS21: 4592195.737
B22: NSP23 Photovoltaic | D22: 0 | E22: 1.5048 | F22: 1.5048 | G22: 1.5048 | H22: 0 | I22: 0.4196 | J22: 0 | K22: 0 | L22: 0 | M22: 0 | N22: 0 | O22: 0 | P22: 0 | R22: =Est2018DistRev!R22 -> 103.07799 | S22: =Est2018DistRev!S22 -> 26202.34564 | T22: =Est2018DistRev!T22 -> 1705.01852 | U22: =Est2018DistRev!U22 -> 28872.57076 | V22: =Est2018DistRev!V22 -> 0 | W22: =Est2018DistRev!W22 -> 349298.8318 | X22: =Est2018DistRev!X22 -> 0 | Y22: =Est2018DistRev!Y22 -> -165921.09 | Z22: =Est2018DistRev!Z22 -> 0 | AA22: =Est2018DistRev!AA22 -> 0 | AB22: =Est2018DistRev!AB22 -> 0 | AC22: =Est2018DistRev!AC22 -> 0 | AD22: =Est2018DistRev!AD22 -> 0 | AF22: 0 | AG22: 394.2928972 | AH22: 25.65711868 | AI22: 434.4744447 | AJ22: 0 | AK22: 1465.657898 | AL22: 0 | AM22: 0 | AN22: 0 | AO22: 0 | AP22: 0 | AQ22: 0 | AR22: 0 | AS22: 2320.082359
B23: NEE24 Small rate 5 day 8 to 8 | D23: 0 | E23: 1.5048 | F23: 0 | G23: 0 | H23: 0 | I23: 0.4196 | J23: 0 | K23: 0 | L23: 0 | M23: 0 | N23: 0 | O23: 0 | P23: 0 | R23: =Est2018DistRev!R23 -> 2395.127886 | S23: =Est2018DistRev!S23 -> 2990114.858 | T23: =Est2018DistRev!T23 -> 0 | U23: =Est2018DistRev!U23 -> 0 | V23: =Est2018DistRev!V23 -> 0 | W23: =Est2018DistRev!W23 -> 7304821.54 | X23: =Est2018DistRev!X23 -> 0 | Y23: =Est2018DistRev!Y23 -> 0 | Z23: =Est2018DistRev!Z23 -> 0 | AA23: =Est2018DistRev!AA23 -> 0 | AB23: =Est2018DistRev!AB23 -> 0 | AC23: =Est2018DistRev!AC23 -> 0 | AD23: =Est2018DistRev!AD23 -> 0 | AF23: 0 | AG23: 44995.24838 | AH23: 0 | AI23: 0 | AJ23: 0 | AK23: 30651.03118 | AL23: 0 | AM23: 0 | AN23: 0 | AO23: 0 | AP23: 0 | AQ23: 0 | AR23: 0 | AS23: 75646.27956
B24: NEE25 Small business rate 5 day 8 to 8 | D24: 0 | E24: 1.5048 | F24: 0 | G24: 0 | H24: 0 | I24: 0.4196 | J24: 0 | K24: 0 | L24: 0 | M24: 0 | N24: 0 | O24: 0 | P24: 0 | R24: =Est2018DistRev!R24 -> 3.551556 | S24: =Est2018DistRev!S24 -> 98982.09723 | T24: =Est2018DistRev!T24 -> 0 | U24: =Est2018DistRev!U24 -> 0 | V24: =Est2018DistRev!V24 -> 0 | W24: =Est2018DistRev!W24 -> 97904.78723 | X24: =Est2018DistRev!X24 -> 0 | Y24: =Est2018DistRev!Y24 -> 0 | Z24: =Est2018DistRev!Z24 -> 0 | AA24: =Est2018DistRev!AA24 -> 0 | AB24: =Est2018DistRev!AB24 -> 0 | AC24: =Est2018DistRev!AC24 -> 0 | AD24: =Est2018DistRev!AD24 -> 0 | AF24: 0 | AG24: 1489.482599 | AH24: 0 | AI24: 0 | AJ24: 0 | AK24: 410.8084872 | AL24: 0 | AM24: 0 | AN24: 0 | AO24: 0 | AP24: 0 | AQ24: 0 | AR24: 0 | AS24: 1900.291086
B25: NEE30 Small Dedicated | D25: 0 | E25: 0 | F25: 0 | G25: 0 | H25: 0 | I25: 0.4196 | J25: 0 | K25: 0 | L25: 0 | M25: 0 | N25: 0 | O25: 0 | P25: 0 | R25: =Est2018DistRev!R25 -> 93496.54834 | S25: =Est2018DistRev!S25 -> 0 | T25: =Est2018DistRev!T25 -> 0 | U25: =Est2018DistRev!U25 -> 0 | V25: =Est2018DistRev!V25 -> 0 | W25: =Est2018DistRev!W25 -> 129027278.2 | X25: =Est2018DistRev!X25 -> 0 | Y25: =Est2018DistRev!Y25 -> 0 | Z25: =Est2018DistRev!Z25 -> 0 | AA25: =Est2018DistRev!AA25 -> 0 | AB25: =Est2018DistRev!AB25 -> 0 | AC25: =Est2018DistRev!AC25 -> 0 | AD25: =Est2018DistRev!AD25 -> 0 | AF25: 0 | AG25: 0 | AH25: 0 | AI25: 0 | AJ25: 0 | AK25: 541398.4595 | AL25: 0 | AM25: 0 | AN25: 0 | AO25: 0 | AP25: 0 | AQ25: 0 | AR25: 0 | AS25: 541398.4595
B26: NSP30 Small Dedicated | D26: 0 | E26: 0 | F26: 0 | G26: 0 | H26: 0 | I26: 0.4196 | J26: 0 | K26: 0 | L26: 0 | M26: 0 | N26: 0 | O26: 0 | P26: 0 | R26: =Est2018DistRev!R26 -> 0 | S26: =Est2018DistRev!S26 -> 0 | T26: =Est2018DistRev!T26 -> 0 | U26: =Est2018DistRev!U26 -> 0 | V26: =Est2018DistRev!V26 -> 0 | W26: =Est2018DistRev!W26 -> 0 | X26: =Est2018DistRev!X26 -> 0 | Y26: =Est2018DistRev!Y26 -> 0 | Z26: =Est2018DistRev!Z26 -> 0 | AA26: =Est2018DistRev!AA26 -> 0 | AB26: =Est2018DistRev!AB26 -> 0 | AC26: =Est2018DistRev!AC26 -> 0 | AD26: =Est2018DistRev!AD26 -> 0 | AF26: 0 | AG26: 0 | AH26: 0 | AI26: 0 | AJ26: 0 | AK26: 0 | AL26: 0 | AM26: 0 | AN26: 0 | AO26: 0 | AP26: 0 | AQ26: 0 | AR26: 0 | AS26: 0
B27: NEE31 Small Dedicated-afternoon boost | D27: 0 | E27: 0 | F27: 0 | G27: 0 | H27: 0 | I27: 0.4196 | J27: 0 | K27: 0 | L27: 0 | M27: 0 | N27: 0 | O27: 0 | P27: 0 | R27: =Est2018DistRev!R27 -> 13804.03077 | S27: =Est2018DistRev!S27 -> 0 | T27: =Est2018DistRev!T27 -> 0 | U27: =Est2018DistRev!U27 -> 0 | V27: =Est2018DistRev!V27 -> 0 | W27: =Est2018DistRev!W27 -> 44180598.21 | X27: =Est2018DistRev!X27 -> 0 | Y27: =Est2018DistRev!Y27 -> 0 | Z27: =Est2018DistRev!Z27 -> 0 | AA27: =Est2018DistRev!AA27 -> 0 | AB27: =Est2018DistRev!AB27 -> 0 | AC27: =Est2018DistRev!AC27 -> 0 | AD27: =Est2018DistRev!AD27 -> 0 | AF27: 0 | AG27: 0 | AH27: 0 | AI27: 0 | AJ27: 0 | AK27: 185381.7901 | AL27: 0 | AM27: 0 | AN27: 0 | AO27: 0 | AP27: 0 | AQ27: 0 | AR27: 0 | AS27: 185381.7901
B28: NSP31 Small Dedicated-afternoon boost | D28: 0 | E28: 0 | F28: 0 | G28: 0 | H28: 0 | I28: 0.4196 | J28: 0 | K28: 0 | L28: 0 | M28: 0 | N28: 0 | O28: 0 | P28: 0 | R28: =Est2018DistRev!R28 -> 0 | S28: =Est2018DistRev!S28 -> 0 | T28: =Est2018DistRev!T28 -> 0 | U28: =Est2018DistRev!U28 -> 0 | V28: =Est2018DistRev!V28 -> 0 | W28: =Est2018DistRev!W28 -> 0 | X28: =Est2018DistRev!X28 -> 0 | Y28: =Est2018DistRev!Y28 -> 0 | Z28: =Est2018DistRev!Z28 -> 0 | AA28: =Est2018DistRev!AA28 -> 0 | AB28: =Est2018DistRev!AB28 -> 0 | AC28: =Est2018DistRev!AC28 -> 0 | AD28: =Est2018DistRev!AD28 -> 0 | AF28: 0 | AG28: 0 | AH28: 0 | AI28: 0 | AJ28: 0 | AK28: 0 | AL28: 0 | AM28: 0 | AN28: 0 | AO28: 0 | AP28: 0 | AQ28: 0 | AR28: 0 | AS28: 0
B29: NEE32 Dedicated Circuit 8 to 8 | D29: 0 | E29: 0 | F29: 0 | G29: 0 | H29: 0 | I29: 0.4196 | J29: 0 | K29: 0 | L29: 0 | M29: 0 | N29: 0 | O29: 0 | P29: 0 | R29: =Est2018DistRev!R29 -> 3879.007706 | S29: =Est2018DistRev!S29 -> 0 | T29: =Est2018DistRev!T29 -> 0 | U29: =Est2018DistRev!U29 -> 0 | V29: =Est2018DistRev!V29 -> 0 | W29: =Est2018DistRev!W29 -> 5078516.987 | X29: =Est2018DistRev!X29 -> 0 | Y29: =Est2018DistRev!Y29 -> 0 | Z29: =Est2018DistRev!Z29 -> 0 | AA29: =Est2018DistRev!AA29 -> 0 | AB29: =Est2018DistRev!AB29 -> 0 | AC29: =Est2018DistRev!AC29 -> 0 | AD29: =Est2018DistRev!AD29 -> 0 | AF29: 0 | AG29: 0 | AH29: 0 | AI29: 0 | AJ29: 0 | AK29: 21309.45728 | AL29: 0 | AM29: 0 | AN29: 0 | AO29: 0 | AP29: 0 | AQ29: 0 | AR29: 0 | AS29: 21309.45728
B30: NSP32 Dedicated Circuit 8 to 8 | D30: 0 | E30: 0 | F30: 0 | G30: 0 | H30: 0 | I30: 0.4196 | J30: 0 | K30: 0 | L30: 0 | M30: 0 | N30: 0 | O30: 0 | P30: 0 | R30: =Est2018DistRev!R30 -> 0 | S30: =Est2018DistRev!S30 -> 0 | T30: =Est2018DistRev!T30 -> 0 | U30: =Est2018DistRev!U30 -> 0 | V30: =Est2018DistRev!V30 -> 0 | W30: =Est2018DistRev!W30 -> 0 | X30: =Est2018DistRev!X30 -> 0 | Y30: =Est2018DistRev!Y30 -> 0 | Z30: =Est2018DistRev!Z30 -> 0 | AA30: =Est2018DistRev!AA30 -> 0 | AB30: =Est2018DistRev!AB30 -> 0 | AC30: =Est2018DistRev!AC30 -> 0 | AD30: =Est2018DistRev!AD30 -> 0 | AF30: 0 | AG30: 0 | AH30: 0 | AI30: 0 | AJ30: 0 | AK30: 0 | AL30: 0 | AM30: 0 | AN30: 0 | AO30: 0 | AP30: 0 | AQ30: 0 | AR30: 0 | AS30: 0
B31: NEE40 Medium Single Rate - closed to new customers | D31: 0 | E31: 1.5048 | F31: 0 | G31: 0 | H31: 0 | I31: 0 | J31: 0 | K31: 0 | L31: 0 | M31: 0 | N31: 0 | O31: 0 | P31: 0 | R31: =Est2018DistRev!R31 -> 1523.822742 | S31: =Est2018DistRev!S31 -> 13436538.09 | T31: =Est2018DistRev!T31 -> 0 | U31: =Est2018DistRev!U31 -> 0 | V31: =Est2018DistRev!V31 -> 0 | W31: =Est2018DistRev!W31 -> 0 | X31: =Est2018DistRev!X31 -> 0 | Y31: =Est2018DistRev!Y31 -> 0 | Z31: =Est2018DistRev!Z31 -> 0 | AA31: =Est2018DistRev!AA31 -> 0 | AB31: =Est2018DistRev!AB31 -> 0 | AC31: =Est2018DistRev!AC31 -> 0 | AD31: =Est2018DistRev!AD31 -> 0 | AF31: 0 | AG31: 202193.0252 | AH31: 0 | AI31: 0 | AJ31: 0 | AK31: 0 | AL31: 0 | AM31: 0 | AN31: 0 | AO31: 0 | AP31: 0 | AQ31: 0 | AR31: 0 | AS31: 202193.0252
B32: NEE51 Medium Two Rate 5Day - closed to new customers - <160MWh to NEE21 | D32: 0 | E32: 1.5048 | F32: 0 | G32: 0 | H32: 0 | I32: 0.4196 | J32: 0 | K32: 0 | L32: 0 | M32: 0 | N32: 0 | O32: 0 | P32: 0 | R32: =Est2018DistRev!R32 -> 1691.489172 | S32: =Est2018DistRev!S32 -> 76213451.6 | T32: =Est2018DistRev!T32 -> 0 | U32: =Est2018DistRev!U32 -> 0 | V32: =Est2018DistRev!V32 -> 0 | W32: =Est2018DistRev!W32 -> 59488363.02 | X32: =Est2018DistRev!X32 -> 0 | Y32: =Est2018DistRev!Y32 -> 0 | Z32: =Est2018DistRev!Z32 -> 0 | AA32: =Est2018DistRev!AA32 -> 0 | AB32: =Est2018DistRev!AB32 -> 0 | AC32: =Est2018DistRev!AC32 -> 0 | AD32: =Est2018DistRev!AD32 -> 0 | AF32: 0 | AG32: 1146860.02 | AH32: 0 | AI32: 0 | AJ32: 0 | AK32: 249613.1712 | AL32: 0 | AM32: 0 | AN32: 0 | AO32: 0 | AP32: 0 | AQ32: 0 | AR32: 0 | AS32: 1396473.191
B33: NEE55 Snowfields Tariff | D33: 0 | E33: 1.5048 | F33: 0 | G33: 0 | H33: 0 | I33: 0.4196 | J33: 0 | K33: 0 | L33: 0 | M33: 0 | N33: 0 | O33: 0 | P33: 0 | R33: =Est2018DistRev!R33 -> 1.002738 | S33: =Est2018DistRev!S33 -> 86611.4064 | T33: =Est2018DistRev!T33 -> 0 | U33: =Est2018DistRev!U33 -> 0 | V33: =Est2018DistRev!V33 -> 0 | W33: =Est2018DistRev!W33 -> 60734.33949 | X33: =Est2018DistRev!X33 -> 0 | Y33: =Est2018DistRev!Y33 -> 0 | Z33: =Est2018DistRev!Z33 -> 0 | AA33: =Est2018DistRev!AA33 -> 0 | AB33: =Est2018DistRev!AB33 -> 0 | AC33: =Est2018DistRev!AC33 -> 0 | AD33: =Est2018DistRev!AD33 -> 0 | AF33: 0 | AG33: 1303.328444 | AH33: 0 | AI33: 0 | AJ33: 0 | AK33: 254.8412885 | AL33: 0 | AM33: 0 | AN33: 0 | AO33: 0 | AP33: 0 | AQ33: 0 | AR33: 0 | AS33: 1558.169732
B34: NSP55 Snowfields Tariff | D34: 0 | E34: 1.5048 | F34: 1.5048 | G34: 1.5048 | H34: 0 | I34: 0.4196 | J34: 0 | K34: 0 | L34: 0 | M34: 0 | N34: 0 | O34: 0 | P34: 0 | R34: =Est2018DistRev!R34 -> 0 | S34: =Est2018DistRev!S34 -> 0 | T34: =Est2018DistRev!T34 -> 0 | U34: =Est2018DistRev!U34 -> 0 | V34: =Est2018DistRev!V34 -> 0 | W34: =Est2018DistRev!W34 -> 0 | X34: =Est2018DistRev!X34 -> 0 | Y34: =Est2018DistRev!Y34 -> 0 | Z34: =Est2018DistRev!Z34 -> 0 | AA34: =Est2018DistRev!AA34 -> 0 | AB34: =Est2018DistRev!AB34 -> 0 | AC34: =Est2018DistRev!AC34 -> 0 | AD34: =Est2018DistRev!AD34 -> 0 | AF34: 0 | AG34: 0 | AH34: 0 | AI34: 0 | AJ34: 0 | AK34: 0 | AL34: 0 | AM34: 0 | AN34: 0 | AO34: 0 | AP34: 0 | AQ34: 0 | AR34: 0 | AS34: 0
B35: NSP56 Medium Demand Multi-rate | D35: 0 | E35: 1.5048 | F35: 1.5048 | G35: 0 | H35: 0 | I35: 0.4196 | J35: 0 | K35: 0 | L35: 0 | M35: 0 | N35: 0 | O35: 0 | P35: 0 | R35: =Est2018DistRev!R35 -> 1126.790364 | S35: =Est2018DistRev!S35 -> 85030637.34 | T35: =Est2018DistRev!T35 -> 67483790.35 | U35: =Est2018DistRev!U35 -> 0 | V35: =Est2018DistRev!V35 -> 0 | W35: =Est2018DistRev!W35 -> 108203911.9 | X35: =Est2018DistRev!X35 -> 0 | Y35: =Est2018DistRev!Y35 -> 0 | Z35: =Est2018DistRev!Z35 -> 0 | AA35: =Est2018DistRev!AA35 -> 174943.3977 | AB35: =Est2018DistRev!AB35 -> 71182.95279 | AC35: =Est2018DistRev!AC35 -> 0 | AD35: =Est2018DistRev!AD35 -> 0 | AF35: 0 | AG35: 1279541.031 | AH35: 1015496.077 | AI35: 0 | AJ35: 0 | AK35: 454023.6145 | AL35: 0 | AM35: 0 | AN35: 0 | AO35: 0 | AP35: 0 | AQ35: 0 | AR35: 0 | AS35: 2749060.722
B36: NEN56 Medium Demand Multi-rate - Embedded Network | D36: 0 | E36: 1.5048 | F36: 1.5048 | G36: 0 | H36: 0 | I36: 0.4196 | J36: 0 | K36: 0 | L36: 0 | M36: 0 | N36: 0 | O36: 0 | P36: 0 | R36: =Est2018DistRev!R36 -> 2.005488 | S36: =Est2018DistRev!S36 -> 146233.9441 | T36: =Est2018DistRev!T36 -> 154648.7649 | U36: =Est2018DistRev!U36 -> 0 | V36: =Est2018DistRev!V36 -> 0 | W36: =Est2018DistRev!W36 -> 156877.588 | X36: =Est2018DistRev!X36 -> 0 | Y36: =Est2018DistRev!Y36 -> 0 | Z36: =Est2018DistRev!Z36 -> 0 | AA36: =Est2018DistRev!AA36 -> 303.31 | AB36: =Est2018DistRev!AB36 -> 102.37 | AC36: =Est2018DistRev!AC36 -> 0 | AD36: =Est2018DistRev!AD36 -> 0 | AF36: 0 | AG36: 2200.528391 | AH36: 2327.154614 | AI36: 0 | AJ36: 0 | AK36: 658.2583591 | AL36: 0 | AM36: 0 | AN36: 0 | AO36: 0 | AP36: 0 | AQ36: 0 | AR36: 0 | AS36: 5185.941364
B37: NEE60 Medium Two Rate 7Day - closed to new customers | D37: 0 | E37: 1.5048 | F37: 0 | G37: 0 | H37: 0 | I37: 0.4196 | J37: 0 | K37: 0 | L37: 0 | M37: 0 | N37: 0 | O37: 0 | P37: 0 | R37: =Est2018DistRev!R37 -> 401.250696 | S37: =Est2018DistRev!S37 -> 17145428.55 | T37: =Est2018DistRev!T37 -> 0 | U37: =Est2018DistRev!U37 -> 0 | V37: =Est2018DistRev!V37 -> 0 | W37: =Est2018DistRev!W37 -> 5240988.585 | X37: =Est2018DistRev!X37 -> 0 | Y37: =Est2018DistRev!Y37 -> 0 | Z37: =Est2018DistRev!Z37 -> 0 | AA37: =Est2018DistRev!AA37 -> 0 | AB37: =Est2018DistRev!AB37 -> 0 | AC37: =Est2018DistRev!AC37 -> 0 | AD37: =Est2018DistRev!AD37 -> 0 | AF37: 0 | AG37: 258004.4088 | AH37: 0 | AI37: 0 | AJ37: 0 | AK37: 21991.1881 | AL37: 0 | AM37: 0 | AN37: =L37/100*Z37 -> 0 | AO37: 0 | AP37: 0 | AQ37: 0 | AR37: 0 | AS37: 279995.5969
B38: NEE52 Unmetered | D38: 0 | E38: 1.5048 | F38: 0 | G38: 0 | H38: 0 | I38: 0.4196 | J38: 0 | K38: 0 | L38: 0 | M38: 0 | N38: 0 | O38: 0 | P38: 0 | R38: =Est2018DistRev!R38 -> 0 | S38: =Est2018DistRev!S38 -> 26465260.03 | T38: =Est2018DistRev!T38 -> 0 | U38: =Est2018DistRev!U38 -> 0 | V38: =Est2018DistRev!V38 -> 0 | W38: =Est2018DistRev!W38 -> 55924351 | X38: =Est2018DistRev!X38 -> 0 | Y38: =Est2018DistRev!Y38 -> 0 | Z38: =Est2018DistRev!Z38 -> 0 | AA38: =Est2018DistRev!AA38 -> 0 | AB38: =Est2018DistRev!AB38 -> 0 | AC38: =Est2018DistRev!AC38 -> 0 | AD38: =Est2018DistRev!AD38 -> 0 | AF38: 0 | AG38: =E38/100*S38 -> 398249.2329 | AH38: 0 | AI38: 0 | AJ38: 0 | AK38: 234658.5768 | AL38: 0 | AM38: 0 | AN38: 0 | AO38: =M38*AA38 -> 0 | AP38: 0 | AQ38: 0 | AR38: 0 | AS38: 632907.8097
B39: NEE74 LV Large Two Rate 5Day | D39: 0 | E39: 1.5048 | F39: 0 | G39: 0 | H39: 0 | I39: 0.4196 | J39: 0 | K39: 0 | L39: 0 | M39: 0 | N39: 0 | O39: 0 | P39: 0 | R39: =Est2018DistRev!R39 -> 8.021994 | S39: =Est2018DistRev!S39 -> 2508570.323 | T39: =Est2018DistRev!T39 -> 0 | U39: =Est2018DistRev!U39 -> 0 | V39: =Est2018DistRev!V39 -> 0 | W39: =Est2018DistRev!W39 -> 3101259.793 | X39: =Est2018DistRev!X39 -> 0 | Y39: =Est2018DistRev!Y39 -> 0 | Z39: =Est2018DistRev!Z39 -> 0 | AA39: =Est2018DistRev!AA39 -> 0 | AB39: =Est2018DistRev!AB39 -> 0 | AC39: =Est2018DistRev!AC39 -> 0 | AD39: =Est2018DistRev!AD39 -> 0 | AF39: 0 | AG39: 37748.96621 | AH39: 0 | AI39: 0 | AJ39: 0 | AK39: 13012.88609 | AL39: 0 | AM39: 0 | AN39: 0 | AO39: 0 | AP39: 0 | AQ39: 0 | AR39: 0 | AS39: 50761.8523
B40: NSP75 Large Multi-rate <750 kVA | D40: 0 | E40: 1.5048 | F40: 1.5048 | G40: 0 | H40: 0 | I40: 0.4196 | J40: 0 | K40: 0 | L40: 0 | M40: 0 | N40: 0 | O40: 0 | P40: 0 | R40: =Est2018DistRev!R40 -> 780.750114 | S40: =Est2018DistRev!S40 -> 136710972.2 | T40: =Est2018DistRev!T40 -> 101823183.9 | U40: =Est2018DistRev!U40 -> 0 | V40: =Est2018DistRev!V40 -> 0 | W40: =Est2018DistRev!W40 -> 183558803.2 | X40: =Est2018DistRev!X40 -> 0 | Y40: =Est2018DistRev!Y40 -> 0 | Z40: =Est2018DistRev!Z40 -> 0 | AA40: =Est2018DistRev!AA40 -> 200952.2098 | AB40: =Est2018DistRev!AB40 -> 94328.07063 | AC40: =Est2018DistRev!AC40 -> 0 | AD40: =Est2018DistRev!AD40 -> 0 | AF40: 0 | AG40: 2057226.709 | AH40: 1532235.271 | AI40: 0 | AJ40: 0 | AK40: 770212.7381 | AL40: 0 | AM40: 0 | AN40: 0 | AO40: 0 | AP40: 0 | AQ40: 0 | AR40: 0 | AS40: 4359674.719
B41: NSP76 Large Multi-rate >750 kVA | D41: 0 | E41: 1.5048 | F41: 1.5048 | G41: 0 | H41: 0 | I41: 0.4196 | J41: 0 | K41: 0 | L41: 0 | M41: 0 | N41: 0 | O41: 0 | P41: 0 | R41: =Est2018DistRev!R41 -> 512.23581 | S41: =Est2018DistRev!S41 -> 194303198.8 | T41: =Est2018DistRev!T41 -> 144244927 | U41: =Est2018DistRev!U41 -> 0 | V41: =Est2018DistRev!V41 -> 0 | W41: =Est2018DistRev!W41 -> 246299630.3 | X41: =Est2018DistRev!X41 -> 0 | Y41: =Est2018DistRev!Y41 -> 0 | Z41: =Est2018DistRev!Z41 -> 0 | AA41: =Est2018DistRev!AA41 -> 260131.1383 | AB41: =Est2018DistRev!AB41 -> 131829.8349 | AC41: =Est2018DistRev!AC41 -> 0 | AD41: =Est2018DistRev!AD41 -> 0 | AF41: 0 | AG41: 2923874.536 | AH41: 2170597.662 | AI41: 0 | AJ41: 0 | AK41: 1033473.249 | AL41: 0 | AM41: 0 | AN41: 0 | AO41: 0 | AP41: 0 | AQ41: 0 | AR41: 0 | AS41: 6127945.447
B42: NSP77 Large Multi-rate >2 GWh | D42: 0 | E42: 1.5048 | F42: 1.5048 | G42: 0 | H42: 0 | I42: 0.4196 | J42: 0 | K42: 0 | L42: 0 | M42: 0 | N42: 0 | O42: 0 | P42: 0 | R42: =Est2018DistRev!R42 -> 106.433112 | S42: =Est2018DistRev!S42 -> 91084211.52 | T42: =Est2018DistRev!T42 -> 67537664.82 | U42: =Est2018DistRev!U42 -> 0 | V42: =Est2018DistRev!V42 -> 0 | W42: =Est2018DistRev!W42 -> 120220748.8 | X42: =Est2018DistRev!X42 -> 0 | Y42: =Est2018DistRev!Y42 -> 0 | Z42: =Est2018DistRev!Z42 -> 0 | AA42: =Est2018DistRev!AA42 -> 95505.89284 | AB42: =Est2018DistRev!AB42 -> 52989.76823 | AC42: =Est2018DistRev!AC42 -> 0 | AD42: =Est2018DistRev!AD42 -> 0 | AF42: 0 | AG42: 1370635.215 | AH42: 1016306.78 | AI42: 0 | AJ42: 0 | AK42: 504446.262 | AL42: 0 | AM42: 0 | AN42: 0 | AO42: 0 | AP42: 0 | AQ42: 0 | AR42: 0 | AS42: 2891388.257
B43: NSP78 Large Multi-rate >4 GWh | D43: 0 | E43: 1.5048 | F43: 1.5048 | G43: 0 | H43: 0 | I43: 0.4196 | J43: 0 | K43: 0 | L43: 0 | M43: 0 | N43: 0 | O43: 0 | P43: 0 | R43: =Est2018DistRev!R43 -> 35.309526 | S43: =Est2018DistRev!S43 -> 63168087.83 | T43: =Est2018DistRev!T43 -> 44174315.44 | U43: =Est2018DistRev!U43 -> 0 | V43: =Est2018DistRev!V43 -> 0 | W43: =Est2018DistRev!W43 -> 80264209.65 | X43: =Est2018DistRev!X43 -> 0 | Y43: =Est2018DistRev!Y43 -> 0 | Z43: =Est2018DistRev!Z43 -> 0 | AA43: =Est2018DistRev!AA43 -> 57376.92418 | AB43: =Est2018DistRev!AB43 -> 34582.0939 | AC43: =Est2018DistRev!AC43 -> 0 | AD43: =Est2018DistRev!AD43 -> 0 | AF43: 0 | AG43: 950553.3856 | AH43: 664735.0988 | AI43: 0 | AJ43: 0 | AK43: 336788.6237 | AL43: 0 | AM43: 0 | AN43: 0 | AO43: 0 | AP43: 0 | AQ43: 0 | AR43: 0 | AS43: 1952077.108
B44: NSP81 HV Kva | D44: 0 | E44: 1.5048 | F44: 0 | G44: 0 | H44: 0 | I44: 0.4196 | J44: 0 | K44: 0 | L44: 0 | M44: 0 | N44: 0 | O44: 0 | P44: 0 | R44: =Est2018DistRev!R44 -> 53.145108 | S44: =Est2018DistRev!S44 -> 281245838.6 | T44: =Est2018DistRev!T44 -> 0 | U44: =Est2018DistRev!U44 -> 0 | V44: =Est2018DistRev!V44 -> 0 | W44: =Est2018DistRev!W44 -> 236135255.2 | X44: =Est2018DistRev!X44 -> 0 | Y44: =Est2018DistRev!Y44 -> 0 | Z44: =Est2018DistRev!Z44 -> 0 | AA44: =Est2018DistRev!AA44 -> 170762.5024 | AB44: =Est2018DistRev!AB44 -> 81510.87482 | AC44: =Est2018DistRev!AC44 -> 0 | AD44: =Est2018DistRev!AD44 -> 0 | AF44: 0 | AG44: 4232187.379 | AH44: 0 | AI44: 0 | AJ44: 0 | AK44: 990823.5309 | AL44: 0 | AM44: 0 | AN44: 0 | AO44: 0 | AP44: 0 | AQ44: 0 | AR44: 0 | AS44: 5223010.91
B45: NSP82 Traction | D45: 0 | E45: 1.5048 | F45: 1.5048 | G45: 0 | H45: 0 | I45: 0.4196 | J45: 0 | K45: 0 | L45: 0 | M45: 0 | N45: 0 | O45: 0 | P45: 0 | R45: =Est2018DistRev!R45 -> 23.062968 | S45: =Est2018DistRev!S45 -> 31409369.65 | T45: =Est2018DistRev!T45 -> 17945948.4 | U45: =Est2018DistRev!U45 -> 0 | V45: =Est2018DistRev!V45 -> 0 | W45: =Est2018DistRev!W45 -> 37014152.49 | X45: =Est2018DistRev!X45 -> 0 | Y45: =Est2018DistRev!Y45 -> 0 | Z45: =Est2018DistRev!Z45 -> 0 | AA45: =Est2018DistRev!AA45 -> 38774.11056 | AB45: =Est2018DistRev!AB45 -> 20633.29951 | AC45: =Est2018DistRev!AC45 -> 0 | AD45: =Est2018DistRev!AD45 -> 0 | AF45: 0 | AG45: 472648.1946 | AH45: 270050.6316 | AI45: 0 | AJ45: 0 | AK45: 155311.3839 | AL45: 0 | AM45: 0 | AN45: 0 | AO45: 0 | AP45: 0 | AQ45: 0 | AR45: 0 | AS45: 898010.21
B46: NSP83 Small HV | D46: 0 | E46: 1.5048 | F46: 1.5048 | G46: 0 | H46: 0 | I46: 0.4196 | J46: 0 | K46: 0 | L46: 0 | M46: 0 | N46: 0 | O46: 0 | P46: 0 | R46: =Est2018DistRev!R46 -> 22.06023 | S46: =Est2018DistRev!S46 -> 3637611.16 | T46: =Est2018DistRev!T46 -> 2483479.842 | U46: =Est2018DistRev!U46 -> 0 | V46: =Est2018DistRev!V46 -> 0 | W46: =Est2018DistRev!W46 -> 5461639.357 | X46: =Est2018DistRev!X46 -> 0 | Y46: =Est2018DistRev!Y46 -> 0 | Z46: =Est2018DistRev!Z46 -> 0 | AA46: =Est2018DistRev!AA46 -> 22391.39944 | AB46: =Est2018DistRev!AB46 -> 5565.790242 | AC46: =Est2018DistRev!AC46 -> 0 | AD46: =Est2018DistRev!AD46 -> 0 | AF46: 0 | AG46: 54738.77273 | AH46: 37371.40466 | AI46: 0 | AJ46: 0 | AK46: 22917.03874 | AL46: 0 | AM46: 0 | AN46: 0 | AO46: 0 | AP46: 0 | AQ46: 0 | AR46: 0 | AS46: 115027.2161
B47: NSP91 ST kVA | D47: 0 | E47: 1.5048 | F47: 0 | G47: 0 | H47: 0 | I47: 0.4196 | J47: 0 | K47: 0 | L47: 0 | M47: 0 | N47: 0 | O47: 0 | P47: 0 | R47: =Est2018DistRev!R47 -> 0 | S47: =Est2018DistRev!S47 -> 0 | T47: =Est2018DistRev!T47 -> 0 | U47: =Est2018DistRev!U47 -> 0 | V47: =Est2018DistRev!V47 -> 0 | W47: =Est2018DistRev!W47 -> 0 | X47: =Est2018DistRev!X47 -> 0 | Y47: =Est2018DistRev!Y47 -> 0 | Z47: =Est2018DistRev!Z47 -> 0 | AA47: =Est2018DistRev!AA47 -> 0 | AB47: =Est2018DistRev!AB47 -> 0 | AC47: =Est2018DistRev!AC47 -> 0 | AD47: =Est2018DistRev!AD47 -> 0 | AF47: 0 | AG47: 0 | AH47: 0 | AI47: 0 | AJ47: 0 | AK47: 0 | AL47: 0 | AM47: 0 | AN47: 0 | AO47: 0 | AP47: 0 | AQ47: 0 | AR47: 0 | AS47: 0
B48: NEE93 Latrobe Generators kVA (non published) | D48: 0 | E48: 0.965 | F48: 0 | G48: 0 | H48: 0 | I48: 0.965 | J48: 0 | K48: 0 | L48: 0 | M48: 0 | N48: 0 | O48: 0 | P48: 0 | R48: =Est2018DistRev!R48 -> 0 | S48: =Est2018DistRev!S48 -> 0 | T48: =Est2018DistRev!T48 -> 0 | U48: =Est2018DistRev!U48 -> 0 | V48: =Est2018DistRev!V48 -> 0 | W48: =Est2018DistRev!W48 -> 0 | X48: =Est2018DistRev!X48 -> 0 | Y48: =Est2018DistRev!Y48 -> 0 | Z48: =Est2018DistRev!Z48 -> 0 | AA48: =Est2018DistRev!AA48 -> 0 | AB48: =Est2018DistRev!AB48 -> 0 | AC48: =Est2018DistRev!AC48 -> 0 | AD48: =Est2018DistRev!AD48 -> 0 | AF48: 0 | AG48: 0 | AH48: 0 | AI48: 0 | AJ48: 0 | AK48: 0 | AL48: 0 | AM48: 0 | AN48: 0 | AO48: 0 | AP48: 0 | AQ48: 0 | AR48: 0 | AS48: 0
B49: NSP94 - ST kVA >25MVA <20kM | D49: 0 | E49: 1.5048 | F49: 0 | G49: 0 | H49: 0 | I49: 0.4196 | J49: 0 | K49: 0 | L49: 0 | M49: 0 | N49: 0 | O49: 0 | P49: 0 | R49: =Est2018DistRev!R49 -> 0 | S49: =Est2018DistRev!S49 -> 0 | T49: =Est2018DistRev!T49 -> 0 | U49: =Est2018DistRev!U49 -> 0 | V49: =Est2018DistRev!V49 -> 0 | W49: =Est2018DistRev!W49 -> 0 | X49: =Est2018DistRev!X49 -> 0 | Y49: =Est2018DistRev!Y49 -> 0 | Z49: =Est2018DistRev!Z49 -> 0 | AA49: =Est2018DistRev!AA49 -> 0 | AB49: =Est2018DistRev!AB49 -> 0 | AC49: =Est2018DistRev!AC49 -> 0 | AD49: =Est2018DistRev!AD49 -> 0 | AF49: 0 | AG49: 0 | AH49: 0 | AI49: 0 | AJ49: 0 | AK49: 0 | AL49: 0 | AM49: 0 | AN49: 0 | AO49: 0 | AP49: 0 | AQ49: 0 | AR49: 0 | AS49: 0
B50: NSP95 - ST kVA <25MVA >20kM | D50: 0 | E50: 1.5048 | F50: 0 | G50: 0 | H50: 0 | I50: 0.4196 | J50: 0 | K50: 0 | L50: 0 | M50: 0 | N50: 0 | O50: 0 | P50: 0 | R50: =Est2018DistRev!R50 -> 0 | S50: =Est2018DistRev!S50 -> 0 | T50: =Est2018DistRev!T50 -> 0 | U50: =Est2018DistRev!U50 -> 0 | V50: =Est2018DistRev!V50 -> 0 | W50: =Est2018DistRev!W50 -> 0 | X50: =Est2018DistRev!X50 -> 0 | Y50: =Est2018DistRev!Y50 -> 0 | Z50: =Est2018DistRev!Z50 -> 0 | AA50: =Est2018DistRev!AA50 -> 0 | AB50: =Est2018DistRev!AB50 -> 0 | AC50: =Est2018DistRev!AC50 -> 0 | AD50: =Est2018DistRev!AD50 -> 0 | AF50: 0 | AG50: 0 | AH50: 0 | AI50: 0 | AJ50: 0 | AK50: 0 | AL50: 0 | AM50: 0 | AN50: 0 | AO50: 0 | AP50: 0 | AQ50: 0 | AR50: 0 | AS50: 0
B51: NASN19 - Business >40MWh Single Rate | D51: 0 | E51: 1.5048 | F51: 1.5048 | G51: 0 | H51: 0 | I51: 0 | J51: 0 | K51: 0 | L51: 0 | M51: 0 | N51: 0 | O51: 0 | P51: 0 | R51: =Est2018DistRev!R51 -> 983.655954 | S51: =Est2018DistRev!S51 -> 55069964.73 | T51: =Est2018DistRev!T51 -> 0 | U51: =Est2018DistRev!U51 -> 0 | V51: =Est2018DistRev!V51 -> 0 | W51: =Est2018DistRev!W51 -> 0 | X51: =Est2018DistRev!X51 -> 0 | Y51: =Est2018DistRev!Y51 -> 0 | Z51: =Est2018DistRev!Z51 -> 0 | AA51: =Est2018DistRev!AA51 -> 161316.4062 | AB51: =Est2018DistRev!AB51 -> 59935.05896 | AC51: =Est2018DistRev!AC51 -> 0 | AD51: =Est2018DistRev!AD51 -> 0 | AF51: 0 | AG51: 828692.8292 | AH51: 0 | AI51: 0 | AJ51: 0 | AK51: 0 | AL51: 0 | AM51: 0 | AN51: 0 | AO51: 0 | AP51: 0 | AQ51: 0 | AR51: 0 | AS51: 828692.8292
B52: NASN21 - Business >40MWh Two Rate | D52: 0 | E52: 1.5048 | F52: 0 | G52: 0 | H52: 0 | I52: 0.4196 | J52: 0 | K52: 0 | L52: 0 | M52: 0 | N52: 0 | O52: 0 | P52: 0 | R52: =Est2018DistRev!R52 -> 7841.033922 | S52: =Est2018DistRev!S52 -> 303276787.8 | T52: =Est2018DistRev!T52 -> 0 | U52: =Est2018DistRev!U52 -> 0 | V52: =Est2018DistRev!V52 -> 0 | W52: =Est2018DistRev!W52 -> 249711097.3 | X52: =Est2018DistRev!X52 -> 0 | Y52: =Est2018DistRev!Y52 -> -2932053.21 | Z52: =Est2018DistRev!Z52 -> 0 | AA52: =Est2018DistRev!AA52 -> 1676516.055 | AB52: =Est2018DistRev!AB52 -> 637121.7997 | AC52: =Est2018DistRev!AC52 -> 0 | AD52: =Est2018DistRev!AD52 -> 0 | AF52: 0 | AG52: 4563709.103 | AH52: 0 | AI52: 0 | AJ52: 0 | AK52: 1047787.764 | AL52: 0 | AM52: 0 | AN52: 0 | AO52: 0 | AP52: 0 | AQ52: 0 | AR52: 0 | AS52: 5611496.867
B53: NASN11 - Residential Single Rate | D53: 0 | E53: 1.5048 | F53: 1.5048 | G53: 0 | H53: 0 | I53: 0 | J53: 0 | K53: 0 | L53: 0 | M53: 0 | N53: 0 | O53: 0 | P53: 0 | R53: =Est2018DistRev!R53 -> 10 | S53: =Est2018DistRev!S53 -> 75000 | T53: =Est2018DistRev!T53 -> 0 | U53: =Est2018DistRev!U53 -> 0 | V53: =Est2018DistRev!V53 -> 0 | W53: =Est2018DistRev!W53 -> 0 | X53: =Est2018DistRev!X53 -> 0 | Y53: =Est2018DistRev!Y53 -> 0 | Z53: =Est2018DistRev!Z53 -> 0 | AA53: =Est2018DistRev!AA53 -> 352 | AB53: =Est2018DistRev!AB53 -> 220 | AC53: =Est2018DistRev!AC53 -> 0 | AD53: =Est2018DistRev!AD53 -> 0 | AF53: 0 | AG53: 1128.6 | AH53: 0 | AI53: 0 | AJ53: 0 | AK53: 0 | AL53: 0 | AM53: 0 | AN53: 0 | AO53: 0 | AP53: 0 | AQ53: 0 | AR53: 0 | AS53: 1128.6
B54: NASN12 - Business Single Rate | D54: 0 | E54: 1.5048 | F54: 1.5048 | G54: 0 | H54: 0 | I54: 0 | J54: 0 | K54: 0 | L54: 0 | M54: 0 | N54: 0 | O54: 0 | P54: 0 | R54: =Est2018DistRev!R54 -> 5 | S54: =Est2018DistRev!S54 -> 75000 | T54: =Est2018DistRev!T54 -> 0 | U54: =Est2018DistRev!U54 -> 0 | V54: =Est2018DistRev!V54 -> 0 | W54: =Est2018DistRev!W54 -> 0 | X54: =Est2018DistRev!X54 -> 0 | Y54: =Est2018DistRev!Y54 -> 0 | Z54: =Est2018DistRev!Z54 -> 0 | AA54: =Est2018DistRev!AA54 -> 384 | AB54: =Est2018DistRev!AB54 -> 240 | AC54: =Est2018DistRev!AC54 -> 0 | AD54: =Est2018DistRev!AD54 -> 0 | AF54: 0 | AG54: 1128.6 | AH54: 0 | AI54: 0 | AJ54: 0 | AK54: 0 | AL54: 0 | AM54: 0 | AN54: 0 | AO54: 0 | AP54: 0 | AQ54: 0 | AR54: 0 | AS54: 1128.6
AF55: 0 | AG55: 0 | AH55: 0 | AI55: 0 | AJ55: 0 | AK55: 0 | AL55: 0 | AM55: 0 | AN55: 0 | AO55: 0 | AP55: 0 | AQ55: 0 | AR55: 0 | AS55: 0
AF56: 0 | AG56: 0 | AH56: 0 | AI56: 0 | AJ56: 0 | AK56: 0 | AL56: 0 | AM56: 0 | AN56: 0 | AO56: 0 | AP56: 0 | AQ56: 0 | AR56: 0 | AS56: 0
AF57: 0 | AG57: 0 | AH57: 0 | AI57: 0 | AJ57: 0 | AK57: 0 | AL57: 0 | AM57: 0 | AN57: 0 | AO57: 0 | AP57: 0 | AQ57: 0 | AR57: 0 | AS57: 0
AF58: 0 | AG58: 0 | AH58: 0 | AI58: 0 | AJ58: 0 | AK58: 0 | AL58: 0 | AM58: 0 | AN58: 0 | AO58: 0 | AP58: 0 | AQ58: 0 | AR58: 0 | AS58: 0
AF59: 0 | AG59: 0 | AH59: 0 | AI59: 0 | AJ59: 0 | AK59: 0 | AL59: 0 | AM59: 0 | AN59: 0 | AO59: 0 | AP59: 0 | AQ59: 0 | AR59: 0 | AS59: 0
AF60: 0 | AG60: 0 | AH60: 0 | AI60: 0 | AJ60: 0 | AK60: 0 | AL60: 0 | AM60: 0 | AN60: 0 | AO60: 0 | AP60: 0 | AQ60: 0 | AR60: 0 | AS60: 0
AF61: 0 | AG61: 0 | AH61: 0 | AI61: 0 | AJ61: 0 | AK61: 0 | AL61: 0 | AM61: 0 | AN61: 0 | AO61: 0 | AP61: 0 | AQ61: 0 | AR61: 0 | AS61: 0
AF62: 0 | AG62: 0 | AH62: 0 | AI62: 0 | AJ62: 0 | AK62: 0 | AL62: 0 | AM62: 0 | AN62: 0 | AO62: 0 | AP62: 0 | AQ62: 0 | AR62: 0 | AS62: 0
AF63: 0 | AG63: 0 | AH63: 0 | AI63: 0 | AJ63: 0 | AK63: 0 | AL63: 0 | AM63: 0 | AN63: 0 | AO63: 0 | AP63: 0 | AQ63: 0 | AR63: 0 | AS63: 0
AF64: 0 | AG64: 0 | AH64: 0 | AI64: 0 | AJ64: 0 | AK64: 0 | AL64: 0 | AM64: 0 | AN64: 0 | AO64: 0 | AP64: 0 | AQ64: 0 | AR64: 0 | AS64: 0
AF65: 0 | AG65: 0 | AH65: 0 | AI65: 0 | AJ65: 0 | AK65: 0 | AL65: 0 | AM65: 0 | AN65: 0 | AO65: 0 | AP65: 0 | AQ65: 0 | AR65: 0 | AS65: 0
R66: =SUM(R6:R65) -> 834782.9534 | S66: 3439293648 | T66: 1280231562 | U66: 3565137.22 | V66: 0 | W66: 2235307579 | X66: 0 | Y66: -207125386 | Z66: 0 | AA66: 2859709.346 | AB66: 1190241.914 | AC66: 0 | AD66: 0 | AF66: =SUM(AF6:AF65) -> 0 | AG66: =SUM(AG6:AG65) -> 51761395.76 | AH66: 19268545.76 | AI66: 53648.19947 | AJ66: 0 | AK66: 9379350.6 | AL66: 0 | AM66: =SUM(AM6:AM65) -> 0 | AN66: 0 | AO66: 0 | AP66: 0 | AQ66: 0 | AR66: 0 | AS66: 80462940.32

Sheet 2019TransRevCont
B2: ="Tariff Approval - "&'Model update'!$C$3 -> Tariff Approval - AusNet Services
B4: Designated pricing proposal charges (DPPC)
B6: Year (t) | C6: ='Model update'!C5 -> 2019
B8: Table 1- Compliance with DPPC Revenue Formula
B9: Revenue from designated pricing proposal charges for year t | C9: =Prop2019TransTar!AS66 -> 74760264.54
B10: Total DPPC related payments for year t | C10: =C17 -> 86546196.44
C11: =IF(C9="","",IF(C10>=C9,"DPPC REVENUE FORMULA COMPLIANT","DPPC REVENUE FORMULA BREACHED")) -> DPPC REVENUE FORMULA COMPLIANT
B13: Table 2 - Total DPPC related payments for year t
B14: Transmission charges for year t | C14: =C24 -> 81839554.48
B15: DPPC revenue under/over recovery approved | C15: =-E60*(1+E58)^0.5 -> 4706641.962
B16: Transmission revenue under/over recovery for years 2014 and 2015
B17: Total DPPC related payments for year t | C17: =SUM(C14:C16) -> 86546196.44
B19: Table 3 - Transmission charges for year t
B20: AEMO (TCt) | C20: 76071001.38
B21: Transmission connection (TCt) | C21: 9702899.509
B22: Embedded generators (Gt) | C22: 733108.9
B23: Inter-network (Dt) | C23: 4667455.309
B24: TC + G - D | C24: =C20+C21+C22-C23 -> 81839554.48
B29: Table 4 - DPPC Recovery Arrangements
C30: Year t-2 | D30: Year t-1 | E30: Year t
C31: (actual) | D31: (estimate) | E31: (forecast)
C32: =D32-1 -> 2017 | D32: =E32-1 -> 2018 | E32: =C$6 -> 2019
B34: (A) Revenue from designated pricing proposal charges | C34: 83214590.99 | D34: =Est2018TransRev!AS66 -> 80462940.32 | E34: =C9 -> 74760264.54
B37: (B) Less Total DPPC related payments = | C37: =SUM(C39:C41) -> 83677058.82 | D37: =SUM(D39:D41) -> 84392932.37 | E37: =SUM(E39:E41) -> 81839554.48
B39: + Transmission revenue under/over recovery for years 2014 and 2015 | C39: -5000451.61 | D39: 0 | E39: =C16 -> 0
B41: +Transmission charges = | C41: =C42+C43+C44-C45 -> 88677510.43 | D41: =D42+D43+D44-D45 -> 84392932.37 | E41: =E42+E43+E44-E45 -> 81839554.48
B42: +AEMO | C42: ='TUoS cost audit template'!F7 -> 82826522.48 | D42: 78631122.24 | E42: =C20 -> 76071001.38
B43: +Transmission connection | C43: ='TUoS cost audit template'!F24 -> 9809533.124 | D43: 9651194.6 | E43: =C21 -> 9702899.509
B44: +Embedded generators | C44: ='TUoS cost audit template'!F70 -> 708910.13 | D44: 778070.84 | E44: =C22 -> 733108.9
B45: -Inter-network | C45: ='TUoS cost audit template'!F34 -> 4667455.309 | D45: 4667455.309 | E45: =C23 -> 4667455.309
B49: (A minus B) Under/over recovery of revenue for regulatory year | C49: =C34-C37 -> -462467.8249 | D49: =D34-D37 -> -3929992.051 | E49: =E34-E37 -> -7079289.938
B53: Table 5 - DPPC Unders and Overs Account
C54: Year t-2 | D54: Year t-1 | E54: Year t
C55: (actual) | D55: (estimate) | E55: (forecast)
B56: Calendar year | C56: =D56-1 -> 2017 | D56: =E56-1 -> 2018 | E56: =C$6 -> 2019
B58: Nominal WACC | C58: =(1+'Model update'!$B$47)*(1+'Model update'!$C$28)-1 -> 0.04888641591 | D58: =(1+'Model update'!$B$45)*(1+'Model update'!$C$29)-1 -> 0.05808536478 | E58: =(1+'Model update'!$B$43)*(1+'Model update'!$C$30)-1 -> 0.05900425222
B60: Opening balance | C60: -27010.34543 | D60: =C64 -> -501967.9283 | E60: =D64 -> -4573643.507
B61: Interest on Opening balance | C61: =C60*C58 -> -1320.438981 | D61: =D60*D58 -> -29156.99022 | E61: =E60*E58 -> -269864.4151
B62: Under/over recovery of revenue for regulatory year | C62: =C49 -> -462467.8249 | D62: =D49 -> -3929992.051 | E62: =E49 -> -7079289.938
B63: Interest on under/over recovery for regulatory year | C63: =C62*((1+C58)^0.5-1) -> -11169.31898 | D63: =D62*((1+D58)^0.5-1) -> -112526.538 | E63: =E62*((1+E58)^0.5-1) -> -205860.9559
B64: Closing balance of DPPC overs/ (unders) account | C64: =SUM(C60:C63) -> -501967.9283 | D64: =SUM(D60:D63) -> -4573643.507 | E64: =SUM(E60:E63) -> -12128658.82
B66: The DNSP is expected to achieve a closing balance as close to zero as practicable in its DPPC unders and overs account in each forecast year in its annual pricing proposals in the 2016–20 regulatory control period.

Sheet TUoS cost audit template
B1: ="Tariff Approval - "&'Model update'!C3 -> Tariff Approval - AusNet Services
B2: TUOS charges (AEMO) | F2: t-2 actual
E7: Total | F7: 82826522.48
B9: Transmission connection fees (AusNet Transmission Group) | F9: t-2 actual
E24: Total | F24: 9809533.124
B26: Cross boundary network charges (internetwork charges) | F26: t-2 actual
B27: Distribution Business | C27: Amount (payable)/receivable
C28: HV crossings | D28: Subtransmission crossings | E28: TUoS Adjustment | F28: Total
B34: Total | F34: 4667455.309
B36: Payments to embedded generators | F36: t-2 actual
B37: Avoided transmission costs
B43: Total | F43: =SUM(F38:F42) -> 0
B45: Avoided TUoS usage charges
B69: Total | F69: 708910.13
B70: Total payments to embedded generators | F70: 708910.13
B72: Where the following definitions apply
B73: HV Crossings | C73: Payments/Receipts for energy transferred utilising the distributor’s HV and LV line assets.
B74: Sub-transmission Crossings | C74: Payments/Receipts for the Sub-transmission assets in shared loops that support each distributor’s Zone Substation capacity to ensure N-1 reliability is maintained.
B75: TuoS Adjustment | C75: Payments/Receipts for the adjustment of TuoS paid by a distributor for energy delivered to another distribution business through a shared loop.

Sheet Prop2019JSTar
B1: ="Tariff Approval - "&'Model update'!C3 -> Tariff Approval - AusNet Services
B3: ="PROPOSED "&'Model update'!$C$5&" JURISDICTIONAL SCHEME TARIFFS" -> PROPOSED 2019 JURISDICTIONAL SCHEME TARIFFS
D4: ="Proposed Jurisdictional scheme Tariffs (Pt) for "&'Model update'!$C$5 -> Proposed Jurisdictional scheme Tariffs (Pt) for 2019 | R4: ="Forecast Quantities (Qt) for "&'Model update'!$C$5 -> Forecast Quantities (Qt) for 2019 | AF4: ="Forecast Revenue (Pt "&'Model update'!$C$5&")*(Qt " &'Model update'!$C$5&")" -> Forecast Revenue (Pt 2019)*(Qt 2019)
B5: Proposed tariff | D5: PropTar Fixed | E5: PropTar PkBlk1 | F5: PropTar PkBlk2 | G5: PropTar PkBlk3 | H5: PropTar PkBlk4 | I5: PropTar OPkBlk1 | J5: PropTar OPkBlk2 | K5: PropTar OPkBlk3 | L5: PropTar OPkBlk4 | M5: PropTar DemBlk1 | N5: PropTar DemBlk2 | O5: PropTar DemBlk3 | P5: PropTar DemBlk4 | R5: FcastVol Fixed | S5: FcastVol PkBlk1 | T5: FcastVol PkBlk2 | U5: FcastVol PkBlk3 | V5: FcastVol PkBlk4 | W5: FcastVol OPkBlk1 | X5: FcastVol OPkBlk2 | Y5: FcastVol OPkBlk3 | Z5: FcastVol OPkBlk4 | AA5: FcastVol DemBlk1 | AB5: FcastVol DemBlk2 | AC5: FcastVol DemBlk3 | AD5: FcastVol DemBlk4 | AF5: PropRev Fixed | AG5: PropRev PkBlk1 | AH5: PropRev PkBlk2 | AI5: PropRev PkBlk3 | AJ5: PropRev PkBlk4 | AK5: PropRev OPkBlk1 | AL5: PropRev OPkBlk2 | AM5: PropRev OPkBlk3 | AN5: PropRev OPkBlk4 | AO5: PropRev DemBlk1 | AP5: PropRev DemBlk2 | AQ5: PropRev DemBlk3 | AR5: PropRev DemBlk4 | AS5: PropRev SumBlk1
B6: =Prop2019DistTar!B6 -> NEE11 Small Single Rate < 160MWh | D6: 0 | E6: 0.5794 | F6: 0.5794 | G6: 0 | H6: 0 | I6: 0 | J6: 0 | K6: 0 | L6: 0 | M6: 0 | N6: 0 | O6: 0 | P6: 0 | R6: =Prop2019DistTar!AF6 -> 491445.6539 | S6: =Prop2019DistTar!AG6 -> 1306238592 | T6: =Prop2019DistTar!AH6 -> 728544600.8 | U6: =Prop2019DistTar!AI6 -> 0 | V6: =Prop2019DistTar!AJ6 -> 0 | W6: =Prop2019DistTar!AK6 -> 0 | X6: =Prop2019DistTar!AL6 -> 0 | Y6: =Prop2019DistTar!AM6 -> 0 | Z6: =Prop2019DistTar!AN6 -> 0 | AA6: =Prop2019DistTar!AO6 -> 0 | AB6: =Prop2019DistTar!AP6 -> 0 | AC6: =Prop2019DistTar!AQ6 -> 0 | AD6: =Prop2019DistTar!AR6 -> 0 | AF6: =D6*R6 -> 0 | AG6: =E6/100*S6 -> 7568346.403 | AH6: 4221187.417 | AI6: 0 | AJ6: 0 | AK6: 0 | AL6: 0 | AM6: 0 | AN6: 0 | AO6: =M6*AA6 -> 0 | AP6: 0 | AQ6: 0 | AR6: 0 | AS6: =SUM(AF6:AR6) -> 11789533.82
B7: =Prop2019DistTar!B7 -> NGT11 Small Interval Single Rate < 160MWh | D7: 0 | E7: 0.5794 | F7: 0 | G7: 0 | H7: 0 | I7: 0 | J7: 0 | K7: 0 | L7: 0 | M7: 0 | N7: 0 | O7: 0 | P7: 0 | R7: =Prop2019DistTar!AF7 -> 3 | S7: =Prop2019DistTar!AG7 -> 19756.14545 | T7: =Prop2019DistTar!AH7 -> 0 | U7: =Prop2019DistTar!AI7 -> 0 | V7: =Prop2019DistTar!AJ7 -> 0 | W7: =Prop2019DistTar!AK7 -> 0 | X7: =Prop2019DistTar!AL7 -> 0 | Y7: =Prop2019DistTar!AM7 -> 0 | Z7: =Prop2019DistTar!AN7 -> 0 | AA7: =Prop2019DistTar!AO7 -> 0 | AB7: =Prop2019DistTar!AP7 -> 0 | AC7: =Prop2019DistTar!AQ7 -> 0 | AD7: =Prop2019DistTar!AR7 -> 0 | AF7: 0 | AG7: 114.4671068 | AH7: 0 | AI7: 0 | AJ7: 0 | AK7: 0 | AL7: 0 | AM7: 0 | AN7: 0 | AO7: 0 | AP7: 0 | AQ7: 0 | AR7: 0 | AS7: 114.4671068
B8: =Prop2019DistTar!B8 -> NSP11 Small Single Rate < 160MWh | D8: 0 | E8: 0.5794 | F8: 0.5794 | G8: 0.5794 | H8: 0 | I8: 0.4864 | J8: 0 | K8: 0 | L8: 0 | M8: 0 | N8: 0 | O8: 0 | P8: 0 | R8: =Prop2019DistTar!AF8 -> 0 | S8: =Prop2019DistTar!AG8 -> 0 | T8: =Prop2019DistTar!AH8 -> 0 | U8: =Prop2019DistTar!AI8 -> 0 | V8: =Prop2019DistTar!AJ8 -> 0 | W8: =Prop2019DistTar!AK8 -> 0 | X8: =Prop2019DistTar!AL8 -> 0 | Y8: =Prop2019DistTar!AM8 -> 0 | Z8: =Prop2019DistTar!AN8 -> 0 | AA8: =Prop2019DistTar!AO8 -> 0 | AB8: =Prop2019DistTar!AP8 -> 0 | AC8: =Prop2019DistTar!AQ8 -> 0 | AD8: =Prop2019DistTar!AR8 -> 0 | AF8: 0 | AG8: 0 | AH8: 0 | AI8: 0 | AJ8: 0 | AK8: 0 | AL8: 0 | AM8: 0 | AN8: 0 | AO8: 0 | AP8: 0 | AQ8: 0 | AR8: 0 | AS8: 0
B9: =Prop2019DistTar!B9 -> NEN11 Small Single Rate < 160MWh Embedded Network | D9: 0 | E9: 0.5794 | F9: 0.5794 | G9: 0 | H9: 0 | I9: 0 | J9: 0 | K9: 0 | L9: 0 | M9: 0 | N9: 0 | O9: 0 | P9: 0 | R9: =Prop2019DistTar!AF9 -> 0 | S9: =Prop2019DistTar!AG9 -> 0 | T9: =Prop2019DistTar!AH9 -> 0 | U9: =Prop2019DistTar!AI9 -> 0 | V9: =Prop2019DistTar!AJ9 -> 0 | W9: =Prop2019DistTar!AK9 -> 0 | X9: =Prop2019DistTar!AL9 -> 0 | Y9: =Prop2019DistTar!AM9 -> 0 | Z9: =Prop2019DistTar!AN9 -> 0 | AA9: =Prop2019DistTar!AO9 -> 0 | AB9: =Prop2019DistTar!AP9 -> 0 | AC9: =Prop2019DistTar!AQ9 -> 0 | AD9: =Prop2019DistTar!AR9 -> 0 | AF9: 0 | AG9: 0 | AH9: 0 | AI9: 0 | AJ9: 0 | AK9: 0 | AL9: 0 | AM9: 0 | AN9: 0 | AO9: 0 | AP9: 0 | AQ9: 0 | AR9: 0 | AS9: 0
B10: =Prop2019DistTar!B10 -> NEE12 Small Business Single Rate - new in 2001 | D10: 0 | E10: 0.5791 | F10: 0.5791 | G10: 0 | H10: 0 | I10: 0 | J10: 0 | K10: 0 | L10: 0 | M10: 0 | N10: 0 | O10: 0 | P10: 0 | R10: =Prop2019DistTar!AF10 -> 28657.76573 | S10: =Prop2019DistTar!AG10 -> 53819826.96 | T10: =Prop2019DistTar!AH10 -> 112036706.5 | U10: =Prop2019DistTar!AI10 -> 0 | V10: =Prop2019DistTar!AJ10 -> 0 | W10: =Prop2019DistTar!AK10 -> 0 | X10: =Prop2019DistTar!AL10 -> 0 | Y10: =Prop2019DistTar!AM10 -> 0 | Z10: =Prop2019DistTar!AN10 -> 0 | AA10: =Prop2019DistTar!AO10 -> 0 | AB10: =Prop2019DistTar!AP10 -> 0 | AC10: =Prop2019DistTar!AQ10 -> 0 | AD10: =Prop2019DistTar!AR10 -> 0 | AF10: 0 | AG10: 311670.6179 | AH10: 648804.5676 | AI10: 0 | AJ10: 0 | AK10: 0 | AL10: 0 | AM10: 0 | AN10: 0 | AO10: 0 | AP10: 0 | AQ10: 0 | AR10: 0 | AS10: 960475.1855
B11: =Prop2019DistTar!B11 -> NSP12 Small Business Single Rate - new in 2001 | D11: 0 | E11: 0.5794 | F11: 0.5794 | G11: 0.5794 | H11: 0 | I11: 0.4864 | J11: 0 | K11: 0 | L11: 0 | M11: 0 | N11: 0 | O11: 0 | P11: 0 | R11: =Prop2019DistTar!AF11 -> 0 | S11: =Prop2019DistTar!AG11 -> 0 | T11: =Prop2019DistTar!AH11 -> 0 | U11: =Prop2019DistTar!AI11 -> 0 | V11: =Prop2019DistTar!AJ11 -> 0 | W11: =Prop2019DistTar!AK11 -> 0 | X11: =Prop2019DistTar!AL11 -> 0 | Y11: =Prop2019DistTar!AM11 -> 0 | Z11: =Prop2019DistTar!AN11 -> 0 | AA11: =Prop2019DistTar!AO11 -> 0 | AB11: =Prop2019DistTar!AP11 -> 0 | AC11: =Prop2019DistTar!AQ11 -> 0 | AD11: =Prop2019DistTar!AR11 -> 0 | AF11: 0 | AG11: 0 | AH11: 0 | AI11: 0 | AJ11: 0 | AK11: 0 | AL11: 0 | AM11: 0 | AN11: 0 | AO11: 0 | AP11: 0 | AQ11: 0 | AR11: 0 | AS11: 0
B12: =Prop2019DistTar!B12 -> NEN12 Small Business Single Rate - Embedded Network | D12: 0 | E12: 0.5794 | F12: 0.5794 | G12: 0 | H12: 0 | I12: 0 | J12: 0 | K12: 0 | L12: 0 | M12: 0 | N12: 0 | O12: 0 | P12: 0 | R12: =Prop2019DistTar!AF12 -> 0 | S12: =Prop2019DistTar!AG12 -> 0 | T12: =Prop2019DistTar!AH12 -> 0 | U12: =Prop2019DistTar!AI12 -> 0 | V12: =Prop2019DistTar!AJ12 -> 0 | W12: =Prop2019DistTar!AK12 -> 0 | X12: =Prop2019DistTar!AL12 -> 0 | Y12: =Prop2019DistTar!AM12 -> 0 | Z12: =Prop2019DistTar!AN12 -> 0 | AA12: =Prop2019DistTar!AO12 -> 0 | AB12: =Prop2019DistTar!AP12 -> 0 | AC12: =Prop2019DistTar!AQ12 -> 0 | AD12: =Prop2019DistTar!AR12 -> 0 | AF12: 0 | AG12: 0 | AH12: 0 | AI12: 0 | AJ12: 0 | AK12: 0 | AL12: 0 | AM12: 0 | AN12: 0 | AO12: 0 | AP12: 0 | AQ12: 0 | AR12: 0 | AS12: 0
B13: =Prop2019DistTar!B13 -> NEE20 Small Two Rate | D13: 0 | E13: 0.5794 | F13: 0 | G13: 0 | H13: 0 | I13: 0.4864 | J13: 0 | K13: 0 | L13: 0 | M13: 0 | N13: 0 | O13: 0 | P13: 0 | R13: =Prop2019DistTar!AF13 -> 53978.5 | S13: =Prop2019DistTar!AG13 -> 147773972.1 | T13: =Prop2019DistTar!AH13 -> 0 | U13: =Prop2019DistTar!AI13 -> 0 | V13: =Prop2019DistTar!AJ13 -> 0 | W13: =Prop2019DistTar!AK13 -> 200142110.8 | X13: =Prop2019DistTar!AL13 -> 0 | Y13: =Prop2019DistTar!AM13 -> 0 | Z13: =Prop2019DistTar!AN13 -> 0 | AA13: =Prop2019DistTar!AO13 -> 0 | AB13: =Prop2019DistTar!AP13 -> 0 | AC13: =Prop2019DistTar!AQ13 -> 0 | AD13: =Prop2019DistTar!AR13 -> 0 | AF13: 0 | AG13: 856202.3944 | AH13: 0 | AI13: 0 | AJ13: 0 | AK13: 973491.2269 | AL13: 0 | AM13: 0 | AN13: 0 | AO13: 0 | AP13: 0 | AQ13: 0 | AR13: 0 | AS13: 1829693.621
B14: =Prop2019DistTar!B14 -> NSP20 Small Two Rate | D14: 0 | E14: 0.5794 | F14: 0.5794 | G14: 0.5794 | H14: 0 | I14: 0.4864 | J14: 0 | K14: 0 | L14: 0 | M14: 0 | N14: 0 | O14: 0 | P14: 0 | R14: =Prop2019DistTar!AF14 -> 8 | S14: =Prop2019DistTar!AG14 -> 4876.412115 | T14: =Prop2019DistTar!AH14 -> 5277.618428 | U14: =Prop2019DistTar!AI14 -> 3651.265938 | V14: =Prop2019DistTar!AJ14 -> 0 | W14: =Prop2019DistTar!AK14 -> 79729.67288 | X14: =Prop2019DistTar!AL14 -> 0 | Y14: =Prop2019DistTar!AM14 -> 0 | Z14: =Prop2019DistTar!AN14 -> 0 | AA14: =Prop2019DistTar!AO14 -> 0 | AB14: =Prop2019DistTar!AP14 -> 0 | AC14: =Prop2019DistTar!AQ14 -> 0 | AD14: =Prop2019DistTar!AR14 -> 0 | AF14: 0 | AG14: 28.25393179 | AH14: 30.57852117 | AI14: 21.15543484 | AJ14: 0 | AK14: 387.8051289 | AL14: 0 | AM14: 0 | AN14: 0 | AO14: 0 | AP14: 0 | AQ14: 0 | AR14: 0 | AS14: 467.7930167
B15: =Prop2019DistTar!B15 -> NGT26 Small Interval Multi Rate | D15: 0 | E15: 0.5794 | F15: 0.5794 | G15: 0.5794 | H15: 0.5794 | I15: 0.4864 | J15: 0.4864 | K15: 0 | L15: 0 | M15: 0 | N15: 0 | O15: 0 | P15: 0 | R15: =Prop2019DistTar!AF15 -> 1576 | S15: =Prop2019DistTar!AG15 -> 1490394.785 | T15: =Prop2019DistTar!AH15 -> 0 | U15: =Prop2019DistTar!AI15 -> 3386074.403 | V15: =Prop2019DistTar!AJ15 -> 0 | W15: =Prop2019DistTar!AK15 -> 2683740.741 | X15: =Prop2019DistTar!AL15 -> 0 | Y15: =Prop2019DistTar!AM15 -> 0 | Z15: =Prop2019DistTar!AN15 -> 0 | AA15: =Prop2019DistTar!AO15 -> 0 | AB15: =Prop2019DistTar!AP15 -> 0 | AC15: =Prop2019DistTar!AQ15 -> 0 | AD15: =Prop2019DistTar!AR15 -> 0 | AF15: 0 | AG15: 8635.347384 | AH15: 0 | AI15: 19618.91509 | AJ15: 0 | AK15: 13053.71497 | AL15: 0 | AM15: 0 | AN15: 0 | AO15: 0 | AP15: 0 | AQ15: 0 | AR15: 0 | AS15: 41307.97744
B16: =Prop2019DistTar!B16 -> NEN20 Small Two Rate - Embedded Network | D16: 0 | E16: 0.5794 | F16: 0 | G16: 0 | H16: 0 | I16: 0.4864 | J16: 0 | K16: 0 | L16: 0 | M16: 0 | N16: 0 | O16: 0 | P16: 0 | R16: =Prop2019DistTar!AF16 -> 0 | S16: =Prop2019DistTar!AG16 -> 0 | T16: =Prop2019DistTar!AH16 -> 0 | U16: =Prop2019DistTar!AI16 -> 0 | V16: =Prop2019DistTar!AJ16 -> 0 | W16: =Prop2019DistTar!AK16 -> 0 | X16: =Prop2019DistTar!AL16 -> 0 | Y16: =Prop2019DistTar!AM16 -> 0 | Z16: =Prop2019DistTar!AN16 -> 0 | AA16: =Prop2019DistTar!AO16 -> 0 | AB16: =Prop2019DistTar!AP16 -> 0 | AC16: =Prop2019DistTar!AQ16 -> 0 | AD16: =Prop2019DistTar!AR16 -> 0 | AF16: 0 | AG16: 0 | AH16: 0 | AI16: 0 | AJ16: 0 | AK16: 0 | AL16: 0 | AM16: 0 | AN16: 0 | AO16: 0 | AP16: 0 | AQ16: 0 | AR16: 0 | AS16: 0
B17: =Prop2019DistTar!B17 -> NEE21 Small Business Two Rate | D17: 0 | E17: 0.5794 | F17: 0 | G17: 0 | H17: 0 | I17: 0.4864 | J17: 0 | K17: 0 | L17: 0 | M17: 0 | N17: 0 | O17: 0 | P17: 0 | R17: =Prop2019DistTar!AF17 -> 30298.98593 | S17: =Prop2019DistTar!AG17 -> 244202938.2 | T17: =Prop2019DistTar!AH17 -> 0 | U17: =Prop2019DistTar!AI17 -> 0 | V17: =Prop2019DistTar!AJ17 -> 0 | W17: =Prop2019DistTar!AK17 -> 173819160.2 | X17: =Prop2019DistTar!AL17 -> 0 | Y17: =Prop2019DistTar!AM17 -> -1010221.146 | Z17: =Prop2019DistTar!AN17 -> 0 | AA17: =Prop2019DistTar!AO17 -> 0 | AB17: =Prop2019DistTar!AP17 -> 0 | AC17: =Prop2019DistTar!AQ17 -> 0 | AD17: =Prop2019DistTar!AR17 -> 0 | AF17: 0 | AG17: 1414911.824 | AH17: 0 | AI17: 0 | AJ17: 0 | AK17: 845456.3954 | AL17: 0 | AM17: 0 | AN17: 0 | AO17: 0 | AP17: 0 | AQ17: 0 | AR17: 0 | AS17: 2260368.219
B18: =Prop2019DistTar!B18 -> NSP21 Small Business Two Rate | D18: 0 | E18: 0.5794 | F18: 0.5794 | G18: 0.5794 | H18: 0 | I18: 0.4864 | J18: 0 | K18: 0 | L18: 0 | M18: 0 | N18: 0 | O18: 0 | P18: 0 | R18: =Prop2019DistTar!AF18 -> 4 | S18: =Prop2019DistTar!AG18 -> 4011.951541 | T18: =Prop2019DistTar!AH18 -> 4533.154029 | U18: =Prop2019DistTar!AI18 -> 4704.920467 | V18: =Prop2019DistTar!AJ18 -> 0 | W18: =Prop2019DistTar!AK18 -> 73980.60355 | X18: =Prop2019DistTar!AL18 -> 0 | Y18: =Prop2019DistTar!AM18 -> -33.34174777 | Z18: =Prop2019DistTar!AN18 -> 0 | AA18: =Prop2019DistTar!AO18 -> 0 | AB18: =Prop2019DistTar!AP18 -> 0 | AC18: =Prop2019DistTar!AQ18 -> 0 | AD18: =Prop2019DistTar!AR18 -> 0 | AF18: 0 | AG18: 23.24524723 | AH18: 26.26509444 | AI18: 27.26030919 | AJ18: 0 | AK18: 359.8416556 | AL18: 0 | AM18: 0 | AN18: 0 | AO18: 0 | AP18: 0 | AQ18: 0 | AR18: 0 | AS18: 436.6123065
B19: =Prop2019DistTar!B19 -> NSP27 Small Business Two Rate | D19: 0 | E19: 0.5794 | F19: 0.5794 | G19: 0.5794 | H19: 0 | I19: 0.4864 | J19: 0 | K19: 0 | L19: 0 | M19: 0 | N19: 0 | O19: 0 | P19: 0 | R19: =Prop2019DistTar!AF19 -> 42.25 | S19: =Prop2019DistTar!AG19 -> 71727.5672 | T19: =Prop2019DistTar!AH19 -> 60197.70629 | U19: =Prop2019DistTar!AI19 -> 29438.85715 | V19: =Prop2019DistTar!AJ19 -> 0 | W19: =Prop2019DistTar!AK19 -> 1195104.277 | X19: =Prop2019DistTar!AL19 -> 0 | Y19: =Prop2019DistTar!AM19 -> 0 | Z19: =Prop2019DistTar!AN19 -> 0 | AA19: =Prop2019DistTar!AO19 -> 0 | AB19: =Prop2019DistTar!AP19 -> 0 | AC19: =Prop2019DistTar!AQ19 -> 0 | AD19: =Prop2019DistTar!AR19 -> 0 | AF19: 0 | AG19: 415.5895243 | AH19: 348.7855102 | AI19: 170.5687383 | AJ19: 0 | AK19: 5812.987205 | AL19: 0 | AM19: 0 | AN19: 0 | AO19: 0 | AP19: 0 | AQ19: 0 | AR19: 0 | AS19: 6747.930978
B20: =Prop2019DistTar!B20 -> NEN21 Small Business Two Rate - Embedded Network | D20: 0 | E20: 0.5794 | F20: 0 | G20: 0 | H20: 0 | I20: 0.4864 | J20: 0 | K20: 0 | L20: 0 | M20: 0 | N20: 0 | O20: 0 | P20: 0 | R20: =Prop2019DistTar!AF20 -> 0 | S20: =Prop2019DistTar!AG20 -> 0 | T20: =Prop2019DistTar!AH20 -> 0 | U20: =Prop2019DistTar!AI20 -> 0 | V20: =Prop2019DistTar!AJ20 -> 0 | W20: =Prop2019DistTar!AK20 -> 0 | X20: =Prop2019DistTar!AL20 -> 0 | Y20: =Prop2019DistTar!AM20 -> 0 | Z20: =Prop2019DistTar!AN20 -> 0 | AA20: =Prop2019DistTar!AO20 -> 0 | AB20: =Prop2019DistTar!AP20 -> 0 | AC20: =Prop2019DistTar!AQ20 -> 0 | AD20: =Prop2019DistTar!AR20 -> 0 | AF20: 0 | AG20: 0 | AH20: 0 | AI20: 0 | AJ20: 0 | AK20: 0 | AL20: 0 | AM20: 0 | AN20: 0 | AO20: 0 | AP20: 0 | AQ20: 0 | AR20: 0 | AS20: 0
B21: =Prop2019DistTar!B21 -> NEE23 Photovoltaic | D21: 0 | E21: 0.5794 | F21: 0 | G21: 0 | H21: 0 | I21: 0.4864 | J21: 0 | K21: 0 | L21: 0 | M21: 0 | N21: 0 | O21: 0 | P21: 0 | R21: =Prop2019DistTar!AF21 -> 114944.3998 | S21: =Prop2019DistTar!AG21 -> 218602633.5 | T21: =Prop2019DistTar!AH21 -> 0 | U21: =Prop2019DistTar!AI21 -> 0 | V21: =Prop2019DistTar!AJ21 -> 0 | W21: =Prop2019DistTar!AK21 -> 269974610.7 | X21: =Prop2019DistTar!AL21 -> 0 | Y21: =Prop2019DistTar!AM21 -> -171225823.1 | Z21: =Prop2019DistTar!AN21 -> 0 | AA21: =Prop2019DistTar!AO21 -> 0 | AB21: =Prop2019DistTar!AP21 -> 0 | AC21: =Prop2019DistTar!AQ21 -> 0 | AD21: =Prop2019DistTar!AR21 -> 0 | AF21: 0 | AG21: 1266583.659 | AH21: 0 | AI21: 0 | AJ21: 0 | AK21: 1313156.506 | AL21: 0 | AM21: 0 | AN21: 0 | AO21: 0 | AP21: 0 | AQ21: 0 | AR21: 0 | AS21: 2579740.165
B22: =Prop2019DistTar!B22 -> NSP23 Photovoltaic | D22: 0 | E22: 0.5794 | F22: 0.5794 | G22: 0.5794 | H22: 0 | I22: 0.4864 | J22: 0 | K22: 0 | L22: 0 | M22: 0 | N22: 0 | O22: 0 | P22: 0 | R22: =Prop2019DistTar!AF22 -> 107 | S22: =Prop2019DistTar!AG22 -> 6211.1656 | T22: =Prop2019DistTar!AH22 -> 6912.032779 | U22: =Prop2019DistTar!AI22 -> 38632.7258 | V22: =Prop2019DistTar!AJ22 -> 0 | W22: =Prop2019DistTar!AK22 -> 318210.954 | X22: =Prop2019DistTar!AL22 -> 0 | Y22: =Prop2019DistTar!AM22 -> -159391.5241 | Z22: =Prop2019DistTar!AN22 -> 0 | AA22: =Prop2019DistTar!AO22 -> 0 | AB22: =Prop2019DistTar!AP22 -> 0 | AC22: =Prop2019DistTar!AQ22 -> 0 | AD22: =Prop2019DistTar!AR22 -> 0 | AF22: 0 | AG22: 35.98749348 | AH22: 40.04831792 | AI22: 223.8380133 | AJ22: 0 | AK22: 1547.77808 | AL22: 0 | AM22: 0 | AN22: 0 | AO22: 0 | AP22: 0 | AQ22: 0 | AR22: 0 | AS22: 1847.651905
B23: =Prop2019DistTar!B23 -> NEE24 Small rate 5 day 8 to 8 | D23: 0 | E23: 0.5794 | F23: 0 | G23: 0 | H23: 0 | I23: 0.4864 | J23: 0 | K23: 0 | L23: 0 | M23: 0 | N23: 0 | O23: 0 | P23: 0 | R23: =Prop2019DistTar!AF23 -> 2389.626691 | S23: =Prop2019DistTar!AG23 -> 2918299.584 | T23: =Prop2019DistTar!AH23 -> 0 | U23: =Prop2019DistTar!AI23 -> 0 | V23: =Prop2019DistTar!AJ23 -> 0 | W23: =Prop2019DistTar!AK23 -> 7129830.673 | X23: =Prop2019DistTar!AL23 -> 0 | Y23: =Prop2019DistTar!AM23 -> 0 | Z23: =Prop2019DistTar!AN23 -> 0 | AA23: =Prop2019DistTar!AO23 -> 0 | AB23: =Prop2019DistTar!AP23 -> 0 | AC23: =Prop2019DistTar!AQ23 -> 0 | AD23: =Prop2019DistTar!AR23 -> 0 | AF23: 0 | AG23: 16908.62779 | AH23: 0 | AI23: 0 | AJ23: 0 | AK23: 34679.49639 | AL23: 0 | AM23: 0 | AN23: 0 | AO23: 0 | AP23: 0 | AQ23: 0 | AR23: 0 | AS23: 51588.12418
B24: =Prop2019DistTar!B24 -> NEE25 Small business rate 5 day 8 to 8 | D24: 0 | E24: 0.5794 | F24: 0 | G24: 0 | H24: 0 | I24: 0.4864 | J24: 0 | K24: 0 | L24: 0 | M24: 0 | N24: 0 | O24: 0 | P24: 0 | R24: =Prop2019DistTar!AF24 -> 4 | S24: =Prop2019DistTar!AG24 -> 99442.66781 | T24: =Prop2019DistTar!AH24 -> 0 | U24: =Prop2019DistTar!AI24 -> 0 | V24: =Prop2019DistTar!AJ24 -> 0 | W24: =Prop2019DistTar!AK24 -> 93117.22125 | X24: =Prop2019DistTar!AL24 -> 0 | Y24: =Prop2019DistTar!AM24 -> 0 | Z24: =Prop2019DistTar!AN24 -> 0 | AA24: =Prop2019DistTar!AO24 -> 0 | AB24: =Prop2019DistTar!AP24 -> 0 | AC24: =Prop2019DistTar!AQ24 -> 0 | AD24: =Prop2019DistTar!AR24 -> 0 | AF24: 0 | AG24: 576.1708173 | AH24: 0 | AI24: 0 | AJ24: 0 | AK24: 452.9221641 | AL24: 0 | AM24: 0 | AN24: 0 | AO24: 0 | AP24: 0 | AQ24: 0 | AR24: 0 | AS24: 1029.092981
B25: =Prop2019DistTar!B25 -> NEE30 Small Dedicated | D25: 0 | E25: 0 | F25: 0 | G25: 0 | H25: 0 | I25: 0.4864 | J25: 0 | K25: 0 | L25: 0 | M25: 0 | N25: 0 | O25: 0 | P25: 0 | R25: =Prop2019DistTar!AF25 -> 91299.7941 | S25: =Prop2019DistTar!AG25 -> 0 | T25: =Prop2019DistTar!AH25 -> 0 | U25: =Prop2019DistTar!AI25 -> 0 | V25: =Prop2019DistTar!AJ25 -> 0 | W25: =Prop2019DistTar!AK25 -> 123463212.2 | X25: =Prop2019DistTar!AL25 -> 0 | Y25: =Prop2019DistTar!AM25 -> 0 | Z25: =Prop2019DistTar!AN25 -> 0 | AA25: =Prop2019DistTar!AO25 -> 0 | AB25: =Prop2019DistTar!AP25 -> 0 | AC25: =Prop2019DistTar!AQ25 -> 0 | AD25: =Prop2019DistTar!AR25 -> 0 | AF25: 0 | AG25: 0 | AH25: 0 | AI25: 0 | AJ25: 0 | AK25: 600525.064 | AL25: 0 | AM25: 0 | AN25: 0 | AO25: 0 | AP25: 0 | AQ25: 0 | AR25: 0 | AS25: 600525.064
B26: =Prop2019DistTar!B26 -> NSP30 Small Dedicated | D26: 0 | E26: 0 | F26: 0 | G26: 0 | H26: 0 | I26: 0.4864 | J26: 0 | K26: 0 | L26: 0 | M26: 0 | N26: 0 | O26: 0 | P26: 0 | R26: =Prop2019DistTar!AF26 -> 0 | S26: =Prop2019DistTar!AG26 -> 0 | T26: =Prop2019DistTar!AH26 -> 0 | U26: =Prop2019DistTar!AI26 -> 0 | V26: =Prop2019DistTar!AJ26 -> 0 | W26: =Prop2019DistTar!AK26 -> 0 | X26: =Prop2019DistTar!AL26 -> 0 | Y26: =Prop2019DistTar!AM26 -> 0 | Z26: =Prop2019DistTar!AN26 -> 0 | AA26: =Prop2019DistTar!AO26 -> 0 | AB26: =Prop2019DistTar!AP26 -> 0 | AC26: =Prop2019DistTar!AQ26 -> 0 | AD26: =Prop2019DistTar!AR26 -> 0 | AF26: 0 | AG26: 0 | AH26: 0 | AI26: 0 | AJ26: 0 | AK26: 0 | AL26: 0 | AM26: 0 | AN26: 0 | AO26: 0 | AP26: 0 | AQ26: 0 | AR26: 0 | AS26: 0
B27: =Prop2019DistTar!B27 -> NEE31 Small Dedicated-afternoon boost | D27: 0 | E27: 0 | F27: 0 | G27: 0 | H27: 0 | I27: 0.4864 | J27: 0 | K27: 0 | L27: 0 | M27: 0 | N27: 0 | O27: 0 | P27: 0 | R27: =Prop2019DistTar!AF27 -> 13613.33664 | S27: =Prop2019DistTar!AG27 -> 0 | T27: =Prop2019DistTar!AH27 -> 0 | U27: =Prop2019DistTar!AI27 -> 0 | V27: =Prop2019DistTar!AJ27 -> 0 | W27: =Prop2019DistTar!AK27 -> 43792657.42 | X27: =Prop2019DistTar!AL27 -> 0 | Y27: =Prop2019DistTar!AM27 -> 0 | Z27: =Prop2019DistTar!AN27 -> 0 | AA27: =Prop2019DistTar!AO27 -> 0 | AB27: =Prop2019DistTar!AP27 -> 0 | AC27: =Prop2019DistTar!AQ27 -> 0 | AD27: =Prop2019DistTar!AR27 -> 0 | AF27: 0 | AG27: 0 | AH27: 0 | AI27: 0 | AJ27: 0 | AK27: 213007.4857 | AL27: 0 | AM27: 0 | AN27: 0 | AO27: 0 | AP27: 0 | AQ27: 0 | AR27: 0 | AS27: 213007.4857
B28: =Prop2019DistTar!B28 -> NSP31 Small Dedicated-afternoon boost | D28: 0 | E28: 0 | F28: 0 | G28: 0 | H28: 0 | I28: 0.4864 | J28: 0 | K28: 0 | L28: 0 | M28: 0 | N28: 0 | O28: 0 | P28: 0 | R28: =Prop2019DistTar!AF28 -> 0 | S28: =Prop2019DistTar!AG28 -> 0 | T28: =Prop2019DistTar!AH28 -> 0 | U28: =Prop2019DistTar!AI28 -> 0 | V28: =Prop2019DistTar!AJ28 -> 0 | W28: =Prop2019DistTar!AK28 -> 0 | X28: =Prop2019DistTar!AL28 -> 0 | Y28: =Prop2019DistTar!AM28 -> 0 | Z28: =Prop2019DistTar!AN28 -> 0 | AA28: =Prop2019DistTar!AO28 -> 0 | AB28: =Prop2019DistTar!AP28 -> 0 | AC28: =Prop2019DistTar!AQ28 -> 0 | AD28: =Prop2019DistTar!AR28 -> 0 | AF28: 0 | AG28: 0 | AH28: 0 | AI28: 0 | AJ28: 0 | AK28: 0 | AL28: 0 | AM28: 0 | AN28: 0 | AO28: 0 | AP28: 0 | AQ28: 0 | AR28: 0 | AS28: 0
B29: =Prop2019DistTar!B29 -> NEE32 Dedicated Circuit 8 to 8 | D29: 0 | E29: 0 | F29: 0 | G29: 0 | H29: 0 | I29: 0.4864 | J29: 0 | K29: 0 | L29: 0 | M29: 0 | N29: 0 | O29: 0 | P29: 0 | R29: =Prop2019DistTar!AF29 -> 3819.773799 | S29: =Prop2019DistTar!AG29 -> 0 | T29: =Prop2019DistTar!AH29 -> 0 | U29: =Prop2019DistTar!AI29 -> 0 | V29: =Prop2019DistTar!AJ29 -> 0 | W29: =Prop2019DistTar!AK29 -> 4946944.043 | X29: =Prop2019DistTar!AL29 -> 0 | Y29: =Prop2019DistTar!AM29 -> 0 | Z29: =Prop2019DistTar!AN29 -> 0 | AA29: =Prop2019DistTar!AO29 -> 0 | AB29: =Prop2019DistTar!AP29 -> 0 | AC29: =Prop2019DistTar!AQ29 -> 0 | AD29: =Prop2019DistTar!AR29 -> 0 | AF29: 0 | AG29: 0 | AH29: 0 | AI29: 0 | AJ29: 0 | AK29: 24061.93582 | AL29: 0 | AM29: 0 | AN29: 0 | AO29: 0 | AP29: 0 | AQ29: 0 | AR29: 0 | AS29: 24061.93582
B30: =Prop2019DistTar!B30 -> NSP32 Dedicated Circuit 8 to 8 | D30: 0 | E30: 0 | F30: 0 | G30: 0 | H30: 0 | I30: 0.4864 | J30: 0 | K30: 0 | L30: 0 | M30: 0 | N30: 0 | O30: 0 | P30: 0 | R30: =Prop2019DistTar!AF30 -> 0 | S30: =Prop2019DistTar!AG30 -> 0 | T30: =Prop2019DistTar!AH30 -> 0 | U30: =Prop2019DistTar!AI30 -> 0 | V30: =Prop2019DistTar!AJ30 -> 0 | W30: =Prop2019DistTar!AK30 -> 0 | X30: =Prop2019DistTar!AL30 -> 0 | Y30: =Prop2019DistTar!AM30 -> 0 | Z30: =Prop2019DistTar!AN30 -> 0 | AA30: =Prop2019DistTar!AO30 -> 0 | AB30: =Prop2019DistTar!AP30 -> 0 | AC30: =Prop2019DistTar!AQ30 -> 0 | AD30: =Prop2019DistTar!AR30 -> 0 | AF30: 0 | AG30: 0 | AH30: 0 | AI30: 0 | AJ30: 0 | AK30: 0 | AL30: 0 | AM30: 0 | AN30: 0 | AO30: 0 | AP30: 0 | AQ30: 0 | AR30: 0 | AS30: 0
B31: =Prop2019DistTar!B31 -> NEE40 Medium Single Rate - closed to new customers | D31: 0 | E31: 0.5794 | F31: 0 | G31: 0 | H31: 0 | I31: 0 | J31: 0 | K31: 0 | L31: 0 | M31: 0 | N31: 0 | O31: 0 | P31: 0 | R31: =Prop2019DistTar!AF31 -> 49.97616386 | S31: =Prop2019DistTar!AG31 -> 9262219.642 | T31: =Prop2019DistTar!AH31 -> 0 | U31: =Prop2019DistTar!AI31 -> 0 | V31: =Prop2019DistTar!AJ31 -> 0 | W31: =Prop2019DistTar!AK31 -> 0 | X31: =Prop2019DistTar!AL31 -> 0 | Y31: =Prop2019DistTar!AM31 -> 0 | Z31: =Prop2019DistTar!AN31 -> 0 | AA31: =Prop2019DistTar!AO31 -> 0 | AB31: =Prop2019DistTar!AP31 -> 0 | AC31: =Prop2019DistTar!AQ31 -> 0 | AD31: =Prop2019DistTar!AR31 -> 0 | AF31: 0 | AG31: 53665.3006 | AH31: 0 | AI31: 0 | AJ31: 0 | AK31: 0 | AL31: 0 | AM31: 0 | AN31: 0 | AO31: 0 | AP31: 0 | AQ31: 0 | AR31: 0 | AS31: 53665.3006
B32: =Prop2019DistTar!B32 -> NEE51 Medium Two Rate 5Day - closed to new customers - <160MWh to NEE21 | D32: 0 | E32: 0.5794 | F32: 0 | G32: 0 | H32: 0 | I32: 0.4864 | J32: 0 | K32: 0 | L32: 0 | M32: 0 | N32: 0 | O32: 0 | P32: 0 | R32: =Prop2019DistTar!AF32 -> 360.5833333 | S32: =Prop2019DistTar!AG32 -> 30945924.42 | T32: =Prop2019DistTar!AH32 -> 0 | U32: =Prop2019DistTar!AI32 -> 0 | V32: =Prop2019DistTar!AJ32 -> 0 | W32: =Prop2019DistTar!AK32 -> 28538699.99 | X32: =Prop2019DistTar!AL32 -> 0 | Y32: =Prop2019DistTar!AM32 -> 0 | Z32: =Prop2019DistTar!AN32 -> 0 | AA32: =Prop2019DistTar!AO32 -> 0 | AB32: =Prop2019DistTar!AP32 -> 0 | AC32: =Prop2019DistTar!AQ32 -> 0 | AD32: =Prop2019DistTar!AR32 -> 0 | AF32: 0 | AG32: 179300.6861 | AH32: 0 | AI32: 0 | AJ32: 0 | AK32: 138812.2367 | AL32: 0 | AM32: 0 | AN32: 0 | AO32: 0 | AP32: 0 | AQ32: 0 | AR32: 0 | AS32: 318112.9228
B33: =Prop2019DistTar!B33 -> NEE55 Snowfields Tariff | D33: 234 | E33: 0 | F33: 0 | G33: 0 | H33: 0 | I33: 0 | J33: 0 | K33: 0 | L33: 0 | M33: 0 | N33: 0 | O33: 0 | P33: 0 | R33: =Prop2019DistTar!AF33 -> 0 | S33: =Prop2019DistTar!AG33 -> 0 | T33: =Prop2019DistTar!AH33 -> 0 | U33: =Prop2019DistTar!AI33 -> 0 | V33: =Prop2019DistTar!AJ33 -> 0 | W33: =Prop2019DistTar!AK33 -> 0 | X33: =Prop2019DistTar!AL33 -> 0 | Y33: =Prop2019DistTar!AM33 -> 0 | Z33: =Prop2019DistTar!AN33 -> 0 | AA33: =Prop2019DistTar!AO33 -> 0 | AB33: =Prop2019DistTar!AP33 -> 0 | AC33: =Prop2019DistTar!AQ33 -> 0 | AD33: =Prop2019DistTar!AR33 -> 0 | AE33: =Prop2019DistTar!AS33 -> 0 | AF33: 0 | AG33: 0 | AH33: 0 | AI33: 0 | AJ33: 0 | AK33: 0 | AL33: 0 | AM33: 0 | AN33: 0 | AO33: 0 | AP33: 0 | AQ33: 0 | AR33: 0 | AS33: 0
B34: =Prop2019DistTar!B34 -> NSP55 Snowfields Tariff | D34: 234 | E34: 0 | F34: 0 | G34: 0 | H34: 0 | I34: 0 | J34: 0 | K34: 0 | L34: 0 | M34: 0 | N34: 0 | O34: 0 | P34: 0 | R34: =Prop2019DistTar!AF34 -> 0 | S34: =Prop2019DistTar!AG34 -> 0 | T34: =Prop2019DistTar!AH34 -> 0 | U34: =Prop2019DistTar!AI34 -> 0 | V34: =Prop2019DistTar!AJ34 -> 0 | W34: =Prop2019DistTar!AK34 -> 0 | X34: =Prop2019DistTar!AL34 -> 0 | Y34: =Prop2019DistTar!AM34 -> 0 | Z34: =Prop2019DistTar!AN34 -> 0 | AA34: =Prop2019DistTar!AO34 -> 0 | AB34: =Prop2019DistTar!AP34 -> 0 | AC34: =Prop2019DistTar!AQ34 -> 0 | AD34: =Prop2019DistTar!AR34 -> 0 | AE34: =Prop2019DistTar!AS34 -> 0 | AF34: 0 | AG34: 0 | AH34: 0 | AI34: 0 | AJ34: 0 | AK34: 0 | AL34: 0 | AM34: 0 | AN34: 0 | AO34: 0 | AP34: 0 | AQ34: 0 | AR34: 0 | AS34: 0
B35: =Prop2019DistTar!B35 -> NSP56 Medium Demand Multi-rate | D35: 272 | E35: 0 | F35: 0 | G35: 0 | H35: 0 | I35: 0 | J35: 0 | K35: 0 | L35: 0 | M35: 0 | N35: 0 | O35: 0 | P35: 0 | R35: =Prop2019DistTar!AF35 -> 1315.314697 | S35: =Prop2019DistTar!AG35 -> 107539102.4 | T35: =Prop2019DistTar!AH35 -> 86725869.01 | U35: =Prop2019DistTar!AI35 -> 0 | V35: =Prop2019DistTar!AJ35 -> 0 | W35: =Prop2019DistTar!AK35 -> 135663741.9 | X35: =Prop2019DistTar!AL35 -> 0 | Y35: =Prop2019DistTar!AM35 -> 0 | Z35: =Prop2019DistTar!AN35 -> 0 | AA35: =Prop2019DistTar!AO35 -> 205494.1126 | AB35: =Prop2019DistTar!AP35 -> 90680.21847 | AC35: =Prop2019DistTar!AQ35 -> 0 | AD35: =Prop2019DistTar!AR35 -> 0 | AE35: =Prop2019DistTar!AS35 -> 0 | AF35: 357765.5977 | AG35: 0 | AH35: 0 | AI35: 0 | AJ35: 0 | AK35: 0 | AL35: 0 | AM35: 0 | AN35: 0 | AO35: 0 | AP35: 0 | AQ35: 0 | AR35: 0 | AS35: 357765.5977
B36: =Prop2019DistTar!B36 -> NEN56 Medium Demand Multi-rate - Embedded Network | D36: 272 | E36: 0 | F36: 0 | G36: 0 | H36: 0 | I36: 0 | J36: 0 | K36: 0 | L36: 0 | M36: 0 | N36: 0 | O36: 0 | P36: 0 | R36: =Prop2019DistTar!AF36 -> 3.253912568 | S36: =Prop2019DistTar!AG36 -> 218248.2857 | T36: =Prop2019DistTar!AH36 -> 240336.3296 | U36: =Prop2019DistTar!AI36 -> 0 | V36: =Prop2019DistTar!AJ36 -> 0 | W36: =Prop2019DistTar!AK36 -> 231425.7677 | X36: =Prop2019DistTar!AL36 -> 0 | Y36: =Prop2019DistTar!AM36 -> 0 | Z36: =Prop2019DistTar!AN36 -> 0 | AA36: =Prop2019DistTar!AO36 -> 0 | AB36: =Prop2019DistTar!AP36 -> 0 | AC36: =Prop2019DistTar!AQ36 -> 0 | AD36: =Prop2019DistTar!AR36 -> 0 | AE36: =Prop2019DistTar!AS36 -> 0 | AF36: 885.0642184 | AG36: 0 | AH36: 0 | AI36: 0 | AJ36: 0 | AK36: 0 | AL36: 0 | AM36: 0 | AN36: 0 | AO36: 0 | AP36: 0 | AQ36: 0 | AR36: 0 | AS36: 885.0642184
B37: =Prop2019DistTar!B37 -> NEE60 Medium Two Rate 7Day - closed to new customers | D37: 234 | E37: 0 | F37: 0 | G37: 0 | H37: 0 | I37: 0 | J37: 0 | K37: 0 | L37: 0 | M37: 0 | N37: 0 | O37: 0 | P37: 0 | R37: =Prop2019DistTar!AF37 -> 359.3333333 | S37: =Prop2019DistTar!AG37 -> 16698393.61 | T37: =Prop2019DistTar!AH37 -> 0 | U37: =Prop2019DistTar!AI37 -> 0 | V37: =Prop2019DistTar!AJ37 -> 0 | W37: =Prop2019DistTar!AK37 -> 5020930.153 | X37: =Prop2019DistTar!AL37 -> 0 | Y37: =Prop2019DistTar!AM37 -> 0 | Z37: =Prop2019DistTar!AN37 -> 0 | AA37: =Prop2019DistTar!AO37 -> 0 | AB37: =Prop2019DistTar!AP37 -> 0 | AC37: =Prop2019DistTar!AQ37 -> 0 | AD37: =Prop2019DistTar!AR37 -> 0 | AE37: =Prop2019DistTar!AS37 -> 0 | AF37: 84084 | AG37: 0 | AH37: 0 | AI37: 0 | AJ37: 0 | AK37: 0 | AL37: 0 | AM37: 0 | AN37: =L37/100*Z37 -> 0 | AO37: 0 | AP37: 0 | AQ37: 0 | AR37: 0 | AS37: 84084
B38: =Prop2019DistTar!B38 -> NEE52 Unmetered | D38: 0 | E38: 0.5794 | F38: 0 | G38: 0 | H38: 0 | I38: 0.4864 | J38: 0 | K38: 0 | L38: 0 | M38: 0 | N38: 0 | O38: 0 | P38: 0 | R38: =Prop2019DistTar!AF38 -> 90.81118907 | S38: =Prop2019DistTar!AG38 -> 26450447.25 | T38: =Prop2019DistTar!AH38 -> 0 | U38: =Prop2019DistTar!AI38 -> 0 | V38: =Prop2019DistTar!AJ38 -> 0 | W38: =Prop2019DistTar!AK38 -> 56164947.39 | X38: =Prop2019DistTar!AL38 -> 0 | Y38: =Prop2019DistTar!AM38 -> 0 | Z38: =Prop2019DistTar!AN38 -> 0 | AA38: =Prop2019DistTar!AO38 -> 0 | AB38: =Prop2019DistTar!AP38 -> 0 | AC38: =Prop2019DistTar!AQ38 -> 0 | AD38: =Prop2019DistTar!AR38 -> 0 | AE38: =Prop2019DistTar!AS38 -> 0 | AF38: 0 | AG38: =E38/100*S38 -> 153253.8913 | AH38: 0 | AI38: 0 | AJ38: 0 | AK38: 273186.3041 | AL38: 0 | AM38: 0 | AN38: 0 | AO38: =M38*AA38 -> 0 | AP38: 0 | AQ38: 0 | AR38: 0 | AS38: 426440.1955
B39: =Prop2019DistTar!B39 -> NEE74 LV Large Two Rate 5Day | D39: 272 | E39: 0 | F39: 0 | G39: 0 | H39: 0 | I39: 0 | J39: 0 | K39: 0 | L39: 0 | M39: 0 | N39: 0 | O39: 0 | P39: 0 | R39: =Prop2019DistTar!AF39 -> 8 | S39: =Prop2019DistTar!AG39 -> 2471348.796 | T39: =Prop2019DistTar!AH39 -> 0 | U39: =Prop2019DistTar!AI39 -> 0 | V39: =Prop2019DistTar!AJ39 -> 0 | W39: =Prop2019DistTar!AK39 -> 2599593.326 | X39: =Prop2019DistTar!AL39 -> 0 | Y39: =Prop2019DistTar!AM39 -> 0 | Z39: =Prop2019DistTar!AN39 -> 0 | AA39: =Prop2019DistTar!AO39 -> 0 | AB39: =Prop2019DistTar!AP39 -> 0 | AC39: =Prop2019DistTar!AQ39 -> 0 | AD39: =Prop2019DistTar!AR39 -> 0 | AE39: =Prop2019DistTar!AS39 -> 0 | AF39: 2176 | AG39: 0 | AH39: 0 | AI39: 0 | AJ39: 0 | AK39: 0 | AL39: 0 | AM39: 0 | AN39: 0 | AO39: 0 | AP39: 0 | AQ39: 0 | AR39: 0 | AS39: 2176
